Workbook

Sheet Instructions
A1: ='DNSP Inputs O & M'!$A$3 -> United Energy
A3: Instructions
A5: This model is to be used for the setting of Public Lighting Tariffs for the Regulatory Period 2016 to 2020 based on forecast inflation rates and Real Pre Tax WACC.
A7: Distributor data input fields are shaded | C7: and located in tabs "DNSP Inputs General" , "DNSP Inputs O & M" and "DNSP Inputs Capex"
A8: NOTE : All Distributor data input fields have been populated with AER Preliminary Decision data in this model.
A12: This model will also to be used for the annual Public Lighting Tariff Approvals in the Regulatory Period 2016 to 2020 based on actual inflation rates and Real Pre Tax WACC.
H70: =G70 -> 0 | I70: =H70 -> 0 | J70: =I70 -> 0 | K70: =J70 -> 0 | L70: =K70 -> 0

Sheet DNSP Inputs General
A1: ='DNSP Inputs O & M'!$A$3 -> United Energy
D2: 2009 | E2: 2010 | F2: 2011 | G2: 2012 | H2: 2013 | I2: 2014 | J2: 2015 | K2: 2016 | L2: 2017 | M2: 2018 | N2: 2019 | O2: 2020
A3: Capital Expenditure | D3: Nominal $ - Actual | J3: Real 2015 $ - Forecast
A4: (Net of customer contributions)
A6: Poles and Brackets | D6: 2055145.574 | E6: -55718.27702 | F6: 705275.3648 | G6: 101102.2593 | H6: 705275.3648 | I6: 551677.7149 | J6: 1079972.56 | K6: ='Capex 2016-2020'!B18 -> 775199.5526 | L6: ='Capex 2016-2020'!C18 -> 856191.5154 | M6: ='Capex 2016-2020'!D18 -> 924280.3581 | N6: ='Capex 2016-2020'!E18 -> 984501.2312 | O6: ='Capex 2016-2020'!F18 -> 1074878.216
A8: Existing Lights
A9: Luminaires | D9: 1519394.996 | E9: -110251.943 | F9: 1144988.395 | G9: 2027497.171 | H9: 1144988.395 | I9: 827055.3051 | J9: 1045107.783 | K9: ='Capex 2016-2020'!B13-'Capex 2016-2020'!B25 -> 761098.4824 | L9: ='Capex 2016-2020'!C13-'Capex 2016-2020'!C25 -> 760920.7851 | M9: ='Capex 2016-2020'!D13-'Capex 2016-2020'!D25 -> 766799.2068 | N9: ='Capex 2016-2020'!E13-'Capex 2016-2020'!E25 -> 777448.8257 | O9: ='Capex 2016-2020'!F13-'Capex 2016-2020'!F25 -> 789426.7918
A11: Energy Efficient Lights
A12: Luminaires and Ballasts | D12: 0 | E12: 0 | F12: 0 | G12: 0 | H12: 0 | I12: 0 | J12: 0 | K12: 0 | L12: 0 | M12: 0 | N12: 0 | O12: 0
A14: Total Net Capex | D14: =SUM(D6,D9,D12) -> 3574540.57 | E14: =SUM(E6,E9,E12) -> -165970.22 | F14: 1850263.76 | G14: 2128599.43 | H14: 1850263.76 | I14: 1378733.02 | J14: 2125080.343 | K14: 1536298.035 | L14: 1617112.3 | M14: 1691079.565 | N14: 1761950.057 | O14: 1864305.008
F17: 2011 | G17: 2012 | H17: 2013 | I17: 2014 | J17: 2015 | K17: 2016 | L17: 2017 | M17: 2018 | N17: 2019 | O17: 2020
A18: Operating and Maintenance Expenditure | F18: Nominal $ - Actual | J18: Real 2015 $ - Forecast
A20: Total O & M | F20: 2510763.394 | G20: 2895184.073 | H20: 2682204.391 | I20: 3493714.159 | J20: 3585417.335 | K20: ='Cashflow Summary'!K82 -> 3517995.483 | L20: ='Cashflow Summary'!L82 -> 3575470.384 | M20: ='Cashflow Summary'!M82 -> 3632698.413 | N20: ='Cashflow Summary'!N82 -> 3636161.111 | O20: ='Cashflow Summary'!O82 -> 3639436.314
A24: WACC
A25: Regulatory Period | B25: 2016 | C25: 2017 | D25: 2018 | E25: 2019 | F25: 2020
A26: Real Pre Tax WACC | B26: 0.04819181771 | C26: 0.04755649502 | D26: 0.04819181771 | E26: 0.04819181771 | F26: 0.04819181771
A29: CPI Index | B29: CPI Index | C29: Actual CPI | D29: F'cast CPI
A30: 2014-09-30 | B30: 106.4
A31: 2015-09-30 | B31: 108 | C31: =IF(B31="","",B31/B30-1) -> 0.01503759398 | D31: 0.02323079821
A32: 2016-06-30 | B32: 108.6 | C32: =IF(B32="","",B32/F32-1) -> 0.01023255814 | D32: 0.02323079821 | E32: 2015-06-01 | F32: 107.5
A33: 2017-06-30 | B33: 110.7 | C33: 0.01933701657 | D33: 0.02323079821
A34: 2018-06-30 | B34: 113 | C34: 0.02077687444 | D34: 0.02323079821
A35: 2019-06-30 | D35: 0.02323079821
A38: Number Of Lights | E38: =J$2 -> 2015 | F38: =F$2 -> 2011 | G38: 2012 | H38: 2013 | I38: 2014 | J38: 2015 | K38: 2016 | L38: 2017 | M38: 2018 | N38: 2019 | O38: 2020
E39: Actual Prices | F39: Actual Volumes | J39: Forecast Volumes
A40: Existing Lights | B40: Reference Light | D40: Price Factor
A41: Mercury Vapour 80 watt | B41: =A$41 -> Mercury Vapour 80 watt | D41: 1 | E41: 64.8 | F41: 71495 | G41: 70284 | H41: 65619 | I41: 58146 | J41: 54948.75028 | K41: 51821.99763 | L41: 48695.24499 | M41: 45568.49234 | N41: 42441.73969 | O41: 39314.98705
A42: Sodium High Pressure 150 watt | B42: =A$42 -> Sodium High Pressure 150 watt | D42: 1 | E42: 97.72 | F42: 23577 | G42: 23585 | H42: 23639 | I42: 23706 | J42: 23801.79922 | K42: 23894.91893 | L42: 23988.03865 | M42: 24080.93737 | N42: 24174.60956 | O42: 24268.06076
A43: Sodium High Pressure 250 watt | B43: =A$43 -> Sodium High Pressure 250 watt | D43: 1 | E43: 99.64 | F43: 9738 | G43: 9809 | H43: 9877 | I43: 9900 | J43: 9940.007267 | K43: 9978.89553 | L43: 10017.78379 | M43: 10056.57977 | N43: 10095.69875 | O43: 10134.72545
A44: Fluorescent 2x20 watt | B44: =A$41 -> Mercury Vapour 80 watt | D44: 1.29 | E44: 83.59 | F44: 60 | G44: 57 | H44: 56 | I44: 60 | J44: 62 | K44: 64 | L44: 66 | M44: 68 | N44: 70 | O44: 72
A45: Fluorescent 3x20 watt | B45: =A$41 -> Mercury Vapour 80 watt | D45: 1.29 | E45: 82.19 | F45: 3 | G45: 3 | H45: 3 | I45: 3 | J45: 3 | K45: 3 | L45: 3 | M45: 3 | N45: 3 | O45: 3
A46: Mercury Vapour 50 watt | B46: =A$41 -> Mercury Vapour 80 watt | D46: 1.48 | E46: 95.9 | F46: 42 | G46: 39 | H46: 42 | I46: 37 | J46: 33.83638253 | K46: 30.67276506 | L46: 27.50914759 | M46: 24.34553012 | N46: 21.18191266 | O46: 18.01829519
A47: Mercury Vapour 125 watt | B47: =A$41 -> Mercury Vapour 80 watt | D47: 1.48 | E47: 95.9 | F47: 1178 | G47: 1175 | H47: 1166 | I47: 1114 | J47: 1015.637976 | K47: 917.2759514 | L47: 818.9139271 | M47: 720.5519029 | N47: 622.1898786 | O47: 523.8278543
A48: Mercury Vapour 250 watt | B48: =A$43 -> Sodium High Pressure 250 watt | D48: 0.91 | E48: 90.67 | F48: 126 | G48: 126 | H48: 124 | I48: 122 | J48: 111.1777724 | K48: 98.95831034 | L48: 98.95831034 | M48: 98.95831034 | N48: 98.95831034 | O48: 98.95831034
A49: Mercury Vapour 400 watt | B49: =A$43 -> Sodium High Pressure 250 watt | D49: 1.26 | E49: 125.55 | F49: 6 | G49: 6 | H49: 6 | I49: 6 | J49: 6 | K49: 6 | L49: 6 | M49: 6 | N49: 6 | O49: 6
A50: Mercury Vapour 700 watt | B50: =A$43 -> Sodium High Pressure 250 watt | D50: 1.26 | E50: 125.55 | F50: 4 | G50: 4 | H50: 0 | I50: 4 | J50: 3.63925908 | K50: 4 | L50: 3.64721316 | M50: 4 | N50: 3.64721316 | O50: 4
A51: Sodium High Pressure 70 watt | B51: =A$41 -> Mercury Vapour 80 watt | D51: 2.19 | E51: 141.91 | F51: 373 | G51: 366 | H51: 327 | I51: 333 | J51: 339.5797255 | K51: 346.1152662 | L51: 352.6508068 | M51: 359.1827032 | N51: 365.7273541 | O51: 372.2683609
A52: Sodium High Pressure 100 watt | B52: =A$42 -> Sodium High Pressure 150 watt | D52: 1.1 | E52: 107.49 | F52: 799 | G52: 848 | H52: 873 | I52: 911 | J52: 917.3128494 | K52: 923.5050684 | L52: 929.6972873 | M52: 935.8795574 | N52: 942.0966486 | O52: 948.3037909
A53: Sodium High Pressure 400 watt | B53: =A$43 -> Sodium High Pressure 250 watt | D53: 1.26 | E53: 125.55 | F53: 346 | G53: 338 | H53: 335 | I53: 333 | J53: 334.3400766 | K53: 335.6426713 | L53: 336.945266 | M53: 338.2447694 | N53: 339.5550923 | O53: 340.8623239
A54: Metal Halide 70 watt | B54: =A$42 -> Sodium High Pressure 150 watt | D54: 1.35 | E54: 131.92 | F54: 9 | G54: 9 | H54: 9 | I54: 9 | J54: 9 | K54: 9 | L54: 9 | M54: 9 | N54: 9 | O54: 9
A55: Metal Halide 100 watt | B55: =A$42 -> Sodium High Pressure 150 watt | D55: 1.35 | E55: 131.92 | F55: 97 | G55: 95 | H55: 95 | I55: 95 | J55: 95 | K55: 95 | L55: 95 | M55: 95 | N55: 95 | O55: 95
A56: Metal Halide 150 watt | B56: =A$42 -> Sodium High Pressure 150 watt | D56: 1.35 | E56: 131.92 | F56: 15 | G56: 15 | H56: 15 | I56: 15 | J56: 15 | K56: 15 | L56: 15 | M56: 15 | N56: 15 | O56: 15
A57: Metal Halide 250 watt | B57: =A$43 -> Sodium High Pressure 250 watt | D57: 1.35 | E57: 134.51 | F57: 118 | G57: 118 | H57: 118 | I57: 118 | J57: 118 | K57: 118 | L57: 118 | M57: 118 | N57: 118 | O57: 118
A58: Metal Halide 400 watt | B58: =A$43 -> Sodium High Pressure 250 watt | D58: 1.35 | E58: 134.51 | F58: 110 | G58: 110 | H58: 110 | I58: 110 | J58: 110 | K58: 110 | L58: 110 | M58: 110 | N58: 110 | O58: 110
A65: Total Existing Lights | F65: =SUM(F41:F64) -> 108096 | G65: 106987 | H65: 102414 | I65: 95022 | J65: 91864.08081 | K65: 88771.98213 | L65: 85691.38938 | M65: 82611.17225 | N65: 79531.40441 | O65: 76452.01219
A67: Energy Efficient Lights | B67: Reference Light | D67: Price Factor
A68: T5 2X14W | B68: =A$68 -> T5 2X14W | D68: 1 | E68: 29.22 | F68: 9508 | G68: 10834 | H68: 14997 | I68: 21810 | J68: 25108.77536 | K68: 28367.05365 | L68: 31625.33194 | M68: 34883.61023 | N68: 38141.88851 | O68: 41400.1668
A69: Twin 24w Fluorescent | B69: =A$68 -> T5 2X14W | D69: 1 | E69: 29.22 | F69: 47 | G69: 96 | H69: 101 | I69: 226 | J69: 237.1721275 | K69: 248.0317704 | L69: 258.8914133 | M69: 269.7252844 | N69: 280.6493571 | O69: 291.5476579
A70: 32W Compact Fluorescent | B70: T5 2X14W | D70: 1 | E70: 29.22 | F70: 182 | G70: 262 | H70: 857 | I70: 1502 | J70: 1576.250157 | K70: 1648.423536 | L70: 1720.596915 | M70: 1792.599014 | N70: 1865.200595 | O70: 1937.630895
A71: 42w Compact Fluorescent | B71: T5 2X14W | D71: 1 | E71: 29.22 | F71: 182 | G71: 228 | H71: 244 | I71: 303 | J71: 317.9785603 | K71: 332.5381701 | L71: 347.0977798 | M71: 361.622837 | N71: 376.2688283 | O71: 390.880267
A74: Total Energy Efficient Lights | F74: =SUM(F68:F73) -> 9919 | G74: 11420 | H74: 16199 | I74: 23841 | J74: 27240.17621 | K74: 30596.04713 | L74: 33951.91805 | M74: 37307.55736 | N74: 40664.00729 | O74: 44020.22562
A76: Total Number of Lights | F76: =SUM(F65,F74) -> 118015 | G76: 118407 | H76: 118613 | I76: 118863 | J76: 119104.257 | K76: 119368.0293 | L76: 119643.3074 | M76: 119918.7296 | N76: 120195.4117 | O76: 120472.2378

Sheet DNSP Inputs O & M
A1: Public Lighting Cost Build-up Model
A3: United Energy | C3: O & M Data Inputs
C5: Real 2015 $
A7: Input parameters | C7: 2015 | D7: 2016 | E7: 2017 | F7: 2018 | G7: 2019 | H7: 2020
A9: Inputs - all lamps
A11: Material premium for rural areas | C11: 0.05 | D11: 0.05 | E11: 0.05 | F11: 0.05 | G11: 0.05 | H11: 0.05
A12: Labour rate (per hour) | C12: 89.64428472 | D12: 90.24 | E12: 90.24 | F12: 90.24 | G12: 90.24 | H12: 90.24
A13: Labour rate for night patrols (per hour) | C13: 103.0909274 | D13: 119.78 | E13: 119.78 | F13: 119.78 | G13: 119.78 | H13: 119.78
A14: Elevated platform vehicle (per hour) - urban MV,urban T5 | C14: 39.70489021 | D14: 40.42 | E14: 40.42 | F14: 40.42 | G14: 40.42 | H14: 40.42
A15: Elevated platform vehicle (per hour) - rural MV, rural T5, S-HP | C15: 51.04914455 | D15: 40.42 | E15: 40.42 | F15: 40.42 | G15: 40.42 | H15: 40.42
A16: Patrol vehicle (per hour) | C16: 11.34425434 | D16: 10 | E16: 10 | F16: 10 | G16: 10 | H16: 10
A17: Number of hours in a day | C17: 8 | D17: 8 | E17: 8 | F17: 8 | G17: 8 | H17: 8
A18: Indirect overheads | C18: 0.25 | D18: 0.25 | E18: 0.25 | F18: 0.25 | G18: 0.25 | H18: 0.25
A22: Inputs - MV80
A24: Depreciation period | B24: years | C24: 20 | D24: =C24 -> 20 | E24: =D24 -> 20 | F24: =E24 -> 20 | G24: =F24 -> 20 | H24: =G24 -> 20
A25: Lamps - bulk change | B25: years | C25: 4 | D25: 4 | E25: 4 | F25: 4 | G25: 4 | H25: 4
A26: PE cells - bulk change | B26: years | C26: 8 | D26: 8 | E26: 8 | F26: 8 | G26: 8 | H26: 8
A27: Proportion of lamps that fail between bulk change | C27: 0.196 | D27: 0.196 | E27: 0.196 | F27: 0.196 | G27: 0.196 | H27: 0.196
A28: Unit cost - lamp | C28: 5.595866852 | D28: 4.93277626 | E28: 4.93277626 | F28: 4.93277626 | G28: 4.93277626 | H28: 4.93277626
A29: Unit cost - PE cell | C29: 22.59162876 | D29: 19.9146 | E29: 19.9146 | F29: 19.9146 | G29: 19.9146 | H29: 19.9146
A30: Unit cost - luminaire | C30: 194.1410699 | D30: 171.1360341 | E30: 171.1360341 | F30: 171.1360341 | G30: 171.1360341 | H30: 171.1360341
A31: Unit cost - miscellaneous materials (bulk lamp) | C31: 1.224478523 | D31: 1.079382114 | E31: 1.079382114 | F31: 1.079382114 | G31: 1.079382114 | H31: 1.079382114
A32: Unit cost - miscellaneous materials (repair) | C32: 12.24478523 | D32: 10.79382114 | E32: 10.79382114 | F32: 10.79382114 | G32: 10.79382114 | H32: 10.79382114
A33: Number of men in crew | C33: 2 | D33: 2 | E33: 2 | F33: 2 | G33: 2 | H33: 2
A34: Number of bulk lamp changes in 1 day - urban | C34: 90 | D34: 58.07369293 | E34: 54.83292406 | F34: 51.82063818 | G34: 48.71124273 | H34: 45.51107921
A35: Number of bulk lamp changes in 1 day - rural | C35: 75 | D35: 49.75879284 | E35: 49.83292406 | F35: 46.82063818 | G35: 43.71124273 | H35: 40.51107921
A36: Number of repairs in 1 day - urban | C36: 30 | D36: 43.33997387 | E36: 43.68342511 | F36: 33.69290059 | G36: 32.95240308 | H36: 32.94223268
A37: Number of repairs in 1 day - rural | C37: 25 | D37: 33.39669443 | E37: 33 | F37: 33 | G37: 27.67659536 | H37: 27.67636733
A38: % of repairs - lamps | C38: 0.6 | D38: 0.6 | E38: 0.6 | F38: 0.6 | G38: 0.6 | H38: 0.6
A39: % of repairs - PE cells | C39: 0.5 | D39: 0.5 | E39: 0.5 | F39: 0.5 | G39: 0.5 | H39: 0.5
A40: % of repairs - luminaires | C40: 0.15 | D40: 0.15 | E40: 0.15 | F40: 0.15 | G40: 0.15 | H40: 0.15
A41: % of repairs - other | C41: 0.1 | D41: 0.1 | E41: 0.1 | F41: 0.1 | G41: 0.1 | H41: 0.1
A43: Other Maintenance and Repair costs
A44: Traffic control costs | C44: 4366.908172 | D44: 0 | E44: 0 | F44: 0 | G44: 0 | H44: 0
A45: Other costs : Describe……………………………………. | C45: 0 | D45: 0 | E45: 0 | F45: 0 | G45: 0 | H45: 0
C46: =SUM(C44:C45) -> 4366.908172 | D46: 0 | E46: 0 | F46: 0 | G46: 0 | H46: 0
A47: Number of Lights | C47: ='DNSP Inputs General'!J41 -> 54948.75028 | D47: ='DNSP Inputs General'!K41 -> 51821.99763 | E47: ='DNSP Inputs General'!L41 -> 48695.24499 | F47: ='DNSP Inputs General'!M41 -> 45568.49234 | G47: ='DNSP Inputs General'!N41 -> 42441.73969 | H47: ='DNSP Inputs General'!O41 -> 39314.98705
A48: Unit Cost | C48: =IF(C47=0,0,C46/C47) -> 0.07947238381 | D48: 0 | E48: 0 | F48: 0 | G48: 0 | H48: 0
A50: Location of selected public lighting assets within distributors' areas (%)
A51: Urban | C51: 0.84 | D51: 0.92 | E51: 0.92 | F51: 0.92 | G51: 0.92 | H51: 0.92
A52: Rural | C52: 0.16 | D52: 0.08 | E52: 0.08 | F52: 0.08 | G52: 0.08 | H52: 0.08
A56: Inputs - S-HP150
A58: Depreciation period | B58: years | C58: 20 | D58: =C58 -> 20 | E58: =D58 -> 20 | F58: =E58 -> 20 | G58: =F58 -> 20 | H58: =G58 -> 20
A59: Number of patrols per year | C59: 3 | D59: 3 | E59: 3 | F59: 3 | G59: 3 | H59: 3
A60: Lamps - frequency of replacement | B60: years | C60: 5 | D60: 5 | E60: 5 | F60: 5 | G60: 5 | H60: 5
A61: PE cells - frequency of replacement | B61: years | C61: 10 | D61: 10 | E61: 10 | F61: 10 | G61: 10 | H61: 10
A62: Unit cost - lamp | C62: 40.4690152 | D62: 35.67 | E62: 35.67 | F62: 35.67 | G62: 35.67 | H62: 35.67
A63: Unit cost - PE cell | C63: 21.9793895 | D63: 19.37 | E63: 19.37 | F63: 19.37 | G63: 19.37 | H63: 19.37
A64: Unit cost - miscellaneous materials | C64: 2.448957047 | D64: 2.16 | E64: 2.16 | F64: 2.16 | G64: 2.16 | H64: 2.16
A65: Number of men in crew - road patrols | C65: 2 | D65: 2 | E65: 2 | F65: 2 | G65: 2 | H65: 2
A66: Number of men in crew - repairs | C66: 2 | D66: 2 | E66: 2 | F66: 2 | G66: 2 | H66: 2
A67: Number of lamps patrolled in 1 day - urban | C67: 3000 | D67: 5280.231631 | E67: 5496.939305 | F67: 5635.318609 | G67: 5809.87773 | H67: 5985.818499
A68: Number of lamps patrolled in 1 day - rural | C68: 2000 | D68: 2494.354543 | E68: 2505.695807 | F68: 2537.917886 | G68: 2601.794902 | H68: 2670.478427
A69: Number of repairs in 1 day - urban | C69: 20 | D69: 36.45394329 | E69: 31.30543798 | F69: 27.28560967 | G69: 27.25463997 | H69: 25.87392839
A70: Number of repairs in 1 day - rural | C70: 16 | D70: 26.56660734 | E70: 25.75004876 | F70: 21.80926978 | G70: 25.15735201 | H70: 24.99331559
A72: Other Maintenance and Repair costs
A73: Traffic control costs | C73: 58614.63548 | D73: 70000 | E73: 70000 | F73: 70000 | G73: 70000 | H73: 70000
A74: Other costs : Describe……………………………………. | C74: 0 | D74: 0 | E74: 0 | F74: 0 | G74: 0 | H74: 0
C75: =SUM(C73:C74) -> 58614.63548 | D75: 70000 | E75: 70000 | F75: 70000 | G75: 70000 | H75: 70000
A76: Number of Lights | C76: ='DNSP Inputs General'!J42 -> 23801.79922 | D76: ='DNSP Inputs General'!K42 -> 23894.91893 | E76: ='DNSP Inputs General'!L42 -> 23988.03865 | F76: ='DNSP Inputs General'!M42 -> 24080.93737 | G76: ='DNSP Inputs General'!N42 -> 24174.60956 | H76: ='DNSP Inputs General'!O42 -> 24268.06076
A77: Unit Cost | C77: =IF(C76=0,0,C75/C76) -> 2.462613643 | D77: 2.929493094 | E77: 2.918121028 | F77: 2.906863588 | G77: 2.895600023 | H77: 2.884449676
A79: Location of selected public lighting assets within distributors' areas (%)
A80: Urban | C80: 0.84 | D80: 0.92 | E80: 0.92 | F80: 0.92 | G80: 0.92 | H80: 0.92
A81: Rural | C81: 0.16 | D81: 0.08 | E81: 0.08 | F81: 0.08 | G81: 0.08 | H81: 0.08
A85: Inputs - S-HP250
A87: Depreciation period | B87: years | C87: =C58 -> 20 | D87: 20 | E87: 20 | F87: 20 | G87: 20 | H87: 20
A88: Number of patrols per year | C88: 3 | D88: 3 | E88: 3 | F88: 3 | G88: 3 | H88: 3
A89: Lamps - frequency of replacement | B89: years | C89: 5 | D89: 5 | E89: 5 | F89: 5 | G89: 5 | H89: 5
A90: PE cells - frequency of replacement | B90: years | C90: 10 | D90: 10 | E90: 10 | F90: 10 | G90: 10 | H90: 10
A91: Unit cost - lamp | C91: 40.66493176 | D91: 35.85 | E91: 35.85 | F91: 35.85 | G91: 35.85 | H91: 35.85
A92: Unit cost - PE cell | C92: 21.9793895 | D92: 19.37 | E92: 19.37 | F92: 19.37 | G92: 19.37 | H92: 19.37
A93: Unit cost - miscellaneous materials | C93: 2.448957047 | D93: 2.16 | E93: 2.16 | F93: 2.16 | G93: 2.16 | H93: 2.16
A94: Number of men in crew - road patrols | C94: =C65 -> 2 | D94: 2 | E94: 2 | F94: 2 | G94: 2 | H94: 2
A95: Number of men in crew - repairs | C95: 2 | D95: 2 | E95: 2 | F95: 2 | G95: 2 | H95: 2
A96: Number of lamps patrolled in 1 day - urban | C96: 3000 | D96: 4035.586571 | E96: 4072.809639 | F96: 4247.734787 | G96: 4358.756841 | H96: 4477.785405
A97: Number of lamps patrolled in 1 day - rural | C97: 2000 | D97: 2211.989974 | E97: 2212.968066 | F97: 2227.003694 | G97: 2257.082124 | H97: 2290.322928
A98: Number of repairs in 1 day - urban | C98: 20 | D98: 36.45394329 | E98: 31.30543798 | F98: 33.92197649 | G98: 27.25463997 | H98: 25.87392839
A99: Number of repairs in 1 day - rural | C99: 16 | D99: 26.56660734 | E99: 25.75004876 | F99: 25.59450533 | G99: 25.15735201 | H99: 24.99331559
A101: Other Maintenance and Repair costs
A102: Traffic control costs | C102: 24356.61979 | D102: 30000 | E102: 30000 | F102: 30000 | G102: 30000 | H102: 30000
A103: Other costs : Describe……………………………………. | C103: 0 | D103: 0 | E103: 0 | F103: 0 | G103: 0 | H103: 0
C104: =SUM(C102:C103) -> 24356.61979 | D104: 30000 | E104: 30000 | F104: 30000 | G104: 30000 | H104: 30000
A105: Number of Lights | C105: ='DNSP Inputs General'!J43 -> 9940.007267 | D105: ='DNSP Inputs General'!K43 -> 9978.89553 | E105: ='DNSP Inputs General'!L43 -> 10017.78379 | F105: ='DNSP Inputs General'!M43 -> 10056.57977 | G105: ='DNSP Inputs General'!N43 -> 10095.69875 | H105: ='DNSP Inputs General'!O43 -> 10134.72545
A106: Unit Cost | C106: =IF(C105=0,0,C104/C105) -> 2.450362373 | D106: 3.006344731 | E106: 2.994674333 | F106: 2.983121568 | G106: 2.971562517 | H106: 2.960119655
A108: Location of selected public lighting assets within distributors' areas (%)
A109: Urban | C109: 0.84 | D109: 0.92 | E109: 0.92 | F109: 0.92 | G109: 0.92 | H109: 0.92
A110: Rural | C110: 0.16 | D110: 0.08 | E110: 0.08 | F110: 0.08 | G110: 0.08 | H110: 0.08
A114: Dedicated street lighting poles
A116: Period of inspection | B116: years | C116: 5 | D116: 5 | E116: 5 | F116: 5 | G116: 5 | H116: 5
A117: Pole inspection rate | B117: per day | C117: 75 | D117: 75 | E117: 75 | F117: 75 | G117: 75 | H117: 75
A118: Depreciation of dedicated street lighting pole & bracket | B118: years | C118: 35 | D118: =C118 -> 35 | E118: =D118 -> 35 | F118: =E118 -> 35 | G118: =F118 -> 35 | H118: =G118 -> 35
A119: Proportion of lights on dedicated poles | C119: 0.2370560408 | D119: 0.2370560408 | E119: 0.2370560408 | F119: 0.2370560408 | G119: 0.2370560408 | H119: 0.2370560408
A123: Other direct costs
A124: Call centre
A125: Number of calls | C125: 2400 | D125: 2400 | E125: 2400 | F125: 2400 | G125: 2400 | H125: 2400
A126: Average cost per call $ | C126: 11.34425434 | D126: 11.34425434 | E126: 11.34425434 | F126: 11.34425434 | G126: 11.34425434 | H126: 11.34425434
C127: =C125*C126 -> 27226.21043 | D127: 27226.21043 | E127: 27226.21043 | F127: 27226.21043 | G127: 27226.21043 | H127: 27226.21043
A129: GIS and other | C129: 113442.5434 | D129: 113442.5434 | E129: 113442.5434 | F129: 113442.5434 | G129: 113442.5434 | H129: 113442.5434
A130: Complaints handling | C130: 34032.76303 | D130: 34032.76303 | E130: 34032.76303 | F130: 34032.76303 | G130: 34032.76303 | H130: 34032.76303
A134: ENERGY EFFICIENT LIGHTS
A136: Inputs - T5 (2 X 14W)
A138: Depreciation period | B138: years | C138: 20 | D138: =C138 -> 20 | E138: =D138 -> 20 | F138: =E138 -> 20 | G138: =F138 -> 20 | H138: =G138 -> 20
A139: Lamps - bulk change | B139: years | C139: 4 | D139: 4 | E139: 4 | F139: 4 | G139: 4 | H139: 4
A140: PE cells - bulk change | B140: years | C140: 8 | D140: 8 | E140: 8 | F140: 8 | G140: 8 | H140: 8
A141: Ballast unit life | B141: years | C141: 20 | D141: =C141 -> 20 | E141: =D141 -> 20 | F141: =E141 -> 20 | G141: =F141 -> 20 | H141: =G141 -> 20
A142: Proportion of luminaires that fail between bulk change | C142: 0.114 | D142: 0.114 | E142: 0.114 | F142: 0.114 | G142: 0.114 | H142: 0.114
A143: Unit cost - lamp | C143: 9.795828187 | D143: 8.63505691 | E143: 8.63505691 | F143: 8.63505691 | G143: 8.63505691 | H143: 8.63505691
A144: Unit cost - PE cell | C144: 16.53046007 | D144: 14.57165854 | E144: 14.57165854 | F144: 14.57165854 | G144: 14.57165854 | H144: 14.57165854
A145: Unit cost - luminaire | C145: 236.324355 | D145: 208.320748 | E145: 208.320748 | F145: 208.320748 | G145: 208.320748 | H145: 208.320748
A146: Unit cost - miscellaneous materials (bulk lamp) | C146: 1.224478523 | D146: 1.079382114 | E146: 1.079382114 | F146: 1.079382114 | G146: 1.079382114 | H146: 1.079382114
A147: Unit cost - miscellaneous materials (repair) | C147: 12.24478523 | D147: 10.79382114 | E147: 10.79382114 | F147: 10.79382114 | G147: 10.79382114 | H147: 10.79382114
A148: Number of men in crew | C148: 2 | D148: 2 | E148: 2 | F148: 2 | G148: 2 | H148: 2
A149: Number of bulk lamp changes in 1 day - urban | C149: 77 | D149: 34.22341736 | E149: 40.33029941 | F149: 47.14967084 | G149: 54.8027823 | H149: 63.44014496
A150: Number of bulk lamp changes in 1 day - rural | C150: 64 | D150: 34.22341736 | E150: 40.33029941 | F150: 47.14967084 | G150: 54.8027823 | H150: 63.44014496
A151: Number of repairs in 1 day - urban | C151: 26 | D151: 50 | E151: 49.64723487 | F151: 49.1026876 | G151: 49.37815831 | H151: 49.27220097
A152: Number of repairs in 1 day - rural | C152: 21 | D152: 30.50820093 | E152: 30.45070839 | F152: 28.47236136 | G152: 30.38823155 | H152: 30.36377375
A153: % of repairs - lamps | C153: 0.6 | D153: 0.6 | E153: 0.6 | F153: 0.6 | G153: 0.6 | H153: 0.6
A154: % of repairs - PE cells | C154: 0.5 | D154: 0.5 | E154: 0.5 | F154: 0.5 | G154: 0.5 | H154: 0.5
A155: % of repairs - luminaires | C155: 0.15 | D155: 0.15 | E155: 0.15 | F155: 0.15 | G155: 0.15 | H155: 0.15
A156: % of repairs - other | C156: 0.1 | D156: 0.1 | E156: 0.1 | F156: 0.1 | G156: 0.1 | H156: 0.1
A158: Other Maintenance and Repair costs
A159: Traffic control costs | C159: 0 | D159: 0 | E159: 0 | F159: 0 | G159: 0 | H159: 0
A160: Other costs : Describe……………………………………. | C160: 0 | D160: 0 | E160: 0 | F160: 0 | G160: 0 | H160: 0
C161: =SUM(C159:C160) -> 0 | D161: 0 | E161: 0 | F161: 0 | G161: 0 | H161: 0
A162: Number of Lights | C162: ='DNSP Inputs General'!J68 -> 25108.77536 | D162: ='DNSP Inputs General'!K68 -> 28367.05365 | E162: ='DNSP Inputs General'!L68 -> 31625.33194 | F162: ='DNSP Inputs General'!M68 -> 34883.61023 | G162: ='DNSP Inputs General'!N68 -> 38141.88851 | H162: ='DNSP Inputs General'!O68 -> 41400.1668
A163: Unit Cost | C163: =IF(C162=0,0,C161/C162) -> 0 | D163: 0 | E163: 0 | F163: 0 | G163: 0 | H163: 0
A165: Location of selected public lighting assets within distributors' areas (%)
A166: Urban | C166: 0.84 | D166: 0.92 | E166: 0.92 | F166: 0.92 | G166: 0.92 | H166: 0.92
A167: Rural | C167: 0.16 | D167: 0.08 | E167: 0.08 | F167: 0.08 | G167: 0.08 | H167: 0.08

Sheet DNSP Inputs Capex
A1: Public Lighting Cost Build-up Model
A3: ='DNSP Inputs O & M'!$A$3 -> United Energy | C3: Capex Data Inputs
C5: Real 2015 $
A7: Input parameters | C7: 2015 | D7: 2016 | E7: 2017 | F7: 2018 | G7: 2019 | H7: 2020
A9: Inputs - all lamps
A11: Material premium for rural areas | C11: ='DNSP Inputs O & M'!C11 -> 0.05 | D11: ='DNSP Inputs O & M'!D11 -> 0.05 | E11: ='DNSP Inputs O & M'!E11 -> 0.05 | F11: ='DNSP Inputs O & M'!F11 -> 0.05 | G11: ='DNSP Inputs O & M'!G11 -> 0.05 | H11: ='DNSP Inputs O & M'!H11 -> 0.05
A12: Labour rate (per hour) | C12: ='DNSP Inputs O & M'!C12 -> 89.64428472 | D12: ='DNSP Inputs O & M'!D12 -> 90.24 | E12: ='DNSP Inputs O & M'!E12 -> 90.24 | F12: ='DNSP Inputs O & M'!F12 -> 90.24 | G12: ='DNSP Inputs O & M'!G12 -> 90.24 | H12: ='DNSP Inputs O & M'!H12 -> 90.24
A13: Elevated platform vehicle (per hour) - urban MV,urban T5 | C13: ='DNSP Inputs O & M'!C14 -> 39.70489021 | D13: ='DNSP Inputs O & M'!D14 -> 40.42 | E13: ='DNSP Inputs O & M'!E14 -> 40.42 | F13: ='DNSP Inputs O & M'!F14 -> 40.42 | G13: ='DNSP Inputs O & M'!G14 -> 40.42 | H13: ='DNSP Inputs O & M'!H14 -> 40.42
A14: Elevated platform vehicle (per hour) - rural MV, rural T5, S-HP | C14: ='DNSP Inputs O & M'!C15 -> 51.04914455 | D14: ='DNSP Inputs O & M'!D15 -> 40.42 | E14: ='DNSP Inputs O & M'!E15 -> 40.42 | F14: ='DNSP Inputs O & M'!F15 -> 40.42 | G14: ='DNSP Inputs O & M'!G15 -> 40.42 | H14: ='DNSP Inputs O & M'!H15 -> 40.42
A15: Number of hours in a day | C15: ='DNSP Inputs O & M'!C17 -> 8 | D15: ='DNSP Inputs O & M'!D17 -> 8 | E15: ='DNSP Inputs O & M'!E17 -> 8 | F15: ='DNSP Inputs O & M'!F17 -> 8 | G15: ='DNSP Inputs O & M'!G17 -> 8 | H15: ='DNSP Inputs O & M'!H17 -> 8
A16: ='DNSP Inputs O & M'!A18 -> Indirect overheads
A19: Inputs - MV80
A21: Unit cost - luminaire | C21: ='DNSP Inputs O & M'!C30 -> 194.1410699 | D21: ='DNSP Inputs O & M'!D30 -> 171.1360341 | E21: ='DNSP Inputs O & M'!E30 -> 171.1360341 | F21: ='DNSP Inputs O & M'!F30 -> 171.1360341 | G21: ='DNSP Inputs O & M'!G30 -> 171.1360341 | H21: ='DNSP Inputs O & M'!H30 -> 171.1360341
A22: Unit cost - miscellaneous materials (bulk lamp) | C22: ='DNSP Inputs O & M'!C31 -> 1.224478523 | D22: ='DNSP Inputs O & M'!D31 -> 1.079382114 | E22: ='DNSP Inputs O & M'!E31 -> 1.079382114 | F22: ='DNSP Inputs O & M'!F31 -> 1.079382114 | G22: ='DNSP Inputs O & M'!G31 -> 1.079382114 | H22: ='DNSP Inputs O & M'!H31 -> 1.079382114
A23: Number of men in crew | C23: ='DNSP Inputs O & M'!C33 -> 2 | D23: ='DNSP Inputs O & M'!D33 -> 2 | E23: ='DNSP Inputs O & M'!E33 -> 2 | F23: ='DNSP Inputs O & M'!F33 -> 2 | G23: ='DNSP Inputs O & M'!G33 -> 2 | H23: ='DNSP Inputs O & M'!H33 -> 2
A24: Number of luminaires replaced per day - urban | C24: 16 | D24: 10 | E24: 10 | F24: 10 | G24: 10 | H24: 10
A25: Number of luminaires replaced per day - rural | C25: 13 | D25: 8 | E25: 8 | F25: 8 | G25: 8 | H25: 8
A27: Other Capex unit costs Describe :……………………… | C27: 0 | D27: 0 | E27: 0 | F27: 0 | G27: 0 | H27: 0
A29: Forecast Quantities to be replaced
A30: Number of luminaires replaced per year - urban | D30: 1293.52 | E30: 1293.52 | F30: 1293.52 | G30: 1293.52 | H30: 1293.52
A31: Number of luminaires replaced per year - rural | D31: 112.48 | E31: 112.48 | F31: 112.48 | G31: 112.48 | H31: 112.48
A33: MV80 Lights replaced with T5 Energy Efficient Lights
A34: Number of Lights MV80 replaced with T5 per year | D34: 3126.752646 | E34: 3120 | F34: 3100 | G34: 3050 | H34: 3000
A38: Inputs - S-HP150
A40: Unit cost - luminaire | C40: 229.7611501 | D40: 202.5352598 | E40: 202.5352598 | F40: 202.5352598 | G40: 202.5352598 | H40: 202.5352598
A41: Unit cost - miscellaneous materials | C41: ='DNSP Inputs O & M'!C64 -> 2.448957047 | D41: ='DNSP Inputs O & M'!D64 -> 2.16 | E41: ='DNSP Inputs O & M'!E64 -> 2.16 | F41: ='DNSP Inputs O & M'!F64 -> 2.16 | G41: ='DNSP Inputs O & M'!G64 -> 2.16 | H41: ='DNSP Inputs O & M'!H64 -> 2.16
A42: Number of men in crew | C42: ='DNSP Inputs O & M'!C66 -> 2 | D42: ='DNSP Inputs O & M'!D66 -> 2 | E42: ='DNSP Inputs O & M'!E66 -> 2 | F42: ='DNSP Inputs O & M'!F66 -> 2 | G42: ='DNSP Inputs O & M'!G66 -> 2 | H42: ='DNSP Inputs O & M'!H66 -> 2
A43: Number of luminaires replaced per day - urban | C43: 16 | D43: 10 | E43: 10 | F43: 10 | G43: 10 | H43: 10
A44: Number of luminaires replaced per day - rural | C44: 13 | D44: 8 | E44: 8 | F44: 8 | G44: 8 | H44: 8
A46: Other Capex unit costs Describe :……………………… | C46: 0 | D46: 153 | E46: 153 | F46: 153 | G46: 153 | H46: 153
A48: Forecast Quantities to be replaced
A49: Number of luminaires replaced per year - urban | D49: 744.648 | E49: 744.648 | F49: 744.648 | G49: 744.648 | H49: 744.648
A50: Number of luminaires replaced per year - rural | D50: 64.752 | E50: 64.752 | F50: 64.752 | G50: 64.752 | H50: 64.752
A54: Inputs - S-HP250
A56: Unit cost - luminaire | C56: 233.18969 | D56: 205.5575297 | E56: 205.5575297 | F56: 205.5575297 | G56: 205.5575297 | H56: 205.5575297
A57: Unit cost - miscellaneous materials | C57: ='DNSP Inputs O & M'!C93 -> 2.448957047 | D57: ='DNSP Inputs O & M'!D93 -> 2.16 | E57: ='DNSP Inputs O & M'!E93 -> 2.16 | F57: ='DNSP Inputs O & M'!F93 -> 2.16 | G57: ='DNSP Inputs O & M'!G93 -> 2.16 | H57: ='DNSP Inputs O & M'!H93 -> 2.16
A58: Number of men in crew | C58: ='DNSP Inputs O & M'!C95 -> 2 | D58: ='DNSP Inputs O & M'!D95 -> 2 | E58: ='DNSP Inputs O & M'!E95 -> 2 | F58: ='DNSP Inputs O & M'!F95 -> 2 | G58: ='DNSP Inputs O & M'!G95 -> 2 | H58: ='DNSP Inputs O & M'!H95 -> 2
A59: Number of luminaires replaced per day - urban | C59: 16 | D59: 10 | E59: 10 | F59: 10 | G59: 10 | H59: 10
A60: Number of luminaires replaced per day - rural | C60: 13 | D60: 8 | E60: 8 | F60: 8 | G60: 8 | H60: 8
A62: Other Capex unit costs Describe :……………………… | C62: 0 | D62: 153 | E62: 153 | F62: 153 | G62: 153 | H62: 153
A64: Forecast Quantities to be replaced
A65: Number of luminaires replaced per year - urban | D65: 304.152 | E65: 304.152 | F65: 304.152 | G65: 304.152 | H65: 304.152
A66: Number of luminaires replaced per year - rural | D66: 26.448 | E66: 26.448 | F66: 26.448 | G66: 26.448 | H66: 26.448
A70: Dedicated street lighting poles
A72: Cost of pole & bracket | C72: 598.1859349 | D72: 950 | E72: 950 | F72: 950 | G72: 950 | H72: 950
A73: Number of poles & brackets replaced per day | C73: 4 | D73: 4 | E73: 4 | F73: 4 | G73: 4 | H73: 4
A74: Cost of bracket on non-dedicated poles | C74: 47.85487479 | D74: 505 | E74: 505 | F74: 505 | G74: 505 | H74: 505
A75: Number of brackets replaced per day | C75: 20 | D75: 15 | E75: 15 | F75: 15 | G75: 15 | H75: 15
A77: Other poles & brackets Capex unit costs Describe :………………… | C77: 0 | D77: 475 | E77: 475 | F77: 475 | G77: 475 | H77: 475
A80: Forecast Quantities to be replaced
A81: Number of poles & brackets replaced per year - urban | D81: =264.591999999999+16 -> 280.592 | E81: =284.463999999999+16 -> 300.464 | F81: =304.335999999999+16 -> 320.336 | G81: =324.208+16 -> 340.208 | H81: =344.08+16 -> 360.08
A82: Number of poles & brackets replaced per year - rural | D82: =23.0079999999999+3 -> 26.008 | E82: =24.7359999999999+3 -> 27.736 | F82: =26.4639999999999+3 -> 29.464 | G82: =28.192+3 -> 31.192 | H82: =29.92+3 -> 32.92
A84: Brackets on non-dedicated poles :
A85: Number of brackets replaced per year - urban | D85: 296.8392038 | E85: 356.5992079 | F85: 397.3607531 | G85: 420.816583 | H85: 500.1159992
A86: Number of brackets replaced per year - rural | D86: 25.81210468 | E86: 31.00862677 | F86: 34.55310896 | G86: 42.58829497 | H86: 43.48834776
A90: Luminaire Replacements - Other Light types (excluding T5s)
A91: Number of luminaires replaced per year | D91: 0 | E91: 0 | F91: 0 | G91: 0 | H91: 0
A92: Forecast Capex | D92: 54895.96288 | E92: 55002.52323 | F92: 55014.41931 | G92: 55115.99275 | H92: 55629.78686

Sheet PL Tariffs
A1: ='DNSP Inputs O & M'!$A$3 -> United Energy | E1: Global Check | F1: =IF(SUM('Total RAB'!F1,'Depn & WACC Post 2004'!F1,'Cashflow Summary'!F1,'PL Tariff Components'!W1)<1,"Ok","Error") -> Ok
A3: Public Lighting Tariffs | C3: Nominal Prices | J3: Nominal Price Movement | P3: Real Price Movement (Implied X Factor)
C4: Actual
A5: ='DNSP Inputs General'!A$40 -> Existing Lights | C5: ='DNSP Inputs General'!J$2 -> 2015 | D5: ='DNSP Inputs General'!K$2 -> 2016 | E5: ='DNSP Inputs General'!L$2 -> 2017 | F5: ='DNSP Inputs General'!M$2 -> 2018 | G5: ='DNSP Inputs General'!N$2 -> 2019 | H5: ='DNSP Inputs General'!O$2 -> 2020 | J5: =D5 -> 2016 | K5: =E5 -> 2017 | L5: 2018 | M5: 2019 | N5: 2020 | P5: =J5 -> 2016 | Q5: =K5 -> 2017 | R5: 2018 | S5: 2019 | T5: 2020
A6: ='DNSP Inputs General'!A41 -> Mercury Vapour 80 watt | C6: ='DNSP Inputs General'!E41 -> 64.8 | D6: ='Charges Summary'!D$31 -> 50.14571869 | E6: ='Charges Summary'!E$31 -> 51.27956769 | F6: ='Charges Summary'!F$31 -> 56.86917995 | G6: ='Charges Summary'!G$31 -> 60.47083907 | H6: ='Charges Summary'!H$31 -> 64.65230902 | J6: =IF(C6=0,"",D6/C6-1) -> -0.2261463166 | K6: =IF(D6=0,"",E6/D6-1) -> 0.02261108285 | L6: =IF(E6=0,"",F6/E6-1) -> 0.1090027181 | M6: =IF(F6=0,"",G6/F6-1) -> 0.06333235548 | N6: =IF(G6=0,"",H6/G6-1) -> 0.06914853538 | P6: =IF(C6=0,"",(D6/'Charges Summary'!D$4)/C6-1) -> -0.2376108156 | Q6: =IF(D6=0,"",(E6/'Charges Summary'!E$4)/(D6/'Charges Summary'!D$4)-1) -> 0.0122531437 | R6: =IF(E6=0,"",(F6/'Charges Summary'!F$4)/(E6/'Charges Summary'!E$4)-1) -> 0.08796472615 | S6: =IF(F6=0,"",(G6/'Charges Summary'!G$4)/(F6/'Charges Summary'!F$4)-1) -> 0.04168930753 | T6: =IF(G6=0,"",(H6/'Charges Summary'!H$4)/(G6/'Charges Summary'!G$4)-1) -> 0.04487524931
A7: ='DNSP Inputs General'!A42 -> Sodium High Pressure 150 watt | C7: ='DNSP Inputs General'!E42 -> 97.72 | D7: ='Charges Summary'!D$55 -> 64.67039922 | E7: ='Charges Summary'!E$55 -> 68.15073098 | F7: ='Charges Summary'!F$55 -> 75.91470637 | G7: ='Charges Summary'!G$55 -> 78.5064099 | H7: ='Charges Summary'!H$55 -> 83.28084609 | J7: -0.3382071303 | K7: 0.053816457 | L7: 0.113923582 | M7: 0.03413967671 | N7: 0.06081587717 | P7: =IF(C7=0,"",(D7/'Charges Summary'!D$4)/C7-1) -> -0.3480114691 | Q7: =IF(D7=0,"",(E7/'Charges Summary'!E$4)/(D7/'Charges Summary'!D$4)-1) -> 0.04314244132 | R7: =IF(E7=0,"",(F7/'Charges Summary'!F$4)/(E7/'Charges Summary'!E$4)-1) -> 0.09279224033 | S7: =IF(F7=0,"",(G7/'Charges Summary'!G$4)/(F7/'Charges Summary'!F$4)-1) -> 0.01309081603 | T7: =IF(G7=0,"",(H7/'Charges Summary'!H$4)/(G7/'Charges Summary'!G$4)-1) -> 0.03673177061
A8: ='DNSP Inputs General'!A43 -> Sodium High Pressure 250 watt | C8: ='DNSP Inputs General'!E43 -> 99.64 | D8: ='Charges Summary'!D$71 -> 66.25641462 | E8: ='Charges Summary'!E$71 -> 69.78974205 | F8: ='Charges Summary'!F$71 -> 72.70252753 | G8: ='Charges Summary'!G$71 -> 80.31524097 | H8: ='Charges Summary'!H$71 -> 85.17702736 | J8: -0.335042005 | K8: 0.05332808068 | L8: 0.04173658468 | M8: 0.1047104372 | N8: 0.06053379574 | P8: =IF(C8=0,"",(D8/'Charges Summary'!D$4)/C8-1) -> -0.3448932345 | Q8: =IF(D8=0,"",(E8/'Charges Summary'!E$4)/(D8/'Charges Summary'!D$4)-1) -> 0.04265901172 | R8: =IF(E8=0,"",(F8/'Charges Summary'!F$4)/(E8/'Charges Summary'!E$4)-1) -> 0.02197464405 | S8: =IF(F8=0,"",(G8/'Charges Summary'!G$4)/(F8/'Charges Summary'!F$4)-1) -> 0.08222518053 | T8: =IF(G8=0,"",(H8/'Charges Summary'!H$4)/(G8/'Charges Summary'!G$4)-1) -> 0.03645609338
A9: ='DNSP Inputs General'!A44 -> Fluorescent 2x20 watt | C9: ='DNSP Inputs General'!E44 -> 83.59 | D9: =IF('DNSP Inputs General'!$B44='DNSP Inputs General'!$A$41,D$6,IF('DNSP Inputs General'!$B44='DNSP Inputs General'!$A$42,D$7,D$8))*'DNSP Inputs General'!$D44 -> 64.68797711 | E9: =IF('DNSP Inputs General'!$B44='DNSP Inputs General'!$A$41,E$6,IF('DNSP Inputs General'!$B44='DNSP Inputs General'!$A$42,E$7,E$8))*'DNSP Inputs General'!$D44 -> 66.15064232 | F9: =IF('DNSP Inputs General'!$B44='DNSP Inputs General'!$A$41,F$6,IF('DNSP Inputs General'!$B44='DNSP Inputs General'!$A$42,F$7,F$8))*'DNSP Inputs General'!$D44 -> 73.36124213 | G9: =IF('DNSP Inputs General'!$B44='DNSP Inputs General'!$A$41,G$6,IF('DNSP Inputs General'!$B44='DNSP Inputs General'!$A$42,G$7,G$8))*'DNSP Inputs General'!$D44 -> 78.0073824 | H9: =IF('DNSP Inputs General'!$B44='DNSP Inputs General'!$A$41,H$6,IF('DNSP Inputs General'!$B44='DNSP Inputs General'!$A$42,H$7,H$8))*'DNSP Inputs General'!$D44 -> 83.40147864 | J9: -0.2261278011 | K9: 0.02261108285 | L9: 0.1090027181 | M9: 0.06333235548 | N9: 0.06914853538 | P9: =IF(C9=0,"",(D9/'Charges Summary'!D$4)/C9-1) -> -0.2375925744 | Q9: =IF(D9=0,"",(E9/'Charges Summary'!E$4)/(D9/'Charges Summary'!D$4)-1) -> 0.0122531437 | R9: =IF(E9=0,"",(F9/'Charges Summary'!F$4)/(E9/'Charges Summary'!E$4)-1) -> 0.08796472615 | S9: =IF(F9=0,"",(G9/'Charges Summary'!G$4)/(F9/'Charges Summary'!F$4)-1) -> 0.04168930753 | T9: =IF(G9=0,"",(H9/'Charges Summary'!H$4)/(G9/'Charges Summary'!G$4)-1) -> 0.04487524931
A10: ='DNSP Inputs General'!A45 -> Fluorescent 3x20 watt | C10: ='DNSP Inputs General'!E45 -> 82.19 | D10: =IF('DNSP Inputs General'!$B45='DNSP Inputs General'!$A$41,D$6,IF('DNSP Inputs General'!$B45='DNSP Inputs General'!$A$42,D$7,D$8))*'DNSP Inputs General'!$D45 -> 64.68797711 | E10: =IF('DNSP Inputs General'!$B45='DNSP Inputs General'!$A$41,E$6,IF('DNSP Inputs General'!$B45='DNSP Inputs General'!$A$42,E$7,E$8))*'DNSP Inputs General'!$D45 -> 66.15064232 | F10: =IF('DNSP Inputs General'!$B45='DNSP Inputs General'!$A$41,F$6,IF('DNSP Inputs General'!$B45='DNSP Inputs General'!$A$42,F$7,F$8))*'DNSP Inputs General'!$D45 -> 73.36124213 | G10: =IF('DNSP Inputs General'!$B45='DNSP Inputs General'!$A$41,G$6,IF('DNSP Inputs General'!$B45='DNSP Inputs General'!$A$42,G$7,G$8))*'DNSP Inputs General'!$D45 -> 78.0073824 | H10: =IF('DNSP Inputs General'!$B45='DNSP Inputs General'!$A$41,H$6,IF('DNSP Inputs General'!$B45='DNSP Inputs General'!$A$42,H$7,H$8))*'DNSP Inputs General'!$D45 -> 83.40147864 | J10: -0.2129458924 | K10: 0.02261108285 | L10: 0.1090027181 | M10: 0.06333235548 | N10: 0.06914853538 | P10: =IF(C10=0,"",(D10/'Charges Summary'!D$4)/C10-1) -> -0.2246059532 | Q10: =IF(D10=0,"",(E10/'Charges Summary'!E$4)/(D10/'Charges Summary'!D$4)-1) -> 0.0122531437 | R10: =IF(E10=0,"",(F10/'Charges Summary'!F$4)/(E10/'Charges Summary'!E$4)-1) -> 0.08796472615 | S10: =IF(F10=0,"",(G10/'Charges Summary'!G$4)/(F10/'Charges Summary'!F$4)-1) -> 0.04168930753 | T10: =IF(G10=0,"",(H10/'Charges Summary'!H$4)/(G10/'Charges Summary'!G$4)-1) -> 0.04487524931
A11: ='DNSP Inputs General'!A46 -> Mercury Vapour 50 watt | C11: ='DNSP Inputs General'!E46 -> 95.9 | D11: =IF('DNSP Inputs General'!$B46='DNSP Inputs General'!$A$41,D$6,IF('DNSP Inputs General'!$B46='DNSP Inputs General'!$A$42,D$7,D$8))*'DNSP Inputs General'!$D46 -> 74.21566366 | E11: =IF('DNSP Inputs General'!$B46='DNSP Inputs General'!$A$41,E$6,IF('DNSP Inputs General'!$B46='DNSP Inputs General'!$A$42,E$7,E$8))*'DNSP Inputs General'!$D46 -> 75.89376018 | F11: =IF('DNSP Inputs General'!$B46='DNSP Inputs General'!$A$41,F$6,IF('DNSP Inputs General'!$B46='DNSP Inputs General'!$A$42,F$7,F$8))*'DNSP Inputs General'!$D46 -> 84.16638632 | G11: =IF('DNSP Inputs General'!$B46='DNSP Inputs General'!$A$41,G$6,IF('DNSP Inputs General'!$B46='DNSP Inputs General'!$A$42,G$7,G$8))*'DNSP Inputs General'!$D46 -> 89.49684182 | H11: =IF('DNSP Inputs General'!$B46='DNSP Inputs General'!$A$41,H$6,IF('DNSP Inputs General'!$B46='DNSP Inputs General'!$A$42,H$7,H$8))*'DNSP Inputs General'!$D46 -> 95.68541735 | J11: -0.226114039 | K11: 0.02261108285 | L11: 0.1090027181 | M11: 0.06333235548 | N11: 0.06914853538 | P11: =IF(C11=0,"",(D11/'Charges Summary'!D$4)/C11-1) -> -0.2375790162 | Q11: =IF(D11=0,"",(E11/'Charges Summary'!E$4)/(D11/'Charges Summary'!D$4)-1) -> 0.0122531437 | R11: =IF(E11=0,"",(F11/'Charges Summary'!F$4)/(E11/'Charges Summary'!E$4)-1) -> 0.08796472615 | S11: =IF(F11=0,"",(G11/'Charges Summary'!G$4)/(F11/'Charges Summary'!F$4)-1) -> 0.04168930753 | T11: =IF(G11=0,"",(H11/'Charges Summary'!H$4)/(G11/'Charges Summary'!G$4)-1) -> 0.04487524931
A12: ='DNSP Inputs General'!A47 -> Mercury Vapour 125 watt | C12: ='DNSP Inputs General'!E47 -> 95.9 | D12: =IF('DNSP Inputs General'!$B47='DNSP Inputs General'!$A$41,D$6,IF('DNSP Inputs General'!$B47='DNSP Inputs General'!$A$42,D$7,D$8))*'DNSP Inputs General'!$D47 -> 74.21566366 | E12: =IF('DNSP Inputs General'!$B47='DNSP Inputs General'!$A$41,E$6,IF('DNSP Inputs General'!$B47='DNSP Inputs General'!$A$42,E$7,E$8))*'DNSP Inputs General'!$D47 -> 75.89376018 | F12: =IF('DNSP Inputs General'!$B47='DNSP Inputs General'!$A$41,F$6,IF('DNSP Inputs General'!$B47='DNSP Inputs General'!$A$42,F$7,F$8))*'DNSP Inputs General'!$D47 -> 84.16638632 | G12: =IF('DNSP Inputs General'!$B47='DNSP Inputs General'!$A$41,G$6,IF('DNSP Inputs General'!$B47='DNSP Inputs General'!$A$42,G$7,G$8))*'DNSP Inputs General'!$D47 -> 89.49684182 | H12: =IF('DNSP Inputs General'!$B47='DNSP Inputs General'!$A$41,H$6,IF('DNSP Inputs General'!$B47='DNSP Inputs General'!$A$42,H$7,H$8))*'DNSP Inputs General'!$D47 -> 95.68541735 | J12: -0.226114039 | K12: 0.02261108285 | L12: 0.1090027181 | M12: 0.06333235548 | N12: 0.06914853538 | P12: =IF(C12=0,"",(D12/'Charges Summary'!D$4)/C12-1) -> -0.2375790162 | Q12: =IF(D12=0,"",(E12/'Charges Summary'!E$4)/(D12/'Charges Summary'!D$4)-1) -> 0.0122531437 | R12: =IF(E12=0,"",(F12/'Charges Summary'!F$4)/(E12/'Charges Summary'!E$4)-1) -> 0.08796472615 | S12: =IF(F12=0,"",(G12/'Charges Summary'!G$4)/(F12/'Charges Summary'!F$4)-1) -> 0.04168930753 | T12: =IF(G12=0,"",(H12/'Charges Summary'!H$4)/(G12/'Charges Summary'!G$4)-1) -> 0.04487524931
A13: ='DNSP Inputs General'!A48 -> Mercury Vapour 250 watt | C13: ='DNSP Inputs General'!E48 -> 90.67 | D13: =IF('DNSP Inputs General'!$B48='DNSP Inputs General'!$A$41,D$6,IF('DNSP Inputs General'!$B48='DNSP Inputs General'!$A$42,D$7,D$8))*'DNSP Inputs General'!$D48 -> 60.29333731 | E13: =IF('DNSP Inputs General'!$B48='DNSP Inputs General'!$A$41,E$6,IF('DNSP Inputs General'!$B48='DNSP Inputs General'!$A$42,E$7,E$8))*'DNSP Inputs General'!$D48 -> 63.50866526 | F13: =IF('DNSP Inputs General'!$B48='DNSP Inputs General'!$A$41,F$6,IF('DNSP Inputs General'!$B48='DNSP Inputs General'!$A$42,F$7,F$8))*'DNSP Inputs General'!$D48 -> 66.15930005 | G13: =IF('DNSP Inputs General'!$B48='DNSP Inputs General'!$A$41,G$6,IF('DNSP Inputs General'!$B48='DNSP Inputs General'!$A$42,G$7,G$8))*'DNSP Inputs General'!$D48 -> 73.08686928 | H13: =IF('DNSP Inputs General'!$B48='DNSP Inputs General'!$A$41,H$6,IF('DNSP Inputs General'!$B48='DNSP Inputs General'!$A$42,H$7,H$8))*'DNSP Inputs General'!$D48 -> 77.5110949 | J13: -0.3350244038 | K13: 0.05332808068 | L13: 0.04173658468 | M13: 0.1047104372 | N13: 0.06053379574 | P13: =IF(C13=0,"",(D13/'Charges Summary'!D$4)/C13-1) -> -0.3448758941 | Q13: =IF(D13=0,"",(E13/'Charges Summary'!E$4)/(D13/'Charges Summary'!D$4)-1) -> 0.04265901172 | R13: =IF(E13=0,"",(F13/'Charges Summary'!F$4)/(E13/'Charges Summary'!E$4)-1) -> 0.02197464405 | S13: =IF(F13=0,"",(G13/'Charges Summary'!G$4)/(F13/'Charges Summary'!F$4)-1) -> 0.08222518053 | T13: =IF(G13=0,"",(H13/'Charges Summary'!H$4)/(G13/'Charges Summary'!G$4)-1) -> 0.03645609338
A14: ='DNSP Inputs General'!A49 -> Mercury Vapour 400 watt | C14: ='DNSP Inputs General'!E49 -> 125.55 | D14: =IF('DNSP Inputs General'!$B49='DNSP Inputs General'!$A$41,D$6,IF('DNSP Inputs General'!$B49='DNSP Inputs General'!$A$42,D$7,D$8))*'DNSP Inputs General'!$D49 -> 83.48308243 | E14: =IF('DNSP Inputs General'!$B49='DNSP Inputs General'!$A$41,E$6,IF('DNSP Inputs General'!$B49='DNSP Inputs General'!$A$42,E$7,E$8))*'DNSP Inputs General'!$D49 -> 87.93507498 | F14: =IF('DNSP Inputs General'!$B49='DNSP Inputs General'!$A$41,F$6,IF('DNSP Inputs General'!$B49='DNSP Inputs General'!$A$42,F$7,F$8))*'DNSP Inputs General'!$D49 -> 91.60518468 | G14: =IF('DNSP Inputs General'!$B49='DNSP Inputs General'!$A$41,G$6,IF('DNSP Inputs General'!$B49='DNSP Inputs General'!$A$42,G$7,G$8))*'DNSP Inputs General'!$D49 -> 101.1972036 | H14: =IF('DNSP Inputs General'!$B49='DNSP Inputs General'!$A$41,H$6,IF('DNSP Inputs General'!$B49='DNSP Inputs General'!$A$42,H$7,H$8))*'DNSP Inputs General'!$D49 -> 107.3230545 | J14: -0.3350610719 | K14: 0.05332808068 | L14: 0.04173658468 | M14: 0.1047104372 | N14: 0.06053379574 | P14: =IF(C14=0,"",(D14/'Charges Summary'!D$4)/C14-1) -> -0.344912019 | Q14: =IF(D14=0,"",(E14/'Charges Summary'!E$4)/(D14/'Charges Summary'!D$4)-1) -> 0.04265901172 | R14: =IF(E14=0,"",(F14/'Charges Summary'!F$4)/(E14/'Charges Summary'!E$4)-1) -> 0.02197464405 | S14: =IF(F14=0,"",(G14/'Charges Summary'!G$4)/(F14/'Charges Summary'!F$4)-1) -> 0.08222518053 | T14: =IF(G14=0,"",(H14/'Charges Summary'!H$4)/(G14/'Charges Summary'!G$4)-1) -> 0.03645609338
A15: ='DNSP Inputs General'!A50 -> Mercury Vapour 700 watt | C15: ='DNSP Inputs General'!E50 -> 125.55 | D15: =IF('DNSP Inputs General'!$B50='DNSP Inputs General'!$A$41,D$6,IF('DNSP Inputs General'!$B50='DNSP Inputs General'!$A$42,D$7,D$8))*'DNSP Inputs General'!$D50 -> 83.48308243 | E15: =IF('DNSP Inputs General'!$B50='DNSP Inputs General'!$A$41,E$6,IF('DNSP Inputs General'!$B50='DNSP Inputs General'!$A$42,E$7,E$8))*'DNSP Inputs General'!$D50 -> 87.93507498 | F15: =IF('DNSP Inputs General'!$B50='DNSP Inputs General'!$A$41,F$6,IF('DNSP Inputs General'!$B50='DNSP Inputs General'!$A$42,F$7,F$8))*'DNSP Inputs General'!$D50 -> 91.60518468 | G15: =IF('DNSP Inputs General'!$B50='DNSP Inputs General'!$A$41,G$6,IF('DNSP Inputs General'!$B50='DNSP Inputs General'!$A$42,G$7,G$8))*'DNSP Inputs General'!$D50 -> 101.1972036 | H15: =IF('DNSP Inputs General'!$B50='DNSP Inputs General'!$A$41,H$6,IF('DNSP Inputs General'!$B50='DNSP Inputs General'!$A$42,H$7,H$8))*'DNSP Inputs General'!$D50 -> 107.3230545 | J15: -0.3350610719 | K15: 0.05332808068 | L15: 0.04173658468 | M15: 0.1047104372 | N15: 0.06053379574 | P15: =IF(C15=0,"",(D15/'Charges Summary'!D$4)/C15-1) -> -0.344912019 | Q15: =IF(D15=0,"",(E15/'Charges Summary'!E$4)/(D15/'Charges Summary'!D$4)-1) -> 0.04265901172 | R15: =IF(E15=0,"",(F15/'Charges Summary'!F$4)/(E15/'Charges Summary'!E$4)-1) -> 0.02197464405 | S15: =IF(F15=0,"",(G15/'Charges Summary'!G$4)/(F15/'Charges Summary'!F$4)-1) -> 0.08222518053 | T15: =IF(G15=0,"",(H15/'Charges Summary'!H$4)/(G15/'Charges Summary'!G$4)-1) -> 0.03645609338
A16: ='DNSP Inputs General'!A51 -> Sodium High Pressure 70 watt | C16: ='DNSP Inputs General'!E51 -> 141.91 | D16: =IF('DNSP Inputs General'!$B51='DNSP Inputs General'!$A$41,D$6,IF('DNSP Inputs General'!$B51='DNSP Inputs General'!$A$42,D$7,D$8))*'DNSP Inputs General'!$D51 -> 109.8191239 | E16: =IF('DNSP Inputs General'!$B51='DNSP Inputs General'!$A$41,E$6,IF('DNSP Inputs General'!$B51='DNSP Inputs General'!$A$42,E$7,E$8))*'DNSP Inputs General'!$D51 -> 112.3022532 | F16: =IF('DNSP Inputs General'!$B51='DNSP Inputs General'!$A$41,F$6,IF('DNSP Inputs General'!$B51='DNSP Inputs General'!$A$42,F$7,F$8))*'DNSP Inputs General'!$D51 -> 124.5435041 | G16: =IF('DNSP Inputs General'!$B51='DNSP Inputs General'!$A$41,G$6,IF('DNSP Inputs General'!$B51='DNSP Inputs General'!$A$42,G$7,G$8))*'DNSP Inputs General'!$D51 -> 132.4311376 | H16: =IF('DNSP Inputs General'!$B51='DNSP Inputs General'!$A$41,H$6,IF('DNSP Inputs General'!$B51='DNSP Inputs General'!$A$42,H$7,H$8))*'DNSP Inputs General'!$D51 -> 141.5885568 | J16: -0.2261354103 | K16: 0.02261108285 | L16: 0.1090027181 | M16: 0.06333235548 | N16: 0.06914853538 | P16: =IF(C16=0,"",(D16/'Charges Summary'!D$4)/C16-1) -> -0.2376000709 | Q16: =IF(D16=0,"",(E16/'Charges Summary'!E$4)/(D16/'Charges Summary'!D$4)-1) -> 0.0122531437 | R16: =IF(E16=0,"",(F16/'Charges Summary'!F$4)/(E16/'Charges Summary'!E$4)-1) -> 0.08796472615 | S16: =IF(F16=0,"",(G16/'Charges Summary'!G$4)/(F16/'Charges Summary'!F$4)-1) -> 0.04168930753 | T16: =IF(G16=0,"",(H16/'Charges Summary'!H$4)/(G16/'Charges Summary'!G$4)-1) -> 0.04487524931
A17: ='DNSP Inputs General'!A52 -> Sodium High Pressure 100 watt | C17: ='DNSP Inputs General'!E52 -> 107.49 | D17: =IF('DNSP Inputs General'!$B52='DNSP Inputs General'!$A$41,D$6,IF('DNSP Inputs General'!$B52='DNSP Inputs General'!$A$42,D$7,D$8))*'DNSP Inputs General'!$D52 -> 71.13743915 | E17: =IF('DNSP Inputs General'!$B52='DNSP Inputs General'!$A$41,E$6,IF('DNSP Inputs General'!$B52='DNSP Inputs General'!$A$42,E$7,E$8))*'DNSP Inputs General'!$D52 -> 74.96580408 | F17: =IF('DNSP Inputs General'!$B52='DNSP Inputs General'!$A$41,F$6,IF('DNSP Inputs General'!$B52='DNSP Inputs General'!$A$42,F$7,F$8))*'DNSP Inputs General'!$D52 -> 83.50617701 | G17: =IF('DNSP Inputs General'!$B52='DNSP Inputs General'!$A$41,G$6,IF('DNSP Inputs General'!$B52='DNSP Inputs General'!$A$42,G$7,G$8))*'DNSP Inputs General'!$D52 -> 86.35705089 | H17: =IF('DNSP Inputs General'!$B52='DNSP Inputs General'!$A$41,H$6,IF('DNSP Inputs General'!$B52='DNSP Inputs General'!$A$42,H$7,H$8))*'DNSP Inputs General'!$D52 -> 91.60893069 | J17: -0.3381948168 | K17: 0.053816457 | L17: 0.113923582 | M17: 0.03413967671 | N17: 0.06081587717 | P17: =IF(C17=0,"",(D17/'Charges Summary'!D$4)/C17-1) -> -0.347999338 | Q17: =IF(D17=0,"",(E17/'Charges Summary'!E$4)/(D17/'Charges Summary'!D$4)-1) -> 0.04314244132 | R17: =IF(E17=0,"",(F17/'Charges Summary'!F$4)/(E17/'Charges Summary'!E$4)-1) -> 0.09279224033 | S17: =IF(F17=0,"",(G17/'Charges Summary'!G$4)/(F17/'Charges Summary'!F$4)-1) -> 0.01309081603 | T17: =IF(G17=0,"",(H17/'Charges Summary'!H$4)/(G17/'Charges Summary'!G$4)-1) -> 0.03673177061
A18: ='DNSP Inputs General'!A53 -> Sodium High Pressure 400 watt | C18: ='DNSP Inputs General'!E53 -> 125.55 | D18: =IF('DNSP Inputs General'!$B53='DNSP Inputs General'!$A$41,D$6,IF('DNSP Inputs General'!$B53='DNSP Inputs General'!$A$42,D$7,D$8))*'DNSP Inputs General'!$D53 -> 83.48308243 | E18: =IF('DNSP Inputs General'!$B53='DNSP Inputs General'!$A$41,E$6,IF('DNSP Inputs General'!$B53='DNSP Inputs General'!$A$42,E$7,E$8))*'DNSP Inputs General'!$D53 -> 87.93507498 | F18: =IF('DNSP Inputs General'!$B53='DNSP Inputs General'!$A$41,F$6,IF('DNSP Inputs General'!$B53='DNSP Inputs General'!$A$42,F$7,F$8))*'DNSP Inputs General'!$D53 -> 91.60518468 | G18: =IF('DNSP Inputs General'!$B53='DNSP Inputs General'!$A$41,G$6,IF('DNSP Inputs General'!$B53='DNSP Inputs General'!$A$42,G$7,G$8))*'DNSP Inputs General'!$D53 -> 101.1972036 | H18: =IF('DNSP Inputs General'!$B53='DNSP Inputs General'!$A$41,H$6,IF('DNSP Inputs General'!$B53='DNSP Inputs General'!$A$42,H$7,H$8))*'DNSP Inputs General'!$D53 -> 107.3230545 | J18: -0.3350610719 | K18: 0.05332808068 | L18: 0.04173658468 | M18: 0.1047104372 | N18: 0.06053379574 | P18: =IF(C18=0,"",(D18/'Charges Summary'!D$4)/C18-1) -> -0.344912019 | Q18: =IF(D18=0,"",(E18/'Charges Summary'!E$4)/(D18/'Charges Summary'!D$4)-1) -> 0.04265901172 | R18: =IF(E18=0,"",(F18/'Charges Summary'!F$4)/(E18/'Charges Summary'!E$4)-1) -> 0.02197464405 | S18: =IF(F18=0,"",(G18/'Charges Summary'!G$4)/(F18/'Charges Summary'!F$4)-1) -> 0.08222518053 | T18: =IF(G18=0,"",(H18/'Charges Summary'!H$4)/(G18/'Charges Summary'!G$4)-1) -> 0.03645609338
A19: ='DNSP Inputs General'!A54 -> Metal Halide 70 watt | C19: ='DNSP Inputs General'!E54 -> 131.92 | D19: =IF('DNSP Inputs General'!$B54='DNSP Inputs General'!$A$41,D$6,IF('DNSP Inputs General'!$B54='DNSP Inputs General'!$A$42,D$7,D$8))*'DNSP Inputs General'!$D54 -> 87.30503895 | E19: =IF('DNSP Inputs General'!$B54='DNSP Inputs General'!$A$41,E$6,IF('DNSP Inputs General'!$B54='DNSP Inputs General'!$A$42,E$7,E$8))*'DNSP Inputs General'!$D54 -> 92.00348683 | F19: =IF('DNSP Inputs General'!$B54='DNSP Inputs General'!$A$41,F$6,IF('DNSP Inputs General'!$B54='DNSP Inputs General'!$A$42,F$7,F$8))*'DNSP Inputs General'!$D54 -> 102.4848536 | G19: =IF('DNSP Inputs General'!$B54='DNSP Inputs General'!$A$41,G$6,IF('DNSP Inputs General'!$B54='DNSP Inputs General'!$A$42,G$7,G$8))*'DNSP Inputs General'!$D54 -> 105.9836534 | H19: =IF('DNSP Inputs General'!$B54='DNSP Inputs General'!$A$41,H$6,IF('DNSP Inputs General'!$B54='DNSP Inputs General'!$A$42,H$7,H$8))*'DNSP Inputs General'!$D54 -> 112.4291422 | J19: -0.3381970971 | K19: 0.053816457 | L19: 0.113923582 | M19: 0.03413967671 | N19: 0.06081587717 | P19: =IF(C19=0,"",(D19/'Charges Summary'!D$4)/C19-1) -> -0.3480015845 | Q19: =IF(D19=0,"",(E19/'Charges Summary'!E$4)/(D19/'Charges Summary'!D$4)-1) -> 0.04314244132 | R19: =IF(E19=0,"",(F19/'Charges Summary'!F$4)/(E19/'Charges Summary'!E$4)-1) -> 0.09279224033 | S19: =IF(F19=0,"",(G19/'Charges Summary'!G$4)/(F19/'Charges Summary'!F$4)-1) -> 0.01309081603 | T19: =IF(G19=0,"",(H19/'Charges Summary'!H$4)/(G19/'Charges Summary'!G$4)-1) -> 0.03673177061
A20: ='DNSP Inputs General'!A55 -> Metal Halide 100 watt | C20: ='DNSP Inputs General'!E55 -> 131.92 | D20: =IF('DNSP Inputs General'!$B55='DNSP Inputs General'!$A$41,D$6,IF('DNSP Inputs General'!$B55='DNSP Inputs General'!$A$42,D$7,D$8))*'DNSP Inputs General'!$D55 -> 87.30503895 | E20: =IF('DNSP Inputs General'!$B55='DNSP Inputs General'!$A$41,E$6,IF('DNSP Inputs General'!$B55='DNSP Inputs General'!$A$42,E$7,E$8))*'DNSP Inputs General'!$D55 -> 92.00348683 | F20: =IF('DNSP Inputs General'!$B55='DNSP Inputs General'!$A$41,F$6,IF('DNSP Inputs General'!$B55='DNSP Inputs General'!$A$42,F$7,F$8))*'DNSP Inputs General'!$D55 -> 102.4848536 | G20: =IF('DNSP Inputs General'!$B55='DNSP Inputs General'!$A$41,G$6,IF('DNSP Inputs General'!$B55='DNSP Inputs General'!$A$42,G$7,G$8))*'DNSP Inputs General'!$D55 -> 105.9836534 | H20: =IF('DNSP Inputs General'!$B55='DNSP Inputs General'!$A$41,H$6,IF('DNSP Inputs General'!$B55='DNSP Inputs General'!$A$42,H$7,H$8))*'DNSP Inputs General'!$D55 -> 112.4291422 | J20: -0.3381970971 | K20: 0.053816457 | L20: 0.113923582 | M20: 0.03413967671 | N20: 0.06081587717 | P20: =IF(C20=0,"",(D20/'Charges Summary'!D$4)/C20-1) -> -0.3480015845 | Q20: =IF(D20=0,"",(E20/'Charges Summary'!E$4)/(D20/'Charges Summary'!D$4)-1) -> 0.04314244132 | R20: =IF(E20=0,"",(F20/'Charges Summary'!F$4)/(E20/'Charges Summary'!E$4)-1) -> 0.09279224033 | S20: =IF(F20=0,"",(G20/'Charges Summary'!G$4)/(F20/'Charges Summary'!F$4)-1) -> 0.01309081603 | T20: =IF(G20=0,"",(H20/'Charges Summary'!H$4)/(G20/'Charges Summary'!G$4)-1) -> 0.03673177061
A21: ='DNSP Inputs General'!A56 -> Metal Halide 150 watt | C21: ='DNSP Inputs General'!E56 -> 131.92 | D21: =IF('DNSP Inputs General'!$B56='DNSP Inputs General'!$A$41,D$6,IF('DNSP Inputs General'!$B56='DNSP Inputs General'!$A$42,D$7,D$8))*'DNSP Inputs General'!$D56 -> 87.30503895 | E21: =IF('DNSP Inputs General'!$B56='DNSP Inputs General'!$A$41,E$6,IF('DNSP Inputs General'!$B56='DNSP Inputs General'!$A$42,E$7,E$8))*'DNSP Inputs General'!$D56 -> 92.00348683 | F21: =IF('DNSP Inputs General'!$B56='DNSP Inputs General'!$A$41,F$6,IF('DNSP Inputs General'!$B56='DNSP Inputs General'!$A$42,F$7,F$8))*'DNSP Inputs General'!$D56 -> 102.4848536 | G21: =IF('DNSP Inputs General'!$B56='DNSP Inputs General'!$A$41,G$6,IF('DNSP Inputs General'!$B56='DNSP Inputs General'!$A$42,G$7,G$8))*'DNSP Inputs General'!$D56 -> 105.9836534 | H21: =IF('DNSP Inputs General'!$B56='DNSP Inputs General'!$A$41,H$6,IF('DNSP Inputs General'!$B56='DNSP Inputs General'!$A$42,H$7,H$8))*'DNSP Inputs General'!$D56 -> 112.4291422 | J21: -0.3381970971 | K21: 0.053816457 | L21: 0.113923582 | M21: 0.03413967671 | N21: 0.06081587717 | P21: =IF(C21=0,"",(D21/'Charges Summary'!D$4)/C21-1) -> -0.3480015845 | Q21: =IF(D21=0,"",(E21/'Charges Summary'!E$4)/(D21/'Charges Summary'!D$4)-1) -> 0.04314244132 | R21: =IF(E21=0,"",(F21/'Charges Summary'!F$4)/(E21/'Charges Summary'!E$4)-1) -> 0.09279224033 | S21: =IF(F21=0,"",(G21/'Charges Summary'!G$4)/(F21/'Charges Summary'!F$4)-1) -> 0.01309081603 | T21: =IF(G21=0,"",(H21/'Charges Summary'!H$4)/(G21/'Charges Summary'!G$4)-1) -> 0.03673177061
A22: ='DNSP Inputs General'!A57 -> Metal Halide 250 watt | C22: ='DNSP Inputs General'!E57 -> 134.51 | D22: =IF('DNSP Inputs General'!$B57='DNSP Inputs General'!$A$41,D$6,IF('DNSP Inputs General'!$B57='DNSP Inputs General'!$A$42,D$7,D$8))*'DNSP Inputs General'!$D57 -> 89.44615974 | E22: =IF('DNSP Inputs General'!$B57='DNSP Inputs General'!$A$41,E$6,IF('DNSP Inputs General'!$B57='DNSP Inputs General'!$A$42,E$7,E$8))*'DNSP Inputs General'!$D57 -> 94.21615177 | F22: =IF('DNSP Inputs General'!$B57='DNSP Inputs General'!$A$41,F$6,IF('DNSP Inputs General'!$B57='DNSP Inputs General'!$A$42,F$7,F$8))*'DNSP Inputs General'!$D57 -> 98.14841216 | G22: =IF('DNSP Inputs General'!$B57='DNSP Inputs General'!$A$41,G$6,IF('DNSP Inputs General'!$B57='DNSP Inputs General'!$A$42,G$7,G$8))*'DNSP Inputs General'!$D57 -> 108.4255753 | H22: =IF('DNSP Inputs General'!$B57='DNSP Inputs General'!$A$41,H$6,IF('DNSP Inputs General'!$B57='DNSP Inputs General'!$A$42,H$7,H$8))*'DNSP Inputs General'!$D57 -> 114.9889869 | J22: -0.3350222307 | K22: 0.05332808068 | L22: 0.04173658468 | M22: 0.1047104372 | N22: 0.06053379574 | P22: =IF(C22=0,"",(D22/'Charges Summary'!D$4)/C22-1) -> -0.3448737532 | Q22: =IF(D22=0,"",(E22/'Charges Summary'!E$4)/(D22/'Charges Summary'!D$4)-1) -> 0.04265901172 | R22: =IF(E22=0,"",(F22/'Charges Summary'!F$4)/(E22/'Charges Summary'!E$4)-1) -> 0.02197464405 | S22: =IF(F22=0,"",(G22/'Charges Summary'!G$4)/(F22/'Charges Summary'!F$4)-1) -> 0.08222518053 | T22: =IF(G22=0,"",(H22/'Charges Summary'!H$4)/(G22/'Charges Summary'!G$4)-1) -> 0.03645609338
A23: ='DNSP Inputs General'!A58 -> Metal Halide 400 watt | C23: ='DNSP Inputs General'!E58 -> 134.51 | D23: =IF('DNSP Inputs General'!$B58='DNSP Inputs General'!$A$41,D$6,IF('DNSP Inputs General'!$B58='DNSP Inputs General'!$A$42,D$7,D$8))*'DNSP Inputs General'!$D58 -> 89.44615974 | E23: =IF('DNSP Inputs General'!$B58='DNSP Inputs General'!$A$41,E$6,IF('DNSP Inputs General'!$B58='DNSP Inputs General'!$A$42,E$7,E$8))*'DNSP Inputs General'!$D58 -> 94.21615177 | F23: =IF('DNSP Inputs General'!$B58='DNSP Inputs General'!$A$41,F$6,IF('DNSP Inputs General'!$B58='DNSP Inputs General'!$A$42,F$7,F$8))*'DNSP Inputs General'!$D58 -> 98.14841216 | G23: =IF('DNSP Inputs General'!$B58='DNSP Inputs General'!$A$41,G$6,IF('DNSP Inputs General'!$B58='DNSP Inputs General'!$A$42,G$7,G$8))*'DNSP Inputs General'!$D58 -> 108.4255753 | H23: =IF('DNSP Inputs General'!$B58='DNSP Inputs General'!$A$41,H$6,IF('DNSP Inputs General'!$B58='DNSP Inputs General'!$A$42,H$7,H$8))*'DNSP Inputs General'!$D58 -> 114.9889869 | J23: -0.3350222307 | K23: 0.05332808068 | L23: 0.04173658468 | M23: 0.1047104372 | N23: 0.06053379574 | P23: =IF(C23=0,"",(D23/'Charges Summary'!D$4)/C23-1) -> -0.3448737532 | Q23: =IF(D23=0,"",(E23/'Charges Summary'!E$4)/(D23/'Charges Summary'!D$4)-1) -> 0.04265901172 | R23: =IF(E23=0,"",(F23/'Charges Summary'!F$4)/(E23/'Charges Summary'!E$4)-1) -> 0.02197464405 | S23: =IF(F23=0,"",(G23/'Charges Summary'!G$4)/(F23/'Charges Summary'!F$4)-1) -> 0.08222518053 | T23: =IF(G23=0,"",(H23/'Charges Summary'!H$4)/(G23/'Charges Summary'!G$4)-1) -> 0.03645609338
A30: ='DNSP Inputs General'!A$67 -> Energy Efficient Lights
A31: ='DNSP Inputs General'!A68 -> T5 2X14W | C31: ='DNSP Inputs General'!E68 -> 29.22 | D31: ='Charges Summary'!D$89 -> 35.97587553 | E31: ='Charges Summary'!E$89 -> 33.35914123 | F31: ='Charges Summary'!F$89 -> 32.6536504 | G31: ='Charges Summary'!G$89 -> 31.76776117 | H31: ='Charges Summary'!H$89 -> 31.39495172 | J31: =IF(C31=0,"",D31/C31-1) -> 0.2312072391 | K31: =IF(D31=0,"",E31/D31-1) -> -0.07273580591 | L31: =IF(E31=0,"",F31/E31-1) -> -0.02114835103 | M31: =IF(F31=0,"",G31/F31-1) -> -0.02712986805 | N31: =IF(G31=0,"",H31/G31-1) -> -0.01173546493 | P31: =IF(C31=0,"",(D31/'Charges Summary'!D$4)/C31-1) -> 0.2129671319 | Q31: =IF(D31=0,"",(E31/'Charges Summary'!E$4)/(D31/'Charges Summary'!D$4)-1) -> -0.08212798467 | R31: =IF(E31=0,"",(F31/'Charges Summary'!F$4)/(E31/'Charges Summary'!E$4)-1) -> -0.0397173525 | S31: =IF(F31=0,"",(G31/'Charges Summary'!G$4)/(F31/'Charges Summary'!F$4)-1) -> -0.0469316495 | T31: =IF(G31=0,"",(H31/'Charges Summary'!H$4)/(G31/'Charges Summary'!G$4)-1) -> -0.03417241076
A32: ='DNSP Inputs General'!A69 -> Twin 24w Fluorescent | C32: ='DNSP Inputs General'!E69 -> 29.22 | D32: =D$31*'DNSP Inputs General'!$D69 -> 35.97587553 | E32: =E$31*'DNSP Inputs General'!$D69 -> 33.35914123 | F32: =F$31*'DNSP Inputs General'!$D69 -> 32.6536504 | G32: =G$31*'DNSP Inputs General'!$D69 -> 31.76776117 | H32: =H$31*'DNSP Inputs General'!$D69 -> 31.39495172 | J32: =IF(C32=0,"",D32/C32-1) -> 0.2312072391 | K32: =IF(D32=0,"",E32/D32-1) -> -0.07273580591 | L32: =IF(E32=0,"",F32/E32-1) -> -0.02114835103 | M32: =IF(F32=0,"",G32/F32-1) -> -0.02712986805 | N32: =IF(G32=0,"",H32/G32-1) -> -0.01173546493 | P32: =IF(C32=0,"",(D32/'Charges Summary'!D$4)/C32-1) -> 0.2129671319 | Q32: =IF(D32=0,"",(E32/'Charges Summary'!E$4)/(D32/'Charges Summary'!D$4)-1) -> -0.08212798467 | R32: =IF(E32=0,"",(F32/'Charges Summary'!F$4)/(E32/'Charges Summary'!E$4)-1) -> -0.0397173525 | S32: =IF(F32=0,"",(G32/'Charges Summary'!G$4)/(F32/'Charges Summary'!F$4)-1) -> -0.0469316495 | T32: =IF(G32=0,"",(H32/'Charges Summary'!H$4)/(G32/'Charges Summary'!G$4)-1) -> -0.03417241076
A33: ='DNSP Inputs General'!A70 -> 32W Compact Fluorescent | C33: ='DNSP Inputs General'!E70 -> 29.22 | D33: =D$31*'DNSP Inputs General'!$D70 -> 35.97587553 | E33: =E$31*'DNSP Inputs General'!$D70 -> 33.35914123 | F33: =F$31*'DNSP Inputs General'!$D70 -> 32.6536504 | G33: =G$31*'DNSP Inputs General'!$D70 -> 31.76776117 | H33: =H$31*'DNSP Inputs General'!$D70 -> 31.39495172 | J33: 0.2312072391 | K33: -0.07273580591 | L33: -0.02114835103 | M33: -0.02712986805 | N33: -0.01173546493 | P33: =IF(C33=0,"",(D33/'Charges Summary'!D$4)/C33-1) -> 0.2129671319 | Q33: =IF(D33=0,"",(E33/'Charges Summary'!E$4)/(D33/'Charges Summary'!D$4)-1) -> -0.08212798467 | R33: =IF(E33=0,"",(F33/'Charges Summary'!F$4)/(E33/'Charges Summary'!E$4)-1) -> -0.0397173525 | S33: =IF(F33=0,"",(G33/'Charges Summary'!G$4)/(F33/'Charges Summary'!F$4)-1) -> -0.0469316495 | T33: =IF(G33=0,"",(H33/'Charges Summary'!H$4)/(G33/'Charges Summary'!G$4)-1) -> -0.03417241076
A34: ='DNSP Inputs General'!A71 -> 42w Compact Fluorescent | C34: ='DNSP Inputs General'!E71 -> 29.22 | D34: =D$31*'DNSP Inputs General'!$D71 -> 35.97587553 | E34: =E$31*'DNSP Inputs General'!$D71 -> 33.35914123 | F34: =F$31*'DNSP Inputs General'!$D71 -> 32.6536504 | G34: =G$31*'DNSP Inputs General'!$D71 -> 31.76776117 | H34: =H$31*'DNSP Inputs General'!$D71 -> 31.39495172 | J34: 0.2312072391 | K34: -0.07273580591 | L34: -0.02114835103 | M34: -0.02712986805 | N34: -0.01173546493 | P34: =IF(C34=0,"",(D34/'Charges Summary'!D$4)/C34-1) -> 0.2129671319 | Q34: =IF(D34=0,"",(E34/'Charges Summary'!E$4)/(D34/'Charges Summary'!D$4)-1) -> -0.08212798467 | R34: =IF(E34=0,"",(F34/'Charges Summary'!F$4)/(E34/'Charges Summary'!E$4)-1) -> -0.0397173525 | S34: =IF(F34=0,"",(G34/'Charges Summary'!G$4)/(F34/'Charges Summary'!F$4)-1) -> -0.0469316495 | T34: =IF(G34=0,"",(H34/'Charges Summary'!H$4)/(G34/'Charges Summary'!G$4)-1) -> -0.03417241076

Sheet PL Tariff Components
A1: ='DNSP Inputs O & M'!$A$3 -> United Energy | E1: Global Check | F1: =IF(SUM('Total RAB'!F1,'Depn & WACC Post 2004'!F1,'Cashflow Summary'!F1,W1)<1,"Ok","Error") -> Ok | V1: Check | W1: =SUM(V6:Z34) -> 9.485745522e-13
A3: Public Lighting Tariffs | C3: Total Tariff | J3: Operations, maintenance and repair Tariff | P3: Replacement Tariff | V3: Check
C4: Actual
A5: ='DNSP Inputs General'!A$40 -> Existing Lights | C5: ='DNSP Inputs General'!J$2 -> 2015 | D5: ='DNSP Inputs General'!K$2 -> 2016 | E5: ='DNSP Inputs General'!L$2 -> 2017 | F5: ='DNSP Inputs General'!M$2 -> 2018 | G5: ='DNSP Inputs General'!N$2 -> 2019 | H5: ='DNSP Inputs General'!O$2 -> 2020 | J5: =D5 -> 2016 | K5: =E5 -> 2017 | L5: 2018 | M5: 2019 | N5: 2020 | P5: =J5 -> 2016 | Q5: =K5 -> 2017 | R5: 2018 | S5: 2019 | T5: 2020 | V5: =P5 -> 2016 | W5: =Q5 -> 2017 | X5: =R5 -> 2018 | Y5: =S5 -> 2019 | Z5: =T5 -> 2020
A6: ='DNSP Inputs General'!A41 -> Mercury Vapour 80 watt | C6: ='DNSP Inputs General'!E41 -> 64.8 | D6: ='Charges Summary'!D$31 -> 50.14571869 | E6: ='Charges Summary'!E$31 -> 51.27956769 | F6: ='Charges Summary'!F$31 -> 56.86917995 | G6: ='Charges Summary'!G$31 -> 60.47083907 | H6: ='Charges Summary'!H$31 -> 64.65230902 | J6: =SUM('Charges Summary'!D25,'Charges Summary'!D8) -> 23.64080316 | K6: =SUM('Charges Summary'!E25,'Charges Summary'!E8) -> 24.49856385 | L6: =SUM('Charges Summary'!F25,'Charges Summary'!F8) -> 26.4224489 | M6: =SUM('Charges Summary'!G25,'Charges Summary'!G8) -> 27.97981517 | N6: =SUM('Charges Summary'!H25,'Charges Summary'!H8) -> 29.69263684 | P6: =SUM('Charges Summary'!D27,'Charges Summary'!D11) -> 26.50491553 | Q6: =SUM('Charges Summary'!E27,'Charges Summary'!E11) -> 26.78100384 | R6: =SUM('Charges Summary'!F27,'Charges Summary'!F11) -> 30.44673104 | S6: =SUM('Charges Summary'!G27,'Charges Summary'!G11) -> 32.49102389 | T6: =SUM('Charges Summary'!H27,'Charges Summary'!H11) -> 34.95967218 | V6: =ABS(D6-J6-P6) -> 3.552713679e-15 | W6: =ABS(E6-K6-Q6) -> 7.105427358e-15 | X6: =ABS(F6-L6-R6) -> 3.552713679e-15 | Y6: =ABS(G6-M6-S6) -> 0 | Z6: =ABS(H6-N6-T6) -> 0
A7: ='DNSP Inputs General'!A42 -> Sodium High Pressure 150 watt | C7: ='DNSP Inputs General'!E42 -> 97.72 | D7: ='Charges Summary'!D$55 -> 64.67039922 | E7: ='Charges Summary'!E$55 -> 68.15073098 | F7: ='Charges Summary'!F$55 -> 75.91470637 | G7: ='Charges Summary'!G$55 -> 78.5064099 | H7: ='Charges Summary'!H$55 -> 83.28084609 | J7: =SUM('Charges Summary'!D49,'Charges Summary'!D8) -> 38.52097647 | K7: =SUM('Charges Summary'!E49,'Charges Summary'!E8) -> 41.72865171 | L7: =SUM('Charges Summary'!F49,'Charges Summary'!F8) -> 45.86989507 | M7: =SUM('Charges Summary'!G49,'Charges Summary'!G8) -> 46.44087088 | N7: =SUM('Charges Summary'!H49,'Charges Summary'!H8) -> 48.77471727 | P7: =SUM('Charges Summary'!D51,'Charges Summary'!D11) -> 26.14942275 | Q7: =SUM('Charges Summary'!E51,'Charges Summary'!E11) -> 26.42207928 | R7: =SUM('Charges Summary'!F51,'Charges Summary'!F11) -> 30.04481131 | S7: =SUM('Charges Summary'!G51,'Charges Summary'!G11) -> 32.06553903 | T7: =SUM('Charges Summary'!H51,'Charges Summary'!H11) -> 34.50612881 | V7: =ABS(D7-J7-P7) -> 3.552713679e-15 | W7: 7.105427358e-15 | X7: 1.065814104e-14 | Y7: 0 | Z7: 7.105427358e-15
A8: ='DNSP Inputs General'!A43 -> Sodium High Pressure 250 watt | C8: ='DNSP Inputs General'!E43 -> 99.64 | D8: ='Charges Summary'!D$71 -> 66.25641462 | E8: ='Charges Summary'!E$71 -> 69.78974205 | F8: ='Charges Summary'!F$71 -> 72.70252753 | G8: ='Charges Summary'!G$71 -> 80.31524097 | H8: ='Charges Summary'!H$71 -> 85.17702736 | J8: =SUM('Charges Summary'!D65,'Charges Summary'!D8) -> 39.103826 | K8: =SUM('Charges Summary'!E65,'Charges Summary'!E8) -> 42.35481274 | L8: =SUM('Charges Summary'!F65,'Charges Summary'!F8) -> 41.523538 | M8: =SUM('Charges Summary'!G65,'Charges Summary'!G8) -> 47.04902524 | N8: =SUM('Charges Summary'!H65,'Charges Summary'!H8) -> 49.39104348 | P8: =SUM('Charges Summary'!D67,'Charges Summary'!D11) -> 27.15258863 | Q8: =SUM('Charges Summary'!E67,'Charges Summary'!E11) -> 27.43492931 | R8: =SUM('Charges Summary'!F67,'Charges Summary'!F11) -> 31.17898953 | S8: =SUM('Charges Summary'!G67,'Charges Summary'!G11) -> 33.26621573 | T8: =SUM('Charges Summary'!H67,'Charges Summary'!H11) -> 35.78598388 | V8: 7.105427358e-15 | W8: 0 | X8: 1.065814104e-14 | Y8: 1.421085472e-14 | Z8: 1.421085472e-14
A9: ='DNSP Inputs General'!A44 -> Fluorescent 2x20 watt | C9: ='DNSP Inputs General'!E44 -> 83.59 | D9: =IF('DNSP Inputs General'!$B44='DNSP Inputs General'!$A$41,D$6,IF('DNSP Inputs General'!$B44='DNSP Inputs General'!$A$42,D$7,D$8))*'DNSP Inputs General'!$D44 -> 64.68797711 | E9: =IF('DNSP Inputs General'!$B44='DNSP Inputs General'!$A$41,E$6,IF('DNSP Inputs General'!$B44='DNSP Inputs General'!$A$42,E$7,E$8))*'DNSP Inputs General'!$D44 -> 66.15064232 | F9: =IF('DNSP Inputs General'!$B44='DNSP Inputs General'!$A$41,F$6,IF('DNSP Inputs General'!$B44='DNSP Inputs General'!$A$42,F$7,F$8))*'DNSP Inputs General'!$D44 -> 73.36124213 | G9: =IF('DNSP Inputs General'!$B44='DNSP Inputs General'!$A$41,G$6,IF('DNSP Inputs General'!$B44='DNSP Inputs General'!$A$42,G$7,G$8))*'DNSP Inputs General'!$D44 -> 78.0073824 | H9: =IF('DNSP Inputs General'!$B44='DNSP Inputs General'!$A$41,H$6,IF('DNSP Inputs General'!$B44='DNSP Inputs General'!$A$42,H$7,H$8))*'DNSP Inputs General'!$D44 -> 83.40147864 | J9: =IF('DNSP Inputs General'!$B44='DNSP Inputs General'!$A$41,J$6,IF('DNSP Inputs General'!$B44='DNSP Inputs General'!$A$42,J$7,J$8))*'DNSP Inputs General'!$D44 -> 30.49663607 | K9: =IF('DNSP Inputs General'!$B44='DNSP Inputs General'!$A$41,K$6,IF('DNSP Inputs General'!$B44='DNSP Inputs General'!$A$42,K$7,K$8))*'DNSP Inputs General'!$D44 -> 31.60314737 | L9: =IF('DNSP Inputs General'!$B44='DNSP Inputs General'!$A$41,L$6,IF('DNSP Inputs General'!$B44='DNSP Inputs General'!$A$42,L$7,L$8))*'DNSP Inputs General'!$D44 -> 34.08495908 | M9: =IF('DNSP Inputs General'!$B44='DNSP Inputs General'!$A$41,M$6,IF('DNSP Inputs General'!$B44='DNSP Inputs General'!$A$42,M$7,M$8))*'DNSP Inputs General'!$D44 -> 36.09396157 | N9: =IF('DNSP Inputs General'!$B44='DNSP Inputs General'!$A$41,N$6,IF('DNSP Inputs General'!$B44='DNSP Inputs General'!$A$42,N$7,N$8))*'DNSP Inputs General'!$D44 -> 38.30350152 | P9: =IF('DNSP Inputs General'!$B44='DNSP Inputs General'!$A$41,P$6,IF('DNSP Inputs General'!$B44='DNSP Inputs General'!$A$42,P$7,P$8))*'DNSP Inputs General'!$D44 -> 34.19134103 | Q9: =IF('DNSP Inputs General'!$B44='DNSP Inputs General'!$A$41,Q$6,IF('DNSP Inputs General'!$B44='DNSP Inputs General'!$A$42,Q$7,Q$8))*'DNSP Inputs General'!$D44 -> 34.54749495 | R9: =IF('DNSP Inputs General'!$B44='DNSP Inputs General'!$A$41,R$6,IF('DNSP Inputs General'!$B44='DNSP Inputs General'!$A$42,R$7,R$8))*'DNSP Inputs General'!$D44 -> 39.27628305 | S9: =IF('DNSP Inputs General'!$B44='DNSP Inputs General'!$A$41,S$6,IF('DNSP Inputs General'!$B44='DNSP Inputs General'!$A$42,S$7,S$8))*'DNSP Inputs General'!$D44 -> 41.91342082 | T9: =IF('DNSP Inputs General'!$B44='DNSP Inputs General'!$A$41,T$6,IF('DNSP Inputs General'!$B44='DNSP Inputs General'!$A$42,T$7,T$8))*'DNSP Inputs General'!$D44 -> 45.09797712 | V9: 1.421085472e-14 | W9: 1.421085472e-14 | X9: 0 | Y9: 7.105427358e-15 | Z9: 0
A10: ='DNSP Inputs General'!A45 -> Fluorescent 3x20 watt | C10: ='DNSP Inputs General'!E45 -> 82.19 | D10: =IF('DNSP Inputs General'!$B45='DNSP Inputs General'!$A$41,D$6,IF('DNSP Inputs General'!$B45='DNSP Inputs General'!$A$42,D$7,D$8))*'DNSP Inputs General'!$D45 -> 64.68797711 | E10: =IF('DNSP Inputs General'!$B45='DNSP Inputs General'!$A$41,E$6,IF('DNSP Inputs General'!$B45='DNSP Inputs General'!$A$42,E$7,E$8))*'DNSP Inputs General'!$D45 -> 66.15064232 | F10: =IF('DNSP Inputs General'!$B45='DNSP Inputs General'!$A$41,F$6,IF('DNSP Inputs General'!$B45='DNSP Inputs General'!$A$42,F$7,F$8))*'DNSP Inputs General'!$D45 -> 73.36124213 | G10: =IF('DNSP Inputs General'!$B45='DNSP Inputs General'!$A$41,G$6,IF('DNSP Inputs General'!$B45='DNSP Inputs General'!$A$42,G$7,G$8))*'DNSP Inputs General'!$D45 -> 78.0073824 | H10: =IF('DNSP Inputs General'!$B45='DNSP Inputs General'!$A$41,H$6,IF('DNSP Inputs General'!$B45='DNSP Inputs General'!$A$42,H$7,H$8))*'DNSP Inputs General'!$D45 -> 83.40147864 | J10: =IF('DNSP Inputs General'!$B45='DNSP Inputs General'!$A$41,J$6,IF('DNSP Inputs General'!$B45='DNSP Inputs General'!$A$42,J$7,J$8))*'DNSP Inputs General'!$D45 -> 30.49663607 | K10: =IF('DNSP Inputs General'!$B45='DNSP Inputs General'!$A$41,K$6,IF('DNSP Inputs General'!$B45='DNSP Inputs General'!$A$42,K$7,K$8))*'DNSP Inputs General'!$D45 -> 31.60314737 | L10: =IF('DNSP Inputs General'!$B45='DNSP Inputs General'!$A$41,L$6,IF('DNSP Inputs General'!$B45='DNSP Inputs General'!$A$42,L$7,L$8))*'DNSP Inputs General'!$D45 -> 34.08495908 | M10: =IF('DNSP Inputs General'!$B45='DNSP Inputs General'!$A$41,M$6,IF('DNSP Inputs General'!$B45='DNSP Inputs General'!$A$42,M$7,M$8))*'DNSP Inputs General'!$D45 -> 36.09396157 | N10: =IF('DNSP Inputs General'!$B45='DNSP Inputs General'!$A$41,N$6,IF('DNSP Inputs General'!$B45='DNSP Inputs General'!$A$42,N$7,N$8))*'DNSP Inputs General'!$D45 -> 38.30350152 | P10: =IF('DNSP Inputs General'!$B45='DNSP Inputs General'!$A$41,P$6,IF('DNSP Inputs General'!$B45='DNSP Inputs General'!$A$42,P$7,P$8))*'DNSP Inputs General'!$D45 -> 34.19134103 | Q10: =IF('DNSP Inputs General'!$B45='DNSP Inputs General'!$A$41,Q$6,IF('DNSP Inputs General'!$B45='DNSP Inputs General'!$A$42,Q$7,Q$8))*'DNSP Inputs General'!$D45 -> 34.54749495 | R10: =IF('DNSP Inputs General'!$B45='DNSP Inputs General'!$A$41,R$6,IF('DNSP Inputs General'!$B45='DNSP Inputs General'!$A$42,R$7,R$8))*'DNSP Inputs General'!$D45 -> 39.27628305 | S10: =IF('DNSP Inputs General'!$B45='DNSP Inputs General'!$A$41,S$6,IF('DNSP Inputs General'!$B45='DNSP Inputs General'!$A$42,S$7,S$8))*'DNSP Inputs General'!$D45 -> 41.91342082 | T10: =IF('DNSP Inputs General'!$B45='DNSP Inputs General'!$A$41,T$6,IF('DNSP Inputs General'!$B45='DNSP Inputs General'!$A$42,T$7,T$8))*'DNSP Inputs General'!$D45 -> 45.09797712 | V10: 1.421085472e-14 | W10: 1.421085472e-14 | X10: 0 | Y10: 7.105427358e-15 | Z10: 0
A11: ='DNSP Inputs General'!A46 -> Mercury Vapour 50 watt | C11: ='DNSP Inputs General'!E46 -> 95.9 | D11: =IF('DNSP Inputs General'!$B46='DNSP Inputs General'!$A$41,D$6,IF('DNSP Inputs General'!$B46='DNSP Inputs General'!$A$42,D$7,D$8))*'DNSP Inputs General'!$D46 -> 74.21566366 | E11: =IF('DNSP Inputs General'!$B46='DNSP Inputs General'!$A$41,E$6,IF('DNSP Inputs General'!$B46='DNSP Inputs General'!$A$42,E$7,E$8))*'DNSP Inputs General'!$D46 -> 75.89376018 | F11: =IF('DNSP Inputs General'!$B46='DNSP Inputs General'!$A$41,F$6,IF('DNSP Inputs General'!$B46='DNSP Inputs General'!$A$42,F$7,F$8))*'DNSP Inputs General'!$D46 -> 84.16638632 | G11: =IF('DNSP Inputs General'!$B46='DNSP Inputs General'!$A$41,G$6,IF('DNSP Inputs General'!$B46='DNSP Inputs General'!$A$42,G$7,G$8))*'DNSP Inputs General'!$D46 -> 89.49684182 | H11: =IF('DNSP Inputs General'!$B46='DNSP Inputs General'!$A$41,H$6,IF('DNSP Inputs General'!$B46='DNSP Inputs General'!$A$42,H$7,H$8))*'DNSP Inputs General'!$D46 -> 95.68541735 | J11: =IF('DNSP Inputs General'!$B46='DNSP Inputs General'!$A$41,J$6,IF('DNSP Inputs General'!$B46='DNSP Inputs General'!$A$42,J$7,J$8))*'DNSP Inputs General'!$D46 -> 34.98838867 | K11: =IF('DNSP Inputs General'!$B46='DNSP Inputs General'!$A$41,K$6,IF('DNSP Inputs General'!$B46='DNSP Inputs General'!$A$42,K$7,K$8))*'DNSP Inputs General'!$D46 -> 36.2578745 | L11: =IF('DNSP Inputs General'!$B46='DNSP Inputs General'!$A$41,L$6,IF('DNSP Inputs General'!$B46='DNSP Inputs General'!$A$42,L$7,L$8))*'DNSP Inputs General'!$D46 -> 39.10522438 | M11: =IF('DNSP Inputs General'!$B46='DNSP Inputs General'!$A$41,M$6,IF('DNSP Inputs General'!$B46='DNSP Inputs General'!$A$42,M$7,M$8))*'DNSP Inputs General'!$D46 -> 41.41012646 | N11: =IF('DNSP Inputs General'!$B46='DNSP Inputs General'!$A$41,N$6,IF('DNSP Inputs General'!$B46='DNSP Inputs General'!$A$42,N$7,N$8))*'DNSP Inputs General'!$D46 -> 43.94510252 | P11: =IF('DNSP Inputs General'!$B46='DNSP Inputs General'!$A$41,P$6,IF('DNSP Inputs General'!$B46='DNSP Inputs General'!$A$42,P$7,P$8))*'DNSP Inputs General'!$D46 -> 39.22727498 | Q11: =IF('DNSP Inputs General'!$B46='DNSP Inputs General'!$A$41,Q$6,IF('DNSP Inputs General'!$B46='DNSP Inputs General'!$A$42,Q$7,Q$8))*'DNSP Inputs General'!$D46 -> 39.63588568 | R11: =IF('DNSP Inputs General'!$B46='DNSP Inputs General'!$A$41,R$6,IF('DNSP Inputs General'!$B46='DNSP Inputs General'!$A$42,R$7,R$8))*'DNSP Inputs General'!$D46 -> 45.06116195 | S11: =IF('DNSP Inputs General'!$B46='DNSP Inputs General'!$A$41,S$6,IF('DNSP Inputs General'!$B46='DNSP Inputs General'!$A$42,S$7,S$8))*'DNSP Inputs General'!$D46 -> 48.08671536 | T11: =IF('DNSP Inputs General'!$B46='DNSP Inputs General'!$A$41,T$6,IF('DNSP Inputs General'!$B46='DNSP Inputs General'!$A$42,T$7,T$8))*'DNSP Inputs General'!$D46 -> 51.74031483 | V11: 1.421085472e-14 | W11: 7.105427358e-15 | X11: 1.421085472e-14 | Y11: 7.105427358e-15 | Z11: 0
A12: ='DNSP Inputs General'!A47 -> Mercury Vapour 125 watt | C12: ='DNSP Inputs General'!E47 -> 95.9 | D12: =IF('DNSP Inputs General'!$B47='DNSP Inputs General'!$A$41,D$6,IF('DNSP Inputs General'!$B47='DNSP Inputs General'!$A$42,D$7,D$8))*'DNSP Inputs General'!$D47 -> 74.21566366 | E12: =IF('DNSP Inputs General'!$B47='DNSP Inputs General'!$A$41,E$6,IF('DNSP Inputs General'!$B47='DNSP Inputs General'!$A$42,E$7,E$8))*'DNSP Inputs General'!$D47 -> 75.89376018 | F12: =IF('DNSP Inputs General'!$B47='DNSP Inputs General'!$A$41,F$6,IF('DNSP Inputs General'!$B47='DNSP Inputs General'!$A$42,F$7,F$8))*'DNSP Inputs General'!$D47 -> 84.16638632 | G12: =IF('DNSP Inputs General'!$B47='DNSP Inputs General'!$A$41,G$6,IF('DNSP Inputs General'!$B47='DNSP Inputs General'!$A$42,G$7,G$8))*'DNSP Inputs General'!$D47 -> 89.49684182 | H12: =IF('DNSP Inputs General'!$B47='DNSP Inputs General'!$A$41,H$6,IF('DNSP Inputs General'!$B47='DNSP Inputs General'!$A$42,H$7,H$8))*'DNSP Inputs General'!$D47 -> 95.68541735 | J12: =IF('DNSP Inputs General'!$B47='DNSP Inputs General'!$A$41,J$6,IF('DNSP Inputs General'!$B47='DNSP Inputs General'!$A$42,J$7,J$8))*'DNSP Inputs General'!$D47 -> 34.98838867 | K12: =IF('DNSP Inputs General'!$B47='DNSP Inputs General'!$A$41,K$6,IF('DNSP Inputs General'!$B47='DNSP Inputs General'!$A$42,K$7,K$8))*'DNSP Inputs General'!$D47 -> 36.2578745 | L12: =IF('DNSP Inputs General'!$B47='DNSP Inputs General'!$A$41,L$6,IF('DNSP Inputs General'!$B47='DNSP Inputs General'!$A$42,L$7,L$8))*'DNSP Inputs General'!$D47 -> 39.10522438 | M12: =IF('DNSP Inputs General'!$B47='DNSP Inputs General'!$A$41,M$6,IF('DNSP Inputs General'!$B47='DNSP Inputs General'!$A$42,M$7,M$8))*'DNSP Inputs General'!$D47 -> 41.41012646 | N12: =IF('DNSP Inputs General'!$B47='DNSP Inputs General'!$A$41,N$6,IF('DNSP Inputs General'!$B47='DNSP Inputs General'!$A$42,N$7,N$8))*'DNSP Inputs General'!$D47 -> 43.94510252 | P12: =IF('DNSP Inputs General'!$B47='DNSP Inputs General'!$A$41,P$6,IF('DNSP Inputs General'!$B47='DNSP Inputs General'!$A$42,P$7,P$8))*'DNSP Inputs General'!$D47 -> 39.22727498 | Q12: =IF('DNSP Inputs General'!$B47='DNSP Inputs General'!$A$41,Q$6,IF('DNSP Inputs General'!$B47='DNSP Inputs General'!$A$42,Q$7,Q$8))*'DNSP Inputs General'!$D47 -> 39.63588568 | R12: =IF('DNSP Inputs General'!$B47='DNSP Inputs General'!$A$41,R$6,IF('DNSP Inputs General'!$B47='DNSP Inputs General'!$A$42,R$7,R$8))*'DNSP Inputs General'!$D47 -> 45.06116195 | S12: =IF('DNSP Inputs General'!$B47='DNSP Inputs General'!$A$41,S$6,IF('DNSP Inputs General'!$B47='DNSP Inputs General'!$A$42,S$7,S$8))*'DNSP Inputs General'!$D47 -> 48.08671536 | T12: =IF('DNSP Inputs General'!$B47='DNSP Inputs General'!$A$41,T$6,IF('DNSP Inputs General'!$B47='DNSP Inputs General'!$A$42,T$7,T$8))*'DNSP Inputs General'!$D47 -> 51.74031483 | V12: 1.421085472e-14 | W12: 7.105427358e-15 | X12: 1.421085472e-14 | Y12: 7.105427358e-15 | Z12: 0
A13: ='DNSP Inputs General'!A48 -> Mercury Vapour 250 watt | C13: ='DNSP Inputs General'!E48 -> 90.67 | D13: =IF('DNSP Inputs General'!$B48='DNSP Inputs General'!$A$41,D$6,IF('DNSP Inputs General'!$B48='DNSP Inputs General'!$A$42,D$7,D$8))*'DNSP Inputs General'!$D48 -> 60.29333731 | E13: =IF('DNSP Inputs General'!$B48='DNSP Inputs General'!$A$41,E$6,IF('DNSP Inputs General'!$B48='DNSP Inputs General'!$A$42,E$7,E$8))*'DNSP Inputs General'!$D48 -> 63.50866526 | F13: =IF('DNSP Inputs General'!$B48='DNSP Inputs General'!$A$41,F$6,IF('DNSP Inputs General'!$B48='DNSP Inputs General'!$A$42,F$7,F$8))*'DNSP Inputs General'!$D48 -> 66.15930005 | G13: =IF('DNSP Inputs General'!$B48='DNSP Inputs General'!$A$41,G$6,IF('DNSP Inputs General'!$B48='DNSP Inputs General'!$A$42,G$7,G$8))*'DNSP Inputs General'!$D48 -> 73.08686928 | H13: =IF('DNSP Inputs General'!$B48='DNSP Inputs General'!$A$41,H$6,IF('DNSP Inputs General'!$B48='DNSP Inputs General'!$A$42,H$7,H$8))*'DNSP Inputs General'!$D48 -> 77.5110949 | J13: =IF('DNSP Inputs General'!$B48='DNSP Inputs General'!$A$41,J$6,IF('DNSP Inputs General'!$B48='DNSP Inputs General'!$A$42,J$7,J$8))*'DNSP Inputs General'!$D48 -> 35.58448166 | K13: =IF('DNSP Inputs General'!$B48='DNSP Inputs General'!$A$41,K$6,IF('DNSP Inputs General'!$B48='DNSP Inputs General'!$A$42,K$7,K$8))*'DNSP Inputs General'!$D48 -> 38.5428796 | L13: =IF('DNSP Inputs General'!$B48='DNSP Inputs General'!$A$41,L$6,IF('DNSP Inputs General'!$B48='DNSP Inputs General'!$A$42,L$7,L$8))*'DNSP Inputs General'!$D48 -> 37.78641958 | M13: =IF('DNSP Inputs General'!$B48='DNSP Inputs General'!$A$41,M$6,IF('DNSP Inputs General'!$B48='DNSP Inputs General'!$A$42,M$7,M$8))*'DNSP Inputs General'!$D48 -> 42.81461297 | N13: =IF('DNSP Inputs General'!$B48='DNSP Inputs General'!$A$41,N$6,IF('DNSP Inputs General'!$B48='DNSP Inputs General'!$A$42,N$7,N$8))*'DNSP Inputs General'!$D48 -> 44.94584957 | P13: =IF('DNSP Inputs General'!$B48='DNSP Inputs General'!$A$41,P$6,IF('DNSP Inputs General'!$B48='DNSP Inputs General'!$A$42,P$7,P$8))*'DNSP Inputs General'!$D48 -> 24.70885565 | Q13: =IF('DNSP Inputs General'!$B48='DNSP Inputs General'!$A$41,Q$6,IF('DNSP Inputs General'!$B48='DNSP Inputs General'!$A$42,Q$7,Q$8))*'DNSP Inputs General'!$D48 -> 24.96578567 | R13: =IF('DNSP Inputs General'!$B48='DNSP Inputs General'!$A$41,R$6,IF('DNSP Inputs General'!$B48='DNSP Inputs General'!$A$42,R$7,R$8))*'DNSP Inputs General'!$D48 -> 28.37288047 | S13: =IF('DNSP Inputs General'!$B48='DNSP Inputs General'!$A$41,S$6,IF('DNSP Inputs General'!$B48='DNSP Inputs General'!$A$42,S$7,S$8))*'DNSP Inputs General'!$D48 -> 30.27225632 | T13: =IF('DNSP Inputs General'!$B48='DNSP Inputs General'!$A$41,T$6,IF('DNSP Inputs General'!$B48='DNSP Inputs General'!$A$42,T$7,T$8))*'DNSP Inputs General'!$D48 -> 32.56524533 | V13: 3.552713679e-15 | W13: 3.552713679e-15 | X13: 7.105427358e-15 | Y13: 7.105427358e-15 | Z13: 1.421085472e-14
A14: ='DNSP Inputs General'!A49 -> Mercury Vapour 400 watt | C14: ='DNSP Inputs General'!E49 -> 125.55 | D14: =IF('DNSP Inputs General'!$B49='DNSP Inputs General'!$A$41,D$6,IF('DNSP Inputs General'!$B49='DNSP Inputs General'!$A$42,D$7,D$8))*'DNSP Inputs General'!$D49 -> 83.48308243 | E14: =IF('DNSP Inputs General'!$B49='DNSP Inputs General'!$A$41,E$6,IF('DNSP Inputs General'!$B49='DNSP Inputs General'!$A$42,E$7,E$8))*'DNSP Inputs General'!$D49 -> 87.93507498 | F14: =IF('DNSP Inputs General'!$B49='DNSP Inputs General'!$A$41,F$6,IF('DNSP Inputs General'!$B49='DNSP Inputs General'!$A$42,F$7,F$8))*'DNSP Inputs General'!$D49 -> 91.60518468 | G14: =IF('DNSP Inputs General'!$B49='DNSP Inputs General'!$A$41,G$6,IF('DNSP Inputs General'!$B49='DNSP Inputs General'!$A$42,G$7,G$8))*'DNSP Inputs General'!$D49 -> 101.1972036 | H14: =IF('DNSP Inputs General'!$B49='DNSP Inputs General'!$A$41,H$6,IF('DNSP Inputs General'!$B49='DNSP Inputs General'!$A$42,H$7,H$8))*'DNSP Inputs General'!$D49 -> 107.3230545 | J14: =IF('DNSP Inputs General'!$B49='DNSP Inputs General'!$A$41,J$6,IF('DNSP Inputs General'!$B49='DNSP Inputs General'!$A$42,J$7,J$8))*'DNSP Inputs General'!$D49 -> 49.27082076 | K14: =IF('DNSP Inputs General'!$B49='DNSP Inputs General'!$A$41,K$6,IF('DNSP Inputs General'!$B49='DNSP Inputs General'!$A$42,K$7,K$8))*'DNSP Inputs General'!$D49 -> 53.36706406 | L14: =IF('DNSP Inputs General'!$B49='DNSP Inputs General'!$A$41,L$6,IF('DNSP Inputs General'!$B49='DNSP Inputs General'!$A$42,L$7,L$8))*'DNSP Inputs General'!$D49 -> 52.31965788 | M14: =IF('DNSP Inputs General'!$B49='DNSP Inputs General'!$A$41,M$6,IF('DNSP Inputs General'!$B49='DNSP Inputs General'!$A$42,M$7,M$8))*'DNSP Inputs General'!$D49 -> 59.2817718 | N14: =IF('DNSP Inputs General'!$B49='DNSP Inputs General'!$A$41,N$6,IF('DNSP Inputs General'!$B49='DNSP Inputs General'!$A$42,N$7,N$8))*'DNSP Inputs General'!$D49 -> 62.23271479 | P14: =IF('DNSP Inputs General'!$B49='DNSP Inputs General'!$A$41,P$6,IF('DNSP Inputs General'!$B49='DNSP Inputs General'!$A$42,P$7,P$8))*'DNSP Inputs General'!$D49 -> 34.21226167 | Q14: =IF('DNSP Inputs General'!$B49='DNSP Inputs General'!$A$41,Q$6,IF('DNSP Inputs General'!$B49='DNSP Inputs General'!$A$42,Q$7,Q$8))*'DNSP Inputs General'!$D49 -> 34.56801093 | R14: =IF('DNSP Inputs General'!$B49='DNSP Inputs General'!$A$41,R$6,IF('DNSP Inputs General'!$B49='DNSP Inputs General'!$A$42,R$7,R$8))*'DNSP Inputs General'!$D49 -> 39.2855268 | S14: =IF('DNSP Inputs General'!$B49='DNSP Inputs General'!$A$41,S$6,IF('DNSP Inputs General'!$B49='DNSP Inputs General'!$A$42,S$7,S$8))*'DNSP Inputs General'!$D49 -> 41.91543182 | T14: =IF('DNSP Inputs General'!$B49='DNSP Inputs General'!$A$41,T$6,IF('DNSP Inputs General'!$B49='DNSP Inputs General'!$A$42,T$7,T$8))*'DNSP Inputs General'!$D49 -> 45.09033969 | V14: 1.421085472e-14 | W14: 0 | X14: 1.421085472e-14 | Y14: 2.131628207e-14 | Z14: 2.131628207e-14
A15: ='DNSP Inputs General'!A50 -> Mercury Vapour 700 watt | C15: ='DNSP Inputs General'!E50 -> 125.55 | D15: =IF('DNSP Inputs General'!$B50='DNSP Inputs General'!$A$41,D$6,IF('DNSP Inputs General'!$B50='DNSP Inputs General'!$A$42,D$7,D$8))*'DNSP Inputs General'!$D50 -> 83.48308243 | E15: =IF('DNSP Inputs General'!$B50='DNSP Inputs General'!$A$41,E$6,IF('DNSP Inputs General'!$B50='DNSP Inputs General'!$A$42,E$7,E$8))*'DNSP Inputs General'!$D50 -> 87.93507498 | F15: =IF('DNSP Inputs General'!$B50='DNSP Inputs General'!$A$41,F$6,IF('DNSP Inputs General'!$B50='DNSP Inputs General'!$A$42,F$7,F$8))*'DNSP Inputs General'!$D50 -> 91.60518468 | G15: =IF('DNSP Inputs General'!$B50='DNSP Inputs General'!$A$41,G$6,IF('DNSP Inputs General'!$B50='DNSP Inputs General'!$A$42,G$7,G$8))*'DNSP Inputs General'!$D50 -> 101.1972036 | H15: =IF('DNSP Inputs General'!$B50='DNSP Inputs General'!$A$41,H$6,IF('DNSP Inputs General'!$B50='DNSP Inputs General'!$A$42,H$7,H$8))*'DNSP Inputs General'!$D50 -> 107.3230545 | J15: =IF('DNSP Inputs General'!$B50='DNSP Inputs General'!$A$41,J$6,IF('DNSP Inputs General'!$B50='DNSP Inputs General'!$A$42,J$7,J$8))*'DNSP Inputs General'!$D50 -> 49.27082076 | K15: =IF('DNSP Inputs General'!$B50='DNSP Inputs General'!$A$41,K$6,IF('DNSP Inputs General'!$B50='DNSP Inputs General'!$A$42,K$7,K$8))*'DNSP Inputs General'!$D50 -> 53.36706406 | L15: =IF('DNSP Inputs General'!$B50='DNSP Inputs General'!$A$41,L$6,IF('DNSP Inputs General'!$B50='DNSP Inputs General'!$A$42,L$7,L$8))*'DNSP Inputs General'!$D50 -> 52.31965788 | M15: =IF('DNSP Inputs General'!$B50='DNSP Inputs General'!$A$41,M$6,IF('DNSP Inputs General'!$B50='DNSP Inputs General'!$A$42,M$7,M$8))*'DNSP Inputs General'!$D50 -> 59.2817718 | N15: =IF('DNSP Inputs General'!$B50='DNSP Inputs General'!$A$41,N$6,IF('DNSP Inputs General'!$B50='DNSP Inputs General'!$A$42,N$7,N$8))*'DNSP Inputs General'!$D50 -> 62.23271479 | P15: =IF('DNSP Inputs General'!$B50='DNSP Inputs General'!$A$41,P$6,IF('DNSP Inputs General'!$B50='DNSP Inputs General'!$A$42,P$7,P$8))*'DNSP Inputs General'!$D50 -> 34.21226167 | Q15: =IF('DNSP Inputs General'!$B50='DNSP Inputs General'!$A$41,Q$6,IF('DNSP Inputs General'!$B50='DNSP Inputs General'!$A$42,Q$7,Q$8))*'DNSP Inputs General'!$D50 -> 34.56801093 | R15: =IF('DNSP Inputs General'!$B50='DNSP Inputs General'!$A$41,R$6,IF('DNSP Inputs General'!$B50='DNSP Inputs General'!$A$42,R$7,R$8))*'DNSP Inputs General'!$D50 -> 39.2855268 | S15: =IF('DNSP Inputs General'!$B50='DNSP Inputs General'!$A$41,S$6,IF('DNSP Inputs General'!$B50='DNSP Inputs General'!$A$42,S$7,S$8))*'DNSP Inputs General'!$D50 -> 41.91543182 | T15: =IF('DNSP Inputs General'!$B50='DNSP Inputs General'!$A$41,T$6,IF('DNSP Inputs General'!$B50='DNSP Inputs General'!$A$42,T$7,T$8))*'DNSP Inputs General'!$D50 -> 45.09033969 | V15: 1.421085472e-14 | W15: 0 | X15: 1.421085472e-14 | Y15: 2.131628207e-14 | Z15: 2.131628207e-14
A16: ='DNSP Inputs General'!A51 -> Sodium High Pressure 70 watt | C16: ='DNSP Inputs General'!E51 -> 141.91 | D16: =IF('DNSP Inputs General'!$B51='DNSP Inputs General'!$A$41,D$6,IF('DNSP Inputs General'!$B51='DNSP Inputs General'!$A$42,D$7,D$8))*'DNSP Inputs General'!$D51 -> 109.8191239 | E16: =IF('DNSP Inputs General'!$B51='DNSP Inputs General'!$A$41,E$6,IF('DNSP Inputs General'!$B51='DNSP Inputs General'!$A$42,E$7,E$8))*'DNSP Inputs General'!$D51 -> 112.3022532 | F16: =IF('DNSP Inputs General'!$B51='DNSP Inputs General'!$A$41,F$6,IF('DNSP Inputs General'!$B51='DNSP Inputs General'!$A$42,F$7,F$8))*'DNSP Inputs General'!$D51 -> 124.5435041 | G16: =IF('DNSP Inputs General'!$B51='DNSP Inputs General'!$A$41,G$6,IF('DNSP Inputs General'!$B51='DNSP Inputs General'!$A$42,G$7,G$8))*'DNSP Inputs General'!$D51 -> 132.4311376 | H16: =IF('DNSP Inputs General'!$B51='DNSP Inputs General'!$A$41,H$6,IF('DNSP Inputs General'!$B51='DNSP Inputs General'!$A$42,H$7,H$8))*'DNSP Inputs General'!$D51 -> 141.5885568 | J16: =IF('DNSP Inputs General'!$B51='DNSP Inputs General'!$A$41,J$6,IF('DNSP Inputs General'!$B51='DNSP Inputs General'!$A$42,J$7,J$8))*'DNSP Inputs General'!$D51 -> 51.77335891 | K16: =IF('DNSP Inputs General'!$B51='DNSP Inputs General'!$A$41,K$6,IF('DNSP Inputs General'!$B51='DNSP Inputs General'!$A$42,K$7,K$8))*'DNSP Inputs General'!$D51 -> 53.65185483 | L16: =IF('DNSP Inputs General'!$B51='DNSP Inputs General'!$A$41,L$6,IF('DNSP Inputs General'!$B51='DNSP Inputs General'!$A$42,L$7,L$8))*'DNSP Inputs General'!$D51 -> 57.8651631 | M16: =IF('DNSP Inputs General'!$B51='DNSP Inputs General'!$A$41,M$6,IF('DNSP Inputs General'!$B51='DNSP Inputs General'!$A$42,M$7,M$8))*'DNSP Inputs General'!$D51 -> 61.27579523 | N16: =IF('DNSP Inputs General'!$B51='DNSP Inputs General'!$A$41,N$6,IF('DNSP Inputs General'!$B51='DNSP Inputs General'!$A$42,N$7,N$8))*'DNSP Inputs General'!$D51 -> 65.02687467 | P16: =IF('DNSP Inputs General'!$B51='DNSP Inputs General'!$A$41,P$6,IF('DNSP Inputs General'!$B51='DNSP Inputs General'!$A$42,P$7,P$8))*'DNSP Inputs General'!$D51 -> 58.04576501 | Q16: =IF('DNSP Inputs General'!$B51='DNSP Inputs General'!$A$41,Q$6,IF('DNSP Inputs General'!$B51='DNSP Inputs General'!$A$42,Q$7,Q$8))*'DNSP Inputs General'!$D51 -> 58.6503984 | R16: =IF('DNSP Inputs General'!$B51='DNSP Inputs General'!$A$41,R$6,IF('DNSP Inputs General'!$B51='DNSP Inputs General'!$A$42,R$7,R$8))*'DNSP Inputs General'!$D51 -> 66.67834099 | S16: =IF('DNSP Inputs General'!$B51='DNSP Inputs General'!$A$41,S$6,IF('DNSP Inputs General'!$B51='DNSP Inputs General'!$A$42,S$7,S$8))*'DNSP Inputs General'!$D51 -> 71.15534232 | T16: =IF('DNSP Inputs General'!$B51='DNSP Inputs General'!$A$41,T$6,IF('DNSP Inputs General'!$B51='DNSP Inputs General'!$A$42,T$7,T$8))*'DNSP Inputs General'!$D51 -> 76.56168208 | V16: 7.105427358e-15 | W16: 2.131628207e-14 | X16: 0 | Y16: 1.421085472e-14 | Z16: 1.421085472e-14
A17: ='DNSP Inputs General'!A52 -> Sodium High Pressure 100 watt | C17: ='DNSP Inputs General'!E52 -> 107.49 | D17: =IF('DNSP Inputs General'!$B52='DNSP Inputs General'!$A$41,D$6,IF('DNSP Inputs General'!$B52='DNSP Inputs General'!$A$42,D$7,D$8))*'DNSP Inputs General'!$D52 -> 71.13743915 | E17: =IF('DNSP Inputs General'!$B52='DNSP Inputs General'!$A$41,E$6,IF('DNSP Inputs General'!$B52='DNSP Inputs General'!$A$42,E$7,E$8))*'DNSP Inputs General'!$D52 -> 74.96580408 | F17: =IF('DNSP Inputs General'!$B52='DNSP Inputs General'!$A$41,F$6,IF('DNSP Inputs General'!$B52='DNSP Inputs General'!$A$42,F$7,F$8))*'DNSP Inputs General'!$D52 -> 83.50617701 | G17: =IF('DNSP Inputs General'!$B52='DNSP Inputs General'!$A$41,G$6,IF('DNSP Inputs General'!$B52='DNSP Inputs General'!$A$42,G$7,G$8))*'DNSP Inputs General'!$D52 -> 86.35705089 | H17: =IF('DNSP Inputs General'!$B52='DNSP Inputs General'!$A$41,H$6,IF('DNSP Inputs General'!$B52='DNSP Inputs General'!$A$42,H$7,H$8))*'DNSP Inputs General'!$D52 -> 91.60893069 | J17: =IF('DNSP Inputs General'!$B52='DNSP Inputs General'!$A$41,J$6,IF('DNSP Inputs General'!$B52='DNSP Inputs General'!$A$42,J$7,J$8))*'DNSP Inputs General'!$D52 -> 42.37307412 | K17: =IF('DNSP Inputs General'!$B52='DNSP Inputs General'!$A$41,K$6,IF('DNSP Inputs General'!$B52='DNSP Inputs General'!$A$42,K$7,K$8))*'DNSP Inputs General'!$D52 -> 45.90151688 | L17: =IF('DNSP Inputs General'!$B52='DNSP Inputs General'!$A$41,L$6,IF('DNSP Inputs General'!$B52='DNSP Inputs General'!$A$42,L$7,L$8))*'DNSP Inputs General'!$D52 -> 50.45688457 | M17: =IF('DNSP Inputs General'!$B52='DNSP Inputs General'!$A$41,M$6,IF('DNSP Inputs General'!$B52='DNSP Inputs General'!$A$42,M$7,M$8))*'DNSP Inputs General'!$D52 -> 51.08495796 | N17: =IF('DNSP Inputs General'!$B52='DNSP Inputs General'!$A$41,N$6,IF('DNSP Inputs General'!$B52='DNSP Inputs General'!$A$42,N$7,N$8))*'DNSP Inputs General'!$D52 -> 53.652189 | P17: =IF('DNSP Inputs General'!$B52='DNSP Inputs General'!$A$41,P$6,IF('DNSP Inputs General'!$B52='DNSP Inputs General'!$A$42,P$7,P$8))*'DNSP Inputs General'!$D52 -> 28.76436503 | Q17: =IF('DNSP Inputs General'!$B52='DNSP Inputs General'!$A$41,Q$6,IF('DNSP Inputs General'!$B52='DNSP Inputs General'!$A$42,Q$7,Q$8))*'DNSP Inputs General'!$D52 -> 29.0642872 | R17: =IF('DNSP Inputs General'!$B52='DNSP Inputs General'!$A$41,R$6,IF('DNSP Inputs General'!$B52='DNSP Inputs General'!$A$42,R$7,R$8))*'DNSP Inputs General'!$D52 -> 33.04929244 | S17: =IF('DNSP Inputs General'!$B52='DNSP Inputs General'!$A$41,S$6,IF('DNSP Inputs General'!$B52='DNSP Inputs General'!$A$42,S$7,S$8))*'DNSP Inputs General'!$D52 -> 35.27209293 | T17: =IF('DNSP Inputs General'!$B52='DNSP Inputs General'!$A$41,T$6,IF('DNSP Inputs General'!$B52='DNSP Inputs General'!$A$42,T$7,T$8))*'DNSP Inputs General'!$D52 -> 37.95674169 | V17: 7.105427358e-15 | W17: 7.105427358e-15 | X17: 2.131628207e-14 | Y17: 0 | Z17: 7.105427358e-15
A18: ='DNSP Inputs General'!A53 -> Sodium High Pressure 400 watt | C18: ='DNSP Inputs General'!E53 -> 125.55 | D18: =IF('DNSP Inputs General'!$B53='DNSP Inputs General'!$A$41,D$6,IF('DNSP Inputs General'!$B53='DNSP Inputs General'!$A$42,D$7,D$8))*'DNSP Inputs General'!$D53 -> 83.48308243 | E18: =IF('DNSP Inputs General'!$B53='DNSP Inputs General'!$A$41,E$6,IF('DNSP Inputs General'!$B53='DNSP Inputs General'!$A$42,E$7,E$8))*'DNSP Inputs General'!$D53 -> 87.93507498 | F18: =IF('DNSP Inputs General'!$B53='DNSP Inputs General'!$A$41,F$6,IF('DNSP Inputs General'!$B53='DNSP Inputs General'!$A$42,F$7,F$8))*'DNSP Inputs General'!$D53 -> 91.60518468 | G18: =IF('DNSP Inputs General'!$B53='DNSP Inputs General'!$A$41,G$6,IF('DNSP Inputs General'!$B53='DNSP Inputs General'!$A$42,G$7,G$8))*'DNSP Inputs General'!$D53 -> 101.1972036 | H18: =IF('DNSP Inputs General'!$B53='DNSP Inputs General'!$A$41,H$6,IF('DNSP Inputs General'!$B53='DNSP Inputs General'!$A$42,H$7,H$8))*'DNSP Inputs General'!$D53 -> 107.3230545 | J18: =IF('DNSP Inputs General'!$B53='DNSP Inputs General'!$A$41,J$6,IF('DNSP Inputs General'!$B53='DNSP Inputs General'!$A$42,J$7,J$8))*'DNSP Inputs General'!$D53 -> 49.27082076 | K18: =IF('DNSP Inputs General'!$B53='DNSP Inputs General'!$A$41,K$6,IF('DNSP Inputs General'!$B53='DNSP Inputs General'!$A$42,K$7,K$8))*'DNSP Inputs General'!$D53 -> 53.36706406 | L18: =IF('DNSP Inputs General'!$B53='DNSP Inputs General'!$A$41,L$6,IF('DNSP Inputs General'!$B53='DNSP Inputs General'!$A$42,L$7,L$8))*'DNSP Inputs General'!$D53 -> 52.31965788 | M18: =IF('DNSP Inputs General'!$B53='DNSP Inputs General'!$A$41,M$6,IF('DNSP Inputs General'!$B53='DNSP Inputs General'!$A$42,M$7,M$8))*'DNSP Inputs General'!$D53 -> 59.2817718 | N18: =IF('DNSP Inputs General'!$B53='DNSP Inputs General'!$A$41,N$6,IF('DNSP Inputs General'!$B53='DNSP Inputs General'!$A$42,N$7,N$8))*'DNSP Inputs General'!$D53 -> 62.23271479 | P18: =IF('DNSP Inputs General'!$B53='DNSP Inputs General'!$A$41,P$6,IF('DNSP Inputs General'!$B53='DNSP Inputs General'!$A$42,P$7,P$8))*'DNSP Inputs General'!$D53 -> 34.21226167 | Q18: =IF('DNSP Inputs General'!$B53='DNSP Inputs General'!$A$41,Q$6,IF('DNSP Inputs General'!$B53='DNSP Inputs General'!$A$42,Q$7,Q$8))*'DNSP Inputs General'!$D53 -> 34.56801093 | R18: =IF('DNSP Inputs General'!$B53='DNSP Inputs General'!$A$41,R$6,IF('DNSP Inputs General'!$B53='DNSP Inputs General'!$A$42,R$7,R$8))*'DNSP Inputs General'!$D53 -> 39.2855268 | S18: =IF('DNSP Inputs General'!$B53='DNSP Inputs General'!$A$41,S$6,IF('DNSP Inputs General'!$B53='DNSP Inputs General'!$A$42,S$7,S$8))*'DNSP Inputs General'!$D53 -> 41.91543182 | T18: =IF('DNSP Inputs General'!$B53='DNSP Inputs General'!$A$41,T$6,IF('DNSP Inputs General'!$B53='DNSP Inputs General'!$A$42,T$7,T$8))*'DNSP Inputs General'!$D53 -> 45.09033969 | V18: 1.421085472e-14 | W18: 0 | X18: 1.421085472e-14 | Y18: 2.131628207e-14 | Z18: 2.131628207e-14
A19: ='DNSP Inputs General'!A54 -> Metal Halide 70 watt | C19: ='DNSP Inputs General'!E54 -> 131.92 | D19: =IF('DNSP Inputs General'!$B54='DNSP Inputs General'!$A$41,D$6,IF('DNSP Inputs General'!$B54='DNSP Inputs General'!$A$42,D$7,D$8))*'DNSP Inputs General'!$D54 -> 87.30503895 | E19: =IF('DNSP Inputs General'!$B54='DNSP Inputs General'!$A$41,E$6,IF('DNSP Inputs General'!$B54='DNSP Inputs General'!$A$42,E$7,E$8))*'DNSP Inputs General'!$D54 -> 92.00348683 | F19: =IF('DNSP Inputs General'!$B54='DNSP Inputs General'!$A$41,F$6,IF('DNSP Inputs General'!$B54='DNSP Inputs General'!$A$42,F$7,F$8))*'DNSP Inputs General'!$D54 -> 102.4848536 | G19: =IF('DNSP Inputs General'!$B54='DNSP Inputs General'!$A$41,G$6,IF('DNSP Inputs General'!$B54='DNSP Inputs General'!$A$42,G$7,G$8))*'DNSP Inputs General'!$D54 -> 105.9836534 | H19: =IF('DNSP Inputs General'!$B54='DNSP Inputs General'!$A$41,H$6,IF('DNSP Inputs General'!$B54='DNSP Inputs General'!$A$42,H$7,H$8))*'DNSP Inputs General'!$D54 -> 112.4291422 | J19: =IF('DNSP Inputs General'!$B54='DNSP Inputs General'!$A$41,J$6,IF('DNSP Inputs General'!$B54='DNSP Inputs General'!$A$42,J$7,J$8))*'DNSP Inputs General'!$D54 -> 52.00331824 | K19: =IF('DNSP Inputs General'!$B54='DNSP Inputs General'!$A$41,K$6,IF('DNSP Inputs General'!$B54='DNSP Inputs General'!$A$42,K$7,K$8))*'DNSP Inputs General'!$D54 -> 56.3336798 | L19: =IF('DNSP Inputs General'!$B54='DNSP Inputs General'!$A$41,L$6,IF('DNSP Inputs General'!$B54='DNSP Inputs General'!$A$42,L$7,L$8))*'DNSP Inputs General'!$D54 -> 61.92435834 | M19: =IF('DNSP Inputs General'!$B54='DNSP Inputs General'!$A$41,M$6,IF('DNSP Inputs General'!$B54='DNSP Inputs General'!$A$42,M$7,M$8))*'DNSP Inputs General'!$D54 -> 62.69517568 | N19: =IF('DNSP Inputs General'!$B54='DNSP Inputs General'!$A$41,N$6,IF('DNSP Inputs General'!$B54='DNSP Inputs General'!$A$42,N$7,N$8))*'DNSP Inputs General'!$D54 -> 65.84586832 | P19: =IF('DNSP Inputs General'!$B54='DNSP Inputs General'!$A$41,P$6,IF('DNSP Inputs General'!$B54='DNSP Inputs General'!$A$42,P$7,P$8))*'DNSP Inputs General'!$D54 -> 35.30172072 | Q19: =IF('DNSP Inputs General'!$B54='DNSP Inputs General'!$A$41,Q$6,IF('DNSP Inputs General'!$B54='DNSP Inputs General'!$A$42,Q$7,Q$8))*'DNSP Inputs General'!$D54 -> 35.66980702 | R19: =IF('DNSP Inputs General'!$B54='DNSP Inputs General'!$A$41,R$6,IF('DNSP Inputs General'!$B54='DNSP Inputs General'!$A$42,R$7,R$8))*'DNSP Inputs General'!$D54 -> 40.56049526 | S19: =IF('DNSP Inputs General'!$B54='DNSP Inputs General'!$A$41,S$6,IF('DNSP Inputs General'!$B54='DNSP Inputs General'!$A$42,S$7,S$8))*'DNSP Inputs General'!$D54 -> 43.28847769 | T19: =IF('DNSP Inputs General'!$B54='DNSP Inputs General'!$A$41,T$6,IF('DNSP Inputs General'!$B54='DNSP Inputs General'!$A$42,T$7,T$8))*'DNSP Inputs General'!$D54 -> 46.5832739 | V19: 0 | W19: 1.421085472e-14 | X19: 2.131628207e-14 | Y19: 7.105427358e-15 | Z19: 1.421085472e-14
A20: ='DNSP Inputs General'!A55 -> Metal Halide 100 watt | C20: ='DNSP Inputs General'!E55 -> 131.92 | D20: =IF('DNSP Inputs General'!$B55='DNSP Inputs General'!$A$41,D$6,IF('DNSP Inputs General'!$B55='DNSP Inputs General'!$A$42,D$7,D$8))*'DNSP Inputs General'!$D55 -> 87.30503895 | E20: =IF('DNSP Inputs General'!$B55='DNSP Inputs General'!$A$41,E$6,IF('DNSP Inputs General'!$B55='DNSP Inputs General'!$A$42,E$7,E$8))*'DNSP Inputs General'!$D55 -> 92.00348683 | F20: =IF('DNSP Inputs General'!$B55='DNSP Inputs General'!$A$41,F$6,IF('DNSP Inputs General'!$B55='DNSP Inputs General'!$A$42,F$7,F$8))*'DNSP Inputs General'!$D55 -> 102.4848536 | G20: =IF('DNSP Inputs General'!$B55='DNSP Inputs General'!$A$41,G$6,IF('DNSP Inputs General'!$B55='DNSP Inputs General'!$A$42,G$7,G$8))*'DNSP Inputs General'!$D55 -> 105.9836534 | H20: =IF('DNSP Inputs General'!$B55='DNSP Inputs General'!$A$41,H$6,IF('DNSP Inputs General'!$B55='DNSP Inputs General'!$A$42,H$7,H$8))*'DNSP Inputs General'!$D55 -> 112.4291422 | J20: =IF('DNSP Inputs General'!$B55='DNSP Inputs General'!$A$41,J$6,IF('DNSP Inputs General'!$B55='DNSP Inputs General'!$A$42,J$7,J$8))*'DNSP Inputs General'!$D55 -> 52.00331824 | K20: =IF('DNSP Inputs General'!$B55='DNSP Inputs General'!$A$41,K$6,IF('DNSP Inputs General'!$B55='DNSP Inputs General'!$A$42,K$7,K$8))*'DNSP Inputs General'!$D55 -> 56.3336798 | L20: =IF('DNSP Inputs General'!$B55='DNSP Inputs General'!$A$41,L$6,IF('DNSP Inputs General'!$B55='DNSP Inputs General'!$A$42,L$7,L$8))*'DNSP Inputs General'!$D55 -> 61.92435834 | M20: =IF('DNSP Inputs General'!$B55='DNSP Inputs General'!$A$41,M$6,IF('DNSP Inputs General'!$B55='DNSP Inputs General'!$A$42,M$7,M$8))*'DNSP Inputs General'!$D55 -> 62.69517568 | N20: =IF('DNSP Inputs General'!$B55='DNSP Inputs General'!$A$41,N$6,IF('DNSP Inputs General'!$B55='DNSP Inputs General'!$A$42,N$7,N$8))*'DNSP Inputs General'!$D55 -> 65.84586832 | P20: =IF('DNSP Inputs General'!$B55='DNSP Inputs General'!$A$41,P$6,IF('DNSP Inputs General'!$B55='DNSP Inputs General'!$A$42,P$7,P$8))*'DNSP Inputs General'!$D55 -> 35.30172072 | Q20: =IF('DNSP Inputs General'!$B55='DNSP Inputs General'!$A$41,Q$6,IF('DNSP Inputs General'!$B55='DNSP Inputs General'!$A$42,Q$7,Q$8))*'DNSP Inputs General'!$D55 -> 35.66980702 | R20: =IF('DNSP Inputs General'!$B55='DNSP Inputs General'!$A$41,R$6,IF('DNSP Inputs General'!$B55='DNSP Inputs General'!$A$42,R$7,R$8))*'DNSP Inputs General'!$D55 -> 40.56049526 | S20: =IF('DNSP Inputs General'!$B55='DNSP Inputs General'!$A$41,S$6,IF('DNSP Inputs General'!$B55='DNSP Inputs General'!$A$42,S$7,S$8))*'DNSP Inputs General'!$D55 -> 43.28847769 | T20: =IF('DNSP Inputs General'!$B55='DNSP Inputs General'!$A$41,T$6,IF('DNSP Inputs General'!$B55='DNSP Inputs General'!$A$42,T$7,T$8))*'DNSP Inputs General'!$D55 -> 46.5832739 | V20: 0 | W20: 1.421085472e-14 | X20: 2.131628207e-14 | Y20: 7.105427358e-15 | Z20: 1.421085472e-14
A21: ='DNSP Inputs General'!A56 -> Metal Halide 150 watt | C21: ='DNSP Inputs General'!E56 -> 131.92 | D21: =IF('DNSP Inputs General'!$B56='DNSP Inputs General'!$A$41,D$6,IF('DNSP Inputs General'!$B56='DNSP Inputs General'!$A$42,D$7,D$8))*'DNSP Inputs General'!$D56 -> 87.30503895 | E21: =IF('DNSP Inputs General'!$B56='DNSP Inputs General'!$A$41,E$6,IF('DNSP Inputs General'!$B56='DNSP Inputs General'!$A$42,E$7,E$8))*'DNSP Inputs General'!$D56 -> 92.00348683 | F21: =IF('DNSP Inputs General'!$B56='DNSP Inputs General'!$A$41,F$6,IF('DNSP Inputs General'!$B56='DNSP Inputs General'!$A$42,F$7,F$8))*'DNSP Inputs General'!$D56 -> 102.4848536 | G21: =IF('DNSP Inputs General'!$B56='DNSP Inputs General'!$A$41,G$6,IF('DNSP Inputs General'!$B56='DNSP Inputs General'!$A$42,G$7,G$8))*'DNSP Inputs General'!$D56 -> 105.9836534 | H21: =IF('DNSP Inputs General'!$B56='DNSP Inputs General'!$A$41,H$6,IF('DNSP Inputs General'!$B56='DNSP Inputs General'!$A$42,H$7,H$8))*'DNSP Inputs General'!$D56 -> 112.4291422 | J21: =IF('DNSP Inputs General'!$B56='DNSP Inputs General'!$A$41,J$6,IF('DNSP Inputs General'!$B56='DNSP Inputs General'!$A$42,J$7,J$8))*'DNSP Inputs General'!$D56 -> 52.00331824 | K21: =IF('DNSP Inputs General'!$B56='DNSP Inputs General'!$A$41,K$6,IF('DNSP Inputs General'!$B56='DNSP Inputs General'!$A$42,K$7,K$8))*'DNSP Inputs General'!$D56 -> 56.3336798 | L21: =IF('DNSP Inputs General'!$B56='DNSP Inputs General'!$A$41,L$6,IF('DNSP Inputs General'!$B56='DNSP Inputs General'!$A$42,L$7,L$8))*'DNSP Inputs General'!$D56 -> 61.92435834 | M21: =IF('DNSP Inputs General'!$B56='DNSP Inputs General'!$A$41,M$6,IF('DNSP Inputs General'!$B56='DNSP Inputs General'!$A$42,M$7,M$8))*'DNSP Inputs General'!$D56 -> 62.69517568 | N21: =IF('DNSP Inputs General'!$B56='DNSP Inputs General'!$A$41,N$6,IF('DNSP Inputs General'!$B56='DNSP Inputs General'!$A$42,N$7,N$8))*'DNSP Inputs General'!$D56 -> 65.84586832 | P21: =IF('DNSP Inputs General'!$B56='DNSP Inputs General'!$A$41,P$6,IF('DNSP Inputs General'!$B56='DNSP Inputs General'!$A$42,P$7,P$8))*'DNSP Inputs General'!$D56 -> 35.30172072 | Q21: =IF('DNSP Inputs General'!$B56='DNSP Inputs General'!$A$41,Q$6,IF('DNSP Inputs General'!$B56='DNSP Inputs General'!$A$42,Q$7,Q$8))*'DNSP Inputs General'!$D56 -> 35.66980702 | R21: =IF('DNSP Inputs General'!$B56='DNSP Inputs General'!$A$41,R$6,IF('DNSP Inputs General'!$B56='DNSP Inputs General'!$A$42,R$7,R$8))*'DNSP Inputs General'!$D56 -> 40.56049526 | S21: =IF('DNSP Inputs General'!$B56='DNSP Inputs General'!$A$41,S$6,IF('DNSP Inputs General'!$B56='DNSP Inputs General'!$A$42,S$7,S$8))*'DNSP Inputs General'!$D56 -> 43.28847769 | T21: =IF('DNSP Inputs General'!$B56='DNSP Inputs General'!$A$41,T$6,IF('DNSP Inputs General'!$B56='DNSP Inputs General'!$A$42,T$7,T$8))*'DNSP Inputs General'!$D56 -> 46.5832739 | V21: 0 | W21: 1.421085472e-14 | X21: 2.131628207e-14 | Y21: 7.105427358e-15 | Z21: 1.421085472e-14
A22: ='DNSP Inputs General'!A57 -> Metal Halide 250 watt | C22: ='DNSP Inputs General'!E57 -> 134.51 | D22: =IF('DNSP Inputs General'!$B57='DNSP Inputs General'!$A$41,D$6,IF('DNSP Inputs General'!$B57='DNSP Inputs General'!$A$42,D$7,D$8))*'DNSP Inputs General'!$D57 -> 89.44615974 | E22: =IF('DNSP Inputs General'!$B57='DNSP Inputs General'!$A$41,E$6,IF('DNSP Inputs General'!$B57='DNSP Inputs General'!$A$42,E$7,E$8))*'DNSP Inputs General'!$D57 -> 94.21615177 | F22: =IF('DNSP Inputs General'!$B57='DNSP Inputs General'!$A$41,F$6,IF('DNSP Inputs General'!$B57='DNSP Inputs General'!$A$42,F$7,F$8))*'DNSP Inputs General'!$D57 -> 98.14841216 | G22: =IF('DNSP Inputs General'!$B57='DNSP Inputs General'!$A$41,G$6,IF('DNSP Inputs General'!$B57='DNSP Inputs General'!$A$42,G$7,G$8))*'DNSP Inputs General'!$D57 -> 108.4255753 | H22: =IF('DNSP Inputs General'!$B57='DNSP Inputs General'!$A$41,H$6,IF('DNSP Inputs General'!$B57='DNSP Inputs General'!$A$42,H$7,H$8))*'DNSP Inputs General'!$D57 -> 114.9889869 | J22: =IF('DNSP Inputs General'!$B57='DNSP Inputs General'!$A$41,J$6,IF('DNSP Inputs General'!$B57='DNSP Inputs General'!$A$42,J$7,J$8))*'DNSP Inputs General'!$D57 -> 52.7901651 | K22: =IF('DNSP Inputs General'!$B57='DNSP Inputs General'!$A$41,K$6,IF('DNSP Inputs General'!$B57='DNSP Inputs General'!$A$42,K$7,K$8))*'DNSP Inputs General'!$D57 -> 57.1789972 | L22: =IF('DNSP Inputs General'!$B57='DNSP Inputs General'!$A$41,L$6,IF('DNSP Inputs General'!$B57='DNSP Inputs General'!$A$42,L$7,L$8))*'DNSP Inputs General'!$D57 -> 56.0567763 | M22: =IF('DNSP Inputs General'!$B57='DNSP Inputs General'!$A$41,M$6,IF('DNSP Inputs General'!$B57='DNSP Inputs General'!$A$42,M$7,M$8))*'DNSP Inputs General'!$D57 -> 63.51618407 | N22: =IF('DNSP Inputs General'!$B57='DNSP Inputs General'!$A$41,N$6,IF('DNSP Inputs General'!$B57='DNSP Inputs General'!$A$42,N$7,N$8))*'DNSP Inputs General'!$D57 -> 66.6779087 | P22: =IF('DNSP Inputs General'!$B57='DNSP Inputs General'!$A$41,P$6,IF('DNSP Inputs General'!$B57='DNSP Inputs General'!$A$42,P$7,P$8))*'DNSP Inputs General'!$D57 -> 36.65599464 | Q22: =IF('DNSP Inputs General'!$B57='DNSP Inputs General'!$A$41,Q$6,IF('DNSP Inputs General'!$B57='DNSP Inputs General'!$A$42,Q$7,Q$8))*'DNSP Inputs General'!$D57 -> 37.03715456 | R22: =IF('DNSP Inputs General'!$B57='DNSP Inputs General'!$A$41,R$6,IF('DNSP Inputs General'!$B57='DNSP Inputs General'!$A$42,R$7,R$8))*'DNSP Inputs General'!$D57 -> 42.09163586 | S22: =IF('DNSP Inputs General'!$B57='DNSP Inputs General'!$A$41,S$6,IF('DNSP Inputs General'!$B57='DNSP Inputs General'!$A$42,S$7,S$8))*'DNSP Inputs General'!$D57 -> 44.90939124 | T22: =IF('DNSP Inputs General'!$B57='DNSP Inputs General'!$A$41,T$6,IF('DNSP Inputs General'!$B57='DNSP Inputs General'!$A$42,T$7,T$8))*'DNSP Inputs General'!$D57 -> 48.31107824 | V22: 1.421085472e-14 | W22: 0 | X22: 1.421085472e-14 | Y22: 2.131628207e-14 | Z22: 2.842170943e-14
A23: ='DNSP Inputs General'!A58 -> Metal Halide 400 watt | C23: ='DNSP Inputs General'!E58 -> 134.51 | D23: =IF('DNSP Inputs General'!$B58='DNSP Inputs General'!$A$41,D$6,IF('DNSP Inputs General'!$B58='DNSP Inputs General'!$A$42,D$7,D$8))*'DNSP Inputs General'!$D58 -> 89.44615974 | E23: =IF('DNSP Inputs General'!$B58='DNSP Inputs General'!$A$41,E$6,IF('DNSP Inputs General'!$B58='DNSP Inputs General'!$A$42,E$7,E$8))*'DNSP Inputs General'!$D58 -> 94.21615177 | F23: =IF('DNSP Inputs General'!$B58='DNSP Inputs General'!$A$41,F$6,IF('DNSP Inputs General'!$B58='DNSP Inputs General'!$A$42,F$7,F$8))*'DNSP Inputs General'!$D58 -> 98.14841216 | G23: =IF('DNSP Inputs General'!$B58='DNSP Inputs General'!$A$41,G$6,IF('DNSP Inputs General'!$B58='DNSP Inputs General'!$A$42,G$7,G$8))*'DNSP Inputs General'!$D58 -> 108.4255753 | H23: =IF('DNSP Inputs General'!$B58='DNSP Inputs General'!$A$41,H$6,IF('DNSP Inputs General'!$B58='DNSP Inputs General'!$A$42,H$7,H$8))*'DNSP Inputs General'!$D58 -> 114.9889869 | J23: =IF('DNSP Inputs General'!$B58='DNSP Inputs General'!$A$41,J$6,IF('DNSP Inputs General'!$B58='DNSP Inputs General'!$A$42,J$7,J$8))*'DNSP Inputs General'!$D58 -> 52.7901651 | K23: =IF('DNSP Inputs General'!$B58='DNSP Inputs General'!$A$41,K$6,IF('DNSP Inputs General'!$B58='DNSP Inputs General'!$A$42,K$7,K$8))*'DNSP Inputs General'!$D58 -> 57.1789972 | L23: =IF('DNSP Inputs General'!$B58='DNSP Inputs General'!$A$41,L$6,IF('DNSP Inputs General'!$B58='DNSP Inputs General'!$A$42,L$7,L$8))*'DNSP Inputs General'!$D58 -> 56.0567763 | M23: =IF('DNSP Inputs General'!$B58='DNSP Inputs General'!$A$41,M$6,IF('DNSP Inputs General'!$B58='DNSP Inputs General'!$A$42,M$7,M$8))*'DNSP Inputs General'!$D58 -> 63.51618407 | N23: =IF('DNSP Inputs General'!$B58='DNSP Inputs General'!$A$41,N$6,IF('DNSP Inputs General'!$B58='DNSP Inputs General'!$A$42,N$7,N$8))*'DNSP Inputs General'!$D58 -> 66.6779087 | P23: =IF('DNSP Inputs General'!$B58='DNSP Inputs General'!$A$41,P$6,IF('DNSP Inputs General'!$B58='DNSP Inputs General'!$A$42,P$7,P$8))*'DNSP Inputs General'!$D58 -> 36.65599464 | Q23: =IF('DNSP Inputs General'!$B58='DNSP Inputs General'!$A$41,Q$6,IF('DNSP Inputs General'!$B58='DNSP Inputs General'!$A$42,Q$7,Q$8))*'DNSP Inputs General'!$D58 -> 37.03715456 | R23: =IF('DNSP Inputs General'!$B58='DNSP Inputs General'!$A$41,R$6,IF('DNSP Inputs General'!$B58='DNSP Inputs General'!$A$42,R$7,R$8))*'DNSP Inputs General'!$D58 -> 42.09163586 | S23: =IF('DNSP Inputs General'!$B58='DNSP Inputs General'!$A$41,S$6,IF('DNSP Inputs General'!$B58='DNSP Inputs General'!$A$42,S$7,S$8))*'DNSP Inputs General'!$D58 -> 44.90939124 | T23: =IF('DNSP Inputs General'!$B58='DNSP Inputs General'!$A$41,T$6,IF('DNSP Inputs General'!$B58='DNSP Inputs General'!$A$42,T$7,T$8))*'DNSP Inputs General'!$D58 -> 48.31107824 | V23: 1.421085472e-14 | W23: 0 | X23: 1.421085472e-14 | Y23: 2.131628207e-14 | Z23: 2.842170943e-14
A30: ='DNSP Inputs General'!A$67 -> Energy Efficient Lights
A31: ='DNSP Inputs General'!A68 -> T5 2X14W | C31: ='DNSP Inputs General'!E68 -> 29.22 | D31: ='Charges Summary'!D$89 -> 35.97587553 | E31: ='Charges Summary'!E$89 -> 33.35914123 | F31: ='Charges Summary'!F$89 -> 32.6536504 | G31: ='Charges Summary'!G$89 -> 31.76776117 | H31: ='Charges Summary'!H$89 -> 31.39495172 | J31: =SUM('Charges Summary'!D83,'Charges Summary'!D8) -> 29.5488373 | K31: =SUM('Charges Summary'!E83,'Charges Summary'!E8) -> 26.84983842 | L31: =SUM('Charges Summary'!F83,'Charges Summary'!F8) -> 24.9069451 | M31: =SUM('Charges Summary'!G83,'Charges Summary'!G8) -> 23.30769785 | N31: =SUM('Charges Summary'!H83,'Charges Summary'!H8) -> 22.05095661 | P31: =SUM('Charges Summary'!D85,'Charges Summary'!D11) -> 6.427038227 | Q31: =SUM('Charges Summary'!E85,'Charges Summary'!E11) -> 6.509302806 | R31: =SUM('Charges Summary'!F85,'Charges Summary'!F11) -> 7.746705297 | S31: =SUM('Charges Summary'!G85,'Charges Summary'!G11) -> 8.460063317 | T31: =SUM('Charges Summary'!H85,'Charges Summary'!H11) -> 9.343995116 | V31: =ABS(D31-J31-P31) -> 8.881784197e-16 | W31: =ABS(E31-K31-Q31) -> 0 | X31: =ABS(F31-L31-R31) -> 2.664535259e-15 | Y31: =ABS(G31-M31-S31) -> 1.776356839e-15 | Z31: =ABS(H31-N31-T31) -> 1.776356839e-15
A32: ='DNSP Inputs General'!A69 -> Twin 24w Fluorescent | C32: ='DNSP Inputs General'!E69 -> 29.22 | D32: =D$31*'DNSP Inputs General'!$D69 -> 35.97587553 | E32: =E$31*'DNSP Inputs General'!$D69 -> 33.35914123 | F32: =F$31*'DNSP Inputs General'!$D69 -> 32.6536504 | G32: =G$31*'DNSP Inputs General'!$D69 -> 31.76776117 | H32: =H$31*'DNSP Inputs General'!$D69 -> 31.39495172 | J32: =J$31*'DNSP Inputs General'!$D69 -> 29.5488373 | K32: =K$31*'DNSP Inputs General'!$D69 -> 26.84983842 | L32: =L$31*'DNSP Inputs General'!$D69 -> 24.9069451 | M32: =M$31*'DNSP Inputs General'!$D69 -> 23.30769785 | N32: =N$31*'DNSP Inputs General'!$D69 -> 22.05095661 | P32: =P$31*'DNSP Inputs General'!$D69 -> 6.427038227 | Q32: =Q$31*'DNSP Inputs General'!$D69 -> 6.509302806 | R32: =R$31*'DNSP Inputs General'!$D69 -> 7.746705297 | S32: =S$31*'DNSP Inputs General'!$D69 -> 8.460063317 | T32: =T$31*'DNSP Inputs General'!$D69 -> 9.343995116 | V32: 8.881784197e-16 | W32: 0 | X32: 2.664535259e-15 | Y32: 1.776356839e-15 | Z32: 1.776356839e-15
A33: ='DNSP Inputs General'!A70 -> 32W Compact Fluorescent | C33: ='DNSP Inputs General'!E70 -> 29.22 | D33: =D$31*'DNSP Inputs General'!$D70 -> 35.97587553 | E33: =E$31*'DNSP Inputs General'!$D70 -> 33.35914123 | F33: =F$31*'DNSP Inputs General'!$D70 -> 32.6536504 | G33: =G$31*'DNSP Inputs General'!$D70 -> 31.76776117 | H33: =H$31*'DNSP Inputs General'!$D70 -> 31.39495172 | J33: =J$31*'DNSP Inputs General'!$D70 -> 29.5488373 | K33: =K$31*'DNSP Inputs General'!$D70 -> 26.84983842 | L33: =L$31*'DNSP Inputs General'!$D70 -> 24.9069451 | M33: =M$31*'DNSP Inputs General'!$D70 -> 23.30769785 | N33: =N$31*'DNSP Inputs General'!$D70 -> 22.05095661 | P33: =P$31*'DNSP Inputs General'!$D70 -> 6.427038227 | Q33: =Q$31*'DNSP Inputs General'!$D70 -> 6.509302806 | R33: =R$31*'DNSP Inputs General'!$D70 -> 7.746705297 | S33: =S$31*'DNSP Inputs General'!$D70 -> 8.460063317 | T33: =T$31*'DNSP Inputs General'!$D70 -> 9.343995116 | V33: 8.881784197e-16 | W33: 0 | X33: 2.664535259e-15 | Y33: 1.776356839e-15 | Z33: 1.776356839e-15
A34: ='DNSP Inputs General'!A71 -> 42w Compact Fluorescent | C34: ='DNSP Inputs General'!E71 -> 29.22 | D34: =D$31*'DNSP Inputs General'!$D71 -> 35.97587553 | E34: =E$31*'DNSP Inputs General'!$D71 -> 33.35914123 | F34: =F$31*'DNSP Inputs General'!$D71 -> 32.6536504 | G34: =G$31*'DNSP Inputs General'!$D71 -> 31.76776117 | H34: =H$31*'DNSP Inputs General'!$D71 -> 31.39495172 | J34: =J$31*'DNSP Inputs General'!$D71 -> 29.5488373 | K34: =K$31*'DNSP Inputs General'!$D71 -> 26.84983842 | L34: =L$31*'DNSP Inputs General'!$D71 -> 24.9069451 | M34: =M$31*'DNSP Inputs General'!$D71 -> 23.30769785 | N34: =N$31*'DNSP Inputs General'!$D71 -> 22.05095661 | P34: =P$31*'DNSP Inputs General'!$D71 -> 6.427038227 | Q34: =Q$31*'DNSP Inputs General'!$D71 -> 6.509302806 | R34: =R$31*'DNSP Inputs General'!$D71 -> 7.746705297 | S34: =S$31*'DNSP Inputs General'!$D71 -> 8.460063317 | T34: =T$31*'DNSP Inputs General'!$D71 -> 9.343995116 | V34: 8.881784197e-16 | W34: 0 | X34: 2.664535259e-15 | Y34: 1.776356839e-15 | Z34: 1.776356839e-15

Sheet Cashflow Summary
A1: ='DNSP Inputs O & M'!$A$3 -> United Energy | E1: Check | F1: =SUM(C129,C135,C158) -> 1.513399184e-08
C2: ='DNSP Inputs General'!J$2 -> 2015 | D2: ='DNSP Inputs General'!K$2 -> 2016 | E2: ='DNSP Inputs General'!L$2 -> 2017 | F2: ='DNSP Inputs General'!M$2 -> 2018 | G2: ='DNSP Inputs General'!N$2 -> 2019 | H2: ='DNSP Inputs General'!O$2 -> 2020 | J2: =C2 -> 2015 | K2: =D2 -> 2016 | L2: 2017 | M2: 2018 | N2: 2019 | O2: 2020
A4: Public Lighting - Revenue | C4: Revenue - Nominal | J4: Revenue - Real 2015 $
C5: =C$2 -> 2015 | D5: =D$2 -> 2016 | E5: 2017 | F5: 2018 | G5: 2019 | H5: 2020 | J5: =J$2 -> 2015 | K5: 2016 | L5: 2017 | M5: 2018 | N5: 2019 | O5: 2020
A6: ='DNSP Inputs General'!A$40 -> Existing Lights
A7: ='DNSP Inputs General'!A$41 -> Mercury Vapour 80 watt | C7: =IF('PL Tariffs'!C6=0,"",'DNSP Inputs General'!J41*'PL Tariffs'!C6) -> 3560679.018 | D7: ='DNSP Inputs General'!K41*'PL Tariffs'!D6 -> 2598651.315 | E7: ='DNSP Inputs General'!L41*'PL Tariffs'!E6 -> 2497071.111 | F7: ='DNSP Inputs General'!M41*'PL Tariffs'!F6 -> 2591442.791 | G7: ='DNSP Inputs General'!N41*'PL Tariffs'!G6 -> 2566487.611 | H7: ='DNSP Inputs General'!O41*'PL Tariffs'!H6 -> 2541804.692 | J7: =C7 -> 3560679.018 | K7: =D7/'Charges Summary'!D$4 -> 2560152.777 | L7: =E7/'Charges Summary'!E$4 -> 2435159.553 | M7: =F7/'Charges Summary'!F$4 -> 2479250.112 | N7: =G7/'Charges Summary'!G$4 -> 2405398.664 | O7: =H7/'Charges Summary'!H$4 -> 2328179.531
A8: ='DNSP Inputs General'!A$42 -> Sodium High Pressure 150 watt | C8: =IF('PL Tariffs'!C7=0,"",'DNSP Inputs General'!J42*'PL Tariffs'!C7) -> 2325911.82 | D8: ='DNSP Inputs General'!K42*'PL Tariffs'!D7 -> 1545293.947 | E8: ='DNSP Inputs General'!L42*'PL Tariffs'!E7 -> 1634802.369 | F8: ='DNSP Inputs General'!M42*'PL Tariffs'!F7 -> 1828097.29 | G8: ='DNSP Inputs General'!N42*'PL Tariffs'!G7 -> 1897861.807 | H8: ='DNSP Inputs General'!O42*'PL Tariffs'!H7 -> 2021064.633 | J8: 2325911.82 | K8: =D8/'Charges Summary'!D$4 -> 1522400.703 | L8: =E8/'Charges Summary'!E$4 -> 1594269.618 | M8: =F8/'Charges Summary'!F$4 -> 1748952.524 | N8: =G8/'Charges Summary'!G$4 -> 1778740.032 | O8: =H8/'Charges Summary'!H$4 -> 1851204.904
A9: ='DNSP Inputs General'!A$43 -> Sodium High Pressure 250 watt | C9: =IF('PL Tariffs'!C8=0,"",'DNSP Inputs General'!J43*'PL Tariffs'!C8) -> 990422.3241 | D9: ='DNSP Inputs General'!K43*'PL Tariffs'!D8 -> 661165.8397 | E9: ='DNSP Inputs General'!L43*'PL Tariffs'!E8 -> 699138.5468 | F9: ='DNSP Inputs General'!M43*'PL Tariffs'!F8 -> 731138.7674 | G9: ='DNSP Inputs General'!N43*'PL Tariffs'!G8 -> 810838.4781 | H9: ='DNSP Inputs General'!O43*'PL Tariffs'!H8 -> 863245.7869 | J9: 990422.3241 | K9: =D9/'Charges Summary'!D$4 -> 651370.7902 | L9: =E9/'Charges Summary'!E$4 -> 681804.3362 | M9: =F9/'Charges Summary'!F$4 -> 699485.197 | N9: =G9/'Charges Summary'!G$4 -> 759945.142 | O9: =H9/'Charges Summary'!H$4 -> 790694.5715
A10: ='DNSP Inputs General'!A$44 -> Fluorescent 2x20 watt | C10: =IF('PL Tariffs'!C9=0,"",'DNSP Inputs General'!J44*'PL Tariffs'!C9) -> 5182.58 | D10: ='DNSP Inputs General'!K44*'PL Tariffs'!D9 -> 4140.030535 | E10: ='DNSP Inputs General'!L44*'PL Tariffs'!E9 -> 4365.942393 | F10: ='DNSP Inputs General'!M44*'PL Tariffs'!F9 -> 4988.564465 | G10: ='DNSP Inputs General'!N44*'PL Tariffs'!G9 -> 5460.516768 | H10: ='DNSP Inputs General'!O44*'PL Tariffs'!H9 -> 6004.906462 | J10: 5182.58 | K10: =D10/'Charges Summary'!D$4 -> 4078.696749 | L10: =E10/'Charges Summary'!E$4 -> 4257.694657 | M10: =F10/'Charges Summary'!F$4 -> 4772.591953 | N10: =G10/'Charges Summary'!G$4 -> 5117.780301 | O10: =H10/'Charges Summary'!H$4 -> 5500.226024
A11: ='DNSP Inputs General'!A$45 -> Fluorescent 3x20 watt | C11: =IF('PL Tariffs'!C10=0,"",'DNSP Inputs General'!J45*'PL Tariffs'!C10) -> 246.57 | D11: ='DNSP Inputs General'!K45*'PL Tariffs'!D10 -> 194.0639313 | E11: ='DNSP Inputs General'!L45*'PL Tariffs'!E10 -> 198.4519269 | F11: ='DNSP Inputs General'!M45*'PL Tariffs'!F10 -> 220.0837264 | G11: ='DNSP Inputs General'!N45*'PL Tariffs'!G10 -> 234.0221472 | H11: ='DNSP Inputs General'!O45*'PL Tariffs'!H10 -> 250.2044359 | J11: 246.57 | K11: =D11/'Charges Summary'!D$4 -> 191.1889101 | L11: =E11/'Charges Summary'!E$4 -> 193.5315753 | M11: =F11/'Charges Summary'!F$4 -> 210.5555273 | N11: =G11/'Charges Summary'!G$4 -> 219.3334415 | O11: =H11/'Charges Summary'!H$4 -> 229.1760843
A12: ='DNSP Inputs General'!A$46 -> Mercury Vapour 50 watt | C12: =IF('PL Tariffs'!C11=0,"",'DNSP Inputs General'!J46*'PL Tariffs'!C11) -> 3244.909085 | D12: ='DNSP Inputs General'!K46*'PL Tariffs'!D11 -> 2276.399615 | E12: ='DNSP Inputs General'!L46*'PL Tariffs'!E11 -> 2087.77265 | F12: ='DNSP Inputs General'!M46*'PL Tariffs'!F11 -> 2049.075294 | G12: ='DNSP Inputs General'!N46*'PL Tariffs'!G11 -> 1895.714286 | H12: ='DNSP Inputs General'!O46*'PL Tariffs'!H11 -> 1724.088095 | J12: 3244.909085 | K12: =D12/'Charges Summary'!D$4 -> 2242.675177 | L12: =E12/'Charges Summary'!E$4 -> 2036.009103 | M12: =F12/'Charges Summary'!F$4 -> 1960.363613 | N12: =G12/'Charges Summary'!G$4 -> 1776.727303 | O12: =H12/'Charges Summary'!H$4 -> 1579.187664
A13: ='DNSP Inputs General'!A$47 -> Mercury Vapour 125 watt | C13: =IF('PL Tariffs'!C12=0,"",'DNSP Inputs General'!J47*'PL Tariffs'!C12) -> 97399.68187 | D13: ='DNSP Inputs General'!K47*'PL Tariffs'!D12 -> 68076.24349 | E13: ='DNSP Inputs General'!L47*'PL Tariffs'!E12 -> 62150.45719 | F13: ='DNSP Inputs General'!M47*'PL Tariffs'!F12 -> 60646.24982 | G13: ='DNSP Inputs General'!N47*'PL Tariffs'!G12 -> 55684.02914 | H13: ='DNSP Inputs General'!O47*'PL Tariffs'!H12 -> 50122.68686 | J13: 97399.68187 | K13: =D13/'Charges Summary'!D$4 -> 67067.70655 | L13: =E13/'Charges Summary'!E$4 -> 60609.51925 | M13: =F13/'Charges Summary'!F$4 -> 58020.66023 | N13: =G13/'Charges Summary'!G$4 -> 52188.94832 | O13: =H13/'Charges Summary'!H$4 -> 45910.14171
A14: ='DNSP Inputs General'!A$48 -> Mercury Vapour 250 watt | C14: =IF('PL Tariffs'!C13=0,"",'DNSP Inputs General'!J48*'PL Tariffs'!C13) -> 10080.48862 | D14: ='DNSP Inputs General'!K48*'PL Tariffs'!D13 -> 5966.526785 | E14: ='DNSP Inputs General'!L48*'PL Tariffs'!E13 -> 6284.710206 | F14: ='DNSP Inputs General'!M48*'PL Tariffs'!F13 -> 6547.012546 | G14: ='DNSP Inputs General'!N48*'PL Tariffs'!G13 -> 7232.553092 | H14: ='DNSP Inputs General'!O48*'PL Tariffs'!H13 -> 7670.366984 | J14: 10080.48862 | K14: =D14/'Charges Summary'!D$4 -> 5878.133795 | L14: =E14/'Charges Summary'!E$4 -> 6128.889174 | M14: =F14/'Charges Summary'!F$4 -> 6263.569332 | N14: =G14/'Charges Summary'!G$4 -> 6778.592451 | O14: =H14/'Charges Summary'!H$4 -> 7025.71345
A15: ='DNSP Inputs General'!A$49 -> Mercury Vapour 400 watt | C15: =IF('PL Tariffs'!C14=0,"",'DNSP Inputs General'!J49*'PL Tariffs'!C14) -> 753.3 | D15: ='DNSP Inputs General'!K49*'PL Tariffs'!D14 -> 500.8984946 | E15: ='DNSP Inputs General'!L49*'PL Tariffs'!E14 -> 527.6104499 | F15: ='DNSP Inputs General'!M49*'PL Tariffs'!F14 -> 549.6311081 | G15: ='DNSP Inputs General'!N49*'PL Tariffs'!G14 -> 607.1832217 | H15: ='DNSP Inputs General'!O49*'PL Tariffs'!H14 -> 643.9383269 | J15: 753.3 | K15: =D15/'Charges Summary'!D$4 -> 493.4777761 | L15: =E15/'Charges Summary'!E$4 -> 514.5290504 | M15: =F15/'Charges Summary'!F$4 -> 525.8356431 | N15: =G15/'Charges Summary'!G$4 -> 569.0725738 | O15: =H15/'Charges Summary'!H$4 -> 589.8187367
A16: ='DNSP Inputs General'!A$50 -> Mercury Vapour 700 watt | C16: =IF('PL Tariffs'!C15=0,"",'DNSP Inputs General'!J50*'PL Tariffs'!C15) -> 456.9089774 | D16: ='DNSP Inputs General'!K50*'PL Tariffs'!D15 -> 333.9323297 | E16: ='DNSP Inputs General'!L50*'PL Tariffs'!E15 -> 320.7179627 | F16: ='DNSP Inputs General'!M50*'PL Tariffs'!F15 -> 366.4207387 | G16: ='DNSP Inputs General'!N50*'PL Tariffs'!G15 -> 369.0877728 | H16: ='DNSP Inputs General'!O50*'PL Tariffs'!H15 -> 429.2922179 | J16: 456.9089774 | K16: =D16/'Charges Summary'!D$4 -> 328.9851841 | L16: =E16/'Charges Summary'!E$4 -> 312.7661872 | M16: =F16/'Charges Summary'!F$4 -> 350.5570954 | N16: =G16/'Charges Summary'!G$4 -> 345.9214966 | O16: =H16/'Charges Summary'!H$4 -> 393.2124911
A17: ='DNSP Inputs General'!A$51 -> Sodium High Pressure 70 watt | C17: =IF('PL Tariffs'!C16=0,"",'DNSP Inputs General'!J51*'PL Tariffs'!C16) -> 48189.75885 | D17: ='DNSP Inputs General'!K51*'PL Tariffs'!D16 -> 38010.07531 | E17: ='DNSP Inputs General'!L51*'PL Tariffs'!E16 -> 39603.4802 | F17: ='DNSP Inputs General'!M51*'PL Tariffs'!F16 -> 44733.87247 | G17: ='DNSP Inputs General'!N51*'PL Tariffs'!G16 -> 48433.68954 | H17: ='DNSP Inputs General'!O51*'PL Tariffs'!H16 -> 52708.93995 | J17: 48189.75885 | K17: =D17/'Charges Summary'!D$4 -> 37446.96308 | L17: =E17/'Charges Summary'!E$4 -> 38621.56457 | M17: =F17/'Charges Summary'!F$4 -> 42797.18569 | N17: =G17/'Charges Summary'!G$4 -> 45393.68576 | O17: =H17/'Charges Summary'!H$4 -> 48279.03399
A18: ='DNSP Inputs General'!A$52 -> Sodium High Pressure 100 watt | C18: =IF('PL Tariffs'!C17=0,"",'DNSP Inputs General'!J52*'PL Tariffs'!C17) -> 98601.95818 | D18: ='DNSP Inputs General'!K52*'PL Tariffs'!D17 -> 65695.7856 | E18: ='DNSP Inputs General'!L52*'PL Tariffs'!E17 -> 69695.5047 | F18: ='DNSP Inputs General'!M52*'PL Tariffs'!F17 -> 78151.72398 | G18: ='DNSP Inputs General'!N52*'PL Tariffs'!G17 -> 81356.68823 | H18: ='DNSP Inputs General'!O52*'PL Tariffs'!H17 -> 86873.09626 | J18: 98601.95818 | K18: =D18/'Charges Summary'!D$4 -> 64722.5147 | L18: =E18/'Charges Summary'!E$4 -> 67967.49733 | M18: =F18/'Charges Summary'!F$4 -> 74768.2608 | N18: =G18/'Charges Summary'!G$4 -> 76250.22943 | O18: =H18/'Charges Summary'!H$4 -> 79571.87474
A19: ='DNSP Inputs General'!A$53 -> Sodium High Pressure 400 watt | C19: =IF('PL Tariffs'!C18=0,"",'DNSP Inputs General'!J53*'PL Tariffs'!C18) -> 41976.39662 | D19: ='DNSP Inputs General'!K53*'PL Tariffs'!D18 -> 28020.48479 | E19: ='DNSP Inputs General'!L53*'PL Tariffs'!E18 -> 29629.30723 | F19: ='DNSP Inputs General'!M53*'PL Tariffs'!F18 -> 30984.97457 | G19: ='DNSP Inputs General'!N53*'PL Tariffs'!G18 -> 34362.02581 | H19: ='DNSP Inputs General'!O53*'PL Tariffs'!H18 -> 36582.38576 | J19: 41976.39662 | K19: =D19/'Charges Summary'!D$4 -> 27605.3665 | L19: =E19/'Charges Summary'!E$4 -> 28894.68795 | M19: =F19/'Charges Summary'!F$4 -> 29643.52597 | N19: =G19/'Charges Summary'!G$4 -> 32205.24838 | O19: =H19/'Charges Summary'!H$4 -> 33507.83087
A20: ='DNSP Inputs General'!A$54 -> Metal Halide 70 watt | C20: =IF('PL Tariffs'!C19=0,"",'DNSP Inputs General'!J54*'PL Tariffs'!C19) -> 1187.28 | D20: ='DNSP Inputs General'!K54*'PL Tariffs'!D19 -> 785.7453506 | E20: ='DNSP Inputs General'!L54*'PL Tariffs'!E19 -> 828.0313814 | F20: ='DNSP Inputs General'!M54*'PL Tariffs'!F19 -> 922.3636824 | G20: ='DNSP Inputs General'!N54*'PL Tariffs'!G19 -> 953.8528803 | H20: ='DNSP Inputs General'!O54*'PL Tariffs'!H19 -> 1011.86228 | J20: 1187.28 | K20: =D20/'Charges Summary'!D$4 -> 774.1046787 | L20: =E20/'Charges Summary'!E$4 -> 807.5014444 | M20: =F20/'Charges Summary'!F$4 -> 882.4313125 | N20: =G20/'Charges Summary'!G$4 -> 893.9830584 | O20: =H20/'Charges Summary'!H$4 -> 926.8206391
A21: ='DNSP Inputs General'!A$55 -> Metal Halide 100 watt | C21: =IF('PL Tariffs'!C20=0,"",'DNSP Inputs General'!J55*'PL Tariffs'!C20) -> 12532.4 | D21: ='DNSP Inputs General'!K55*'PL Tariffs'!D20 -> 8293.9787 | E21: ='DNSP Inputs General'!L55*'PL Tariffs'!E20 -> 8740.331248 | F21: ='DNSP Inputs General'!M55*'PL Tariffs'!F20 -> 9736.061092 | G21: ='DNSP Inputs General'!N55*'PL Tariffs'!G20 -> 10068.44707 | H21: ='DNSP Inputs General'!O55*'PL Tariffs'!H20 -> 10680.76851 | J21: 12532.4 | K21: =D21/'Charges Summary'!D$4 -> 8171.104942 | L21: =E21/'Charges Summary'!E$4 -> 8523.626357 | M21: =F21/'Charges Summary'!F$4 -> 9314.552743 | N21: =G21/'Charges Summary'!G$4 -> 9436.487839 | O21: =H21/'Charges Summary'!H$4 -> 9783.106746
A22: ='DNSP Inputs General'!A$56 -> Metal Halide 150 watt | C22: =IF('PL Tariffs'!C21=0,"",'DNSP Inputs General'!J56*'PL Tariffs'!C21) -> 1978.8 | D22: ='DNSP Inputs General'!K56*'PL Tariffs'!D21 -> 1309.575584 | E22: ='DNSP Inputs General'!L56*'PL Tariffs'!E21 -> 1380.052302 | F22: ='DNSP Inputs General'!M56*'PL Tariffs'!F21 -> 1537.272804 | G22: ='DNSP Inputs General'!N56*'PL Tariffs'!G21 -> 1589.754801 | H22: ='DNSP Inputs General'!O56*'PL Tariffs'!H21 -> 1686.437133 | J22: 1978.8 | K22: =D22/'Charges Summary'!D$4 -> 1290.174465 | L22: =E22/'Charges Summary'!E$4 -> 1345.835741 | M22: =F22/'Charges Summary'!F$4 -> 1470.718854 | N22: =G22/'Charges Summary'!G$4 -> 1489.971764 | O22: =H22/'Charges Summary'!H$4 -> 1544.701065
A23: ='DNSP Inputs General'!A$57 -> Metal Halide 250 watt | C23: =IF('PL Tariffs'!C22=0,"",'DNSP Inputs General'!J57*'PL Tariffs'!C22) -> 15872.18 | D23: ='DNSP Inputs General'!K57*'PL Tariffs'!D22 -> 10554.64685 | E23: ='DNSP Inputs General'!L57*'PL Tariffs'!E22 -> 11117.50591 | F23: ='DNSP Inputs General'!M57*'PL Tariffs'!F22 -> 11581.51264 | G23: ='DNSP Inputs General'!N57*'PL Tariffs'!G22 -> 12794.21789 | H23: ='DNSP Inputs General'!O57*'PL Tariffs'!H22 -> 13568.70046 | J23: 15872.18 | K23: =D23/'Charges Summary'!D$4 -> 10398.28171 | L23: =E23/'Charges Summary'!E$4 -> 10841.86213 | M23: =F23/'Charges Summary'!F$4 -> 11080.10819 | N23: =G23/'Charges Summary'!G$4 -> 11991.17209 | O23: =H23/'Charges Summary'!H$4 -> 12428.32338
A24: ='DNSP Inputs General'!A$58 -> Metal Halide 400 watt | C24: =IF('PL Tariffs'!C23=0,"",'DNSP Inputs General'!J58*'PL Tariffs'!C23) -> 14796.1 | D24: ='DNSP Inputs General'!K58*'PL Tariffs'!D23 -> 9839.077572 | E24: ='DNSP Inputs General'!L58*'PL Tariffs'!E23 -> 10363.77669 | F24: ='DNSP Inputs General'!M58*'PL Tariffs'!F23 -> 10796.32534 | G24: ='DNSP Inputs General'!N58*'PL Tariffs'!G23 -> 11926.81328 | H24: ='DNSP Inputs General'!O58*'PL Tariffs'!H23 -> 12648.78856 | J24: 14796.1 | K24: =D24/'Charges Summary'!D$4 -> 9693.31346 | L24: =E24/'Charges Summary'!E$4 -> 10106.82063 | M24: =F24/'Charges Summary'!F$4 -> 10328.91442 | N24: =G24/'Charges Summary'!G$4 -> 11178.21127 | O24: =H24/'Charges Summary'!H$4 -> 11585.72518
A31: ='DNSP Inputs General'!A$67 -> Energy Efficient Lights
A32: ='DNSP Inputs General'!A$68 -> T5 2X14W | C32: =IF('PL Tariffs'!C31=0,"",'DNSP Inputs General'!J68*'PL Tariffs'!C31) -> 733678.4161 | D32: ='DNSP Inputs General'!K68*'PL Tariffs'!D31 -> 1020529.591 | E32: ='DNSP Inputs General'!L68*'PL Tariffs'!E31 -> 1054993.915 | F32: ='DNSP Inputs General'!M68*'PL Tariffs'!F31 -> 1139077.213 | G32: ='DNSP Inputs General'!N68*'PL Tariffs'!G31 -> 1211682.405 | H32: ='DNSP Inputs General'!O68*'PL Tariffs'!H31 -> 1299756.238 | J32: =C32 -> 733678.4161 | K32: =D32/'Charges Summary'!D$4 -> 1005410.634 | L32: =E32/'Charges Summary'!E$4 -> 1028836.743 | M32: =F32/'Charges Summary'!F$4 -> 1089762.552 | N32: =G32/'Charges Summary'!G$4 -> 1135629.576 | O32: =H32/'Charges Summary'!H$4 -> 1190518.642
A33: ='DNSP Inputs General'!A$69 -> Twin 24w Fluorescent | C33: =IF('PL Tariffs'!C32=0,"",'DNSP Inputs General'!J69*'PL Tariffs'!C32) -> 6930.169565 | D33: ='DNSP Inputs General'!K69*'PL Tariffs'!D32 -> 8923.160099 | E33: ='DNSP Inputs General'!L69*'PL Tariffs'!E32 -> 8636.39522 | F33: ='DNSP Inputs General'!M69*'PL Tariffs'!F32 -> 8807.515139 | G33: ='DNSP Inputs General'!N69*'PL Tariffs'!G32 -> 8915.601749 | H33: ='DNSP Inputs General'!O69*'PL Tariffs'!H32 -> 9153.124646 | J33: =C33 -> 6930.169565 | K33: =D33/'Charges Summary'!D$4 -> 8790.965135 | L33: =E33/'Charges Summary'!E$4 -> 8422.267285 | M33: =F33/'Charges Summary'!F$4 -> 8426.206812 | N33: =G33/'Charges Summary'!G$4 -> 8356.002361 | O33: =H33/'Charges Summary'!H$4 -> 8383.85322
A34: ='DNSP Inputs General'!A$70 -> 32W Compact Fluorescent | C34: =IF('PL Tariffs'!C33=0,"",'DNSP Inputs General'!J70*'PL Tariffs'!C33) -> 46058.02959 | D34: ='DNSP Inputs General'!K70*'PL Tariffs'!D33 -> 59303.47995 | E34: ='DNSP Inputs General'!L70*'PL Tariffs'!E33 -> 57397.63549 | F34: ='DNSP Inputs General'!M70*'PL Tariffs'!F33 -> 58534.9015 | G34: ='DNSP Inputs General'!N70*'PL Tariffs'!G33 -> 59253.24703 | H34: ='DNSP Inputs General'!O70*'PL Tariffs'!H33 -> 60831.8284 | J34: 46058.02959 | K34: =D34/'Charges Summary'!D$4 -> 58424.90988 | L34: =E34/'Charges Summary'!E$4 -> 55974.53744 | M34: =F34/'Charges Summary'!F$4 -> 56000.71961 | N34: =G34/'Charges Summary'!G$4 -> 55534.13958 | O34: =H34/'Charges Summary'!H$4 -> 55719.23689
A35: ='DNSP Inputs General'!A$71 -> 42w Compact Fluorescent | C35: =IF('PL Tariffs'!C34=0,"",'DNSP Inputs General'!J71*'PL Tariffs'!C34) -> 9291.333531 | D35: ='DNSP Inputs General'!K71*'PL Tariffs'!D34 -> 11963.35181 | E35: ='DNSP Inputs General'!L71*'PL Tariffs'!E34 -> 11578.88386 | F35: ='DNSP Inputs General'!M71*'PL Tariffs'!F34 -> 11808.3057 | G35: ='DNSP Inputs General'!N71*'PL Tariffs'!G34 -> 11953.21827 | H35: ='DNSP Inputs General'!O71*'PL Tariffs'!H34 -> 12271.66711 | J35: 9291.333531 | K35: =D35/'Charges Summary'!D$4 -> 11786.11697 | L35: =E35/'Charges Summary'!E$4 -> 11291.80083 | M35: =F35/'Charges Summary'!F$4 -> 11297.08258 | N35: =G35/'Charges Summary'!G$4 -> 11202.95892 | O35: =H35/'Charges Summary'!H$4 -> 11240.29879
A40: Total Revenue | C40: =IF(SUM(C7:C39)=0,"",SUM(C7:C39)) -> 8025470.423 | D40: =SUM(D7:D39) -> 6149828.15 | E40: =SUM(E7:E39) -> 6210912.508 | F40: =SUM(F7:F39) -> 6632717.927 | G40: =SUM(G7:G39) -> 6839960.964 | H40: =SUM(H7:H39) -> 7090734.432 | J40: =IF(SUM(J7:J39)=0,"",SUM(J7:J39)) -> 8025470.423 | K40: =SUM(K7:K39) -> 6058719.584 | L40: =SUM(L7:L39) -> 6056921.191 | M40: =SUM(M7:M39) -> 6345564.225 | N40: =SUM(N7:N39) -> 6410641.88 | O40: =SUM(O7:O39) -> 6494795.93
A43: Public Lighting - O & M | D43: Forecast O & M - Nominal | K43: Forecast O & M - Real 2015 $
D44: =D$2 -> 2016 | E44: 2017 | F44: 2018 | G44: 2019 | H44: 2020 | K44: =K$2 -> 2016 | L44: 2017 | M44: 2018 | N44: 2019 | O44: 2020
A46: Unit cost
A47: ='DNSP Inputs General'!A$41 -> Mercury Vapour 80 watt | D47: =SUM('Charges Summary'!D25,'Charges Summary'!D8) -> 23.64080316 | E47: =SUM('Charges Summary'!E25,'Charges Summary'!E8) -> 24.49856385 | F47: =SUM('Charges Summary'!F25,'Charges Summary'!F8) -> 26.4224489 | G47: =SUM('Charges Summary'!G25,'Charges Summary'!G8) -> 27.97981517 | H47: =SUM('Charges Summary'!H25,'Charges Summary'!H8) -> 29.69263684
A48: ='DNSP Inputs General'!A$42 -> Sodium High Pressure 150 watt | D48: =SUM('Charges Summary'!D49,'Charges Summary'!D8) -> 38.52097647 | E48: =SUM('Charges Summary'!E49,'Charges Summary'!E8) -> 41.72865171 | F48: =SUM('Charges Summary'!F49,'Charges Summary'!F8) -> 45.86989507 | G48: =SUM('Charges Summary'!G49,'Charges Summary'!G8) -> 46.44087088 | H48: =SUM('Charges Summary'!H49,'Charges Summary'!H8) -> 48.77471727
A49: ='DNSP Inputs General'!A$43 -> Sodium High Pressure 250 watt | D49: =SUM('Charges Summary'!D65,'Charges Summary'!D8) -> 39.103826 | E49: =SUM('Charges Summary'!E65,'Charges Summary'!E8) -> 42.35481274 | F49: =SUM('Charges Summary'!F65,'Charges Summary'!F8) -> 41.523538 | G49: =SUM('Charges Summary'!G65,'Charges Summary'!G8) -> 47.04902524 | H49: =SUM('Charges Summary'!H65,'Charges Summary'!H8) -> 49.39104348
A51: ='DNSP Inputs General'!A$40 -> Existing Lights
A52: ='DNSP Inputs General'!A$41 -> Mercury Vapour 80 watt | D52: =D47*'DNSP Inputs General'!K41 -> 1225113.645 | E52: =E47*'DNSP Inputs General'!L41 -> 1192963.568 | F52: =F47*'DNSP Inputs General'!M41 -> 1204031.16 | G52: =G47*'DNSP Inputs General'!N41 -> 1187512.032 | H52: =H47*'DNSP Inputs General'!O41 -> 1167365.633 | K52: =D52/'Charges Summary'!D$4 -> 1206963.813 | L52: =E52/'Charges Summary'!E$4 -> 1163385.623 | M52: =F52/'Charges Summary'!F$4 -> 1151904.414 | N52: =G52/'Charges Summary'!G$4 -> 1112976.289 | O52: =H52/'Charges Summary'!H$4 -> 1069254.762
A53: ='DNSP Inputs General'!A$42 -> Sodium High Pressure 150 watt | D53: =D48*'DNSP Inputs General'!K42 -> 920455.61 | E53: =E48*'DNSP Inputs General'!L42 -> 1000988.51 | F53: =F48*'DNSP Inputs General'!M42 -> 1104590.07 | G53: =G48*'DNSP Inputs General'!N42 -> 1122689.921 | H53: =H48*'DNSP Inputs General'!O42 -> 1183667.802 | K53: =D53/'Charges Summary'!D$4 -> 906819.2306 | L53: =E53/'Charges Summary'!E$4 -> 976170.3307 | M53: =F53/'Charges Summary'!F$4 -> 1056768.479 | N53: =G53/'Charges Summary'!G$4 -> 1052222.822 | O53: =H53/'Charges Summary'!H$4 -> 1084186.821
A54: ='DNSP Inputs General'!A$43 -> Sodium High Pressure 250 watt | D54: =D49*'DNSP Inputs General'!K43 -> 390212.9945 | E54: =E49*'DNSP Inputs General'!L43 -> 424301.3566 | F54: =F49*'DNSP Inputs General'!M43 -> 417584.7721 | G54: =G49*'DNSP Inputs General'!N43 -> 474992.7854 | H54: =H49*'DNSP Inputs General'!O43 -> 500564.6653 | K54: =D54/'Charges Summary'!D$4 -> 384432.0612 | L54: =E54/'Charges Summary'!E$4 -> 413781.3687 | M54: =F54/'Charges Summary'!F$4 -> 399506.0577 | N54: =G54/'Charges Summary'!G$4 -> 445179.2429 | O54: =H54/'Charges Summary'!H$4 -> 458494.8686
A55: ='DNSP Inputs General'!A$44 -> Fluorescent 2x20 watt | D55: =IF('DNSP Inputs General'!$B44='DNSP Inputs General'!$A$41,D$47,IF('DNSP Inputs General'!$B44='DNSP Inputs General'!$A$42,D$48,D$49))*'DNSP Inputs General'!$D44*'DNSP Inputs General'!K44 -> 1951.784709 | E55: =IF('DNSP Inputs General'!$B44='DNSP Inputs General'!$A$41,E$47,IF('DNSP Inputs General'!$B44='DNSP Inputs General'!$A$42,E$48,E$49))*'DNSP Inputs General'!$D44*'DNSP Inputs General'!L44 -> 2085.807726 | F55: =IF('DNSP Inputs General'!$B44='DNSP Inputs General'!$A$41,F$47,IF('DNSP Inputs General'!$B44='DNSP Inputs General'!$A$42,F$48,F$49))*'DNSP Inputs General'!$D44*'DNSP Inputs General'!M44 -> 2317.777218 | G55: =IF('DNSP Inputs General'!$B44='DNSP Inputs General'!$A$41,G$47,IF('DNSP Inputs General'!$B44='DNSP Inputs General'!$A$42,G$48,G$49))*'DNSP Inputs General'!$D44*'DNSP Inputs General'!N44 -> 2526.57731 | H55: =IF('DNSP Inputs General'!$B44='DNSP Inputs General'!$A$41,H$47,IF('DNSP Inputs General'!$B44='DNSP Inputs General'!$A$42,H$48,H$49))*'DNSP Inputs General'!$D44*'DNSP Inputs General'!O44 -> 2757.852109 | K55: =D55/'Charges Summary'!D$4 -> 1922.86938 | L55: =E55/'Charges Summary'!E$4 -> 2034.092897 | M55: =F55/'Charges Summary'!F$4 -> 2217.432485 | N55: =G55/'Charges Summary'!G$4 -> 2367.993385 | O55: =H55/'Charges Summary'!H$4 -> 2526.069313
A56: ='DNSP Inputs General'!A$45 -> Fluorescent 3x20 watt | D56: =IF('DNSP Inputs General'!$B45='DNSP Inputs General'!$A$41,D$47,IF('DNSP Inputs General'!$B45='DNSP Inputs General'!$A$42,D$48,D$49))*'DNSP Inputs General'!$D45*'DNSP Inputs General'!K45 -> 91.48990822 | E56: =IF('DNSP Inputs General'!$B45='DNSP Inputs General'!$A$41,E$47,IF('DNSP Inputs General'!$B45='DNSP Inputs General'!$A$42,E$48,E$49))*'DNSP Inputs General'!$D45*'DNSP Inputs General'!L45 -> 94.8094421 | F56: =IF('DNSP Inputs General'!$B45='DNSP Inputs General'!$A$41,F$47,IF('DNSP Inputs General'!$B45='DNSP Inputs General'!$A$42,F$48,F$49))*'DNSP Inputs General'!$D45*'DNSP Inputs General'!M45 -> 102.2548773 | G56: =IF('DNSP Inputs General'!$B45='DNSP Inputs General'!$A$41,G$47,IF('DNSP Inputs General'!$B45='DNSP Inputs General'!$A$42,G$48,G$49))*'DNSP Inputs General'!$D45*'DNSP Inputs General'!N45 -> 108.2818847 | H56: =IF('DNSP Inputs General'!$B45='DNSP Inputs General'!$A$41,H$47,IF('DNSP Inputs General'!$B45='DNSP Inputs General'!$A$42,H$48,H$49))*'DNSP Inputs General'!$D45*'DNSP Inputs General'!O45 -> 114.9105046 | K56: =D56/'Charges Summary'!D$4 -> 90.13450217 | L56: =E56/'Charges Summary'!E$4 -> 92.45876805 | M56: =F56/'Charges Summary'!F$4 -> 97.82790374 | N56: =G56/'Charges Summary'!G$4 -> 101.4854308 | O56: =H56/'Charges Summary'!H$4 -> 105.252888
A57: ='DNSP Inputs General'!A$46 -> Mercury Vapour 50 watt | D57: =IF('DNSP Inputs General'!$B46='DNSP Inputs General'!$A$41,D$47,IF('DNSP Inputs General'!$B46='DNSP Inputs General'!$A$42,D$48,D$49))*'DNSP Inputs General'!$D46*'DNSP Inputs General'!K46 -> 1073.190626 | E57: =IF('DNSP Inputs General'!$B46='DNSP Inputs General'!$A$41,E$47,IF('DNSP Inputs General'!$B46='DNSP Inputs General'!$A$42,E$48,E$49))*'DNSP Inputs General'!$D46*'DNSP Inputs General'!L46 -> 997.423221 | F57: =IF('DNSP Inputs General'!$B46='DNSP Inputs General'!$A$41,F$47,IF('DNSP Inputs General'!$B46='DNSP Inputs General'!$A$42,F$48,F$49))*'DNSP Inputs General'!$D46*'DNSP Inputs General'!M46 -> 952.037418 | G57: =IF('DNSP Inputs General'!$B46='DNSP Inputs General'!$A$41,G$47,IF('DNSP Inputs General'!$B46='DNSP Inputs General'!$A$42,G$48,G$49))*'DNSP Inputs General'!$D46*'DNSP Inputs General'!N46 -> 877.1456816 | H57: =IF('DNSP Inputs General'!$B46='DNSP Inputs General'!$A$41,H$47,IF('DNSP Inputs General'!$B46='DNSP Inputs General'!$A$42,H$48,H$49))*'DNSP Inputs General'!$D46*'DNSP Inputs General'!O46 -> 791.8158292 | K57: =D57/'Charges Summary'!D$4 -> 1057.291505 | L57: =E57/'Charges Summary'!E$4 -> 972.6934385 | M57: =F57/'Charges Summary'!F$4 -> 910.8203677 | N57: =G57/'Charges Summary'!G$4 -> 822.0904873 | O57: =H57/'Charges Summary'!H$4 -> 725.2679217
A58: ='DNSP Inputs General'!A$47 -> Mercury Vapour 125 watt | D58: =IF('DNSP Inputs General'!$B47='DNSP Inputs General'!$A$41,D$47,IF('DNSP Inputs General'!$B47='DNSP Inputs General'!$A$42,D$48,D$49))*'DNSP Inputs General'!$D47*'DNSP Inputs General'!K47 -> 32094.00751 | E58: =IF('DNSP Inputs General'!$B47='DNSP Inputs General'!$A$41,E$47,IF('DNSP Inputs General'!$B47='DNSP Inputs General'!$A$42,E$48,E$49))*'DNSP Inputs General'!$D47*'DNSP Inputs General'!L47 -> 29692.07839 | F58: =IF('DNSP Inputs General'!$B47='DNSP Inputs General'!$A$41,F$47,IF('DNSP Inputs General'!$B47='DNSP Inputs General'!$A$42,F$48,F$49))*'DNSP Inputs General'!$D47*'DNSP Inputs General'!M47 -> 28177.34384 | G58: =IF('DNSP Inputs General'!$B47='DNSP Inputs General'!$A$41,G$47,IF('DNSP Inputs General'!$B47='DNSP Inputs General'!$A$42,G$48,G$49))*'DNSP Inputs General'!$D47*'DNSP Inputs General'!N47 -> 25764.96155 | H58: =IF('DNSP Inputs General'!$B47='DNSP Inputs General'!$A$41,H$47,IF('DNSP Inputs General'!$B47='DNSP Inputs General'!$A$42,H$48,H$49))*'DNSP Inputs General'!$D47*'DNSP Inputs General'!O47 -> 23019.66876 | K58: =D58/'Charges Summary'!D$4 -> 31618.54073 | L58: =E58/'Charges Summary'!E$4 -> 28955.90279 | M58: =F58/'Charges Summary'!F$4 -> 26957.44745 | N58: =G58/'Charges Summary'!G$4 -> 24147.79009 | O58: =H58/'Charges Summary'!H$4 -> 21084.98808
A59: ='DNSP Inputs General'!A$48 -> Mercury Vapour 250 watt | D59: =IF('DNSP Inputs General'!$B48='DNSP Inputs General'!$A$41,D$47,IF('DNSP Inputs General'!$B48='DNSP Inputs General'!$A$42,D$48,D$49))*'DNSP Inputs General'!$D48*'DNSP Inputs General'!K48 -> 3521.380179 | E59: =IF('DNSP Inputs General'!$B48='DNSP Inputs General'!$A$41,E$47,IF('DNSP Inputs General'!$B48='DNSP Inputs General'!$A$42,E$48,E$49))*'DNSP Inputs General'!$D48*'DNSP Inputs General'!L48 -> 3814.13824 | F59: =IF('DNSP Inputs General'!$B48='DNSP Inputs General'!$A$41,F$47,IF('DNSP Inputs General'!$B48='DNSP Inputs General'!$A$42,F$48,F$49))*'DNSP Inputs General'!$D48*'DNSP Inputs General'!M48 -> 3739.280235 | G59: =IF('DNSP Inputs General'!$B48='DNSP Inputs General'!$A$41,G$47,IF('DNSP Inputs General'!$B48='DNSP Inputs General'!$A$42,G$48,G$49))*'DNSP Inputs General'!$D48*'DNSP Inputs General'!N48 -> 4236.861757 | H59: =IF('DNSP Inputs General'!$B48='DNSP Inputs General'!$A$41,H$47,IF('DNSP Inputs General'!$B48='DNSP Inputs General'!$A$42,H$48,H$49))*'DNSP Inputs General'!$D48*'DNSP Inputs General'!O48 -> 4447.76533 | K59: =D59/'Charges Summary'!D$4 -> 3469.211584 | L59: =E59/'Charges Summary'!E$4 -> 3719.571754 | M59: =F59/'Charges Summary'!F$4 -> 3577.393634 | N59: =G59/'Charges Summary'!G$4 -> 3970.929595 | O59: =H59/'Charges Summary'!H$4 -> 4073.954319
A60: ='DNSP Inputs General'!A$49 -> Mercury Vapour 400 watt | D60: =IF('DNSP Inputs General'!$B49='DNSP Inputs General'!$A$41,D$47,IF('DNSP Inputs General'!$B49='DNSP Inputs General'!$A$42,D$48,D$49))*'DNSP Inputs General'!$D49*'DNSP Inputs General'!K49 -> 295.6249246 | E60: =IF('DNSP Inputs General'!$B49='DNSP Inputs General'!$A$41,E$47,IF('DNSP Inputs General'!$B49='DNSP Inputs General'!$A$42,E$48,E$49))*'DNSP Inputs General'!$D49*'DNSP Inputs General'!L49 -> 320.2023843 | F60: =IF('DNSP Inputs General'!$B49='DNSP Inputs General'!$A$41,F$47,IF('DNSP Inputs General'!$B49='DNSP Inputs General'!$A$42,F$48,F$49))*'DNSP Inputs General'!$D49*'DNSP Inputs General'!M49 -> 313.9179473 | G60: =IF('DNSP Inputs General'!$B49='DNSP Inputs General'!$A$41,G$47,IF('DNSP Inputs General'!$B49='DNSP Inputs General'!$A$42,G$48,G$49))*'DNSP Inputs General'!$D49*'DNSP Inputs General'!N49 -> 355.6906308 | H60: =IF('DNSP Inputs General'!$B49='DNSP Inputs General'!$A$41,H$47,IF('DNSP Inputs General'!$B49='DNSP Inputs General'!$A$42,H$48,H$49))*'DNSP Inputs General'!$D49*'DNSP Inputs General'!O49 -> 373.3962887 | K60: =D60/'Charges Summary'!D$4 -> 291.245296 | L60: =E60/'Charges Summary'!E$4 -> 312.263392 | M60: =F60/'Charges Summary'!F$4 -> 300.3273346 | N60: =G60/'Charges Summary'!G$4 -> 333.3652438 | O60: =H60/'Charges Summary'!H$4 -> 342.0143174
A61: ='DNSP Inputs General'!A$50 -> Mercury Vapour 700 watt | D61: =IF('DNSP Inputs General'!$B50='DNSP Inputs General'!$A$41,D$47,IF('DNSP Inputs General'!$B50='DNSP Inputs General'!$A$42,D$48,D$49))*'DNSP Inputs General'!$D50*'DNSP Inputs General'!K50 -> 197.083283 | E61: =IF('DNSP Inputs General'!$B50='DNSP Inputs General'!$A$41,E$47,IF('DNSP Inputs General'!$B50='DNSP Inputs General'!$A$42,E$48,E$49))*'DNSP Inputs General'!$D50*'DNSP Inputs General'!L50 -> 194.6410583 | F61: =IF('DNSP Inputs General'!$B50='DNSP Inputs General'!$A$41,F$47,IF('DNSP Inputs General'!$B50='DNSP Inputs General'!$A$42,F$48,F$49))*'DNSP Inputs General'!$D50*'DNSP Inputs General'!M50 -> 209.2786315 | G61: =IF('DNSP Inputs General'!$B50='DNSP Inputs General'!$A$41,G$47,IF('DNSP Inputs General'!$B50='DNSP Inputs General'!$A$42,G$48,G$49))*'DNSP Inputs General'!$D50*'DNSP Inputs General'!N50 -> 216.2132582 | H61: =IF('DNSP Inputs General'!$B50='DNSP Inputs General'!$A$41,H$47,IF('DNSP Inputs General'!$B50='DNSP Inputs General'!$A$42,H$48,H$49))*'DNSP Inputs General'!$D50*'DNSP Inputs General'!O50 -> 248.9308592 | K61: =D61/'Charges Summary'!D$4 -> 194.1635307 | L61: =E61/'Charges Summary'!E$4 -> 189.8151921 | M61: =F61/'Charges Summary'!F$4 -> 200.218223 | N61: =G61/'Charges Summary'!G$4 -> 202.6423507 | O61: =H61/'Charges Summary'!H$4 -> 228.0095449
A62: ='DNSP Inputs General'!A$51 -> Sodium High Pressure 70 watt | D62: =IF('DNSP Inputs General'!$B51='DNSP Inputs General'!$A$41,D$47,IF('DNSP Inputs General'!$B51='DNSP Inputs General'!$A$42,D$48,D$49))*'DNSP Inputs General'!$D51*'DNSP Inputs General'!K51 -> 17919.5499 | E62: =IF('DNSP Inputs General'!$B51='DNSP Inputs General'!$A$41,E$47,IF('DNSP Inputs General'!$B51='DNSP Inputs General'!$A$42,E$48,E$49))*'DNSP Inputs General'!$D51*'DNSP Inputs General'!L51 -> 18920.36989 | F62: =IF('DNSP Inputs General'!$B51='DNSP Inputs General'!$A$41,F$47,IF('DNSP Inputs General'!$B51='DNSP Inputs General'!$A$42,F$48,F$49))*'DNSP Inputs General'!$D51*'DNSP Inputs General'!M51 -> 20784.1657 | G62: =IF('DNSP Inputs General'!$B51='DNSP Inputs General'!$A$41,G$47,IF('DNSP Inputs General'!$B51='DNSP Inputs General'!$A$42,G$48,G$49))*'DNSP Inputs General'!$D51*'DNSP Inputs General'!N51 -> 22410.23446 | H62: =IF('DNSP Inputs General'!$B51='DNSP Inputs General'!$A$41,H$47,IF('DNSP Inputs General'!$B51='DNSP Inputs General'!$A$42,H$48,H$49))*'DNSP Inputs General'!$D51*'DNSP Inputs General'!O51 -> 24207.44805 | K62: =D62/'Charges Summary'!D$4 -> 17654.07509 | L62: =E62/'Charges Summary'!E$4 -> 18451.26448 | M62: =F62/'Charges Summary'!F$4 -> 19884.34602 | N62: =G62/'Charges Summary'!G$4 -> 21003.62683 | O62: =H62/'Charges Summary'!H$4 -> 22172.94084
A63: ='DNSP Inputs General'!A$52 -> Sodium High Pressure 100 watt | D63: =IF('DNSP Inputs General'!$B52='DNSP Inputs General'!$A$41,D$47,IF('DNSP Inputs General'!$B52='DNSP Inputs General'!$A$42,D$48,D$49))*'DNSP Inputs General'!$D52*'DNSP Inputs General'!K52 -> 39131.74871 | E63: =IF('DNSP Inputs General'!$B52='DNSP Inputs General'!$A$41,E$47,IF('DNSP Inputs General'!$B52='DNSP Inputs General'!$A$42,E$48,E$49))*'DNSP Inputs General'!$D52*'DNSP Inputs General'!L52 -> 42674.51573 | F63: =IF('DNSP Inputs General'!$B52='DNSP Inputs General'!$A$41,F$47,IF('DNSP Inputs General'!$B52='DNSP Inputs General'!$A$42,F$48,F$49))*'DNSP Inputs General'!$D52*'DNSP Inputs General'!M52 -> 47221.5668 | G63: =IF('DNSP Inputs General'!$B52='DNSP Inputs General'!$A$41,G$47,IF('DNSP Inputs General'!$B52='DNSP Inputs General'!$A$42,G$48,G$49))*'DNSP Inputs General'!$D52*'DNSP Inputs General'!N52 -> 48126.96769 | H63: =IF('DNSP Inputs General'!$B52='DNSP Inputs General'!$A$41,H$47,IF('DNSP Inputs General'!$B52='DNSP Inputs General'!$A$42,H$48,H$49))*'DNSP Inputs General'!$D52*'DNSP Inputs General'!O52 -> 50878.57422 | K63: =D63/'Charges Summary'!D$4 -> 38552.0191 | L63: =E63/'Charges Summary'!E$4 -> 41616.45785 | M63: =F63/'Charges Summary'!F$4 -> 45177.17898 | N63: =G63/'Charges Summary'!G$4 -> 45106.21571 | O63: =H63/'Charges Summary'!H$4 -> 46602.50077
A64: ='DNSP Inputs General'!A$53 -> Sodium High Pressure 400 watt | D64: =IF('DNSP Inputs General'!$B53='DNSP Inputs General'!$A$41,D$47,IF('DNSP Inputs General'!$B53='DNSP Inputs General'!$A$42,D$48,D$49))*'DNSP Inputs General'!$D53*'DNSP Inputs General'!K53 -> 16537.3899 | E64: =IF('DNSP Inputs General'!$B53='DNSP Inputs General'!$A$41,E$47,IF('DNSP Inputs General'!$B53='DNSP Inputs General'!$A$42,E$48,E$49))*'DNSP Inputs General'!$D53*'DNSP Inputs General'!L53 -> 17981.77959 | F64: =IF('DNSP Inputs General'!$B53='DNSP Inputs General'!$A$41,F$47,IF('DNSP Inputs General'!$B53='DNSP Inputs General'!$A$42,F$48,F$49))*'DNSP Inputs General'!$D53*'DNSP Inputs General'!M53 -> 17696.85061 | G64: =IF('DNSP Inputs General'!$B53='DNSP Inputs General'!$A$41,G$47,IF('DNSP Inputs General'!$B53='DNSP Inputs General'!$A$42,G$48,G$49))*'DNSP Inputs General'!$D53*'DNSP Inputs General'!N53 -> 20129.42749 | H64: =IF('DNSP Inputs General'!$B53='DNSP Inputs General'!$A$41,H$47,IF('DNSP Inputs General'!$B53='DNSP Inputs General'!$A$42,H$48,H$49))*'DNSP Inputs General'!$D53*'DNSP Inputs General'!O53 -> 21212.78778 | K64: =D64/'Charges Summary'!D$4 -> 16292.39153 | L64: =E64/'Charges Summary'!E$4 -> 17535.94528 | M64: =F64/'Charges Summary'!F$4 -> 16930.69167 | N64: =G64/'Charges Summary'!G$4 -> 18865.97769 | O64: =H64/'Charges Summary'!H$4 -> 19429.96584
A65: ='DNSP Inputs General'!A$54 -> Metal Halide 70 watt | D65: =IF('DNSP Inputs General'!$B54='DNSP Inputs General'!$A$41,D$47,IF('DNSP Inputs General'!$B54='DNSP Inputs General'!$A$42,D$48,D$49))*'DNSP Inputs General'!$D54*'DNSP Inputs General'!K54 -> 468.0298641 | E65: =IF('DNSP Inputs General'!$B54='DNSP Inputs General'!$A$41,E$47,IF('DNSP Inputs General'!$B54='DNSP Inputs General'!$A$42,E$48,E$49))*'DNSP Inputs General'!$D54*'DNSP Inputs General'!L54 -> 507.0031182 | F65: =IF('DNSP Inputs General'!$B54='DNSP Inputs General'!$A$41,F$47,IF('DNSP Inputs General'!$B54='DNSP Inputs General'!$A$42,F$48,F$49))*'DNSP Inputs General'!$D54*'DNSP Inputs General'!M54 -> 557.319225 | G65: =IF('DNSP Inputs General'!$B54='DNSP Inputs General'!$A$41,G$47,IF('DNSP Inputs General'!$B54='DNSP Inputs General'!$A$42,G$48,G$49))*'DNSP Inputs General'!$D54*'DNSP Inputs General'!N54 -> 564.2565812 | H65: =IF('DNSP Inputs General'!$B54='DNSP Inputs General'!$A$41,H$47,IF('DNSP Inputs General'!$B54='DNSP Inputs General'!$A$42,H$48,H$49))*'DNSP Inputs General'!$D54*'DNSP Inputs General'!O54 -> 592.6128149 | K65: =D65/'Charges Summary'!D$4 -> 461.0960884 | L65: =E65/'Charges Summary'!E$4 -> 494.4326501 | M65: =F65/'Charges Summary'!F$4 -> 533.1909144 | N65: =G65/'Charges Summary'!G$4 -> 528.8402798 | O65: =H65/'Charges Summary'!H$4 -> 542.8068609
A66: ='DNSP Inputs General'!A$55 -> Metal Halide 100 watt | D66: =IF('DNSP Inputs General'!$B55='DNSP Inputs General'!$A$41,D$47,IF('DNSP Inputs General'!$B55='DNSP Inputs General'!$A$42,D$48,D$49))*'DNSP Inputs General'!$D55*'DNSP Inputs General'!K55 -> 4940.315232 | E66: =IF('DNSP Inputs General'!$B55='DNSP Inputs General'!$A$41,E$47,IF('DNSP Inputs General'!$B55='DNSP Inputs General'!$A$42,E$48,E$49))*'DNSP Inputs General'!$D55*'DNSP Inputs General'!L55 -> 5351.699581 | F66: =IF('DNSP Inputs General'!$B55='DNSP Inputs General'!$A$41,F$47,IF('DNSP Inputs General'!$B55='DNSP Inputs General'!$A$42,F$48,F$49))*'DNSP Inputs General'!$D55*'DNSP Inputs General'!M55 -> 5882.814042 | G66: =IF('DNSP Inputs General'!$B55='DNSP Inputs General'!$A$41,G$47,IF('DNSP Inputs General'!$B55='DNSP Inputs General'!$A$42,G$48,G$49))*'DNSP Inputs General'!$D55*'DNSP Inputs General'!N55 -> 5956.04169 | H66: =IF('DNSP Inputs General'!$B55='DNSP Inputs General'!$A$41,H$47,IF('DNSP Inputs General'!$B55='DNSP Inputs General'!$A$42,H$48,H$49))*'DNSP Inputs General'!$D55*'DNSP Inputs General'!O55 -> 6255.35749 | K66: =D66/'Charges Summary'!D$4 -> 4867.125377 | L66: =E66/'Charges Summary'!E$4 -> 5219.011307 | M66: =F66/'Charges Summary'!F$4 -> 5628.126319 | N66: =G66/'Charges Summary'!G$4 -> 5582.202954 | O66: =H66/'Charges Summary'!H$4 -> 5729.627976
A67: ='DNSP Inputs General'!A$56 -> Metal Halide 150 watt | D67: =IF('DNSP Inputs General'!$B56='DNSP Inputs General'!$A$41,D$47,IF('DNSP Inputs General'!$B56='DNSP Inputs General'!$A$42,D$48,D$49))*'DNSP Inputs General'!$D56*'DNSP Inputs General'!K56 -> 780.0497735 | E67: =IF('DNSP Inputs General'!$B56='DNSP Inputs General'!$A$41,E$47,IF('DNSP Inputs General'!$B56='DNSP Inputs General'!$A$42,E$48,E$49))*'DNSP Inputs General'!$D56*'DNSP Inputs General'!L56 -> 845.0051971 | F67: =IF('DNSP Inputs General'!$B56='DNSP Inputs General'!$A$41,F$47,IF('DNSP Inputs General'!$B56='DNSP Inputs General'!$A$42,F$48,F$49))*'DNSP Inputs General'!$D56*'DNSP Inputs General'!M56 -> 928.8653751 | G67: =IF('DNSP Inputs General'!$B56='DNSP Inputs General'!$A$41,G$47,IF('DNSP Inputs General'!$B56='DNSP Inputs General'!$A$42,G$48,G$49))*'DNSP Inputs General'!$D56*'DNSP Inputs General'!N56 -> 940.4276353 | H67: =IF('DNSP Inputs General'!$B56='DNSP Inputs General'!$A$41,H$47,IF('DNSP Inputs General'!$B56='DNSP Inputs General'!$A$42,H$48,H$49))*'DNSP Inputs General'!$D56*'DNSP Inputs General'!O56 -> 987.6880248 | K67: =D67/'Charges Summary'!D$4 -> 768.4934806 | L67: =E67/'Charges Summary'!E$4 -> 824.0544168 | M67: =F67/'Charges Summary'!F$4 -> 888.651524 | N67: =G67/'Charges Summary'!G$4 -> 881.4004664 | O67: =H67/'Charges Summary'!H$4 -> 904.6781015
A68: ='DNSP Inputs General'!A$57 -> Metal Halide 250 watt | D68: =IF('DNSP Inputs General'!$B57='DNSP Inputs General'!$A$41,D$47,IF('DNSP Inputs General'!$B57='DNSP Inputs General'!$A$42,D$48,D$49))*'DNSP Inputs General'!$D57*'DNSP Inputs General'!K57 -> 6229.239482 | E68: =IF('DNSP Inputs General'!$B57='DNSP Inputs General'!$A$41,E$47,IF('DNSP Inputs General'!$B57='DNSP Inputs General'!$A$42,E$48,E$49))*'DNSP Inputs General'!$D57*'DNSP Inputs General'!L57 -> 6747.12167 | F68: =IF('DNSP Inputs General'!$B57='DNSP Inputs General'!$A$41,F$47,IF('DNSP Inputs General'!$B57='DNSP Inputs General'!$A$42,F$48,F$49))*'DNSP Inputs General'!$D57*'DNSP Inputs General'!M57 -> 6614.699604 | G68: =IF('DNSP Inputs General'!$B57='DNSP Inputs General'!$A$41,G$47,IF('DNSP Inputs General'!$B57='DNSP Inputs General'!$A$42,G$48,G$49))*'DNSP Inputs General'!$D57*'DNSP Inputs General'!N57 -> 7494.909721 | H68: =IF('DNSP Inputs General'!$B57='DNSP Inputs General'!$A$41,H$47,IF('DNSP Inputs General'!$B57='DNSP Inputs General'!$A$42,H$48,H$49))*'DNSP Inputs General'!$D57*'DNSP Inputs General'!O57 -> 7867.993227 | K68: =D68/'Charges Summary'!D$4 -> 6136.954452 | L68: =E68/'Charges Summary'!E$4 -> 6579.83576 | M68: =F68/'Charges Summary'!F$4 -> 6328.325978 | N68: =G68/'Charges Summary'!G$4 -> 7024.481923 | O68: =H68/'Charges Summary'!H$4 -> 7206.730259
A69: ='DNSP Inputs General'!A$58 -> Metal Halide 400 watt | D69: =IF('DNSP Inputs General'!$B58='DNSP Inputs General'!$A$41,D$47,IF('DNSP Inputs General'!$B58='DNSP Inputs General'!$A$42,D$48,D$49))*'DNSP Inputs General'!$D58*'DNSP Inputs General'!K58 -> 5806.918161 | E69: =IF('DNSP Inputs General'!$B58='DNSP Inputs General'!$A$41,E$47,IF('DNSP Inputs General'!$B58='DNSP Inputs General'!$A$42,E$48,E$49))*'DNSP Inputs General'!$D58*'DNSP Inputs General'!L58 -> 6289.689692 | F69: =IF('DNSP Inputs General'!$B58='DNSP Inputs General'!$A$41,F$47,IF('DNSP Inputs General'!$B58='DNSP Inputs General'!$A$42,F$48,F$49))*'DNSP Inputs General'!$D58*'DNSP Inputs General'!M58 -> 6166.245393 | G69: =IF('DNSP Inputs General'!$B58='DNSP Inputs General'!$A$41,G$47,IF('DNSP Inputs General'!$B58='DNSP Inputs General'!$A$42,G$48,G$49))*'DNSP Inputs General'!$D58*'DNSP Inputs General'!N58 -> 6986.780248 | H69: =IF('DNSP Inputs General'!$B58='DNSP Inputs General'!$A$41,H$47,IF('DNSP Inputs General'!$B58='DNSP Inputs General'!$A$42,H$48,H$49))*'DNSP Inputs General'!$D58*'DNSP Inputs General'!O58 -> 7334.569957 | K69: =D69/'Charges Summary'!D$4 -> 5720.889744 | L69: =E69/'Charges Summary'!E$4 -> 6133.7452 | M69: =F69/'Charges Summary'!F$4 -> 5899.286929 | N69: =G69/'Charges Summary'!G$4 -> 6548.24586 | O69: =H69/'Charges Summary'!H$4 -> 6718.138377
A76: ='DNSP Inputs General'!A$67 -> Energy Efficient Lights
A77: ='DNSP Inputs General'!A$68 -> T5 2X14W | D77: =SUM('Charges Summary'!D$83,'Charges Summary'!D$8)*'DNSP Inputs General'!$D68*'DNSP Inputs General'!K68 -> 838213.453 | E77: =SUM('Charges Summary'!E$83,'Charges Summary'!E$8)*'DNSP Inputs General'!$D68*'DNSP Inputs General'!L68 -> 849135.0526 | F77: =SUM('Charges Summary'!F$83,'Charges Summary'!F$8)*'DNSP Inputs General'!$D68*'DNSP Inputs General'!M68 -> 868844.1649 | G77: =SUM('Charges Summary'!G$83,'Charges Summary'!G$8)*'DNSP Inputs General'!$D68*'DNSP Inputs General'!N68 -> 888999.6131 | H77: =SUM('Charges Summary'!H$83,'Charges Summary'!H$8)*'DNSP Inputs General'!$D68*'DNSP Inputs General'!O68 -> 912913.2818 | K77: =D77/'Charges Summary'!D$4 -> 825795.4759 | L77: =E77/'Charges Summary'!E$4 -> 828081.878 | M77: =F77/'Charges Summary'!F$4 -> 831228.8432 | N77: =G77/'Charges Summary'!G$4 -> 833200.3912 | O77: =H77/'Charges Summary'!H$4 -> 836187.7777
A78: ='DNSP Inputs General'!A$69 -> Twin 24w Fluorescent | D78: =SUM('Charges Summary'!D$83,'Charges Summary'!D$8)*'DNSP Inputs General'!$D69*'DNSP Inputs General'!K69 -> 7329.050429 | E78: =SUM('Charges Summary'!E$83,'Charges Summary'!E$8)*'DNSP Inputs General'!$D69*'DNSP Inputs General'!L69 -> 6951.192617 | F78: =SUM('Charges Summary'!F$83,'Charges Summary'!F$8)*'DNSP Inputs General'!$D69*'DNSP Inputs General'!M69 -> 6718.03285 | G78: =SUM('Charges Summary'!G$83,'Charges Summary'!G$8)*'DNSP Inputs General'!$D69*'DNSP Inputs General'!N69 -> 6541.290418 | H78: =SUM('Charges Summary'!H$83,'Charges Summary'!H$8)*'DNSP Inputs General'!$D69*'DNSP Inputs General'!O69 -> 6428.904754 | K78: =D78/'Charges Summary'!D$4 -> 7220.471904 | L78: =E78/'Charges Summary'!E$4 -> 6778.847039 | M78: =F78/'Charges Summary'!F$4 -> 6427.185565 | N78: =G78/'Charges Summary'!G$4 -> 6130.717782 | O78: =H78/'Charges Summary'!H$4 -> 5888.589516
A79: ='DNSP Inputs General'!A$70 -> 32W Compact Fluorescent | D79: =SUM('Charges Summary'!D$83,'Charges Summary'!D$8)*'DNSP Inputs General'!$D70*'DNSP Inputs General'!K70 -> 48708.99887 | E79: =SUM('Charges Summary'!E$83,'Charges Summary'!E$8)*'DNSP Inputs General'!$D70*'DNSP Inputs General'!L70 -> 46197.74916 | F79: =SUM('Charges Summary'!F$83,'Charges Summary'!F$8)*'DNSP Inputs General'!$D70*'DNSP Inputs General'!M70 -> 44648.16523 | G79: =SUM('Charges Summary'!G$83,'Charges Summary'!G$8)*'DNSP Inputs General'!$D70*'DNSP Inputs General'!N70 -> 43473.5319 | H79: =SUM('Charges Summary'!H$83,'Charges Summary'!H$8)*'DNSP Inputs General'!$D70*'DNSP Inputs General'!O70 -> 42726.61478 | K79: =D79/'Charges Summary'!D$4 -> 47987.38407 | L79: =E79/'Charges Summary'!E$4 -> 45052.3374 | M79: =F79/'Charges Summary'!F$4 -> 42715.18902 | N79: =G79/'Charges Summary'!G$4 -> 40744.85888 | O79: =H79/'Charges Summary'!H$4 -> 39135.67014
A80: ='DNSP Inputs General'!A$71 -> 42w Compact Fluorescent | D80: =SUM('Charges Summary'!D$83,'Charges Summary'!D$8)*'DNSP Inputs General'!$D71*'DNSP Inputs General'!K71 -> 9826.116283 | E80: =SUM('Charges Summary'!E$83,'Charges Summary'!E$8)*'DNSP Inputs General'!$D71*'DNSP Inputs General'!L71 -> 9319.519305 | F80: =SUM('Charges Summary'!F$83,'Charges Summary'!F$8)*'DNSP Inputs General'!$D71*'DNSP Inputs General'!M71 -> 9006.920149 | G80: =SUM('Charges Summary'!G$83,'Charges Summary'!G$8)*'DNSP Inputs General'!$D71*'DNSP Inputs General'!N71 -> 8769.960163 | H80: =SUM('Charges Summary'!H$83,'Charges Summary'!H$8)*'DNSP Inputs General'!$D71*'DNSP Inputs General'!O71 -> 8619.283808 | K80: =D80/'Charges Summary'!D$4 -> 9680.54419 | L80: =E80/'Charges Summary'!E$4 -> 9088.454216 | M80: =F80/'Charges Summary'!F$4 -> 8616.978877 | N80: =G80/'Charges Summary'!G$4 -> 8219.502158 | O80: =H80/'Charges Summary'!H$4 -> 7894.878864
A82: Total O & M | D82: =SUM(D52:D81) -> 3570897.67 | E82: =SUM(E52:E81) -> 3666373.233 | F82: =SUM(F52:F81) -> 3797087.703 | G82: =SUM(G52:G81) -> 3879673.912 | H82: =SUM(H52:H81) -> 3973377.557 | K82: =SUM(K52:K81) -> 3517995.483 | L82: =SUM(L52:L81) -> 3575470.384 | M82: =SUM(M52:M81) -> 3632698.413 | N82: =SUM(N52:N81) -> 3636161.111 | O82: =SUM(O52:O81) -> 3639436.314
A85: Public Lighting - Capital Charge | D85: Capital Charge - Nominal | K85: Capital Charge - Real 2015 $
D86: =D$2 -> 2016 | E86: 2017 | F86: 2018 | G86: 2019 | H86: 2020 | K86: =K$2 -> 2016 | L86: 2017 | M86: 2018 | N86: 2019 | O86: 2020
A88: Unit cost
A89: ='DNSP Inputs General'!A$41 -> Mercury Vapour 80 watt | D89: =SUM('Charges Summary'!D27,'Charges Summary'!D11) -> 26.50491553 | E89: =SUM('Charges Summary'!E27,'Charges Summary'!E11) -> 26.78100384 | F89: =SUM('Charges Summary'!F27,'Charges Summary'!F11) -> 30.44673104 | G89: =SUM('Charges Summary'!G27,'Charges Summary'!G11) -> 32.49102389 | H89: =SUM('Charges Summary'!H27,'Charges Summary'!H11) -> 34.95967218
A90: ='DNSP Inputs General'!A$42 -> Sodium High Pressure 150 watt | D90: =SUM('Charges Summary'!D51,'Charges Summary'!D11) -> 26.14942275 | E90: =SUM('Charges Summary'!E51,'Charges Summary'!E11) -> 26.42207928 | F90: =SUM('Charges Summary'!F51,'Charges Summary'!F11) -> 30.04481131 | G90: =SUM('Charges Summary'!G51,'Charges Summary'!G11) -> 32.06553903 | H90: =SUM('Charges Summary'!H51,'Charges Summary'!H11) -> 34.50612881
A91: ='DNSP Inputs General'!A$43 -> Sodium High Pressure 250 watt | D91: =SUM('Charges Summary'!D67,'Charges Summary'!D11) -> 27.15258863 | E91: =SUM('Charges Summary'!E67,'Charges Summary'!E11) -> 27.43492931 | F91: =SUM('Charges Summary'!F67,'Charges Summary'!F11) -> 31.17898953 | G91: =SUM('Charges Summary'!G67,'Charges Summary'!G11) -> 33.26621573 | H91: =SUM('Charges Summary'!H67,'Charges Summary'!H11) -> 35.78598388
A93: ='DNSP Inputs General'!A$40 -> Existing Lights
A94: ='DNSP Inputs General'!A$41 -> Mercury Vapour 80 watt | D94: =D89*'DNSP Inputs General'!K41 -> 1373537.67 | E94: =E89*'DNSP Inputs General'!L41 -> 1304107.543 | F94: =F89*'DNSP Inputs General'!M41 -> 1387411.63 | G94: =G89*'DNSP Inputs General'!N41 -> 1378975.578 | H94: =H89*'DNSP Inputs General'!O41 -> 1374439.059 | K94: =D94/'Charges Summary'!D$4 -> 1353188.964 | L94: =E94/'Charges Summary'!E$4 -> 1271773.93 | M94: =F94/'Charges Summary'!F$4 -> 1327345.698 | N94: =G94/'Charges Summary'!G$4 -> 1292422.375 | O94: =H94/'Charges Summary'!H$4 -> 1258924.769
A95: ='DNSP Inputs General'!A$42 -> Sodium High Pressure 150 watt | D95: =D90*'DNSP Inputs General'!K42 -> 624838.3368 | E95: =E90*'DNSP Inputs General'!L42 -> 633813.8588 | F95: =F90*'DNSP Inputs General'!M42 -> 723507.2193 | G95: =G90*'DNSP Inputs General'!N42 -> 775171.8863 | H95: =H90*'DNSP Inputs General'!O42 -> 837396.8305 | K95: =D95/'Charges Summary'!D$4 -> 615581.4725 | L95: =E95/'Charges Summary'!E$4 -> 618099.2869 | M95: =F95/'Charges Summary'!F$4 -> 692184.0455 | N95: =G95/'Charges Summary'!G$4 -> 726517.2104 | O95: =H95/'Charges Summary'!H$4 -> 767018.0824
A96: ='DNSP Inputs General'!A$43 -> Sodium High Pressure 250 watt | D96: =D91*'DNSP Inputs General'!K43 -> 270952.8453 | E96: =E91*'DNSP Inputs General'!L43 -> 274837.1902 | F96: =F91*'DNSP Inputs General'!M43 -> 313553.9952 | G96: =G91*'DNSP Inputs General'!N43 -> 335845.6927 | H96: =H91*'DNSP Inputs General'!O43 -> 362681.1216 | K96: =D96/'Charges Summary'!D$4 -> 266938.729 | L96: =E96/'Charges Summary'!E$4 -> 268022.9675 | M96: =F96/'Charges Summary'!F$4 -> 299979.1393 | N96: =G96/'Charges Summary'!G$4 -> 314765.8991 | O96: =H96/'Charges Summary'!H$4 -> 332199.703
A97: ='DNSP Inputs General'!A$44 -> Fluorescent 2x20 watt | D97: =IF('DNSP Inputs General'!$B44='DNSP Inputs General'!$A$41,D$89,IF('DNSP Inputs General'!$B44='DNSP Inputs General'!$A$42,D$90,D$91))*'DNSP Inputs General'!$D44*'DNSP Inputs General'!K44 -> 2188.245826 | E97: =IF('DNSP Inputs General'!$B44='DNSP Inputs General'!$A$41,E$89,IF('DNSP Inputs General'!$B44='DNSP Inputs General'!$A$42,E$90,E$91))*'DNSP Inputs General'!$D44*'DNSP Inputs General'!L44 -> 2280.134667 | F97: =IF('DNSP Inputs General'!$B44='DNSP Inputs General'!$A$41,F$89,IF('DNSP Inputs General'!$B44='DNSP Inputs General'!$A$42,F$90,F$91))*'DNSP Inputs General'!$D44*'DNSP Inputs General'!M44 -> 2670.787247 | G97: =IF('DNSP Inputs General'!$B44='DNSP Inputs General'!$A$41,G$89,IF('DNSP Inputs General'!$B44='DNSP Inputs General'!$A$42,G$90,G$91))*'DNSP Inputs General'!$D44*'DNSP Inputs General'!N44 -> 2933.939458 | H97: =IF('DNSP Inputs General'!$B44='DNSP Inputs General'!$A$41,H$89,IF('DNSP Inputs General'!$B44='DNSP Inputs General'!$A$42,H$90,H$91))*'DNSP Inputs General'!$D44*'DNSP Inputs General'!O44 -> 3247.054352 | K97: =D97/'Charges Summary'!D$4 -> 2155.827369 | L97: =E97/'Charges Summary'!E$4 -> 2223.60176 | M97: =F97/'Charges Summary'!F$4 -> 2555.159468 | N97: =G97/'Charges Summary'!G$4 -> 2749.786915 | O97: =H97/'Charges Summary'!H$4 -> 2974.156711
A98: ='DNSP Inputs General'!A$45 -> Fluorescent 3x20 watt | D98: =IF('DNSP Inputs General'!$B45='DNSP Inputs General'!$A$41,D$89,IF('DNSP Inputs General'!$B45='DNSP Inputs General'!$A$42,D$90,D$91))*'DNSP Inputs General'!$D45*'DNSP Inputs General'!K45 -> 102.5740231 | E98: =IF('DNSP Inputs General'!$B45='DNSP Inputs General'!$A$41,E$89,IF('DNSP Inputs General'!$B45='DNSP Inputs General'!$A$42,E$90,E$91))*'DNSP Inputs General'!$D45*'DNSP Inputs General'!L45 -> 103.6424848 | F98: =IF('DNSP Inputs General'!$B45='DNSP Inputs General'!$A$41,F$89,IF('DNSP Inputs General'!$B45='DNSP Inputs General'!$A$42,F$90,F$91))*'DNSP Inputs General'!$D45*'DNSP Inputs General'!M45 -> 117.8288491 | G98: =IF('DNSP Inputs General'!$B45='DNSP Inputs General'!$A$41,G$89,IF('DNSP Inputs General'!$B45='DNSP Inputs General'!$A$42,G$90,G$91))*'DNSP Inputs General'!$D45*'DNSP Inputs General'!N45 -> 125.7402625 | H98: =IF('DNSP Inputs General'!$B45='DNSP Inputs General'!$A$41,H$89,IF('DNSP Inputs General'!$B45='DNSP Inputs General'!$A$42,H$90,H$91))*'DNSP Inputs General'!$D45*'DNSP Inputs General'!O45 -> 135.2939314 | K98: =D98/'Charges Summary'!D$4 -> 101.0544079 | L98: =E98/'Charges Summary'!E$4 -> 101.0728073 | M98: =F98/'Charges Summary'!F$4 -> 112.7276236 | N98: =G98/'Charges Summary'!G$4 -> 117.8480107 | O98: =H98/'Charges Summary'!H$4 -> 123.9231963
A99: ='DNSP Inputs General'!A$46 -> Mercury Vapour 50 watt | D99: =IF('DNSP Inputs General'!$B46='DNSP Inputs General'!$A$41,D$89,IF('DNSP Inputs General'!$B46='DNSP Inputs General'!$A$42,D$90,D$91))*'DNSP Inputs General'!$D46*'DNSP Inputs General'!K46 -> 1203.20899 | E99: =IF('DNSP Inputs General'!$B46='DNSP Inputs General'!$A$41,E$89,IF('DNSP Inputs General'!$B46='DNSP Inputs General'!$A$42,E$90,E$91))*'DNSP Inputs General'!$D46*'DNSP Inputs General'!L46 -> 1090.349429 | F99: =IF('DNSP Inputs General'!$B46='DNSP Inputs General'!$A$41,F$89,IF('DNSP Inputs General'!$B46='DNSP Inputs General'!$A$42,F$90,F$91))*'DNSP Inputs General'!$D46*'DNSP Inputs General'!M46 -> 1097.037876 | G99: =IF('DNSP Inputs General'!$B46='DNSP Inputs General'!$A$41,G$89,IF('DNSP Inputs General'!$B46='DNSP Inputs General'!$A$42,G$90,G$91))*'DNSP Inputs General'!$D46*'DNSP Inputs General'!N46 -> 1018.568605 | H99: =IF('DNSP Inputs General'!$B46='DNSP Inputs General'!$A$41,H$89,IF('DNSP Inputs General'!$B46='DNSP Inputs General'!$A$42,H$90,H$91))*'DNSP Inputs General'!$D46*'DNSP Inputs General'!O46 -> 932.2722657 | K99: =D99/'Charges Summary'!D$4 -> 1185.383671 | L99: =E99/'Charges Summary'!E$4 -> 1063.315665 | M99: =F99/'Charges Summary'!F$4 -> 1049.543245 | N99: =G99/'Charges Summary'!G$4 -> 954.6368158 | O99: =H99/'Charges Summary'!H$4 -> 853.919742
A100: ='DNSP Inputs General'!A$47 -> Mercury Vapour 125 watt | D100: =IF('DNSP Inputs General'!$B47='DNSP Inputs General'!$A$41,D$89,IF('DNSP Inputs General'!$B47='DNSP Inputs General'!$A$42,D$90,D$91))*'DNSP Inputs General'!$D47*'DNSP Inputs General'!K47 -> 35982.23598 | E100: =IF('DNSP Inputs General'!$B47='DNSP Inputs General'!$A$41,E$89,IF('DNSP Inputs General'!$B47='DNSP Inputs General'!$A$42,E$90,E$91))*'DNSP Inputs General'!$D47*'DNSP Inputs General'!L47 -> 32458.3788 | F100: =IF('DNSP Inputs General'!$B47='DNSP Inputs General'!$A$41,F$89,IF('DNSP Inputs General'!$B47='DNSP Inputs General'!$A$42,F$90,F$91))*'DNSP Inputs General'!$D47*'DNSP Inputs General'!M47 -> 32468.90598 | G100: =IF('DNSP Inputs General'!$B47='DNSP Inputs General'!$A$41,G$89,IF('DNSP Inputs General'!$B47='DNSP Inputs General'!$A$42,G$90,G$91))*'DNSP Inputs General'!$D47*'DNSP Inputs General'!N47 -> 29919.06759 | H100: =IF('DNSP Inputs General'!$B47='DNSP Inputs General'!$A$41,H$89,IF('DNSP Inputs General'!$B47='DNSP Inputs General'!$A$42,H$90,H$91))*'DNSP Inputs General'!$D47*'DNSP Inputs General'!O47 -> 27103.0181 | K100: =D100/'Charges Summary'!D$4 -> 35449.16582 | L100: =E100/'Charges Summary'!E$4 -> 31653.61645 | M100: =F100/'Charges Summary'!F$4 -> 31063.21278 | N100: =G100/'Charges Summary'!G$4 -> 28041.15824 | O100: =H100/'Charges Summary'!H$4 -> 24825.15363
A101: ='DNSP Inputs General'!A$48 -> Mercury Vapour 250 watt | D101: =IF('DNSP Inputs General'!$B48='DNSP Inputs General'!$A$41,D$89,IF('DNSP Inputs General'!$B48='DNSP Inputs General'!$A$42,D$90,D$91))*'DNSP Inputs General'!$D48*'DNSP Inputs General'!K48 -> 2445.146605 | E101: =IF('DNSP Inputs General'!$B48='DNSP Inputs General'!$A$41,E$89,IF('DNSP Inputs General'!$B48='DNSP Inputs General'!$A$42,E$90,E$91))*'DNSP Inputs General'!$D48*'DNSP Inputs General'!L48 -> 2470.571966 | F101: =IF('DNSP Inputs General'!$B48='DNSP Inputs General'!$A$41,F$89,IF('DNSP Inputs General'!$B48='DNSP Inputs General'!$A$42,F$90,F$91))*'DNSP Inputs General'!$D48*'DNSP Inputs General'!M48 -> 2807.732311 | G101: =IF('DNSP Inputs General'!$B48='DNSP Inputs General'!$A$41,G$89,IF('DNSP Inputs General'!$B48='DNSP Inputs General'!$A$42,G$90,G$91))*'DNSP Inputs General'!$D48*'DNSP Inputs General'!N48 -> 2995.691335 | H101: =IF('DNSP Inputs General'!$B48='DNSP Inputs General'!$A$41,H$89,IF('DNSP Inputs General'!$B48='DNSP Inputs General'!$A$42,H$90,H$91))*'DNSP Inputs General'!$D48*'DNSP Inputs General'!O48 -> 3222.601654 | K101: =D101/'Charges Summary'!D$4 -> 2408.922211 | L101: =E101/'Charges Summary'!E$4 -> 2409.317419 | M101: =F101/'Charges Summary'!F$4 -> 2686.175697 | N101: =G101/'Charges Summary'!G$4 -> 2807.662856 | O101: =H101/'Charges Summary'!H$4 -> 2951.759131
A102: ='DNSP Inputs General'!A$49 -> Mercury Vapour 400 watt | D102: =IF('DNSP Inputs General'!$B49='DNSP Inputs General'!$A$41,D$89,IF('DNSP Inputs General'!$B49='DNSP Inputs General'!$A$42,D$90,D$91))*'DNSP Inputs General'!$D49*'DNSP Inputs General'!K49 -> 205.27357 | E102: =IF('DNSP Inputs General'!$B49='DNSP Inputs General'!$A$41,E$89,IF('DNSP Inputs General'!$B49='DNSP Inputs General'!$A$42,E$90,E$91))*'DNSP Inputs General'!$D49*'DNSP Inputs General'!L49 -> 207.4080656 | F102: =IF('DNSP Inputs General'!$B49='DNSP Inputs General'!$A$41,F$89,IF('DNSP Inputs General'!$B49='DNSP Inputs General'!$A$42,F$90,F$91))*'DNSP Inputs General'!$D49*'DNSP Inputs General'!M49 -> 235.7131608 | G102: =IF('DNSP Inputs General'!$B49='DNSP Inputs General'!$A$41,G$89,IF('DNSP Inputs General'!$B49='DNSP Inputs General'!$A$42,G$90,G$91))*'DNSP Inputs General'!$D49*'DNSP Inputs General'!N49 -> 251.4925909 | H102: =IF('DNSP Inputs General'!$B49='DNSP Inputs General'!$A$41,H$89,IF('DNSP Inputs General'!$B49='DNSP Inputs General'!$A$42,H$90,H$91))*'DNSP Inputs General'!$D49*'DNSP Inputs General'!O49 -> 270.5420381 | K102: =D102/'Charges Summary'!D$4 -> 202.2324801 | L102: =E102/'Charges Summary'!E$4 -> 202.2656584 | M102: =F102/'Charges Summary'!F$4 -> 225.5083085 | N102: =G102/'Charges Summary'!G$4 -> 235.70733 | O102: =H102/'Charges Summary'!H$4 -> 247.8044193
A103: ='DNSP Inputs General'!A$50 -> Mercury Vapour 700 watt | D103: =IF('DNSP Inputs General'!$B50='DNSP Inputs General'!$A$41,D$89,IF('DNSP Inputs General'!$B50='DNSP Inputs General'!$A$42,D$90,D$91))*'DNSP Inputs General'!$D50*'DNSP Inputs General'!K50 -> 136.8490467 | E103: =IF('DNSP Inputs General'!$B50='DNSP Inputs General'!$A$41,E$89,IF('DNSP Inputs General'!$B50='DNSP Inputs General'!$A$42,E$90,E$91))*'DNSP Inputs General'!$D50*'DNSP Inputs General'!L50 -> 126.0769044 | F103: =IF('DNSP Inputs General'!$B50='DNSP Inputs General'!$A$41,F$89,IF('DNSP Inputs General'!$B50='DNSP Inputs General'!$A$42,F$90,F$91))*'DNSP Inputs General'!$D50*'DNSP Inputs General'!M50 -> 157.1421072 | G103: =IF('DNSP Inputs General'!$B50='DNSP Inputs General'!$A$41,G$89,IF('DNSP Inputs General'!$B50='DNSP Inputs General'!$A$42,G$90,G$91))*'DNSP Inputs General'!$D50*'DNSP Inputs General'!N50 -> 152.8745145 | H103: =IF('DNSP Inputs General'!$B50='DNSP Inputs General'!$A$41,H$89,IF('DNSP Inputs General'!$B50='DNSP Inputs General'!$A$42,H$90,H$91))*'DNSP Inputs General'!$D50*'DNSP Inputs General'!O50 -> 180.3613588 | K103: =D103/'Charges Summary'!D$4 -> 134.8216534 | L103: =E103/'Charges Summary'!E$4 -> 122.9509952 | M103: =F103/'Charges Summary'!F$4 -> 150.3388723 | N103: =G103/'Charges Summary'!G$4 -> 143.279146 | O103: =H103/'Charges Summary'!H$4 -> 165.2029462
A104: ='DNSP Inputs General'!A$51 -> Sodium High Pressure 70 watt | D104: =IF('DNSP Inputs General'!$B51='DNSP Inputs General'!$A$41,D$89,IF('DNSP Inputs General'!$B51='DNSP Inputs General'!$A$42,D$90,D$91))*'DNSP Inputs General'!$D51*'DNSP Inputs General'!K51 -> 20090.52541 | E104: =IF('DNSP Inputs General'!$B51='DNSP Inputs General'!$A$41,E$89,IF('DNSP Inputs General'!$B51='DNSP Inputs General'!$A$42,E$90,E$91))*'DNSP Inputs General'!$D51*'DNSP Inputs General'!L51 -> 20683.11031 | F104: =IF('DNSP Inputs General'!$B51='DNSP Inputs General'!$A$41,F$89,IF('DNSP Inputs General'!$B51='DNSP Inputs General'!$A$42,F$90,F$91))*'DNSP Inputs General'!$D51*'DNSP Inputs General'!M51 -> 23949.70676 | G104: =IF('DNSP Inputs General'!$B51='DNSP Inputs General'!$A$41,G$89,IF('DNSP Inputs General'!$B51='DNSP Inputs General'!$A$42,G$90,G$91))*'DNSP Inputs General'!$D51*'DNSP Inputs General'!N51 -> 26023.45508 | H104: =IF('DNSP Inputs General'!$B51='DNSP Inputs General'!$A$41,H$89,IF('DNSP Inputs General'!$B51='DNSP Inputs General'!$A$42,H$90,H$91))*'DNSP Inputs General'!$D51*'DNSP Inputs General'!O51 -> 28501.4919 | K104: =D104/'Charges Summary'!D$4 -> 19792.88799 | L104: =E104/'Charges Summary'!E$4 -> 20170.3001 | M104: =F104/'Charges Summary'!F$4 -> 22912.83967 | N104: =G104/'Charges Summary'!G$4 -> 24390.05893 | O104: =H104/'Charges Summary'!H$4 -> 26106.09315
A105: ='DNSP Inputs General'!A$52 -> Sodium High Pressure 100 watt | D105: =IF('DNSP Inputs General'!$B52='DNSP Inputs General'!$A$41,D$89,IF('DNSP Inputs General'!$B52='DNSP Inputs General'!$A$42,D$90,D$91))*'DNSP Inputs General'!$D52*'DNSP Inputs General'!K52 -> 26564.03689 | E105: =IF('DNSP Inputs General'!$B52='DNSP Inputs General'!$A$41,E$89,IF('DNSP Inputs General'!$B52='DNSP Inputs General'!$A$42,E$90,E$91))*'DNSP Inputs General'!$D52*'DNSP Inputs General'!L52 -> 27020.98897 | F105: =IF('DNSP Inputs General'!$B52='DNSP Inputs General'!$A$41,F$89,IF('DNSP Inputs General'!$B52='DNSP Inputs General'!$A$42,F$90,F$91))*'DNSP Inputs General'!$D52*'DNSP Inputs General'!M52 -> 30930.15718 | G105: =IF('DNSP Inputs General'!$B52='DNSP Inputs General'!$A$41,G$89,IF('DNSP Inputs General'!$B52='DNSP Inputs General'!$A$42,G$90,G$91))*'DNSP Inputs General'!$D52*'DNSP Inputs General'!N52 -> 33229.72054 | H105: =IF('DNSP Inputs General'!$B52='DNSP Inputs General'!$A$41,H$89,IF('DNSP Inputs General'!$B52='DNSP Inputs General'!$A$42,H$90,H$91))*'DNSP Inputs General'!$D52*'DNSP Inputs General'!O52 -> 35994.52204 | K105: =D105/'Charges Summary'!D$4 -> 26170.4956 | L105: =E105/'Charges Summary'!E$4 -> 26351.03948 | M105: =F105/'Charges Summary'!F$4 -> 29591.08182 | N105: =G105/'Charges Summary'!G$4 -> 31144.01373 | O105: =H105/'Charges Summary'!H$4 -> 32969.37398
A106: ='DNSP Inputs General'!A$53 -> Sodium High Pressure 400 watt | D106: =IF('DNSP Inputs General'!$B53='DNSP Inputs General'!$A$41,D$89,IF('DNSP Inputs General'!$B53='DNSP Inputs General'!$A$42,D$90,D$91))*'DNSP Inputs General'!$D53*'DNSP Inputs General'!K53 -> 11483.0949 | E106: =IF('DNSP Inputs General'!$B53='DNSP Inputs General'!$A$41,E$89,IF('DNSP Inputs General'!$B53='DNSP Inputs General'!$A$42,E$90,E$91))*'DNSP Inputs General'!$D53*'DNSP Inputs General'!L53 -> 11647.52764 | F106: =IF('DNSP Inputs General'!$B53='DNSP Inputs General'!$A$41,F$89,IF('DNSP Inputs General'!$B53='DNSP Inputs General'!$A$42,F$90,F$91))*'DNSP Inputs General'!$D53*'DNSP Inputs General'!M53 -> 13288.12395 | G106: =IF('DNSP Inputs General'!$B53='DNSP Inputs General'!$A$41,G$89,IF('DNSP Inputs General'!$B53='DNSP Inputs General'!$A$42,G$90,G$91))*'DNSP Inputs General'!$D53*'DNSP Inputs General'!N53 -> 14232.59832 | H106: =IF('DNSP Inputs General'!$B53='DNSP Inputs General'!$A$41,H$89,IF('DNSP Inputs General'!$B53='DNSP Inputs General'!$A$42,H$90,H$91))*'DNSP Inputs General'!$D53*'DNSP Inputs General'!O53 -> 15369.59797 | K106: =D106/'Charges Summary'!D$4 -> 11312.97497 | L106: =E106/'Charges Summary'!E$4 -> 11358.74268 | M106: =F106/'Charges Summary'!F$4 -> 12712.8343 | N106: =G106/'Charges Summary'!G$4 -> 13339.2707 | O106: =H106/'Charges Summary'!H$4 -> 14077.86504
A107: ='DNSP Inputs General'!A$54 -> Metal Halide 70 watt | D107: =IF('DNSP Inputs General'!$B54='DNSP Inputs General'!$A$41,D$89,IF('DNSP Inputs General'!$B54='DNSP Inputs General'!$A$42,D$90,D$91))*'DNSP Inputs General'!$D54*'DNSP Inputs General'!K54 -> 317.7154864 | E107: =IF('DNSP Inputs General'!$B54='DNSP Inputs General'!$A$41,E$89,IF('DNSP Inputs General'!$B54='DNSP Inputs General'!$A$42,E$90,E$91))*'DNSP Inputs General'!$D54*'DNSP Inputs General'!L54 -> 321.0282632 | F107: =IF('DNSP Inputs General'!$B54='DNSP Inputs General'!$A$41,F$89,IF('DNSP Inputs General'!$B54='DNSP Inputs General'!$A$42,F$90,F$91))*'DNSP Inputs General'!$D54*'DNSP Inputs General'!M54 -> 365.0444574 | G107: =IF('DNSP Inputs General'!$B54='DNSP Inputs General'!$A$41,G$89,IF('DNSP Inputs General'!$B54='DNSP Inputs General'!$A$42,G$90,G$91))*'DNSP Inputs General'!$D54*'DNSP Inputs General'!N54 -> 389.5962992 | H107: =IF('DNSP Inputs General'!$B54='DNSP Inputs General'!$A$41,H$89,IF('DNSP Inputs General'!$B54='DNSP Inputs General'!$A$42,H$90,H$91))*'DNSP Inputs General'!$D54*'DNSP Inputs General'!O54 -> 419.2494651 | K107: =D107/'Charges Summary'!D$4 -> 313.0085903 | L107: =E107/'Charges Summary'!E$4 -> 313.0687943 | M107: =F107/'Charges Summary'!F$4 -> 349.2403981 | N107: =G107/'Charges Summary'!G$4 -> 365.1427786 | O107: =H107/'Charges Summary'!H$4 -> 384.0137782
A108: ='DNSP Inputs General'!A$55 -> Metal Halide 100 watt | D108: =IF('DNSP Inputs General'!$B55='DNSP Inputs General'!$A$41,D$89,IF('DNSP Inputs General'!$B55='DNSP Inputs General'!$A$42,D$90,D$91))*'DNSP Inputs General'!$D55*'DNSP Inputs General'!K55 -> 3353.663468 | E108: =IF('DNSP Inputs General'!$B55='DNSP Inputs General'!$A$41,E$89,IF('DNSP Inputs General'!$B55='DNSP Inputs General'!$A$42,E$90,E$91))*'DNSP Inputs General'!$D55*'DNSP Inputs General'!L55 -> 3388.631667 | F108: =IF('DNSP Inputs General'!$B55='DNSP Inputs General'!$A$41,F$89,IF('DNSP Inputs General'!$B55='DNSP Inputs General'!$A$42,F$90,F$91))*'DNSP Inputs General'!$D55*'DNSP Inputs General'!M55 -> 3853.24705 | G108: =IF('DNSP Inputs General'!$B55='DNSP Inputs General'!$A$41,G$89,IF('DNSP Inputs General'!$B55='DNSP Inputs General'!$A$42,G$90,G$91))*'DNSP Inputs General'!$D55*'DNSP Inputs General'!N55 -> 4112.40538 | H108: =IF('DNSP Inputs General'!$B55='DNSP Inputs General'!$A$41,H$89,IF('DNSP Inputs General'!$B55='DNSP Inputs General'!$A$42,H$90,H$91))*'DNSP Inputs General'!$D55*'DNSP Inputs General'!O55 -> 4425.41102 | K108: =D108/'Charges Summary'!D$4 -> 3303.979565 | L108: =E108/'Charges Summary'!E$4 -> 3304.615051 | M108: =F108/'Charges Summary'!F$4 -> 3686.426424 | N108: =G108/'Charges Summary'!G$4 -> 3854.284885 | O108: =H108/'Charges Summary'!H$4 -> 4053.47877
A109: ='DNSP Inputs General'!A$56 -> Metal Halide 150 watt | D109: =IF('DNSP Inputs General'!$B56='DNSP Inputs General'!$A$41,D$89,IF('DNSP Inputs General'!$B56='DNSP Inputs General'!$A$42,D$90,D$91))*'DNSP Inputs General'!$D56*'DNSP Inputs General'!K56 -> 529.5258107 | E109: =IF('DNSP Inputs General'!$B56='DNSP Inputs General'!$A$41,E$89,IF('DNSP Inputs General'!$B56='DNSP Inputs General'!$A$42,E$90,E$91))*'DNSP Inputs General'!$D56*'DNSP Inputs General'!L56 -> 535.0471053 | F109: =IF('DNSP Inputs General'!$B56='DNSP Inputs General'!$A$41,F$89,IF('DNSP Inputs General'!$B56='DNSP Inputs General'!$A$42,F$90,F$91))*'DNSP Inputs General'!$D56*'DNSP Inputs General'!M56 -> 608.4074289 | G109: =IF('DNSP Inputs General'!$B56='DNSP Inputs General'!$A$41,G$89,IF('DNSP Inputs General'!$B56='DNSP Inputs General'!$A$42,G$90,G$91))*'DNSP Inputs General'!$D56*'DNSP Inputs General'!N56 -> 649.3271653 | H109: =IF('DNSP Inputs General'!$B56='DNSP Inputs General'!$A$41,H$89,IF('DNSP Inputs General'!$B56='DNSP Inputs General'!$A$42,H$90,H$91))*'DNSP Inputs General'!$D56*'DNSP Inputs General'!O56 -> 698.7491084 | K109: =D109/'Charges Summary'!D$4 -> 521.6809839 | L109: =E109/'Charges Summary'!E$4 -> 521.7813238 | M109: =F109/'Charges Summary'!F$4 -> 582.0673301 | N109: =G109/'Charges Summary'!G$4 -> 608.5712977 | O109: =H109/'Charges Summary'!H$4 -> 640.0229637
A110: ='DNSP Inputs General'!A$57 -> Metal Halide 250 watt | D110: =IF('DNSP Inputs General'!$B57='DNSP Inputs General'!$A$41,D$89,IF('DNSP Inputs General'!$B57='DNSP Inputs General'!$A$42,D$90,D$91))*'DNSP Inputs General'!$D57*'DNSP Inputs General'!K57 -> 4325.407368 | E110: =IF('DNSP Inputs General'!$B57='DNSP Inputs General'!$A$41,E$89,IF('DNSP Inputs General'!$B57='DNSP Inputs General'!$A$42,E$90,E$91))*'DNSP Inputs General'!$D57*'DNSP Inputs General'!L57 -> 4370.384239 | F110: =IF('DNSP Inputs General'!$B57='DNSP Inputs General'!$A$41,F$89,IF('DNSP Inputs General'!$B57='DNSP Inputs General'!$A$42,F$90,F$91))*'DNSP Inputs General'!$D57*'DNSP Inputs General'!M57 -> 4966.813031 | G110: =IF('DNSP Inputs General'!$B57='DNSP Inputs General'!$A$41,G$89,IF('DNSP Inputs General'!$B57='DNSP Inputs General'!$A$42,G$90,G$91))*'DNSP Inputs General'!$D57*'DNSP Inputs General'!N57 -> 5299.308166 | H110: =IF('DNSP Inputs General'!$B57='DNSP Inputs General'!$A$41,H$89,IF('DNSP Inputs General'!$B57='DNSP Inputs General'!$A$42,H$90,H$91))*'DNSP Inputs General'!$D57*'DNSP Inputs General'!O57 -> 5700.707232 | K110: =D110/'Charges Summary'!D$4 -> 4261.327259 | L110: =E110/'Charges Summary'!E$4 -> 4262.026373 | M110: =F110/'Charges Summary'!F$4 -> 4751.782215 | N110: =G110/'Charges Summary'!G$4 -> 4966.690167 | O110: =H110/'Charges Summary'!H$4 -> 5221.593121
A111: ='DNSP Inputs General'!A$58 -> Metal Halide 400 watt | D111: =IF('DNSP Inputs General'!$B58='DNSP Inputs General'!$A$41,D$89,IF('DNSP Inputs General'!$B58='DNSP Inputs General'!$A$42,D$90,D$91))*'DNSP Inputs General'!$D58*'DNSP Inputs General'!K58 -> 4032.159411 | E111: =IF('DNSP Inputs General'!$B58='DNSP Inputs General'!$A$41,E$89,IF('DNSP Inputs General'!$B58='DNSP Inputs General'!$A$42,E$90,E$91))*'DNSP Inputs General'!$D58*'DNSP Inputs General'!L58 -> 4074.087002 | F111: =IF('DNSP Inputs General'!$B58='DNSP Inputs General'!$A$41,F$89,IF('DNSP Inputs General'!$B58='DNSP Inputs General'!$A$42,F$90,F$91))*'DNSP Inputs General'!$D58*'DNSP Inputs General'!M58 -> 4630.079945 | G111: =IF('DNSP Inputs General'!$B58='DNSP Inputs General'!$A$41,G$89,IF('DNSP Inputs General'!$B58='DNSP Inputs General'!$A$42,G$90,G$91))*'DNSP Inputs General'!$D58*'DNSP Inputs General'!N58 -> 4940.033036 | H111: =IF('DNSP Inputs General'!$B58='DNSP Inputs General'!$A$41,H$89,IF('DNSP Inputs General'!$B58='DNSP Inputs General'!$A$42,H$90,H$91))*'DNSP Inputs General'!$D58*'DNSP Inputs General'!O58 -> 5314.218606 | K111: =D111/'Charges Summary'!D$4 -> 3972.423716 | L111: =E111/'Charges Summary'!E$4 -> 3973.075432 | M111: =F111/'Charges Summary'!F$4 -> 4429.627489 | N111: =G111/'Charges Summary'!G$4 -> 4629.96541 | O111: =H111/'Charges Summary'!H$4 -> 4867.586808
A118: ='DNSP Inputs General'!A$67 -> Energy Efficient Lights
A119: ='DNSP Inputs General'!A$68 -> T5 2X14W | D119: =SUM('Charges Summary'!D$85,'Charges Summary'!D$11)*'DNSP Inputs General'!$D68*'DNSP Inputs General'!K68 -> 182316.1382 | E119: =SUM('Charges Summary'!E$85,'Charges Summary'!E$11)*'DNSP Inputs General'!$D68*'DNSP Inputs General'!L68 -> 205858.8619 | F119: =SUM('Charges Summary'!F$85,'Charges Summary'!F$11)*'DNSP Inputs General'!$D68*'DNSP Inputs General'!M68 -> 270233.0481 | G119: =SUM('Charges Summary'!G$85,'Charges Summary'!G$11)*'DNSP Inputs General'!$D68*'DNSP Inputs General'!N68 -> 322682.7919 | H119: =SUM('Charges Summary'!H$85,'Charges Summary'!H$11)*'DNSP Inputs General'!$D68*'DNSP Inputs General'!O68 -> 386842.9564 | K119: =D119/'Charges Summary'!D$4 -> 179615.1584 | L119: =E119/'Charges Summary'!E$4 -> 200754.8652 | M119: =F119/'Charges Summary'!F$4 -> 258533.7084 | N119: =G119/'Charges Summary'!G$4 -> 302429.185 | O119: =H119/'Charges Summary'!H$4 -> 354330.8642
A120: ='DNSP Inputs General'!A$69 -> Twin 24w Fluorescent | D120: =SUM('Charges Summary'!D$85,'Charges Summary'!D$11)*'DNSP Inputs General'!$D69*'DNSP Inputs General'!K69 -> 1594.10967 | E120: =SUM('Charges Summary'!E$85,'Charges Summary'!E$11)*'DNSP Inputs General'!$D69*'DNSP Inputs General'!L69 -> 1685.202603 | F120: =SUM('Charges Summary'!F$85,'Charges Summary'!F$11)*'DNSP Inputs General'!$D69*'DNSP Inputs General'!M69 -> 2089.482289 | G120: =SUM('Charges Summary'!G$85,'Charges Summary'!G$11)*'DNSP Inputs General'!$D69*'DNSP Inputs General'!N69 -> 2374.311331 | H120: =SUM('Charges Summary'!H$85,'Charges Summary'!H$11)*'DNSP Inputs General'!$D69*'DNSP Inputs General'!O69 -> 2724.219892 | K120: =D120/'Charges Summary'!D$4 -> 1570.49323 | L120: =E120/'Charges Summary'!E$4 -> 1643.420246 | M120: =F120/'Charges Summary'!F$4 -> 1999.021247 | N120: =G120/'Charges Summary'!G$4 -> 2225.284579 | O120: =H120/'Charges Summary'!H$4 -> 2495.263704
A121: ='DNSP Inputs General'!A$70 -> 32W Compact Fluorescent | D121: =SUM('Charges Summary'!D$85,'Charges Summary'!D$11)*'DNSP Inputs General'!$D70*'DNSP Inputs General'!K70 -> 10594.48108 | E121: =SUM('Charges Summary'!E$85,'Charges Summary'!E$11)*'DNSP Inputs General'!$D70*'DNSP Inputs General'!L70 -> 11199.88633 | F121: =SUM('Charges Summary'!F$85,'Charges Summary'!F$11)*'DNSP Inputs General'!$D70*'DNSP Inputs General'!M70 -> 13886.73628 | G121: =SUM('Charges Summary'!G$85,'Charges Summary'!G$11)*'DNSP Inputs General'!$D70*'DNSP Inputs General'!N70 -> 15779.71513 | H121: =SUM('Charges Summary'!H$85,'Charges Summary'!H$11)*'DNSP Inputs General'!$D70*'DNSP Inputs General'!O70 -> 18105.21362 | K121: =D121/'Charges Summary'!D$4 -> 10437.52581 | L121: =E121/'Charges Summary'!E$4 -> 10922.20004 | M121: =F121/'Charges Summary'!F$4 -> 13285.53059 | N121: =G121/'Charges Summary'!G$4 -> 14789.2807 | O121: =H121/'Charges Summary'!H$4 -> 16583.56674
A122: ='DNSP Inputs General'!A$71 -> 42w Compact Fluorescent | D122: =SUM('Charges Summary'!D$85,'Charges Summary'!D$11)*'DNSP Inputs General'!$D71*'DNSP Inputs General'!K71 -> 2137.235531 | E122: =SUM('Charges Summary'!E$85,'Charges Summary'!E$11)*'DNSP Inputs General'!$D71*'DNSP Inputs General'!L71 -> 2259.364552 | F122: =SUM('Charges Summary'!F$85,'Charges Summary'!F$11)*'DNSP Inputs General'!$D71*'DNSP Inputs General'!M71 -> 2801.385547 | G122: =SUM('Charges Summary'!G$85,'Charges Summary'!G$11)*'DNSP Inputs General'!$D71*'DNSP Inputs General'!N71 -> 3183.258112 | H122: =SUM('Charges Summary'!H$85,'Charges Summary'!H$11)*'DNSP Inputs General'!$D71*'DNSP Inputs General'!O71 -> 3652.383306 | K122: =D122/'Charges Summary'!D$4 -> 2105.572782 | L122: =E122/'Charges Summary'!E$4 -> 2203.346613 | M122: =F122/'Charges Summary'!F$4 -> 2680.103708 | N122: =G122/'Charges Summary'!G$4 -> 2983.456759 | O122: =H122/'Charges Summary'!H$4 -> 3345.419922
A127: Total Capital Charge | D127: =SUM(D94:D126) -> 2578930.479 | E127: =SUM(E94:E126) -> 2544539.275 | F127: =SUM(F94:F126) -> 2835630.224 | G127: =SUM(G94:G126) -> 2960287.052 | H127: =SUM(H94:H126) -> 3117356.875 | K127: =SUM(K94:K126) -> 2540724.102 | L127: =SUM(L94:L126) -> 2481450.807 | M127: =SUM(M94:M126) -> 2712865.812 | N127: =SUM(N94:N126) -> 2774480.769 | O127: =SUM(O94:O126) -> 2855359.616
A129: Check | C129: =SUM(D129:O129) -> 1.210719347e-08 | D129: =ABS(D40-SUM(D82,D127)) -> 1.862645149e-09 | E129: =ABS(E40-SUM(E82,E127)) -> 9.313225746e-10 | F129: =ABS(F40-SUM(F82,F127)) -> 0 | G129: =ABS(G40-SUM(G82,G127)) -> 0 | H129: =ABS(H40-SUM(H82,H127)) -> 1.862645149e-09 | K129: =ABS(K40-SUM(K82,K127)) -> 9.313225746e-10 | L129: =ABS(L40-SUM(L82,L127)) -> 2.793967724e-09 | M129: =ABS(M40-SUM(M82,M127)) -> 1.862645149e-09 | N129: =ABS(N40-SUM(N82,N127)) -> 0 | O129: =ABS(O40-SUM(O82,O127)) -> 1.862645149e-09
A131: Public Lighting - Capital Expenditure | D131: Forecast Capital Expenditure - Nominal | K131: Forecast Capital Expenditure - Real 2015 $
D132: =D$2 -> 2016 | E132: 2017 | F132: 2018 | G132: 2019 | H132: 2020 | K132: =K$2 -> 2016 | L132: 2017 | M132: 2018 | N132: 2019 | O132: 2020
A134: Total Capital Expenditure | D134: =K134*'Charges Summary'!D$4 -> 1559400.261 | E134: =L134*'Charges Summary'!E$4 -> 1658225.804 | F134: =M134*'Charges Summary'!F$4 -> 1767605.425 | G134: =N134*'Charges Summary'!G$4 -> 1879947.412 | H134: =O134*'Charges Summary'!H$4 -> 2035366.754 | K134: ='DNSP Inputs General'!K14 -> 1536298.035 | L134: ='DNSP Inputs General'!L14 -> 1617112.3 | M134: ='DNSP Inputs General'!M14 -> 1691079.565 | N134: ='DNSP Inputs General'!N14 -> 1761950.057 | O134: ='DNSP Inputs General'!O14 -> 1864305.008
A135: Check | C135: =SUM(D135:H135) -> 6.98491931e-10 | D135: =ABS(D134-D142) -> 0 | E135: =ABS(E134-E142) -> 0 | F135: =ABS(F134-F142) -> 2.328306437e-10 | G135: =ABS(G134-G142) -> 2.328306437e-10 | H135: =ABS(H134-H142) -> 2.328306437e-10
A138: Public Lighting - RAB | D138: RAB - Historical Cost ($)
D139: =D$2 -> 2016 | E139: 2017 | F139: 2018 | G139: 2019 | H139: 2020
A141: Opening RAB | D141: ='Total RAB'!N139 -> 19675313.56 | E141: =D144 -> 19921988.26 | F141: =E144 -> 20204885.16 | G141: 20531273.75 | H141: 20900421.29
A142: Capex | D142: ='Total RAB'!N140 -> 1559400.261 | E142: ='Total RAB'!O140 -> 1658225.804 | F142: ='Total RAB'!P140 -> 1767605.425 | G142: ='Total RAB'!Q140 -> 1879947.412 | H142: ='Total RAB'!R140 -> 2035366.754
A143: Depreciation | D143: ='Total RAB'!N141 -> 1312725.565 | E143: ='Total RAB'!O141 -> 1375328.902 | F143: ='Total RAB'!P141 -> 1441216.834 | G143: ='Total RAB'!Q141 -> 1510799.875 | H143: ='Total RAB'!R141 -> 1584854.82
A144: Closing RAB | D144: =D141+D142-D143 -> 19921988.26 | E144: =E141+E142-E143 -> 20204885.16 | F144: =F141+F142-F143 -> 20531273.75 | G144: =G141+G142-G143 -> 20900421.29 | H144: =H141+H142-H143 -> 21350933.22
A146: Average RAB | D146: =SUM(D141,D144)/2 -> 19798650.91 | E146: =SUM(E141,E144)/2 -> 20063436.71 | F146: =SUM(F141,F144)/2 -> 20368079.46 | G146: =SUM(G141,G144)/2 -> 20715847.52 | H146: =SUM(H141,H144)/2 -> 21125677.26
A148: =WACC!A$8 -> Nominal Pre Tax WACC | D148: =WACC!E$8 -> 0.06395410069 | E148: =WACC!F$8 -> 0.05827567776 | F148: =WACC!G$8 -> 0.06846072027 | G148: =WACC!H$8 -> 0.06996996749 | H148: =WACC!I$8 -> 0.07254215032
A150: Capital Charge | D150: Capital Charge - Nominal
D151: =D$2 -> 2016 | E151: 2017 | F151: 2018 | G151: 2019 | H151: 2020
A153: Depreciation | D153: =D143 -> 1312725.565 | E153: =E143 -> 1375328.902 | F153: =F143 -> 1441216.834 | G153: =G143 -> 1510799.875 | H153: =H143 -> 1584854.82
A154: Return | D154: =D148*D146 -> 1266204.914 | E154: =E148*E146 -> 1169210.372 | F154: =F148*F146 -> 1394413.39 | G154: =G148*G146 -> 1449487.178 | H154: =H148*H146 -> 1532502.055
D156: =SUM(D153:D155) -> 2578930.479 | E156: =SUM(E153:E155) -> 2544539.275 | F156: =SUM(F153:F155) -> 2835630.224 | G156: =SUM(G153:G155) -> 2960287.052 | H156: =SUM(H153:H155) -> 3117356.875
A158: Check | C158: =SUM(D158:H158) -> 2.328306437e-09 | D158: =ABS(D127-D156)*IF('DNSP Inputs General'!K76=0,0,1) -> 4.656612873e-10 | E158: =ABS(E127-E156)*IF('DNSP Inputs General'!L76=0,0,1) -> 4.656612873e-10 | F158: =ABS(F127-F156)*IF('DNSP Inputs General'!M76=0,0,1) -> 0 | G158: =ABS(G127-G156)*IF('DNSP Inputs General'!N76=0,0,1) -> 4.656612873e-10 | H158: =ABS(H127-H156)*IF('DNSP Inputs General'!O76=0,0,1) -> 9.313225746e-10

Sheet Charges Summary
A1: ='DNSP Inputs O & M'!$A$3 -> United Energy | D1: ='DNSP Inputs General'!K$2 -> 2016 | E1: ='DNSP Inputs General'!L$2 -> 2017 | F1: ='DNSP Inputs General'!M$2 -> 2018 | G1: ='DNSP Inputs General'!N$2 -> 2019 | H1: ='DNSP Inputs General'!O$2 -> 2020
A2: Nominal $
A4: ='Total RAB'!A20 -> CPI Index | D4: =(1+WACC!E6) -> 1.015037594 | E4: =D4*(1+WACC!F6) -> 1.025424025 | F4: =E4*(1+WACC!G6) -> 1.045252667 | G4: =F4*(1+WACC!H6) -> 1.06696975 | H4: =G4*(1+WACC!I6) -> 1.091756309
A6: ='DNSP Inputs General'!$A$6 -> Poles and Brackets | D6: ='DNSP Inputs General'!F$2 -> 2011 | E6: ='DNSP Inputs General'!G$2 -> 2012 | F6: ='DNSP Inputs General'!H$2 -> 2013 | G6: ='DNSP Inputs General'!I$2 -> 2014 | H6: ='DNSP Inputs General'!J$2 -> 2015
A7: O & M
A8: ='O & M 2016-2020'!A$10 -> Dedicated poles - inspection | D8: ='O & M 2016-2020'!$B$10*D$4 -> 0.6431954219 | E8: ='O & M 2016-2020'!$Q$10*E$4 -> 0.6497769565 | F8: ='O & M 2016-2020'!$AF$10*F$4 -> 0.6623417042 | G8: ='O & M 2016-2020'!$AU$10*G$4 -> 0.6761030947 | H8: ='O & M 2016-2020'!$BJ$10*H$4 -> 0.6918095092
A10: Capital Charge
A11: Depreciation and Return | D11: ='Depn & WACC Post 2004'!H$80 -> 6.427038227 | E11: ='Depn & WACC Post 2004'!H$129 -> 6.509302806 | F11: ='Depn & WACC Post 2004'!H$178 -> 7.746705297 | G11: ='Depn & WACC Post 2004'!H$227 -> 8.460063317 | H11: ='Depn & WACC Post 2004'!H$276 -> 9.343995116
A13: Total Charge | D13: =SUM(D8,D11) -> 7.070233649 | E13: =SUM(E8,E11) -> 7.159079763 | F13: =SUM(F8,F11) -> 8.409047001 | G13: =SUM(G8,G11) -> 9.136166412 | H13: =SUM(H8,H11) -> 10.03580462
A18: ='DNSP Inputs General'!$A$8 -> Existing Lights
A20: ='O & M 2016-2020'!$A$8 -> MV80 | D20: =D$1 -> 2016 | E20: =E$1 -> 2017 | F20: 2018 | G20: 2019 | H20: 2020
A22: O & M Charge
A23: ='O & M 2016-2020'!A$9 -> Bulk change & repairs | D23: ='O & M 2016-2020'!$B$9*D$4 -> 21.51204574 | E23: ='O & M 2016-2020'!$Q$9*E$4 -> 22.35147679 | F23: ='O & M 2016-2020'!$AF$9*F$4 -> 24.23734902 | G23: ='O & M 2016-2020'!$AU$9*G$4 -> 25.75289386 | H23: ='O & M 2016-2020'!$BJ$9*H$4 -> 27.41762869
A24: ='O & M 2016-2020'!A$11 -> Other costs | D24: ='O & M 2016-2020'!$B$11*D$4 -> 1.485561993 | E24: ='O & M 2016-2020'!$Q$11*E$4 -> 1.497310101 | F24: ='O & M 2016-2020'!$AF$11*F$4 -> 1.52275818 | G24: ='O & M 2016-2020'!$AU$11*G$4 -> 1.550818215 | H24: ='O & M 2016-2020'!$BJ$11*H$4 -> 1.583198642
D25: =SUM(D23:D24) -> 22.99760773 | E25: =SUM(E23:E24) -> 23.84878689 | F25: =SUM(F23:F24) -> 25.7601072 | G25: =SUM(G23:G24) -> 27.30371208 | H25: =SUM(H23:H24) -> 29.00082733
A26: Capital Charge
A27: Depreciation and Return | D27: ='Depn & WACC Post 2004'!H$40 -> 20.0778773 | E27: ='Depn & WACC Post 2004'!H$89 -> 20.27170103 | F27: ='Depn & WACC Post 2004'!H$138 -> 22.70002575 | G27: ='Depn & WACC Post 2004'!H$187 -> 24.03096058 | H27: ='Depn & WACC Post 2004'!H$236 -> 25.61567707
A29: Poles & Brackets Charge | D29: =D$13 -> 7.070233649 | E29: =E$13 -> 7.159079763 | F29: =F$13 -> 8.409047001 | G29: =G$13 -> 9.136166412 | H29: =H$13 -> 10.03580462
A31: Total Charge | D31: =SUM(D25,D27,D29) -> 50.14571869 | E31: =SUM(E25,E27,E29) -> 51.27956769 | F31: =SUM(F25,F27,F29) -> 56.86917995 | G31: =SUM(G25,G27,G29) -> 60.47083907 | H31: =SUM(H25,H27,H29) -> 64.65230902
A33: WDV RAB - MV 80 Luminaire
A34: RAB WDV | D34: ='Depn & WACC Post 2004'!$I$8 -> 131.6497089 | E34: ='Depn & WACC Post 2004'!I$40 -> 133.378093 | F34: ='Depn & WACC Post 2004'!I$89 -> 134.8563058 | G34: ='Depn & WACC Post 2004'!I$138 -> 136.224908 | H34: ='Depn & WACC Post 2004'!I$187 -> 137.5406527
A36: Avoided Costs - MV 80 O & M
A37: Materials & labour - bulk lamp change | D37: ='O & M 2016-2020'!$G$9*D$4 -> -26.30501377 | E37: ='O & M 2016-2020'!$V$9*E$4 -> -27.58959897 | F37: ='O & M 2016-2020'!$AK$9*F$4 -> -29.31850053 | G37: ='O & M 2016-2020'!$AZ$9*G$4 -> -31.34725123 | H37: ='O & M 2016-2020'!$BO$9*H$4 -> -33.78019791
A38: Materials & Labour - repair of faults | D38: ='O & M 2016-2020'!$G$10*D$4 -> -2.028564854 | E38: ='O & M 2016-2020'!$V$10*E$4 -> -2.043190974 | F38: ='O & M 2016-2020'!$AK$10*F$4 -> -2.365314474 | G38: ='O & M 2016-2020'!$AZ$10*G$4 -> -2.464344737 | H38: ='O & M 2016-2020'!$BO$10*H$4 -> -2.522001998
D39: =SUM(D37:D38) -> -28.33357862 | E39: =SUM(E37:E38) -> -29.63278995 | F39: =SUM(F37:F38) -> -31.68381501 | G39: =SUM(G37:G38) -> -33.81159597 | H39: =SUM(H37:H38) -> -36.3021999
A44: ='O & M 2016-2020'!$A$14 -> S-HP 150 | D44: =D$1 -> 2016 | E44: =E$1 -> 2017 | F44: 2018 | G44: 2019 | H44: 2020
A46: O & M Charge
A47: ='O & M 2016-2020'!A$15 -> Patrols and repairs | D47: ='O & M 2016-2020'!$B$15*D$4 -> 36.39221906 | E47: ='O & M 2016-2020'!$Q$15*E$4 -> 39.58156465 | F47: ='O & M 2016-2020'!$AF$15*F$4 -> 43.68479518 | G47: ='O & M 2016-2020'!$AU$15*G$4 -> 44.21394957 | H47: ='O & M 2016-2020'!$BJ$15*H$4 -> 46.49970912
A48: ='O & M 2016-2020'!A$17 -> Other costs | D48: ='O & M 2016-2020'!$B$17*D$4 -> 1.485561993 | E48: ='O & M 2016-2020'!$Q$17*E$4 -> 1.497310101 | F48: ='O & M 2016-2020'!$AF$17*F$4 -> 1.52275818 | G48: ='O & M 2016-2020'!$AU$17*G$4 -> 1.550818215 | H48: ='O & M 2016-2020'!$BJ$17*H$4 -> 1.583198642
D49: =SUM(D47:D48) -> 37.87778105 | E49: =SUM(E47:E48) -> 41.07887475 | F49: =SUM(F47:F48) -> 45.20755336 | G49: =SUM(G47:G48) -> 45.76476778 | H49: =SUM(H47:H48) -> 48.08290777
A50: Capital Charge
A51: Depreciation and Return | D51: ='Depn & WACC Post 2004'!H$41 -> 19.72238453 | E51: ='Depn & WACC Post 2004'!H$90 -> 19.91277647 | F51: ='Depn & WACC Post 2004'!H$139 -> 22.29810601 | G51: ='Depn & WACC Post 2004'!H$188 -> 23.60547571 | H51: ='Depn & WACC Post 2004'!H$237 -> 25.1621337
A53: Poles & Brackets Charge | D53: =D$13 -> 7.070233649 | E53: =E$13 -> 7.159079763 | F53: =F$13 -> 8.409047001 | G53: =G$13 -> 9.136166412 | H53: =H$13 -> 10.03580462
A55: Total Charge | D55: =SUM(D49,D51,D53) -> 64.67039922 | E55: =SUM(E49,E51,E53) -> 68.15073098 | F55: =SUM(F49,F51,F53) -> 75.91470637 | G55: =SUM(G49,G51,G53) -> 78.5064099 | H55: =SUM(H49,H51,H53) -> 83.28084609
A60: ='O & M 2016-2020'!$A$20 -> S-HP 250 | D60: =D$1 -> 2016 | E60: =E$1 -> 2017 | F60: 2018 | G60: 2019 | H60: 2020
A62: O & M Charge
A63: ='O & M 2016-2020'!A$21 -> Patrols and repairs | D63: ='O & M 2016-2020'!$B$21*D$4 -> 36.97506858 | E63: ='O & M 2016-2020'!$Q$21*E$4 -> 40.20772569 | F63: ='O & M 2016-2020'!$AF$21*F$4 -> 39.33843812 | G63: ='O & M 2016-2020'!$AU$21*G$4 -> 44.82210393 | H63: ='O & M 2016-2020'!$BJ$21*H$4 -> 47.11603533
A64: ='O & M 2016-2020'!A$23 -> Other costs | D64: ='O & M 2016-2020'!$B$23*D$4 -> 1.485561993 | E64: ='O & M 2016-2020'!$Q$23*E$4 -> 1.497310101 | F64: ='O & M 2016-2020'!$AF$23*F$4 -> 1.52275818 | G64: ='O & M 2016-2020'!$AU$23*G$4 -> 1.550818215 | H64: ='O & M 2016-2020'!$BJ$23*H$4 -> 1.583198642
D65: =SUM(D63:D64) -> 38.46063058 | E65: =SUM(E63:E64) -> 41.70503579 | F65: =SUM(F63:F64) -> 40.8611963 | G65: =SUM(G63:G64) -> 46.37292215 | H65: =SUM(H63:H64) -> 48.69923397
A66: Capital Charge
A67: Depreciation and Return | D67: ='Depn & WACC Post 2004'!H$42 -> 20.7255504 | E67: ='Depn & WACC Post 2004'!H$91 -> 20.9256265 | F67: ='Depn & WACC Post 2004'!H$140 -> 23.43228423 | G67: ='Depn & WACC Post 2004'!H$189 -> 24.80615241 | H67: ='Depn & WACC Post 2004'!H$238 -> 26.44198877
A69: Poles & Brackets Charge | D69: =D$13 -> 7.070233649 | E69: =E$13 -> 7.159079763 | F69: =F$13 -> 8.409047001 | G69: =G$13 -> 9.136166412 | H69: =H$13 -> 10.03580462
A71: Total Charge | D71: =SUM(D65,D67,D69) -> 66.25641462 | E71: =SUM(E65,E67,E69) -> 69.78974205 | F71: =SUM(F65,F67,F69) -> 72.70252753 | G71: =SUM(G65,G67,G69) -> 80.31524097 | H71: =SUM(H65,H67,H69) -> 85.17702736
A76: ='DNSP Inputs General'!$A$11 -> Energy Efficient Lights
A78: ='O & M 2016-2020'!$A$26 -> T5 (2 X 14W) | D78: =D$1 -> 2016 | E78: =E$1 -> 2017 | F78: 2018 | G78: 2019 | H78: 2020
A80: O & M Charge
A81: ='O & M 2016-2020'!A$27 -> Bulk change & repairs | D81: ='O & M 2016-2020'!$B$27*D$4 -> 27.42007989 | E81: ='O & M 2016-2020'!$Q$27*E$4 -> 24.70275136 | F81: ='O & M 2016-2020'!$AF$27*F$4 -> 22.72184522 | G81: ='O & M 2016-2020'!$AU$27*G$4 -> 21.08077654 | H81: ='O & M 2016-2020'!$BJ$27*H$4 -> 19.77594846
A82: ='O & M 2016-2020'!A$29 -> Other costs | D82: ='O & M 2016-2020'!$B$29*D$4 -> 1.485561993 | E82: ='O & M 2016-2020'!$Q$29*E$4 -> 1.497310101 | F82: ='O & M 2016-2020'!$AF$29*F$4 -> 1.52275818 | G82: ='O & M 2016-2020'!$AU$29*G$4 -> 1.550818215 | H82: ='O & M 2016-2020'!$BJ$29*H$4 -> 1.583198642
D83: =SUM(D81:D82) -> 28.90564188 | E83: =SUM(E81:E82) -> 26.20006146 | F83: =SUM(F81:F82) -> 24.2446034 | G83: =SUM(G81:G82) -> 22.63159476 | H83: =SUM(H81:H82) -> 21.3591471
A84: Capital Charge
A85: Depreciation and Return | D85: ='Depn & WACC Post 2004'!$H$69 -> 0 | E85: ='Depn & WACC Post 2004'!$H$118 -> 0 | F85: ='Depn & WACC Post 2004'!$H$167 -> 0 | G85: ='Depn & WACC Post 2004'!$H$216 -> 0 | H85: ='Depn & WACC Post 2004'!$H$265 -> 0
A87: Poles & Brackets Charge | D87: =D$13 -> 7.070233649 | E87: =E$13 -> 7.159079763 | F87: =F$13 -> 8.409047001 | G87: =G$13 -> 9.136166412 | H87: =H$13 -> 10.03580462
A89: Total Charge | D89: =SUM(D83,D85,D87) -> 35.97587553 | E89: =SUM(E83,E85,E87) -> 33.35914123 | F89: =SUM(F83,F85,F87) -> 32.6536504 | G89: =SUM(G83,G85,G87) -> 31.76776117 | H89: =SUM(H83,H85,H87) -> 31.39495172

Sheet O & M 2016-2020
A1: ='DNSP Inputs O & M'!$A$3 -> United Energy
A3: Public Lighting O & M Costs | B3: Year | C3: 2016 | Q3: Year | R3: =C3+1 -> 2017 | AF3: Year | AG3: =R3+1 -> 2018 | AU3: Year | AV3: =AG3+1 -> 2019 | BJ3: Year | BK3: =AV3+1 -> 2020
A4: ='DNSP Inputs O & M'!C5 -> Real 2015 $
A6: Summary
A8: =$A$69 -> MV80 | D8: Avoided Costs - MV 80 O & M | S8: Avoided Costs - MV 80 O & M | AH8: Avoided Costs - MV 80 O & M | AW8: Avoided Costs - MV 80 O & M | BL8: Avoided Costs - MV 80 O & M
A9: =$A$70 -> Bulk change & repairs | B9: =G90*C40+N90*C41 -> 21.19334877 | D9: Materials & labour - bulk lamp change | G9: =-((G72+G81)*C40+(N72+N81)*C41)*2 -> -25.91530986 | Q9: =V90*R40+AC90*R41 -> 21.79730165 | S9: Materials & labour - bulk lamp change | V9: =-((V72+V81)*R40+(AC72+AC81)*R41)*2 -> -26.90555155 | AF9: =AK90*AG40+AR90*AG41 -> 23.18802888 | AH9: Materials & labour - bulk lamp change | AK9: =-((AK72+AK81)*AG40+(AR72+AR81)*AG41)*2 -> -28.04919946 | AU9: =AZ90*AV40+BG90*AV41 -> 24.13647984 | AW9: Materials & labour - bulk lamp change | AZ9: =-((AZ72+AZ81)*AV40+(BG72+BG81)*AV41)*2 -> -29.37970007 | BJ9: =BO90*BK40+BV90*BK41 -> 25.11332287 | BL9: Materials & labour - bulk lamp change | BO9: =-((BO72+BO81)*BK40+(BV72+BV81)*BK41)*2 -> -30.94115201
A10: =A92 -> Dedicated poles - inspection | B10: =(G93*C40+N93*C41)*C43 -> 0.6336666009 | D10: Materials & Labour - repair of faults | G10: =-((G76+G84+G86)*C40+(N76+N84+N86)*C41)/2 -> -1.998512042 | Q10: =(V93*R40+AC93*R41)*R43 -> 0.6336666009 | S10: Materials & Labour - repair of faults | V10: =-((V76+V84+V86)*R40+(AC76+AC84+AC86)*R41)/2 -> -1.992532771 | AF10: =(AK93*AG40+AR93*AG41)*AG43 -> 0.6336666009 | AH10: Materials & Labour - repair of faults | AK10: =-((AK76+AK84+AK86)*AG40+(AR76+AR84+AR86)*AG41)/2 -> -2.262911686 | AU10: =(AZ93*AV40+BG93*AV41)*AV43 -> 0.6336666009 | AW10: Materials & Labour - repair of faults | AZ10: =-((AZ76+AZ84+AZ86)*AV40+(BG76+BG84+BG86)*AV41)/2 -> -2.309666921 | BJ10: =(BO93*BK40+BV93*BK41)*BK43 -> 0.6336666009 | BL10: Materials & Labour - repair of faults | BO10: =-((BO76+BO84+BO86)*BK40+(BV76+BV84+BV86)*BK41)/2 -> -2.310041148
A11: Other costs | B11: =IF(C51=0,0,C49/C51) -> 1.463553667 | G11: =SUM(G9:G10) -> -27.9138219 | Q11: =IF(R51=0,0,R49/R51) -> 1.460186288 | V11: =SUM(V9:V10) -> -28.89808432 | AF11: =IF(AG51=0,0,AG49/AG51) -> 1.456832619 | AK11: =SUM(AK9:AK10) -> -30.31211115 | AU11: =IF(AV51=0,0,AV49/AV51) -> 1.453479084 | AZ11: =SUM(AZ9:AZ10) -> -31.68936699 | BJ11: =IF(BK51=0,0,BK49/BK51) -> 1.45013922 | BO11: =SUM(BO9:BO10) -> -33.25119315
A14: =$A$110 -> S-HP 150
A15: =$A$111 -> Patrols and repairs | B15: =G127*E40+N127*E41 -> 35.85307507 | Q15: =V127*T40+AC127*T41 -> 38.60019239 | AF15: =AK127*AI40+AR127*AI41 -> 41.79352666 | AU15: =AZ127*AX40+BG127*AX41 -> 41.43880327 | BJ15: =BO127*BM40+BV127*BM41 -> 42.59165598
A16: =$A$10 -> Dedicated poles - inspection | B16: =B10 -> 0.6336666009 | Q16: =Q10 -> 0.6336666009 | AF16: =AF10 -> 0.6336666009 | AU16: =AU10 -> 0.6336666009 | BJ16: =BJ10 -> 0.6336666009
A17: =$A$11 -> Other costs | B17: =B11 -> 1.463553667 | Q17: =Q11 -> 1.460186288 | AF17: =AF11 -> 1.456832619 | AU17: =AU11 -> 1.453479084 | BJ17: =BJ11 -> 1.45013922
A20: =$A$142 -> S-HP 250
A21: =$A$143 -> Patrols and repairs | B21: =G159*G40+N159*G41 -> 36.42728979 | Q21: =V159*V40+AC159*V41 -> 39.21082859 | AF21: =AK159*AK40+AR159*AK41 -> 37.63533869 | AU21: =AZ159*AZ40+BG159*AZ41 -> 42.00878603 | BJ21: =BO159*BO40+BV159*BO41 -> 43.15618325
A22: =$A$10 -> Dedicated poles - inspection | B22: =B10 -> 0.6336666009 | Q22: =Q10 -> 0.6336666009 | AF22: =AF10 -> 0.6336666009 | AU22: =AU10 -> 0.6336666009 | BJ22: =BJ10 -> 0.6336666009
A23: =$A$11 -> Other costs | B23: =B11 -> 1.463553667 | Q23: =Q11 -> 1.460186288 | AF23: =AF11 -> 1.456832619 | AU23: =AU11 -> 1.453479084 | BJ23: =BJ11 -> 1.45013922
A26: =$A$176 -> T5 (2 X 14W)
A27: =$A$177 -> Bulk change & repairs | B27: =$G$197*$I$40+$N$197*$I$41 -> 27.01385648 | Q27: =$V$197*$X$40+$AC$197*$X$41 -> 24.09027949 | AF27: =$AK$197*$AM$40+$AR$197*$AM$41 -> 21.73813657 | AU27: =$AZ$197*$BB$40+$BG$197*$BB$41 -> 19.75761407 | BJ27: =$BO$197*$BQ$40+$BV$197*$BQ$41 -> 18.11388521
A28: =$A$10 -> Dedicated poles - inspection | B28: =B10 -> 0.6336666009 | Q28: =Q10 -> 0.6336666009 | AF28: =AF10 -> 0.6336666009 | AU28: =AU10 -> 0.6336666009 | BJ28: =BJ10 -> 0.6336666009
A29: =$A$11 -> Other costs | B29: =B11 -> 1.463553667 | Q29: =Q11 -> 1.460186288 | AF29: =AF11 -> 1.456832619 | AU29: =AU11 -> 1.453479084 | BJ29: =BJ11 -> 1.45013922
A39: ='DNSP Inputs O & M'!A50 -> Location of selected public lighting assets within distributors' areas (%) | C39: =$A$69 -> MV80 | E39: =$A$110 -> S-HP 150 | G39: =$A$142 -> S-HP 250 | I39: =$A$176 -> T5 (2 X 14W) | R39: =$A$69 -> MV80 | T39: =$A$110 -> S-HP 150 | V39: =$A$142 -> S-HP 250 | X39: =$A$176 -> T5 (2 X 14W) | AG39: =$A$69 -> MV80 | AI39: =$A$110 -> S-HP 150 | AK39: =$A$142 -> S-HP 250 | AM39: =$A$176 -> T5 (2 X 14W) | AV39: =$A$69 -> MV80 | AX39: =$A$110 -> S-HP 150 | AZ39: =$A$142 -> S-HP 250 | BB39: =$A$176 -> T5 (2 X 14W) | BK39: =$A$69 -> MV80 | BM39: =$A$110 -> S-HP 150 | BO39: =$A$142 -> S-HP 250 | BQ39: =$A$176 -> T5 (2 X 14W)
A40: ='DNSP Inputs O & M'!A51 -> Urban | C40: ='DNSP Inputs O & M'!$D$51 -> 0.92 | E40: ='DNSP Inputs O & M'!$D$80 -> 0.92 | G40: ='DNSP Inputs O & M'!$D$109 -> 0.92 | I40: ='DNSP Inputs O & M'!$D$166 -> 0.92 | R40: ='DNSP Inputs O & M'!$E$51 -> 0.92 | T40: ='DNSP Inputs O & M'!$E$80 -> 0.92 | V40: ='DNSP Inputs O & M'!$E$109 -> 0.92 | X40: ='DNSP Inputs O & M'!$E$166 -> 0.92 | AG40: ='DNSP Inputs O & M'!$F$51 -> 0.92 | AI40: ='DNSP Inputs O & M'!$F$80 -> 0.92 | AK40: ='DNSP Inputs O & M'!$F$109 -> 0.92 | AM40: ='DNSP Inputs O & M'!$F$166 -> 0.92 | AV40: ='DNSP Inputs O & M'!$G$51 -> 0.92 | AX40: ='DNSP Inputs O & M'!$G$80 -> 0.92 | AZ40: ='DNSP Inputs O & M'!$G$109 -> 0.92 | BB40: ='DNSP Inputs O & M'!$G$166 -> 0.92 | BK40: ='DNSP Inputs O & M'!$H$51 -> 0.92 | BM40: ='DNSP Inputs O & M'!$H$80 -> 0.92 | BO40: ='DNSP Inputs O & M'!$H$109 -> 0.92 | BQ40: ='DNSP Inputs O & M'!$H$166 -> 0.92
A41: ='DNSP Inputs O & M'!A52 -> Rural | C41: ='DNSP Inputs O & M'!$D$52 -> 0.08 | E41: ='DNSP Inputs O & M'!$D$81 -> 0.08 | G41: ='DNSP Inputs O & M'!$D$110 -> 0.08 | I41: ='DNSP Inputs O & M'!$D$167 -> 0.08 | R41: ='DNSP Inputs O & M'!$E$52 -> 0.08 | T41: ='DNSP Inputs O & M'!$E$81 -> 0.08 | V41: ='DNSP Inputs O & M'!$E$110 -> 0.08 | X41: ='DNSP Inputs O & M'!$E$167 -> 0.08 | AG41: ='DNSP Inputs O & M'!$F$52 -> 0.08 | AI41: ='DNSP Inputs O & M'!$F$81 -> 0.08 | AK41: ='DNSP Inputs O & M'!$F$110 -> 0.08 | AM41: ='DNSP Inputs O & M'!$F$167 -> 0.08 | AV41: ='DNSP Inputs O & M'!$G$52 -> 0.08 | AX41: ='DNSP Inputs O & M'!$G$81 -> 0.08 | AZ41: ='DNSP Inputs O & M'!$G$110 -> 0.08 | BB41: ='DNSP Inputs O & M'!$G$167 -> 0.08 | BK41: ='DNSP Inputs O & M'!$H$52 -> 0.08 | BM41: ='DNSP Inputs O & M'!$H$81 -> 0.08 | BO41: ='DNSP Inputs O & M'!$H$110 -> 0.08 | BQ41: ='DNSP Inputs O & M'!$H$167 -> 0.08
A43: ='DNSP Inputs O & M'!A119 -> Proportion of lights on dedicated poles | C43: ='DNSP Inputs O & M'!$D$119 -> 0.2370560408 | R43: ='DNSP Inputs O & M'!$E$119 -> 0.2370560408 | AG43: ='DNSP Inputs O & M'!$F$119 -> 0.2370560408 | AV43: ='DNSP Inputs O & M'!$G$119 -> 0.2370560408 | BK43: ='DNSP Inputs O & M'!$H$119 -> 0.2370560408
A45: ='DNSP Inputs O & M'!A123 -> Other direct costs
A46: ='DNSP Inputs O & M'!$A$124 -> Call centre | C46: ='DNSP Inputs O & M'!$D$127 -> 27226.21043 | R46: ='DNSP Inputs O & M'!$E$127 -> 27226.21043 | AG46: ='DNSP Inputs O & M'!$F$127 -> 27226.21043 | AV46: ='DNSP Inputs O & M'!$G$127 -> 27226.21043 | BK46: ='DNSP Inputs O & M'!$H$127 -> 27226.21043
A47: ='DNSP Inputs O & M'!$A$129 -> GIS and other | C47: ='DNSP Inputs O & M'!$D$129 -> 113442.5434 | R47: ='DNSP Inputs O & M'!$E$129 -> 113442.5434 | AG47: ='DNSP Inputs O & M'!$F$129 -> 113442.5434 | AV47: ='DNSP Inputs O & M'!$G$129 -> 113442.5434 | BK47: ='DNSP Inputs O & M'!$H$129 -> 113442.5434
A48: ='DNSP Inputs O & M'!A130 -> Complaints handling | C48: ='DNSP Inputs O & M'!$D$130 -> 34032.76303 | R48: ='DNSP Inputs O & M'!$E$130 -> 34032.76303 | AG48: ='DNSP Inputs O & M'!$F$130 -> 34032.76303 | AV48: ='DNSP Inputs O & M'!$G$130 -> 34032.76303 | BK48: ='DNSP Inputs O & M'!$H$130 -> 34032.76303
C49: =SUM(C46:C48) -> 174701.5169 | R49: =SUM(R46:R48) -> 174701.5169 | AG49: =SUM(AG46:AG48) -> 174701.5169 | AV49: =SUM(AV46:AV48) -> 174701.5169 | BK49: =SUM(BK46:BK48) -> 174701.5169
A51: ='DNSP Inputs General'!A76 -> Total Number of Lights | C51: ='DNSP Inputs General'!$K$76 -> 119368.0293 | R51: ='DNSP Inputs General'!$L$76 -> 119643.3074 | AG51: ='DNSP Inputs General'!$M$76 -> 119918.7296 | AV51: ='DNSP Inputs General'!$N$76 -> 120195.4117 | BK51: ='DNSP Inputs General'!$O$76 -> 120472.2378
A57: Mercury Vapour 80 Watt Standard Light Type - Cost build-up
A59: Additional assumptions
A60: Proportion of lamps that will fail before bulk change | D60: ='DNSP Inputs O & M'!$D$27 -> 0.196 | S60: ='DNSP Inputs O & M'!$E$27 -> 0.196 | AH60: ='DNSP Inputs O & M'!$F$27 -> 0.196 | AW60: ='DNSP Inputs O & M'!$G$27 -> 0.196 | BL60: ='DNSP Inputs O & M'!$H$27 -> 0.196
A61: Proportion of lamps that will fail before bulk change (per year) | D61: =D60/'DNSP Inputs O & M'!$D$25 -> 0.049 | S61: =S60/'DNSP Inputs O & M'!$E$25 -> 0.049 | AH61: =AH60/'DNSP Inputs O & M'!$F$25 -> 0.049 | AW61: =AW60/'DNSP Inputs O & M'!$G$25 -> 0.049 | BL61: =BL60/'DNSP Inputs O & M'!$H$25 -> 0.049
A62: Overheads are applied to material and labour components
A63: All costs and charges are exclusive of GST
B65: Urban | I65: Rural | Q65: Urban | X65: Rural | AF65: Urban | AM65: Rural | AU65: Urban | BB65: Rural | BJ65: Urban | BQ65: Rural
B67: Unit rate | C67: Number | D67: Hours | E67: Cost | F67: Annualised | G67: Annualised | I67: Unit rate | J67: Number | K67: Hours | L67: Cost | M67: Annualised | N67: Annualised | Q67: Unit rate | R67: Number | S67: Hours | T67: Cost | U67: Annualised | V67: Annualised | X67: Unit rate | Y67: Number | Z67: Hours | AA67: Cost | AB67: Annualised | AC67: Annualised | AF67: Unit rate | AG67: Number | AH67: Hours | AI67: Cost | AJ67: Annualised | AK67: Annualised | AM67: Unit rate | AN67: Number | AO67: Hours | AP67: Cost | AQ67: Annualised | AR67: Annualised | AU67: Unit rate | AV67: Number | AW67: Hours | AX67: Cost | AY67: Annualised | AZ67: Annualised | BB67: Unit rate | BC67: Number | BD67: Hours | BE67: Cost | BF67: Annualised | BG67: Annualised | BJ67: Unit rate | BK67: Number | BL67: Hours | BM67: Cost | BN67: Annualised | BO67: Annualised | BQ67: Unit rate | BR67: Number | BS67: Hours | BT67: Cost | BU67: Annualised | BV67: Annualised
F68: cost | G68: unit cost | M68: cost | N68: unit cost | U68: cost | V68: unit cost | AB68: cost | AC68: unit cost | AJ68: cost | AK68: unit cost | AQ68: cost | AR68: unit cost | AY68: cost | AZ68: unit cost | BF68: cost | BG68: unit cost | BN68: cost | BO68: unit cost | BU68: cost | BV68: unit cost
A69: MV80
A70: Bulk change & repairs
A71: Materials - bulk lamp change
A72: Lamp | B72: ='DNSP Inputs O & M'!$D$28 -> 4.93277626 | C72: ='DNSP Inputs O & M'!$D$34 -> 58.07369293 | E72: =B72*C72 -> 286.4645338 | F72: =E72/'DNSP Inputs O & M'!$D$25*0.8 -> 57.29290676 | G72: =(F72+F73+F74)/C72 -> 3.691756675 | I72: ='DNSP Inputs O & M'!$D$28*(1+'DNSP Inputs O & M'!$D$11) -> 5.179415073 | J72: ='DNSP Inputs O & M'!$D$35 -> 49.75879284 | L72: =I72*J72 -> 257.7214416 | M72: =L72/'DNSP Inputs O & M'!$D$25*0.8 -> 51.54428833 | N72: =(M72+M73+M74)/J72 -> 3.876344508 | Q72: ='DNSP Inputs O & M'!$E$28 -> 4.93277626 | R72: ='DNSP Inputs O & M'!$E$34 -> 54.83292406 | T72: =Q72*R72 -> 270.4785461 | U72: =T72/'DNSP Inputs O & M'!$E$25*0.8 -> 54.09570921 | V72: =(U72+U73+U74)/R72 -> 3.691756675 | X72: ='DNSP Inputs O & M'!$E$28*(1+'DNSP Inputs O & M'!$E$11) -> 5.179415073 | Y72: ='DNSP Inputs O & M'!$E$35 -> 49.83292406 | AA72: =X72*Y72 -> 258.105398 | AB72: =AA72/'DNSP Inputs O & M'!$E$25*0.8 -> 51.6210796 | AC72: =(AB72+AB73+AB74)/Y72 -> 3.876344508 | AF72: ='DNSP Inputs O & M'!$F$28 -> 4.93277626 | AG72: ='DNSP Inputs O & M'!$F$34 -> 51.82063818 | AI72: =AF72*AG72 -> 255.6196138 | AJ72: =AI72/'DNSP Inputs O & M'!$F$25*0.8 -> 51.12392276 | AK72: =(AJ72+AJ73+AJ74)/AG72 -> 3.691756675 | AM72: ='DNSP Inputs O & M'!$F$28*(1+'DNSP Inputs O & M'!$F$11) -> 5.179415073 | AN72: ='DNSP Inputs O & M'!$F$35 -> 46.82063818 | AP72: =AM72*AN72 -> 242.5035191 | AQ72: =AP72/'DNSP Inputs O & M'!$F$25*0.8 -> 48.50070383 | AR72: =(AQ72+AQ73+AQ74)/AN72 -> 3.876344508 | AU72: ='DNSP Inputs O & M'!$G$28 -> 4.93277626 | AV72: ='DNSP Inputs O & M'!$G$34 -> 48.71124273 | AX72: =AU72*AV72 -> 240.2816617 | AY72: =AX72/'DNSP Inputs O & M'!$G$25*0.8 -> 48.05633235 | AZ72: =(AY72+AY73+AY74)/AV72 -> 3.691756675 | BB72: ='DNSP Inputs O & M'!$G$28*(1+'DNSP Inputs O & M'!$G$11) -> 5.179415073 | BC72: ='DNSP Inputs O & M'!$G$35 -> 43.71124273 | BE72: =BB72*BC72 -> 226.3986695 | BF72: =BE72/'DNSP Inputs O & M'!$G$25*0.8 -> 45.27973389 | BG72: =(BF72+BF73+BF74)/BC72 -> 3.876344508 | BJ72: ='DNSP Inputs O & M'!$H$28 -> 4.93277626 | BK72: ='DNSP Inputs O & M'!$H$34 -> 45.51107921 | BM72: =BJ72*BK72 -> 224.4959711 | BN72: =BM72/'DNSP Inputs O & M'!$H$25*0.8 -> 44.89919422 | BO72: =(BN72+BN73+BN74)/BK72 -> 3.691756675 | BQ72: ='DNSP Inputs O & M'!$H$28*(1+'DNSP Inputs O & M'!$H$11) -> 5.179415073 | BR72: ='DNSP Inputs O & M'!$H$35 -> 40.51107921 | BT72: =BQ72*BR72 -> 209.8236943 | BU72: =BT72/'DNSP Inputs O & M'!$H$25*0.8 -> 41.96473886 | BV72: =(BU72+BU73+BU74)/BR72 -> 3.876344508
A73: PE cell | B73: ='DNSP Inputs O & M'!$D$29 -> 19.9146 | C73: =C72*'DNSP Inputs O & M'!$D$25/'DNSP Inputs O & M'!$D$26 -> 29.03684647 | E73: =B73*C73 -> 578.2571826 | F73: =E73/'DNSP Inputs O & M'!$D$25 -> 144.5642957 | I73: ='DNSP Inputs O & M'!$D$29*(1+'DNSP Inputs O & M'!$D$11) -> 20.91033 | J73: =J72*'DNSP Inputs O & M'!$D$25/'DNSP Inputs O & M'!$D$26 -> 24.87939642 | L73: =I73*J73 -> 520.2363893 | M73: =L73/'DNSP Inputs O & M'!$D$25 -> 130.0590973 | Q73: ='DNSP Inputs O & M'!$E$29 -> 19.9146 | R73: =R72*'DNSP Inputs O & M'!$E$25/'DNSP Inputs O & M'!$E$26 -> 27.41646203 | T73: =Q73*R73 -> 545.9878747 | U73: =T73/'DNSP Inputs O & M'!$E$25 -> 136.4969687 | X73: ='DNSP Inputs O & M'!$E$29*(1+'DNSP Inputs O & M'!$E$11) -> 20.91033 | Y73: =Y72*'DNSP Inputs O & M'!$E$25/'DNSP Inputs O & M'!$E$26 -> 24.91646203 | AA73: =X73*Y73 -> 521.0114435 | AB73: =AA73/'DNSP Inputs O & M'!$E$25 -> 130.2528609 | AF73: ='DNSP Inputs O & M'!$F$29 -> 19.9146 | AG73: =AG72*'DNSP Inputs O & M'!$F$25/'DNSP Inputs O & M'!$F$26 -> 25.91031909 | AI73: =AF73*AG73 -> 515.9936406 | AJ73: =AI73/'DNSP Inputs O & M'!$F$25 -> 128.9984101 | AM73: ='DNSP Inputs O & M'!$F$29*(1+'DNSP Inputs O & M'!$F$11) -> 20.91033 | AN73: =AN72*'DNSP Inputs O & M'!$F$25/'DNSP Inputs O & M'!$F$26 -> 23.41031909 | AP73: =AM73*AN73 -> 489.5174976 | AQ73: =AP73/'DNSP Inputs O & M'!$F$25 -> 122.3793744 | AU73: ='DNSP Inputs O & M'!$G$29 -> 19.9146 | AV73: =AV72*'DNSP Inputs O & M'!$G$25/'DNSP Inputs O & M'!$G$26 -> 24.35562137 | AX73: =AU73*AV73 -> 485.0324572 | AY73: =AX73/'DNSP Inputs O & M'!$G$25 -> 121.2581143 | BB73: ='DNSP Inputs O & M'!$G$29*(1+'DNSP Inputs O & M'!$G$11) -> 20.91033 | BC73: =BC72*'DNSP Inputs O & M'!$G$25/'DNSP Inputs O & M'!$G$26 -> 21.85562137 | BE73: =BB73*BC73 -> 457.0082551 | BF73: =BE73/'DNSP Inputs O & M'!$G$25 -> 114.2520638 | BJ73: ='DNSP Inputs O & M'!$H$29 -> 19.9146 | BK73: =BK72*'DNSP Inputs O & M'!$H$25/'DNSP Inputs O & M'!$H$26 -> 22.75553961 | BM73: =BJ73*BK73 -> 453.167469 | BN73: =BM73/'DNSP Inputs O & M'!$H$25 -> 113.2918673 | BQ73: ='DNSP Inputs O & M'!$H$29*(1+'DNSP Inputs O & M'!$H$11) -> 20.91033 | BR73: =BR72*'DNSP Inputs O & M'!$H$25/'DNSP Inputs O & M'!$H$26 -> 20.25553961 | BT73: =BQ73*BR73 -> 423.5500175 | BU73: =BT73/'DNSP Inputs O & M'!$H$25 -> 105.8875044
A74: Miscellaneous | B74: ='DNSP Inputs O & M'!$D$31 -> 1.079382114 | C74: ='DNSP Inputs O & M'!$D$34 -> 58.07369293 | E74: =B74*C74 -> 62.68370543 | F74: =E74/'DNSP Inputs O & M'!$D$25*0.8 -> 12.53674109 | I74: ='DNSP Inputs O & M'!$D$31*(1+'DNSP Inputs O & M'!$D$11) -> 1.133351219 | J74: ='DNSP Inputs O & M'!$D$35 -> 49.75879284 | L74: =I74*J74 -> 56.39418854 | M74: =L74/'DNSP Inputs O & M'!$D$25*0.8 -> 11.27883771 | Q74: ='DNSP Inputs O & M'!$E$31 -> 1.079382114 | R74: ='DNSP Inputs O & M'!$E$34 -> 54.83292406 | T74: =Q74*R74 -> 59.18567748 | U74: =T74/'DNSP Inputs O & M'!$E$25*0.8 -> 11.8371355 | X74: ='DNSP Inputs O & M'!$E$31*(1+'DNSP Inputs O & M'!$E$11) -> 1.133351219 | Y74: ='DNSP Inputs O & M'!$E$35 -> 49.83292406 | AA74: =X74*Y74 -> 56.47820525 | AB74: =AA74/'DNSP Inputs O & M'!$E$25*0.8 -> 11.29564105 | AF74: ='DNSP Inputs O & M'!$F$31 -> 1.079382114 | AG74: ='DNSP Inputs O & M'!$F$34 -> 51.82063818 | AI74: =AF74*AG74 -> 55.93426998 | AJ74: =AI74/'DNSP Inputs O & M'!$F$25*0.8 -> 11.186854 | AM74: ='DNSP Inputs O & M'!$F$31*(1+'DNSP Inputs O & M'!$F$11) -> 1.133351219 | AN74: ='DNSP Inputs O & M'!$F$35 -> 46.82063818 | AP74: =AM74*AN74 -> 53.06422738 | AQ74: =AP74/'DNSP Inputs O & M'!$F$25*0.8 -> 10.61284548 | AU74: ='DNSP Inputs O & M'!$G$31 -> 1.079382114 | AV74: ='DNSP Inputs O & M'!$G$34 -> 48.71124273 | AX74: =AU74*AV74 -> 52.57804415 | AY74: =AX74/'DNSP Inputs O & M'!$G$25*0.8 -> 10.51560883 | BB74: ='DNSP Inputs O & M'!$G$31*(1+'DNSP Inputs O & M'!$G$11) -> 1.133351219 | BC74: ='DNSP Inputs O & M'!$G$35 -> 43.71124273 | BE74: =BB74*BC74 -> 49.54019026 | BF74: =BE74/'DNSP Inputs O & M'!$G$25*0.8 -> 9.908038051 | BJ74: ='DNSP Inputs O & M'!$H$31 -> 1.079382114 | BK74: ='DNSP Inputs O & M'!$H$34 -> 45.51107921 | BM74: =BJ74*BK74 -> 49.12384488 | BN74: =BM74/'DNSP Inputs O & M'!$H$25*0.8 -> 9.824768976 | BQ74: ='DNSP Inputs O & M'!$H$31*(1+'DNSP Inputs O & M'!$H$11) -> 1.133351219 | BR74: ='DNSP Inputs O & M'!$H$35 -> 40.51107921 | BT74: =BQ74*BR74 -> 45.91328103 | BU74: =BT74/'DNSP Inputs O & M'!$H$25*0.8 -> 9.182656205
A75: Materials - repair of faults
A76: Lamp | B76: ='DNSP Inputs O & M'!$D$28 -> 4.93277626 | C76: ='DNSP Inputs O & M'!$D$36*'DNSP Inputs O & M'!$D$38 -> 26.00398432 | E76: =B76*C76 -> 128.2718365 | F76: =(E76+E77+E78+E79)/'DNSP Inputs O & M'!$D$36 -> 39.66675299 | G76: =F76*D61 -> 1.943670897 | I76: ='DNSP Inputs O & M'!$D$28*(1+'DNSP Inputs O & M'!$D$11) -> 5.179415073 | J76: ='DNSP Inputs O & M'!$D$37*'DNSP Inputs O & M'!$D$38 -> 20.03801666 | L76: =I76*J76 -> 103.7852055 | M76: =(L76+L77+L78+L79)/'DNSP Inputs O & M'!$D$37 -> 41.65009064 | N76: =M76*D61 -> 2.040854441 | Q76: ='DNSP Inputs O & M'!$E$28 -> 4.93277626 | R76: ='DNSP Inputs O & M'!$E$36*'DNSP Inputs O & M'!$E$38 -> 26.21005507 | T76: =Q76*R76 -> 129.2883374 | U76: =(T76+T77+T78+T79)/'DNSP Inputs O & M'!$E$36 -> 39.66675299 | V76: =U76*S61 -> 1.943670897 | X76: ='DNSP Inputs O & M'!$E$28*(1+'DNSP Inputs O & M'!$E$11) -> 5.179415073 | Y76: ='DNSP Inputs O & M'!$E$37*'DNSP Inputs O & M'!$E$38 -> 19.8 | AA76: =X76*Y76 -> 102.5524184 | AB76: =(AA76+AA77+AA78+AA79)/'DNSP Inputs O & M'!$E$37 -> 41.65009064 | AC76: =AB76*S61 -> 2.040854441 | AF76: ='DNSP Inputs O & M'!$F$28 -> 4.93277626 | AG76: ='DNSP Inputs O & M'!$F$36*'DNSP Inputs O & M'!$F$38 -> 20.21574035 | AI76: =AF76*AG76 -> 99.7197241 | AJ76: =(AI76+AI77+AI78+AI79)/'DNSP Inputs O & M'!$F$36 -> 39.66675299 | AK76: =AJ76*AH61 -> 1.943670897 | AM76: ='DNSP Inputs O & M'!$F$28*(1+'DNSP Inputs O & M'!$F$11) -> 5.179415073 | AN76: ='DNSP Inputs O & M'!$F$37*'DNSP Inputs O & M'!$F$38 -> 19.8 | AP76: =AM76*AN76 -> 102.5524184 | AQ76: =(AP76+AP77+AP78+AP79)/'DNSP Inputs O & M'!$F$37 -> 41.65009064 | AR76: =AQ76*AH61 -> 2.040854441 | AU76: ='DNSP Inputs O & M'!$G$28 -> 4.93277626 | AV76: ='DNSP Inputs O & M'!$G$36*'DNSP Inputs O & M'!$G$38 -> 19.77144185 | AX76: =AU76*AV76 -> 97.52809897 | AY76: =(AX76+AX77+AX78+AX79)/'DNSP Inputs O & M'!$G$36 -> 39.66675299 | AZ76: =AY76*AW61 -> 1.943670897 | BB76: ='DNSP Inputs O & M'!$G$28*(1+'DNSP Inputs O & M'!$G$11) -> 5.179415073 | BC76: ='DNSP Inputs O & M'!$G$37*'DNSP Inputs O & M'!$G$38 -> 16.60595722 | BE76: =BB76*BC76 -> 86.00914512 | BF76: =(BE76+BE77+BE78+BE79)/'DNSP Inputs O & M'!$G$37 -> 41.65009064 | BG76: =BF76*AW61 -> 2.040854441 | BJ76: ='DNSP Inputs O & M'!$H$28 -> 4.93277626 | BK76: ='DNSP Inputs O & M'!$H$36*'DNSP Inputs O & M'!$H$38 -> 19.76533961 | BM76: =BJ76*BK76 -> 97.497998 | BN76: =(BM76+BM77+BM78+BM79)/'DNSP Inputs O & M'!$H$36 -> 39.66675299 | BO76: =BN76*BL61 -> 1.943670897 | BQ76: ='DNSP Inputs O & M'!$H$28*(1+'DNSP Inputs O & M'!$H$11) -> 5.179415073 | BR76: ='DNSP Inputs O & M'!$H$37*'DNSP Inputs O & M'!$H$38 -> 16.6058204 | BT76: =BQ76*BR76 -> 86.00843647 | BU76: =(BT76+BT77+BT78+BT79)/'DNSP Inputs O & M'!$H$37 -> 41.65009064 | BV76: =BU76*BL61 -> 2.040854441
A77: PE cell | B77: ='DNSP Inputs O & M'!$D$29 -> 19.9146 | C77: ='DNSP Inputs O & M'!$D$36*'DNSP Inputs O & M'!$D$39 -> 21.66998693 | E77: =B77*C77 -> 431.5491218 | I77: ='DNSP Inputs O & M'!$D$29*(1+'DNSP Inputs O & M'!$D$11) -> 20.91033 | J77: ='DNSP Inputs O & M'!$D$37*'DNSP Inputs O & M'!$D$39 -> 16.69834721 | L77: =I77*J77 -> 349.1679507 | Q77: ='DNSP Inputs O & M'!$E$29 -> 19.9146 | R77: ='DNSP Inputs O & M'!$E$36*'DNSP Inputs O & M'!$E$39 -> 21.84171256 | T77: =Q77*R77 -> 434.9689689 | X77: ='DNSP Inputs O & M'!$E$29*(1+'DNSP Inputs O & M'!$E$11) -> 20.91033 | Y77: ='DNSP Inputs O & M'!$E$37*'DNSP Inputs O & M'!$E$39 -> 16.5 | AA77: =X77*Y77 -> 345.020445 | AF77: ='DNSP Inputs O & M'!$F$29 -> 19.9146 | AG77: ='DNSP Inputs O & M'!$F$36*'DNSP Inputs O & M'!$F$39 -> 16.8464503 | AI77: =AF77*AG77 -> 335.490319 | AM77: ='DNSP Inputs O & M'!$F$29*(1+'DNSP Inputs O & M'!$F$11) -> 20.91033 | AN77: ='DNSP Inputs O & M'!$F$37*'DNSP Inputs O & M'!$F$39 -> 16.5 | AP77: =AM77*AN77 -> 345.020445 | AU77: ='DNSP Inputs O & M'!$G$29 -> 19.9146 | AV77: ='DNSP Inputs O & M'!$G$36*'DNSP Inputs O & M'!$G$39 -> 16.47620154 | AX77: =AU77*AV77 -> 328.1169632 | BB77: ='DNSP Inputs O & M'!$G$29*(1+'DNSP Inputs O & M'!$G$11) -> 20.91033 | BC77: ='DNSP Inputs O & M'!$G$37*'DNSP Inputs O & M'!$G$39 -> 13.83829768 | BE77: =BB77*BC77 -> 289.3633712 | BJ77: ='DNSP Inputs O & M'!$H$29 -> 19.9146 | BK77: ='DNSP Inputs O & M'!$H$36*'DNSP Inputs O & M'!$H$39 -> 16.47111634 | BM77: =BJ77*BK77 -> 328.0156935 | BQ77: ='DNSP Inputs O & M'!$H$29*(1+'DNSP Inputs O & M'!$H$11) -> 20.91033 | BR77: ='DNSP Inputs O & M'!$H$37*'DNSP Inputs O & M'!$H$39 -> 13.83818366 | BT77: =BQ77*BR77 -> 289.360987
A78: Luminaire | B78: ='DNSP Inputs O & M'!$D$30 -> 171.1360341 | C78: ='DNSP Inputs O & M'!$D$36*'DNSP Inputs O & M'!$D$40 -> 6.50099608 | E78: =B78*C78 -> 1112.554687 | I78: ='DNSP Inputs O & M'!$D$30*(1+'DNSP Inputs O & M'!$D$11) -> 179.6928358 | J78: ='DNSP Inputs O & M'!$D$37*'DNSP Inputs O & M'!$D$40 -> 5.009504164 | L78: =I78*J78 -> 900.1720094 | Q78: ='DNSP Inputs O & M'!$E$30 -> 171.1360341 | R78: ='DNSP Inputs O & M'!$E$36*'DNSP Inputs O & M'!$E$40 -> 6.552513767 | T78: =Q78*R78 -> 1121.37122 | X78: ='DNSP Inputs O & M'!$E$30*(1+'DNSP Inputs O & M'!$E$11) -> 179.6928358 | Y78: ='DNSP Inputs O & M'!$E$37*'DNSP Inputs O & M'!$E$40 -> 4.95 | AA78: =X78*Y78 -> 889.4795374 | AF78: ='DNSP Inputs O & M'!$F$30 -> 171.1360341 | AG78: ='DNSP Inputs O & M'!$F$36*'DNSP Inputs O & M'!$F$40 -> 5.053935089 | AI78: =AF78*AG78 -> 864.9104079 | AM78: ='DNSP Inputs O & M'!$F$30*(1+'DNSP Inputs O & M'!$F$11) -> 179.6928358 | AN78: ='DNSP Inputs O & M'!$F$37*'DNSP Inputs O & M'!$F$40 -> 4.95 | AP78: =AM78*AN78 -> 889.4795374 | AU78: ='DNSP Inputs O & M'!$G$30 -> 171.1360341 | AV78: ='DNSP Inputs O & M'!$G$36*'DNSP Inputs O & M'!$G$40 -> 4.942860462 | AX78: =AU78*AV78 -> 845.9015367 | BB78: ='DNSP Inputs O & M'!$G$30*(1+'DNSP Inputs O & M'!$G$11) -> 179.6928358 | BC78: ='DNSP Inputs O & M'!$G$37*'DNSP Inputs O & M'!$G$40 -> 4.151489305 | BE78: =BB78*BC78 -> 745.9928861 | BJ78: ='DNSP Inputs O & M'!$H$30 -> 171.1360341 | BK78: ='DNSP Inputs O & M'!$H$36*'DNSP Inputs O & M'!$H$40 -> 4.941334903 | BM78: =BJ78*BK78 -> 845.6404586 | BQ78: ='DNSP Inputs O & M'!$H$30*(1+'DNSP Inputs O & M'!$H$11) -> 179.6928358 | BR78: ='DNSP Inputs O & M'!$H$37*'DNSP Inputs O & M'!$H$40 -> 4.151455099 | BT78: =BQ78*BR78 -> 745.9867397
A79: Miscellaneous | B79: ='DNSP Inputs O & M'!$D$32 -> 10.79382114 | C79: ='DNSP Inputs O & M'!$D$36*'DNSP Inputs O & M'!$D$41 -> 4.333997387 | E79: =B79*C79 -> 46.7803926 | I79: ='DNSP Inputs O & M'!$D$32*(1+'DNSP Inputs O & M'!$D$11) -> 11.33351219 | J79: ='DNSP Inputs O & M'!$D$37*'DNSP Inputs O & M'!$D$41 -> 3.339669443 | L79: =I79*J79 -> 37.85018435 | Q79: ='DNSP Inputs O & M'!$E$32 -> 10.79382114 | R79: ='DNSP Inputs O & M'!$E$36*'DNSP Inputs O & M'!$E$41 -> 4.368342511 | T79: =Q79*R79 -> 47.15110774 | X79: ='DNSP Inputs O & M'!$E$32*(1+'DNSP Inputs O & M'!$E$11) -> 11.33351219 | Y79: ='DNSP Inputs O & M'!$E$37*'DNSP Inputs O & M'!$E$41 -> 3.3 | AA79: =X79*Y79 -> 37.40059024 | AF79: ='DNSP Inputs O & M'!$F$32 -> 10.79382114 | AG79: ='DNSP Inputs O & M'!$F$36*'DNSP Inputs O & M'!$F$41 -> 3.369290059 | AI79: =AF79*AG79 -> 36.36751426 | AM79: ='DNSP Inputs O & M'!$F$32*(1+'DNSP Inputs O & M'!$F$11) -> 11.33351219 | AN79: ='DNSP Inputs O & M'!$F$37*'DNSP Inputs O & M'!$F$41 -> 3.3 | AP79: =AM79*AN79 -> 37.40059024 | AU79: ='DNSP Inputs O & M'!$G$32 -> 10.79382114 | AV79: ='DNSP Inputs O & M'!$G$36*'DNSP Inputs O & M'!$G$41 -> 3.295240308 | AX79: =AU79*AV79 -> 35.56823449 | BB79: ='DNSP Inputs O & M'!$G$32*(1+'DNSP Inputs O & M'!$G$11) -> 11.33351219 | BC79: ='DNSP Inputs O & M'!$G$37*'DNSP Inputs O & M'!$G$41 -> 2.767659536 | BE79: =BB79*BC79 -> 31.36730311 | BJ79: ='DNSP Inputs O & M'!$H$32 -> 10.79382114 | BK79: ='DNSP Inputs O & M'!$H$36*'DNSP Inputs O & M'!$H$41 -> 3.294223268 | BM79: =BJ79*BK79 -> 35.55725675 | BQ79: ='DNSP Inputs O & M'!$H$32*(1+'DNSP Inputs O & M'!$H$11) -> 11.33351219 | BR79: ='DNSP Inputs O & M'!$H$37*'DNSP Inputs O & M'!$H$41 -> 2.767636733 | BT79: =BQ79*BR79 -> 31.36704466
A80: Labour - bulk lamp change
A81: Crew costs | B81: ='DNSP Inputs O & M'!$D$12 -> 90.24 | C81: ='DNSP Inputs O & M'!$D$33 -> 2 | D81: ='DNSP Inputs O & M'!$D$17 -> 8 | E81: =B81*C81*D81 -> 1443.84 | F81: =E81/'DNSP Inputs O & M'!$D$25*(C72+C73)/C72*0.8 -> 433.152 | G81: =(F81+F82)/C72 -> 9.129090527 | I81: ='DNSP Inputs O & M'!$D$12 -> 90.24 | J81: ='DNSP Inputs O & M'!$D$33 -> 2 | K81: ='DNSP Inputs O & M'!$D$17 -> 8 | L81: =I81*J81*K81 -> 1443.84 | M81: =L81/'DNSP Inputs O & M'!$D$25*(J72+J73)/J72*0.8 -> 433.152 | N81: =(M81+M82)/J72 -> 10.65459931 | Q81: ='DNSP Inputs O & M'!$E$12 -> 90.24 | R81: ='DNSP Inputs O & M'!$E$33 -> 2 | S81: ='DNSP Inputs O & M'!$E$17 -> 8 | T81: =Q81*R81*S81 -> 1443.84 | U81: =T81/'DNSP Inputs O & M'!$E$25*(R72+R73)/R72*0.8 -> 433.152 | V81: =(U81+U82)/R72 -> 9.668643595 | X81: ='DNSP Inputs O & M'!$E$12 -> 90.24 | Y81: ='DNSP Inputs O & M'!$E$33 -> 2 | Z81: ='DNSP Inputs O & M'!$E$17 -> 8 | AA81: =X81*Y81*Z81 -> 1443.84 | AB81: =AA81/'DNSP Inputs O & M'!$E$25*(Y72+Y73)/Y72*0.8 -> 433.152 | AC81: =(AB81+AB82)/Y72 -> 10.63874958 | AF81: ='DNSP Inputs O & M'!$F$12 -> 90.24 | AG81: ='DNSP Inputs O & M'!$F$33 -> 2 | AH81: ='DNSP Inputs O & M'!$F$17 -> 8 | AI81: =AF81*AG81*AH81 -> 1443.84 | AJ81: =AI81/'DNSP Inputs O & M'!$F$25*(AG72+AG73)/AG72*0.8 -> 433.152 | AK81: =(AJ81+AJ82)/AG72 -> 10.23067292 | AM81: ='DNSP Inputs O & M'!$F$12 -> 90.24 | AN81: ='DNSP Inputs O & M'!$F$33 -> 2 | AO81: ='DNSP Inputs O & M'!$F$17 -> 8 | AP81: =AM81*AN81*AO81 -> 1443.84 | AQ81: =AP81/'DNSP Inputs O & M'!$F$25*(AN72+AN73)/AN72*0.8 -> 433.152 | AR81: =(AQ81+AQ82)/AN72 -> 11.32321174 | AU81: ='DNSP Inputs O & M'!$G$12 -> 90.24 | AV81: ='DNSP Inputs O & M'!$G$33 -> 2 | AW81: ='DNSP Inputs O & M'!$G$17 -> 8 | AX81: =AU81*AV81*AW81 -> 1443.84 | AY81: =AX81/'DNSP Inputs O & M'!$G$25*(AV72+AV73)/AV72*0.8 -> 433.152 | AZ81: =(AY81+AY82)/AV72 -> 10.88372972 | BB81: ='DNSP Inputs O & M'!$G$12 -> 90.24 | BC81: ='DNSP Inputs O & M'!$G$33 -> 2 | BD81: ='DNSP Inputs O & M'!$G$17 -> 8 | BE81: =BB81*BC81*BD81 -> 1443.84 | BF81: =BE81/'DNSP Inputs O & M'!$G$25*(BC72+BC73)/BC72*0.8 -> 433.152 | BG81: =(BF81+BF82)/BC72 -> 12.12868742 | BJ81: ='DNSP Inputs O & M'!$H$12 -> 90.24 | BK81: ='DNSP Inputs O & M'!$H$33 -> 2 | BL81: ='DNSP Inputs O & M'!$H$17 -> 8 | BM81: =BJ81*BK81*BL81 -> 1443.84 | BN81: =BM81/'DNSP Inputs O & M'!$H$25*(BK72+BK73)/BK72*0.8 -> 433.152 | BO81: =(BN81+BN82)/BK72 -> 11.6490316 | BQ81: ='DNSP Inputs O & M'!$H$12 -> 90.24 | BR81: ='DNSP Inputs O & M'!$H$33 -> 2 | BS81: ='DNSP Inputs O & M'!$H$17 -> 8 | BT81: =BQ81*BR81*BS81 -> 1443.84 | BU81: =BT81/'DNSP Inputs O & M'!$H$25*(BR72+BR73)/BR72*0.8 -> 433.152 | BV81: =(BU81+BU82)/BR72 -> 13.08679034
A82: Elevated platform costs | B82: ='DNSP Inputs O & M'!$D$14 -> 40.42 | C82: 1 | D82: ='DNSP Inputs O & M'!$D$17 -> 8 | E82: =B82*C82*D82 -> 323.36 | F82: =E82/'DNSP Inputs O & M'!$D$25*(C72+C73)/C72*0.8 -> 97.008 | I82: ='DNSP Inputs O & M'!$D$15 -> 40.42 | J82: 1 | K82: ='DNSP Inputs O & M'!$D$17 -> 8 | L82: =I82*J82*K82 -> 323.36 | M82: =L82/'DNSP Inputs O & M'!$D$25*(J72+J73)/J72*0.8 -> 97.008 | Q82: ='DNSP Inputs O & M'!$E$14 -> 40.42 | R82: 1 | S82: ='DNSP Inputs O & M'!$E$17 -> 8 | T82: =Q82*R82*S82 -> 323.36 | U82: =T82/'DNSP Inputs O & M'!$E$25*(R72+R73)/R72*0.8 -> 97.008 | X82: ='DNSP Inputs O & M'!$E$15 -> 40.42 | Y82: 1 | Z82: ='DNSP Inputs O & M'!$E$17 -> 8 | AA82: =X82*Y82*Z82 -> 323.36 | AB82: =AA82/'DNSP Inputs O & M'!$E$25*(Y72+Y73)/Y72*0.8 -> 97.008 | AF82: ='DNSP Inputs O & M'!$F$14 -> 40.42 | AG82: 1 | AH82: ='DNSP Inputs O & M'!$F$17 -> 8 | AI82: =AF82*AG82*AH82 -> 323.36 | AJ82: =AI82/'DNSP Inputs O & M'!$F$25*(AG72+AG73)/AG72*0.8 -> 97.008 | AM82: ='DNSP Inputs O & M'!$F$15 -> 40.42 | AN82: 1 | AO82: ='DNSP Inputs O & M'!$F$17 -> 8 | AP82: =AM82*AN82*AO82 -> 323.36 | AQ82: =AP82/'DNSP Inputs O & M'!$F$25*(AN72+AN73)/AN72*0.8 -> 97.008 | AU82: ='DNSP Inputs O & M'!$G$14 -> 40.42 | AV82: 1 | AW82: ='DNSP Inputs O & M'!$G$17 -> 8 | AX82: =AU82*AV82*AW82 -> 323.36 | AY82: =AX82/'DNSP Inputs O & M'!$G$25*(AV72+AV73)/AV72*0.8 -> 97.008 | BB82: ='DNSP Inputs O & M'!$G$15 -> 40.42 | BC82: 1 | BD82: ='DNSP Inputs O & M'!$G$17 -> 8 | BE82: =BB82*BC82*BD82 -> 323.36 | BF82: =BE82/'DNSP Inputs O & M'!$G$25*(BC72+BC73)/BC72*0.8 -> 97.008 | BJ82: ='DNSP Inputs O & M'!$H$14 -> 40.42 | BK82: 1 | BL82: ='DNSP Inputs O & M'!$H$17 -> 8 | BM82: =BJ82*BK82*BL82 -> 323.36 | BN82: =BM82/'DNSP Inputs O & M'!$H$25*(BK72+BK73)/BK72*0.8 -> 97.008 | BQ82: ='DNSP Inputs O & M'!$H$15 -> 40.42 | BR82: 1 | BS82: ='DNSP Inputs O & M'!$H$17 -> 8 | BT82: =BQ82*BR82*BS82 -> 323.36 | BU82: =BT82/'DNSP Inputs O & M'!$H$25*(BR72+BR73)/BR72*0.8 -> 97.008
A83: Labour - repair of faults
A84: Crew costs | B84: ='DNSP Inputs O & M'!$D$12 -> 90.24 | C84: ='DNSP Inputs O & M'!$D$33 -> 2 | D84: ='DNSP Inputs O & M'!$D$17 -> 8 | E84: =B84*C84*D84 -> 1443.84 | F84: =(E84+E85)/'DNSP Inputs O & M'!$D$36 -> 40.77528993 | G84: =F84*D61 -> 1.997989207 | I84: ='DNSP Inputs O & M'!$D$12 -> 90.24 | J84: ='DNSP Inputs O & M'!$D$33 -> 2 | K84: ='DNSP Inputs O & M'!$D$17 -> 8 | L84: =I84*J84*K84 -> 1443.84 | M84: =(L84+L85)/'DNSP Inputs O & M'!$D$37 -> 52.91541664 | N84: =M84*D61 -> 2.592855415 | Q84: ='DNSP Inputs O & M'!$E$12 -> 90.24 | R84: ='DNSP Inputs O & M'!$E$33 -> 2 | S84: ='DNSP Inputs O & M'!$E$17 -> 8 | T84: =Q84*R84*S84 -> 1443.84 | U84: =(T84+T85)/'DNSP Inputs O & M'!$E$36 -> 40.45470325 | V84: =U84*S61 -> 1.982280459 | X84: ='DNSP Inputs O & M'!$E$12 -> 90.24 | Y84: ='DNSP Inputs O & M'!$E$33 -> 2 | Z84: ='DNSP Inputs O & M'!$E$17 -> 8 | AA84: =X84*Y84*Z84 -> 1443.84 | AB84: =(AA84+AA85)/'DNSP Inputs O & M'!$E$37 -> 53.55151515 | AC84: =AB84*S61 -> 2.624024242 | AF84: ='DNSP Inputs O & M'!$F$12 -> 90.24 | AG84: ='DNSP Inputs O & M'!$F$33 -> 2 | AH84: ='DNSP Inputs O & M'!$F$17 -> 8 | AI84: =AF84*AG84*AH84 -> 1443.84 | AJ84: =(AI84+AI85)/'DNSP Inputs O & M'!$F$36 -> 52.45021856 | AK84: =AJ84*AH61 -> 2.57006071 | AM84: ='DNSP Inputs O & M'!$F$12 -> 90.24 | AN84: ='DNSP Inputs O & M'!$F$33 -> 2 | AO84: ='DNSP Inputs O & M'!$F$17 -> 8 | AP84: =AM84*AN84*AO84 -> 1443.84 | AQ84: =(AP84+AP85)/'DNSP Inputs O & M'!$F$37 -> 53.55151515 | AR84: =AQ84*AH61 -> 2.624024242 | AU84: ='DNSP Inputs O & M'!$G$12 -> 90.24 | AV84: ='DNSP Inputs O & M'!$G$33 -> 2 | AW84: ='DNSP Inputs O & M'!$G$17 -> 8 | AX84: =AU84*AV84*AW84 -> 1443.84 | AY84: =(AX84+AX85)/'DNSP Inputs O & M'!$G$36 -> 53.62886573 | AZ84: =AY84*AW61 -> 2.627814421 | BB84: ='DNSP Inputs O & M'!$G$12 -> 90.24 | BC84: ='DNSP Inputs O & M'!$G$33 -> 2 | BD84: ='DNSP Inputs O & M'!$G$17 -> 8 | BE84: =BB84*BC84*BD84 -> 1443.84 | BF84: =(BE84+BE85)/'DNSP Inputs O & M'!$G$37 -> 63.8517844 | BG84: =BF84*AW61 -> 3.128737435 | BJ84: ='DNSP Inputs O & M'!$H$12 -> 90.24 | BK84: ='DNSP Inputs O & M'!$H$33 -> 2 | BL84: ='DNSP Inputs O & M'!$H$17 -> 8 | BM84: =BJ84*BK84*BL84 -> 1443.84 | BN84: =(BM84+BM85)/'DNSP Inputs O & M'!$H$36 -> 53.64542279 | BO84: =BN84*BL61 -> 2.628625717 | BQ84: ='DNSP Inputs O & M'!$H$12 -> 90.24 | BR84: ='DNSP Inputs O & M'!$H$33 -> 2 | BS84: ='DNSP Inputs O & M'!$H$17 -> 8 | BT84: =BQ84*BR84*BS84 -> 1443.84 | BU84: =(BT84+BT85)/'DNSP Inputs O & M'!$H$37 -> 63.85231049 | BV84: =BU84*BL61 -> 3.128763214
A85: Elevated platform costs | B85: ='DNSP Inputs O & M'!$D$14 -> 40.42 | C85: 1 | D85: ='DNSP Inputs O & M'!$D$17 -> 8 | E85: =B85*C85*D85 -> 323.36 | I85: ='DNSP Inputs O & M'!$D$15 -> 40.42 | J85: 1 | K85: ='DNSP Inputs O & M'!$D$17 -> 8 | L85: =I85*J85*K85 -> 323.36 | Q85: ='DNSP Inputs O & M'!$E$14 -> 40.42 | R85: 1 | S85: ='DNSP Inputs O & M'!$E$17 -> 8 | T85: =Q85*R85*S85 -> 323.36 | X85: ='DNSP Inputs O & M'!$E$15 -> 40.42 | Y85: 1 | Z85: ='DNSP Inputs O & M'!$E$17 -> 8 | AA85: =X85*Y85*Z85 -> 323.36 | AF85: ='DNSP Inputs O & M'!$F$14 -> 40.42 | AG85: 1 | AH85: ='DNSP Inputs O & M'!$F$17 -> 8 | AI85: =AF85*AG85*AH85 -> 323.36 | AM85: ='DNSP Inputs O & M'!$F$15 -> 40.42 | AN85: 1 | AO85: ='DNSP Inputs O & M'!$F$17 -> 8 | AP85: =AM85*AN85*AO85 -> 323.36 | AU85: ='DNSP Inputs O & M'!$G$14 -> 40.42 | AV85: 1 | AW85: ='DNSP Inputs O & M'!$G$17 -> 8 | AX85: =AU85*AV85*AW85 -> 323.36 | BB85: ='DNSP Inputs O & M'!$G$15 -> 40.42 | BC85: 1 | BD85: ='DNSP Inputs O & M'!$G$17 -> 8 | BE85: =BB85*BC85*BD85 -> 323.36 | BJ85: ='DNSP Inputs O & M'!$H$14 -> 40.42 | BK85: 1 | BL85: ='DNSP Inputs O & M'!$H$17 -> 8 | BM85: =BJ85*BK85*BL85 -> 323.36 | BQ85: ='DNSP Inputs O & M'!$H$15 -> 40.42 | BR85: 1 | BS85: ='DNSP Inputs O & M'!$H$17 -> 8 | BT85: =BQ85*BR85*BS85 -> 323.36
A86: Other Maintenance and Repair costs | G86: ='DNSP Inputs O & M'!$D$48 -> 0 | N86: ='DNSP Inputs O & M'!$D$48 -> 0 | V86: ='DNSP Inputs O & M'!$E$48 -> 0 | AC86: ='DNSP Inputs O & M'!$E$48 -> 0 | AK86: ='DNSP Inputs O & M'!$F$48 -> 0 | AR86: ='DNSP Inputs O & M'!$F$48 -> 0 | AZ86: ='DNSP Inputs O & M'!$G$48 -> 0 | BG86: ='DNSP Inputs O & M'!$G$48 -> 0 | BO86: ='DNSP Inputs O & M'!$H$48 -> 0 | BV86: ='DNSP Inputs O & M'!$H$48 -> 0
A88: Overheads | B88: ='DNSP Inputs O & M'!$D$18 -> 0.25 | G88: =B88*SUM(G72:G86) -> 4.190626826 | I88: ='DNSP Inputs O & M'!$D$18 -> 0.25 | N88: =I88*SUM(N72:N86) -> 4.79116342 | Q88: ='DNSP Inputs O & M'!$E$18 -> 0.25 | V88: =Q88*SUM(V72:V86) -> 4.321587906 | X88: ='DNSP Inputs O & M'!$E$18 -> 0.25 | AC88: =X88*SUM(AC72:AC86) -> 4.794993194 | AF88: ='DNSP Inputs O & M'!$F$18 -> 0.25 | AK88: =AF88*SUM(AK72:AK86) -> 4.609040301 | AM88: ='DNSP Inputs O & M'!$F$18 -> 0.25 | AR88: =AM88*SUM(AR72:AR86) -> 4.966108733 | AU88: ='DNSP Inputs O & M'!$G$18 -> 0.25 | AZ88: =AU88*SUM(AZ72:AZ86) -> 4.786742927 | BB88: ='DNSP Inputs O & M'!$G$18 -> 0.25 | BG88: =BB88*SUM(BG72:BG86) -> 5.293655952 | BJ88: ='DNSP Inputs O & M'!$H$18 -> 0.25 | BO88: =BJ88*SUM(BO72:BO86) -> 4.978271223 | BQ88: ='DNSP Inputs O & M'!$H$18 -> 0.25 | BV88: =BQ88*SUM(BV72:BV86) -> 5.533188125
G90: =SUM(G72,G76,G81,G84,G86,G88) -> 20.95313413 | N90: =SUM(N72,N76,N81,N84,N86,N88) -> 23.9558171 | V90: =SUM(V72,V76,V81,V84,V86,V88) -> 21.60793953 | AC90: =SUM(AC72,AC76,AC81,AC84,AC86,AC88) -> 23.97496597 | AK90: =SUM(AK72,AK76,AK81,AK84,AK86,AK88) -> 23.04520151 | AR90: =SUM(AR72,AR76,AR81,AR84,AR86,AR88) -> 24.83054367 | AZ90: =SUM(AZ72,AZ76,AZ81,AZ84,AZ86,AZ88) -> 23.93371463 | BG90: =SUM(BG72,BG76,BG81,BG84,BG86,BG88) -> 26.46827976 | BO90: =SUM(BO72,BO76,BO81,BO84,BO86,BO88) -> 24.89135611 | BV90: =SUM(BV72,BV76,BV81,BV84,BV86,BV88) -> 27.66594063
A92: Dedicated poles - inspection
A93: Crew costs | B93: ='DNSP Inputs O & M'!$D$12 -> 90.24 | C93: 1 | D93: ='DNSP Inputs O & M'!$D$17 -> 8 | E93: =B93*C93*D93 -> 721.92 | F93: =(E93+E94+E95)/'DNSP Inputs O & M'!$D$116 -> 200.48 | G93: =F93/'DNSP Inputs O & M'!$D$117 -> 2.673066667 | I93: ='DNSP Inputs O & M'!$D$12 -> 90.24 | J93: 1 | K93: ='DNSP Inputs O & M'!$D$17 -> 8 | L93: =I93*J93*K93 -> 721.92 | M93: =(L93+L94+L95)/'DNSP Inputs O & M'!$D$116 -> 200.48 | N93: =M93/'DNSP Inputs O & M'!$D$117 -> 2.673066667 | Q93: ='DNSP Inputs O & M'!$E$12 -> 90.24 | R93: 1 | S93: ='DNSP Inputs O & M'!$E$17 -> 8 | T93: =Q93*R93*S93 -> 721.92 | U93: =(T93+T94+T95)/'DNSP Inputs O & M'!$E$116 -> 200.48 | V93: =U93/'DNSP Inputs O & M'!$E$117 -> 2.673066667 | X93: ='DNSP Inputs O & M'!$E$12 -> 90.24 | Y93: 1 | Z93: ='DNSP Inputs O & M'!$E$17 -> 8 | AA93: =X93*Y93*Z93 -> 721.92 | AB93: =(AA93+AA94+AA95)/'DNSP Inputs O & M'!$E$116 -> 200.48 | AC93: =AB93/'DNSP Inputs O & M'!$E$117 -> 2.673066667 | AF93: ='DNSP Inputs O & M'!$F$12 -> 90.24 | AG93: 1 | AH93: ='DNSP Inputs O & M'!$F$17 -> 8 | AI93: =AF93*AG93*AH93 -> 721.92 | AJ93: =(AI93+AI94+AI95)/'DNSP Inputs O & M'!$F$116 -> 200.48 | AK93: =AJ93/'DNSP Inputs O & M'!$F$117 -> 2.673066667 | AM93: ='DNSP Inputs O & M'!$F$12 -> 90.24 | AN93: 1 | AO93: ='DNSP Inputs O & M'!$F$17 -> 8 | AP93: =AM93*AN93*AO93 -> 721.92 | AQ93: =(AP93+AP94+AP95)/'DNSP Inputs O & M'!$F$116 -> 200.48 | AR93: =AQ93/'DNSP Inputs O & M'!$F$117 -> 2.673066667 | AU93: ='DNSP Inputs O & M'!$G$12 -> 90.24 | AV93: 1 | AW93: ='DNSP Inputs O & M'!$G$17 -> 8 | AX93: =AU93*AV93*AW93 -> 721.92 | AY93: =(AX93+AX94+AX95)/'DNSP Inputs O & M'!$G$116 -> 200.48 | AZ93: =AY93/'DNSP Inputs O & M'!$G$117 -> 2.673066667 | BB93: ='DNSP Inputs O & M'!$G$12 -> 90.24 | BC93: 1 | BD93: ='DNSP Inputs O & M'!$G$17 -> 8 | BE93: =BB93*BC93*BD93 -> 721.92 | BF93: =(BE93+BE94+BE95)/'DNSP Inputs O & M'!$G$116 -> 200.48 | BG93: =BF93/'DNSP Inputs O & M'!$G$117 -> 2.673066667 | BJ93: ='DNSP Inputs O & M'!$H$12 -> 90.24 | BK93: 1 | BL93: ='DNSP Inputs O & M'!$H$17 -> 8 | BM93: =BJ93*BK93*BL93 -> 721.92 | BN93: =(BM93+BM94+BM95)/'DNSP Inputs O & M'!$H$116 -> 200.48 | BO93: =BN93/'DNSP Inputs O & M'!$H$117 -> 2.673066667 | BQ93: ='DNSP Inputs O & M'!$H$12 -> 90.24 | BR93: 1 | BS93: ='DNSP Inputs O & M'!$H$17 -> 8 | BT93: =BQ93*BR93*BS93 -> 721.92 | BU93: =(BT93+BT94+BT95)/'DNSP Inputs O & M'!$H$116 -> 200.48 | BV93: =BU93/'DNSP Inputs O & M'!$H$117 -> 2.673066667
A94: Vehicle costs | B94: ='DNSP Inputs O & M'!$D$16 -> 10 | C94: 1 | D94: ='DNSP Inputs O & M'!$D$17 -> 8 | E94: =B94*C94*D94 -> 80 | I94: ='DNSP Inputs O & M'!$D$16 -> 10 | J94: 1 | K94: ='DNSP Inputs O & M'!$D$17 -> 8 | L94: =I94*J94*K94 -> 80 | Q94: ='DNSP Inputs O & M'!$E$16 -> 10 | R94: 1 | S94: ='DNSP Inputs O & M'!$E$17 -> 8 | T94: =Q94*R94*S94 -> 80 | X94: ='DNSP Inputs O & M'!$E$16 -> 10 | Y94: 1 | Z94: ='DNSP Inputs O & M'!$E$17 -> 8 | AA94: =X94*Y94*Z94 -> 80 | AF94: ='DNSP Inputs O & M'!$F$16 -> 10 | AG94: 1 | AH94: ='DNSP Inputs O & M'!$F$17 -> 8 | AI94: =AF94*AG94*AH94 -> 80 | AM94: ='DNSP Inputs O & M'!$F$16 -> 10 | AN94: 1 | AO94: ='DNSP Inputs O & M'!$F$17 -> 8 | AP94: =AM94*AN94*AO94 -> 80 | AU94: ='DNSP Inputs O & M'!$G$16 -> 10 | AV94: 1 | AW94: ='DNSP Inputs O & M'!$G$17 -> 8 | AX94: =AU94*AV94*AW94 -> 80 | BB94: ='DNSP Inputs O & M'!$G$16 -> 10 | BC94: 1 | BD94: ='DNSP Inputs O & M'!$G$17 -> 8 | BE94: =BB94*BC94*BD94 -> 80 | BJ94: ='DNSP Inputs O & M'!$H$16 -> 10 | BK94: 1 | BL94: ='DNSP Inputs O & M'!$H$17 -> 8 | BM94: =BJ94*BK94*BL94 -> 80 | BQ94: ='DNSP Inputs O & M'!$H$16 -> 10 | BR94: 1 | BS94: ='DNSP Inputs O & M'!$H$17 -> 8 | BT94: =BQ94*BR94*BS94 -> 80
A95: Overheads | B95: ='DNSP Inputs O & M'!$D$18 -> 0.25 | E95: =B95*(E93+E94) -> 200.48 | I95: ='DNSP Inputs O & M'!$D$18 -> 0.25 | L95: =I95*(L93+L94) -> 200.48 | Q95: ='DNSP Inputs O & M'!$E$18 -> 0.25 | T95: =Q95*(T93+T94) -> 200.48 | X95: ='DNSP Inputs O & M'!$E$18 -> 0.25 | AA95: =X95*(AA93+AA94) -> 200.48 | AF95: ='DNSP Inputs O & M'!$F$18 -> 0.25 | AI95: =AF95*(AI93+AI94) -> 200.48 | AM95: ='DNSP Inputs O & M'!$F$18 -> 0.25 | AP95: =AM95*(AP93+AP94) -> 200.48 | AU95: ='DNSP Inputs O & M'!$G$18 -> 0.25 | AX95: =AU95*(AX93+AX94) -> 200.48 | BB95: ='DNSP Inputs O & M'!$G$18 -> 0.25 | BE95: =BB95*(BE93+BE94) -> 200.48 | BJ95: ='DNSP Inputs O & M'!$H$18 -> 0.25 | BM95: =BJ95*(BM93+BM94) -> 200.48 | BQ95: ='DNSP Inputs O & M'!$H$18 -> 0.25 | BT95: =BQ95*(BT93+BT94) -> 200.48
A100: Sodium High Pressure 150 Watt Standard Light Type - Cost build-up
A102: Additional assumptions
A103: Overheads are applied to material and labour components
A104: All costs and charges are exclusive of GST
B106: Urban | I106: Rural | Q106: Urban | X106: Rural | AF106: Urban | AM106: Rural | AU106: Urban | BB106: Rural | BJ106: Urban | BQ106: Rural
B108: Unit rate | C108: Number | D108: Hours | E108: Cost | F108: Annualised | G108: Annualised | I108: Unit rate | J108: Number | K108: Hours | L108: Cost | M108: Annualised | N108: Annualised | Q108: Unit rate | R108: Number | S108: Hours | T108: Cost | U108: Annualised | V108: Annualised | X108: Unit rate | Y108: Number | Z108: Hours | AA108: Cost | AB108: Annualised | AC108: Annualised | AF108: Unit rate | AG108: Number | AH108: Hours | AI108: Cost | AJ108: Annualised | AK108: Annualised | AM108: Unit rate | AN108: Number | AO108: Hours | AP108: Cost | AQ108: Annualised | AR108: Annualised | AU108: Unit rate | AV108: Number | AW108: Hours | AX108: Cost | AY108: Annualised | AZ108: Annualised | BB108: Unit rate | BC108: Number | BD108: Hours | BE108: Cost | BF108: Annualised | BG108: Annualised | BJ108: Unit rate | BK108: Number | BL108: Hours | BM108: Cost | BN108: Annualised | BO108: Annualised | BQ108: Unit rate | BR108: Number | BS108: Hours | BT108: Cost | BU108: Annualised | BV108: Annualised
F109: cost | G109: unit cost | M109: cost | N109: unit cost | U109: cost | V109: unit cost | AB109: cost | AC109: unit cost | AJ109: cost | AK109: unit cost | AQ109: cost | AR109: unit cost | AY109: cost | AZ109: unit cost | BF109: cost | BG109: unit cost | BN109: cost | BO109: unit cost | BU109: cost | BV109: unit cost
A110: S-HP 150
A111: Patrols and repairs
A112: Materials
A113: Lamp | B113: ='DNSP Inputs O & M'!$D$62 -> 35.67 | C113: ='DNSP Inputs O & M'!$D$69 -> 36.45394329 | E113: =B113*C113 -> 1300.312157 | F113: =(E113+E114+E115)/'DNSP Inputs O & M'!$D$69 -> 47.515 | G113: =F113/'DNSP Inputs O & M'!$D$60 -> 9.503 | I113: ='DNSP Inputs O & M'!$D$62*(1+'DNSP Inputs O & M'!$D$11) -> 37.4535 | J113: ='DNSP Inputs O & M'!$D$70 -> 26.56660734 | L113: =I113*J113 -> 995.0124281 | M113: =(L113+L114+L115)/'DNSP Inputs O & M'!$D$70 -> 49.89075 | N113: =M113/'DNSP Inputs O & M'!$D$60 -> 9.97815 | Q113: ='DNSP Inputs O & M'!$E$62 -> 35.67 | R113: ='DNSP Inputs O & M'!$E$69 -> 31.30543798 | T113: =Q113*R113 -> 1116.664973 | U113: =(T113+T114+T115)/'DNSP Inputs O & M'!$E$69 -> 47.515 | V113: =U113/'DNSP Inputs O & M'!$E$60 -> 9.503 | X113: ='DNSP Inputs O & M'!$E$62*(1+'DNSP Inputs O & M'!$E$11) -> 37.4535 | Y113: ='DNSP Inputs O & M'!$E$70 -> 25.75004876 | AA113: =X113*Y113 -> 964.4294511 | AB113: =(AA113+AA114+AA115)/'DNSP Inputs O & M'!$E$70 -> 49.89075 | AC113: =AB113/'DNSP Inputs O & M'!$E$60 -> 9.97815 | AF113: ='DNSP Inputs O & M'!$F$62 -> 35.67 | AG113: ='DNSP Inputs O & M'!$F$69 -> 27.28560967 | AI113: =AF113*AG113 -> 973.2776968 | AJ113: =(AI113+AI114+AI115)/'DNSP Inputs O & M'!$F$69 -> 47.515 | AK113: =AJ113/'DNSP Inputs O & M'!$F$60 -> 9.503 | AM113: ='DNSP Inputs O & M'!$F$62*(1+'DNSP Inputs O & M'!$F$11) -> 37.4535 | AN113: ='DNSP Inputs O & M'!$F$70 -> 21.80926978 | AP113: =AM113*AN113 -> 816.8334857 | AQ113: =(AP113+AP114+AP115)/'DNSP Inputs O & M'!$F$70 -> 49.89075 | AR113: =AQ113/'DNSP Inputs O & M'!$F$60 -> 9.97815 | AU113: ='DNSP Inputs O & M'!$G$62 -> 35.67 | AV113: ='DNSP Inputs O & M'!$G$69 -> 27.25463997 | AX113: =AU113*AV113 -> 972.1730079 | AY113: =(AX113+AX114+AX115)/'DNSP Inputs O & M'!$G$69 -> 47.515 | AZ113: =AY113/'DNSP Inputs O & M'!$G$60 -> 9.503 | BB113: ='DNSP Inputs O & M'!$G$62*(1+'DNSP Inputs O & M'!$G$11) -> 37.4535 | BC113: ='DNSP Inputs O & M'!$G$70 -> 25.15735201 | BE113: =BB113*BC113 -> 942.2308834 | BF113: =(BE113+BE114+BE115)/'DNSP Inputs O & M'!$G$70 -> 49.89075 | BG113: =BF113/'DNSP Inputs O & M'!$G$60 -> 9.97815 | BJ113: ='DNSP Inputs O & M'!$H$62 -> 35.67 | BK113: ='DNSP Inputs O & M'!$H$69 -> 25.87392839 | BM113: =BJ113*BK113 -> 922.9230257 | BN113: =(BM113+BM114+BM115)/'DNSP Inputs O & M'!$H$69 -> 47.515 | BO113: =BN113/'DNSP Inputs O & M'!$H$60 -> 9.503 | BQ113: ='DNSP Inputs O & M'!$H$62*(1+'DNSP Inputs O & M'!$H$11) -> 37.4535 | BR113: ='DNSP Inputs O & M'!$H$70 -> 24.99331559 | BT113: =BQ113*BR113 -> 936.0871456 | BU113: =(BT113+BT114+BT115)/'DNSP Inputs O & M'!$H$70 -> 49.89075 | BV113: =BU113/'DNSP Inputs O & M'!$H$60 -> 9.97815
A114: PE cell | B114: ='DNSP Inputs O & M'!$D$63 -> 19.37 | C114: =C113*'DNSP Inputs O & M'!$D$60/'DNSP Inputs O & M'!$D$61 -> 18.22697164 | E114: =B114*C114 -> 353.0564407 | I114: ='DNSP Inputs O & M'!$D$63*(1+'DNSP Inputs O & M'!$D$11) -> 20.3385 | J114: =J113*'DNSP Inputs O & M'!$D$60/'DNSP Inputs O & M'!$D$61 -> 13.28330367 | L114: =I114*J114 -> 270.1624717 | Q114: ='DNSP Inputs O & M'!$E$63 -> 19.37 | R114: =R113*'DNSP Inputs O & M'!$E$60/'DNSP Inputs O & M'!$E$61 -> 15.65271899 | T114: =Q114*R114 -> 303.1931668 | X114: ='DNSP Inputs O & M'!$E$63*(1+'DNSP Inputs O & M'!$E$11) -> 20.3385 | Y114: =Y113*'DNSP Inputs O & M'!$E$60/'DNSP Inputs O & M'!$E$61 -> 12.87502438 | AA114: =X114*Y114 -> 261.8586833 | AF114: ='DNSP Inputs O & M'!$F$63 -> 19.37 | AG114: =AG113*'DNSP Inputs O & M'!$F$60/'DNSP Inputs O & M'!$F$61 -> 13.64280483 | AI114: =AF114*AG114 -> 264.2611296 | AM114: ='DNSP Inputs O & M'!$F$63*(1+'DNSP Inputs O & M'!$F$11) -> 20.3385 | AN114: =AN113*'DNSP Inputs O & M'!$F$60/'DNSP Inputs O & M'!$F$61 -> 10.90463489 | AP114: =AM114*AN114 -> 221.7839167 | AU114: ='DNSP Inputs O & M'!$G$63 -> 19.37 | AV114: =AV113*'DNSP Inputs O & M'!$G$60/'DNSP Inputs O & M'!$G$61 -> 13.62731999 | AX114: =AU114*AV114 -> 263.9611882 | BB114: ='DNSP Inputs O & M'!$G$63*(1+'DNSP Inputs O & M'!$G$11) -> 20.3385 | BC114: =BC113*'DNSP Inputs O & M'!$G$60/'DNSP Inputs O & M'!$G$61 -> 12.578676 | BE114: =BB114*BC114 -> 255.8314019 | BJ114: ='DNSP Inputs O & M'!$H$63 -> 19.37 | BK114: =BK113*'DNSP Inputs O & M'!$H$60/'DNSP Inputs O & M'!$H$61 -> 12.9369642 | BM114: =BJ114*BK114 -> 250.5889965 | BQ114: ='DNSP Inputs O & M'!$H$63*(1+'DNSP Inputs O & M'!$H$11) -> 20.3385 | BR114: =BR113*'DNSP Inputs O & M'!$H$60/'DNSP Inputs O & M'!$H$61 -> 12.4966578 | BT114: =BQ114*BR114 -> 254.1632746
A115: Miscellaneous | B115: ='DNSP Inputs O & M'!$D$64 -> 2.16 | C115: ='DNSP Inputs O & M'!$D$69 -> 36.45394329 | E115: =B115*C115 -> 78.7405175 | I115: ='DNSP Inputs O & M'!$D$64*(1+'DNSP Inputs O & M'!$D$11) -> 2.268 | J115: ='DNSP Inputs O & M'!$D$70 -> 26.56660734 | L115: =I115*J115 -> 60.25306545 | Q115: ='DNSP Inputs O & M'!$E$64 -> 2.16 | R115: ='DNSP Inputs O & M'!$E$69 -> 31.30543798 | T115: =Q115*R115 -> 67.61974603 | X115: ='DNSP Inputs O & M'!$E$64*(1+'DNSP Inputs O & M'!$E$11) -> 2.268 | Y115: ='DNSP Inputs O & M'!$E$70 -> 25.75004876 | AA115: =X115*Y115 -> 58.40111058 | AF115: ='DNSP Inputs O & M'!$F$64 -> 2.16 | AG115: ='DNSP Inputs O & M'!$F$69 -> 27.28560967 | AI115: =AF115*AG115 -> 58.93691688 | AM115: ='DNSP Inputs O & M'!$F$64*(1+'DNSP Inputs O & M'!$F$11) -> 2.268 | AN115: ='DNSP Inputs O & M'!$F$70 -> 21.80926978 | AP115: =AM115*AN115 -> 49.46342386 | AU115: ='DNSP Inputs O & M'!$G$64 -> 2.16 | AV115: ='DNSP Inputs O & M'!$G$69 -> 27.25463997 | AX115: =AU115*AV115 -> 58.87002235 | BB115: ='DNSP Inputs O & M'!$G$64*(1+'DNSP Inputs O & M'!$G$11) -> 2.268 | BC115: ='DNSP Inputs O & M'!$G$70 -> 25.15735201 | BE115: =BB115*BC115 -> 57.05687435 | BJ115: ='DNSP Inputs O & M'!$H$64 -> 2.16 | BK115: ='DNSP Inputs O & M'!$H$69 -> 25.87392839 | BM115: =BJ115*BK115 -> 55.88768532 | BQ115: ='DNSP Inputs O & M'!$H$64*(1+'DNSP Inputs O & M'!$H$11) -> 2.268 | BR115: ='DNSP Inputs O & M'!$H$70 -> 24.99331559 | BT115: =BQ115*BR115 -> 56.68483977
A116: Labour - Patrol
A117: Crew costs | B117: ='DNSP Inputs O & M'!$D$13 -> 119.78 | C117: ='DNSP Inputs O & M'!$D$65 -> 2 | D117: ='DNSP Inputs O & M'!$D$17 -> 8 | E117: =B117*C117*D117 -> 1916.48 | F117: =(E117+E118)/'DNSP Inputs O & M'!$D$67 -> 0.3781046249 | G117: =F117*'DNSP Inputs O & M'!$D$59 -> 1.134313875 | I117: ='DNSP Inputs O & M'!$D$13 -> 119.78 | J117: ='DNSP Inputs O & M'!$D$65 -> 2 | K117: ='DNSP Inputs O & M'!$D$17 -> 8 | L117: =I117*J117*K117 -> 1916.48 | M117: =(L117+L118)/'DNSP Inputs O & M'!$D$68 -> 0.8003994482 | N117: =M117*'DNSP Inputs O & M'!$D$59 -> 2.401198345 | Q117: ='DNSP Inputs O & M'!$E$13 -> 119.78 | R117: ='DNSP Inputs O & M'!$E$65 -> 2 | S117: ='DNSP Inputs O & M'!$E$17 -> 8 | T117: =Q117*R117*S117 -> 1916.48 | U117: =(T117+T118)/'DNSP Inputs O & M'!$E$67 -> 0.36319848 | V117: =U117*'DNSP Inputs O & M'!$E$59 -> 1.08959544 | X117: ='DNSP Inputs O & M'!$E$13 -> 119.78 | Y117: ='DNSP Inputs O & M'!$E$65 -> 2 | Z117: ='DNSP Inputs O & M'!$E$17 -> 8 | AA117: =X117*Y117*Z117 -> 1916.48 | AB117: =(AA117+AA118)/'DNSP Inputs O & M'!$E$68 -> 0.7967766856 | AC117: =AB117*'DNSP Inputs O & M'!$E$59 -> 2.390330057 | AF117: ='DNSP Inputs O & M'!$F$13 -> 119.78 | AG117: ='DNSP Inputs O & M'!$F$65 -> 2 | AH117: ='DNSP Inputs O & M'!$F$17 -> 8 | AI117: =AF117*AG117*AH117 -> 1916.48 | AJ117: =(AI117+AI118)/'DNSP Inputs O & M'!$F$67 -> 0.3542798799 | AK117: =AJ117*'DNSP Inputs O & M'!$F$59 -> 1.06283964 | AM117: ='DNSP Inputs O & M'!$F$13 -> 119.78 | AN117: ='DNSP Inputs O & M'!$F$65 -> 2 | AO117: ='DNSP Inputs O & M'!$F$17 -> 8 | AP117: =AM117*AN117*AO117 -> 1916.48 | AQ117: =(AP117+AP118)/'DNSP Inputs O & M'!$F$68 -> 0.7866605972 | AR117: =AQ117*'DNSP Inputs O & M'!$F$59 -> 2.359981792 | AU117: ='DNSP Inputs O & M'!$G$13 -> 119.78 | AV117: ='DNSP Inputs O & M'!$G$65 -> 2 | AW117: ='DNSP Inputs O & M'!$G$17 -> 8 | AX117: =AU117*AV117*AW117 -> 1916.48 | AY117: =(AX117+AX118)/'DNSP Inputs O & M'!$G$67 -> 0.3436354589 | AZ117: =AY117*'DNSP Inputs O & M'!$G$59 -> 1.030906377 | BB117: ='DNSP Inputs O & M'!$G$13 -> 119.78 | BC117: ='DNSP Inputs O & M'!$G$65 -> 2 | BD117: ='DNSP Inputs O & M'!$G$17 -> 8 | BE117: =BB117*BC117*BD117 -> 1916.48 | BF117: =(BE117+BE118)/'DNSP Inputs O & M'!$G$68 -> 0.7673471872 | BG117: =BF117*'DNSP Inputs O & M'!$G$59 -> 2.302041562 | BJ117: ='DNSP Inputs O & M'!$H$13 -> 119.78 | BK117: ='DNSP Inputs O & M'!$H$65 -> 2 | BL117: ='DNSP Inputs O & M'!$H$17 -> 8 | BM117: =BJ117*BK117*BL117 -> 1916.48 | BN117: =(BM117+BM118)/'DNSP Inputs O & M'!$H$67 -> 0.3335350045 | BO117: =BN117*'DNSP Inputs O & M'!$H$59 -> 1.000605014 | BQ117: ='DNSP Inputs O & M'!$H$13 -> 119.78 | BR117: ='DNSP Inputs O & M'!$H$65 -> 2 | BS117: ='DNSP Inputs O & M'!$H$17 -> 8 | BT117: =BQ117*BR117*BS117 -> 1916.48 | BU117: =(BT117+BT118)/'DNSP Inputs O & M'!$H$68 -> 0.7476113568 | BV117: =BU117*'DNSP Inputs O & M'!$H$59 -> 2.24283407
A118: Vehicle costs | B118: ='DNSP Inputs O & M'!$D$16 -> 10 | C118: 1 | D118: ='DNSP Inputs O & M'!$D$17 -> 8 | E118: =B118*C118*D118 -> 80 | I118: ='DNSP Inputs O & M'!$D$16 -> 10 | J118: 1 | K118: ='DNSP Inputs O & M'!$D$17 -> 8 | L118: =I118*J118*K118 -> 80 | Q118: ='DNSP Inputs O & M'!$E$16 -> 10 | R118: 1 | S118: ='DNSP Inputs O & M'!$E$17 -> 8 | T118: =Q118*R118*S118 -> 80 | X118: ='DNSP Inputs O & M'!$E$16 -> 10 | Y118: 1 | Z118: ='DNSP Inputs O & M'!$E$17 -> 8 | AA118: =X118*Y118*Z118 -> 80 | AF118: ='DNSP Inputs O & M'!$F$16 -> 10 | AG118: 1 | AH118: ='DNSP Inputs O & M'!$F$17 -> 8 | AI118: =AF118*AG118*AH118 -> 80 | AM118: ='DNSP Inputs O & M'!$F$16 -> 10 | AN118: 1 | AO118: ='DNSP Inputs O & M'!$F$17 -> 8 | AP118: =AM118*AN118*AO118 -> 80 | AU118: ='DNSP Inputs O & M'!$G$16 -> 10 | AV118: 1 | AW118: ='DNSP Inputs O & M'!$G$17 -> 8 | AX118: =AU118*AV118*AW118 -> 80 | BB118: ='DNSP Inputs O & M'!$G$16 -> 10 | BC118: 1 | BD118: ='DNSP Inputs O & M'!$G$17 -> 8 | BE118: =BB118*BC118*BD118 -> 80 | BJ118: ='DNSP Inputs O & M'!$H$16 -> 10 | BK118: 1 | BL118: ='DNSP Inputs O & M'!$H$17 -> 8 | BM118: =BJ118*BK118*BL118 -> 80 | BQ118: ='DNSP Inputs O & M'!$H$16 -> 10 | BR118: 1 | BS118: ='DNSP Inputs O & M'!$H$17 -> 8 | BT118: =BQ118*BR118*BS118 -> 80
A119: Labour - Repair of faults
A120: Crew costs | B120: ='DNSP Inputs O & M'!$D$12 -> 90.24 | C120: ='DNSP Inputs O & M'!$D$66 -> 2 | D120: ='DNSP Inputs O & M'!$D$17 -> 8 | E120: =B120*C120*D120 -> 1443.84 | F120: =(E120+E121)/'DNSP Inputs O & M'!$D$69*(C113+C114)/C113 -> 72.71641312 | G120: =F120/'DNSP Inputs O & M'!$D$60 -> 14.54328262 | I120: ='DNSP Inputs O & M'!$D$12 -> 90.24 | J120: ='DNSP Inputs O & M'!$D$66 -> 2 | K120: ='DNSP Inputs O & M'!$D$17 -> 8 | L120: =I120*J120*K120 -> 1443.84 | M120: =(L120+L121)/'DNSP Inputs O & M'!$D$70*(J113+J114)/J113 -> 99.7793947 | N120: =M120/'DNSP Inputs O & M'!$D$60 -> 19.95587894 | Q120: ='DNSP Inputs O & M'!$E$12 -> 90.24 | R120: ='DNSP Inputs O & M'!$E$66 -> 2 | S120: ='DNSP Inputs O & M'!$E$17 -> 8 | T120: =Q120*R120*S120 -> 1443.84 | U120: =(T120+T121)/'DNSP Inputs O & M'!$E$69*(R113+R114)/R113 -> 84.67538457 | V120: =U120/'DNSP Inputs O & M'!$E$60 -> 16.93507691 | X120: ='DNSP Inputs O & M'!$E$12 -> 90.24 | Y120: ='DNSP Inputs O & M'!$E$66 -> 2 | Z120: ='DNSP Inputs O & M'!$E$17 -> 8 | AA120: =X120*Y120*Z120 -> 1443.84 | AB120: =(AA120+AA121)/'DNSP Inputs O & M'!$E$70*(Y113+Y114)/Y113 -> 102.9434944 | AC120: =AB120/'DNSP Inputs O & M'!$E$60 -> 20.58869888 | AF120: ='DNSP Inputs O & M'!$F$12 -> 90.24 | AG120: ='DNSP Inputs O & M'!$F$66 -> 2 | AH120: ='DNSP Inputs O & M'!$F$17 -> 8 | AI120: =AF120*AG120*AH120 -> 1443.84 | AJ120: =(AI120+AI121)/'DNSP Inputs O & M'!$F$69*(AG113+AG114)/AG113 -> 97.15011071 | AK120: =AJ120/'DNSP Inputs O & M'!$F$60 -> 19.43002214 | AM120: ='DNSP Inputs O & M'!$F$12 -> 90.24 | AN120: ='DNSP Inputs O & M'!$F$66 -> 2 | AO120: ='DNSP Inputs O & M'!$F$17 -> 8 | AP120: =AM120*AN120*AO120 -> 1443.84 | AQ120: =(AP120+AP121)/'DNSP Inputs O & M'!$F$70*(AN113+AN114)/AN113 -> 121.5446472 | AR120: =AQ120/'DNSP Inputs O & M'!$F$60 -> 24.30892943 | AU120: ='DNSP Inputs O & M'!$G$12 -> 90.24 | AV120: ='DNSP Inputs O & M'!$G$66 -> 2 | AW120: ='DNSP Inputs O & M'!$G$17 -> 8 | AX120: =AU120*AV120*AW120 -> 1443.84 | AY120: =(AX120+AX121)/'DNSP Inputs O & M'!$G$69*(AV113+AV114)/AV113 -> 97.26050326 | AZ120: =AY120/'DNSP Inputs O & M'!$G$60 -> 19.45210065 | BB120: ='DNSP Inputs O & M'!$G$12 -> 90.24 | BC120: ='DNSP Inputs O & M'!$G$66 -> 2 | BD120: ='DNSP Inputs O & M'!$G$17 -> 8 | BE120: =BB120*BC120*BD120 -> 1443.84 | BF120: =(BE120+BE121)/'DNSP Inputs O & M'!$G$70*(BC113+BC114)/BC113 -> 105.3688003 | BG120: =BF120/'DNSP Inputs O & M'!$G$60 -> 21.07376006 | BJ120: ='DNSP Inputs O & M'!$H$12 -> 90.24 | BK120: ='DNSP Inputs O & M'!$H$66 -> 2 | BL120: ='DNSP Inputs O & M'!$H$17 -> 8 | BM120: =BJ120*BK120*BL120 -> 1443.84 | BN120: =(BM120+BM121)/'DNSP Inputs O & M'!$H$69*(BK113+BK114)/BK113 -> 102.4506198 | BO120: =BN120/'DNSP Inputs O & M'!$H$60 -> 20.49012396 | BQ120: ='DNSP Inputs O & M'!$H$12 -> 90.24 | BR120: ='DNSP Inputs O & M'!$H$66 -> 2 | BS120: ='DNSP Inputs O & M'!$H$17 -> 8 | BT120: =BQ120*BR120*BS120 -> 1443.84 | BU120: =(BT120+BT121)/'DNSP Inputs O & M'!$H$70*(BR113+BR114)/BR113 -> 106.060358 | BV120: =BU120/'DNSP Inputs O & M'!$H$60 -> 21.2120716
A121: Elevated platform vehicle costs | B121: ='DNSP Inputs O & M'!$D$15 -> 40.42 | C121: 1 | D121: ='DNSP Inputs O & M'!$D$17 -> 8 | E121: =B121*C121*D121 -> 323.36 | I121: ='DNSP Inputs O & M'!$D$15 -> 40.42 | J121: 1 | K121: ='DNSP Inputs O & M'!$D$17 -> 8 | L121: =I121*J121*K121 -> 323.36 | Q121: ='DNSP Inputs O & M'!$E$15 -> 40.42 | R121: 1 | S121: ='DNSP Inputs O & M'!$E$17 -> 8 | T121: =Q121*R121*S121 -> 323.36 | X121: ='DNSP Inputs O & M'!$E$15 -> 40.42 | Y121: 1 | Z121: ='DNSP Inputs O & M'!$E$17 -> 8 | AA121: =X121*Y121*Z121 -> 323.36 | AF121: ='DNSP Inputs O & M'!$F$15 -> 40.42 | AG121: 1 | AH121: ='DNSP Inputs O & M'!$F$17 -> 8 | AI121: =AF121*AG121*AH121 -> 323.36 | AM121: ='DNSP Inputs O & M'!$F$15 -> 40.42 | AN121: 1 | AO121: ='DNSP Inputs O & M'!$F$17 -> 8 | AP121: =AM121*AN121*AO121 -> 323.36 | AU121: ='DNSP Inputs O & M'!$G$15 -> 40.42 | AV121: 1 | AW121: ='DNSP Inputs O & M'!$G$17 -> 8 | AX121: =AU121*AV121*AW121 -> 323.36 | BB121: ='DNSP Inputs O & M'!$G$15 -> 40.42 | BC121: 1 | BD121: ='DNSP Inputs O & M'!$G$17 -> 8 | BE121: =BB121*BC121*BD121 -> 323.36 | BJ121: ='DNSP Inputs O & M'!$H$15 -> 40.42 | BK121: 1 | BL121: ='DNSP Inputs O & M'!$H$17 -> 8 | BM121: =BJ121*BK121*BL121 -> 323.36 | BQ121: ='DNSP Inputs O & M'!$H$15 -> 40.42 | BR121: 1 | BS121: ='DNSP Inputs O & M'!$H$17 -> 8 | BT121: =BQ121*BR121*BS121 -> 323.36
A123: Other Maintenance and Repair costs | G123: ='DNSP Inputs O & M'!$D$77 -> 2.929493094 | N123: ='DNSP Inputs O & M'!$D$77 -> 2.929493094 | V123: ='DNSP Inputs O & M'!$E$77 -> 2.918121028 | AC123: ='DNSP Inputs O & M'!$E$77 -> 2.918121028 | AK123: ='DNSP Inputs O & M'!$F$77 -> 2.906863588 | AR123: ='DNSP Inputs O & M'!$F$77 -> 2.906863588 | AZ123: ='DNSP Inputs O & M'!$G$77 -> 2.895600023 | BG123: ='DNSP Inputs O & M'!$G$77 -> 2.895600023 | BO123: ='DNSP Inputs O & M'!$H$77 -> 2.884449676 | BV123: ='DNSP Inputs O & M'!$H$77 -> 2.884449676
A125: Overheads | B125: ='DNSP Inputs O & M'!$D$18 -> 0.25 | G125: =B125*(G113+G117+G120+G123) -> 7.027522398 | I125: ='DNSP Inputs O & M'!$D$18 -> 0.25 | N125: =I125*(N113+N117+N120+N123) -> 8.816180095 | Q125: ='DNSP Inputs O & M'!$E$18 -> 0.25 | V125: =Q125*(V113+V117+V120+V123) -> 7.611448346 | X125: ='DNSP Inputs O & M'!$E$18 -> 0.25 | AC125: =X125*(AC113+AC117+AC120+AC123) -> 8.968824991 | AF125: ='DNSP Inputs O & M'!$F$18 -> 0.25 | AK125: =AF125*(AK113+AK117+AK120+AK123) -> 8.225681342 | AM125: ='DNSP Inputs O & M'!$F$18 -> 0.25 | AR125: =AM125*(AR113+AR117+AR120+AR123) -> 9.888481202 | AU125: ='DNSP Inputs O & M'!$G$18 -> 0.25 | AZ125: =AU125*(AZ113+AZ117+AZ120+AZ123) -> 8.220401763 | BB125: ='DNSP Inputs O & M'!$G$18 -> 0.25 | BG125: =BB125*(BG113+BG117+BG120+BG123) -> 9.062387912 | BJ125: ='DNSP Inputs O & M'!$H$18 -> 0.25 | BO125: =BJ125*(BO113+BO117+BO120+BO123) -> 8.469544662 | BQ125: ='DNSP Inputs O & M'!$H$18 -> 0.25 | BV125: =BQ125*(BV113+BV117+BV120+BV123) -> 9.079376338
G127: =SUM(G113,G117,G120,G123,G125) -> 35.13761199 | N127: =SUM(N113,N117,N120,N123,N125) -> 44.08090047 | V127: =SUM(V113,V117,V120,V123,V125) -> 38.05724173 | AC127: =SUM(AC113,AC117,AC120,AC123,AC125) -> 44.84412496 | AK127: =SUM(AK113,AK117,AK120,AK123,AK125) -> 41.12840671 | AR127: =SUM(AR113,AR117,AR120,AR123,AR125) -> 49.44240601 | AZ127: =SUM(AZ113,AZ117,AZ120,AZ123,AZ125) -> 41.10200881 | BG127: =SUM(BG113,BG117,BG120,BG123,BG125) -> 45.31193956 | BO127: =SUM(BO113,BO117,BO120,BO123,BO125) -> 42.34772331 | BV127: =SUM(BV113,BV117,BV120,BV123,BV125) -> 45.39688169
A132: Sodium High Pressure 250 Watt Standard Light Type - Cost build-up
A134: Additional assumptions
A135: Overheads are applied to material and labour components
A136: All costs and charges are exclusive of GST
B138: Urban | I138: Rural | Q138: Urban | X138: Rural | AF138: Urban | AM138: Rural | AU138: Urban | BB138: Rural | BJ138: Urban | BQ138: Rural
B140: Unit rate | C140: Number | D140: Hours | E140: Cost | F140: Annualised | G140: Annualised | I140: Unit rate | J140: Number | K140: Hours | L140: Cost | M140: Annualised | N140: Annualised | Q140: Unit rate | R140: Number | S140: Hours | T140: Cost | U140: Annualised | V140: Annualised | X140: Unit rate | Y140: Number | Z140: Hours | AA140: Cost | AB140: Annualised | AC140: Annualised | AF140: Unit rate | AG140: Number | AH140: Hours | AI140: Cost | AJ140: Annualised | AK140: Annualised | AM140: Unit rate | AN140: Number | AO140: Hours | AP140: Cost | AQ140: Annualised | AR140: Annualised | AU140: Unit rate | AV140: Number | AW140: Hours | AX140: Cost | AY140: Annualised | AZ140: Annualised | BB140: Unit rate | BC140: Number | BD140: Hours | BE140: Cost | BF140: Annualised | BG140: Annualised | BJ140: Unit rate | BK140: Number | BL140: Hours | BM140: Cost | BN140: Annualised | BO140: Annualised | BQ140: Unit rate | BR140: Number | BS140: Hours | BT140: Cost | BU140: Annualised | BV140: Annualised
F141: cost | G141: unit cost | M141: cost | N141: unit cost | U141: cost | V141: unit cost | AB141: cost | AC141: unit cost | AJ141: cost | AK141: unit cost | AQ141: cost | AR141: unit cost | AY141: cost | AZ141: unit cost | BF141: cost | BG141: unit cost | BN141: cost | BO141: unit cost | BU141: cost | BV141: unit cost
A142: S-HP 250
A143: Patrols and repairs
A144: Materials
A145: Lamp | B145: ='DNSP Inputs O & M'!$D$91 -> 35.85 | C145: ='DNSP Inputs O & M'!$D$98 -> 36.45394329 | E145: =B145*C145 -> 1306.873867 | F145: =(E145+E146+E147)/'DNSP Inputs O & M'!$D$98 -> 47.695 | G145: =F145/'DNSP Inputs O & M'!$D$60 -> 9.539 | I145: ='DNSP Inputs O & M'!$D$91*(1+'DNSP Inputs O & M'!$D$11) -> 37.6425 | J145: ='DNSP Inputs O & M'!$D$99 -> 26.56660734 | L145: =I145*J145 -> 1000.033517 | M145: =(L145+L146+L147)/'DNSP Inputs O & M'!$D$99 -> 50.07975 | N145: =M145/'DNSP Inputs O & M'!$D$60 -> 10.01595 | Q145: ='DNSP Inputs O & M'!$E$91 -> 35.85 | R145: ='DNSP Inputs O & M'!$E$98 -> 31.30543798 | T145: =Q145*R145 -> 1122.299951 | U145: =(T145+T146+T147)/'DNSP Inputs O & M'!$E$98 -> 47.695 | V145: =U145/'DNSP Inputs O & M'!$E$60 -> 9.539 | X145: ='DNSP Inputs O & M'!$E$91*(1+'DNSP Inputs O & M'!$E$11) -> 37.6425 | Y145: ='DNSP Inputs O & M'!$E$99 -> 25.75004876 | AA145: =X145*Y145 -> 969.2962103 | AB145: =(AA145+AA146+AA147)/'DNSP Inputs O & M'!$E$99 -> 50.07975 | AC145: =AB145/'DNSP Inputs O & M'!$E$60 -> 10.01595 | AF145: ='DNSP Inputs O & M'!$F$91 -> 35.85 | AG145: ='DNSP Inputs O & M'!$F$98 -> 33.92197649 | AI145: =AF145*AG145 -> 1216.102857 | AJ145: =(AI145+AI146+AI147)/'DNSP Inputs O & M'!$F$98 -> 47.695 | AK145: =AJ145/'DNSP Inputs O & M'!$F$60 -> 9.539 | AM145: ='DNSP Inputs O & M'!$F$91*(1+'DNSP Inputs O & M'!$F$11) -> 37.6425 | AN145: ='DNSP Inputs O & M'!$F$99 -> 25.59450533 | AP145: =AM145*AN145 -> 963.4411669 | AQ145: =(AP145+AP146+AP147)/'DNSP Inputs O & M'!$F$99 -> 50.07975 | AR145: =AQ145/'DNSP Inputs O & M'!$F$60 -> 10.01595 | AU145: ='DNSP Inputs O & M'!$G$91 -> 35.85 | AV145: ='DNSP Inputs O & M'!$G$98 -> 27.25463997 | AX145: =AU145*AV145 -> 977.0788431 | AY145: =(AX145+AX146+AX147)/'DNSP Inputs O & M'!$G$98 -> 47.695 | AZ145: =AY145/'DNSP Inputs O & M'!$G$60 -> 9.539 | BB145: ='DNSP Inputs O & M'!$G$91*(1+'DNSP Inputs O & M'!$G$11) -> 37.6425 | BC145: ='DNSP Inputs O & M'!$G$99 -> 25.15735201 | BE145: =BB145*BC145 -> 946.9856229 | BF145: =(BE145+BE146+BE147)/'DNSP Inputs O & M'!$G$99 -> 50.07975 | BG145: =BF145/'DNSP Inputs O & M'!$G$60 -> 10.01595 | BJ145: ='DNSP Inputs O & M'!$H$91 -> 35.85 | BK145: ='DNSP Inputs O & M'!$H$98 -> 25.87392839 | BM145: =BJ145*BK145 -> 927.5803328 | BN145: =(BM145+BM146+BM147)/'DNSP Inputs O & M'!$H$98 -> 47.695 | BO145: =BN145/'DNSP Inputs O & M'!$H$60 -> 9.539 | BQ145: ='DNSP Inputs O & M'!$H$91*(1+'DNSP Inputs O & M'!$H$11) -> 37.6425 | BR145: ='DNSP Inputs O & M'!$H$99 -> 24.99331559 | BT145: =BQ145*BR145 -> 940.8108822 | BU145: =(BT145+BT146+BT147)/'DNSP Inputs O & M'!$H$99 -> 50.07975 | BV145: =BU145/'DNSP Inputs O & M'!$H$60 -> 10.01595
A146: PE cell | B146: ='DNSP Inputs O & M'!$D$92 -> 19.37 | C146: =C145*'DNSP Inputs O & M'!$D$60/'DNSP Inputs O & M'!$D$61 -> 18.22697164 | E146: =B146*C146 -> 353.0564407 | I146: ='DNSP Inputs O & M'!$D$92*(1+'DNSP Inputs O & M'!$D$11) -> 20.3385 | J146: =J145*'DNSP Inputs O & M'!$D$60/'DNSP Inputs O & M'!$D$61 -> 13.28330367 | L146: =I146*J146 -> 270.1624717 | Q146: ='DNSP Inputs O & M'!$E$92 -> 19.37 | R146: =R145*'DNSP Inputs O & M'!$E$60/'DNSP Inputs O & M'!$E$61 -> 15.65271899 | T146: =Q146*R146 -> 303.1931668 | X146: ='DNSP Inputs O & M'!$E$92*(1+'DNSP Inputs O & M'!$E$11) -> 20.3385 | Y146: =Y145*'DNSP Inputs O & M'!$E$60/'DNSP Inputs O & M'!$E$61 -> 12.87502438 | AA146: =X146*Y146 -> 261.8586833 | AF146: ='DNSP Inputs O & M'!$F$92 -> 19.37 | AG146: =AG145*'DNSP Inputs O & M'!$F$60/'DNSP Inputs O & M'!$F$61 -> 16.96098824 | AI146: =AF146*AG146 -> 328.5343423 | AM146: ='DNSP Inputs O & M'!$F$92*(1+'DNSP Inputs O & M'!$F$11) -> 20.3385 | AN146: =AN145*'DNSP Inputs O & M'!$F$60/'DNSP Inputs O & M'!$F$61 -> 12.79725266 | AP146: =AM146*AN146 -> 260.2769233 | AU146: ='DNSP Inputs O & M'!$G$92 -> 19.37 | AV146: =AV145*'DNSP Inputs O & M'!$G$60/'DNSP Inputs O & M'!$G$61 -> 13.62731999 | AX146: =AU146*AV146 -> 263.9611882 | BB146: ='DNSP Inputs O & M'!$G$92*(1+'DNSP Inputs O & M'!$G$11) -> 20.3385 | BC146: =BC145*'DNSP Inputs O & M'!$G$60/'DNSP Inputs O & M'!$G$61 -> 12.578676 | BE146: =BB146*BC146 -> 255.8314019 | BJ146: ='DNSP Inputs O & M'!$H$92 -> 19.37 | BK146: =BK145*'DNSP Inputs O & M'!$H$60/'DNSP Inputs O & M'!$H$61 -> 12.9369642 | BM146: =BJ146*BK146 -> 250.5889965 | BQ146: ='DNSP Inputs O & M'!$H$92*(1+'DNSP Inputs O & M'!$H$11) -> 20.3385 | BR146: =BR145*'DNSP Inputs O & M'!$H$60/'DNSP Inputs O & M'!$H$61 -> 12.4966578 | BT146: =BQ146*BR146 -> 254.1632746
A147: Miscellaneous | B147: ='DNSP Inputs O & M'!$D$93 -> 2.16 | C147: ='DNSP Inputs O & M'!$D$98 -> 36.45394329 | E147: =B147*C147 -> 78.7405175 | I147: ='DNSP Inputs O & M'!$D$93*(1+'DNSP Inputs O & M'!$D$11) -> 2.268 | J147: ='DNSP Inputs O & M'!$D$99 -> 26.56660734 | L147: =I147*J147 -> 60.25306545 | Q147: ='DNSP Inputs O & M'!$E$93 -> 2.16 | R147: ='DNSP Inputs O & M'!$E$98 -> 31.30543798 | T147: =Q147*R147 -> 67.61974603 | X147: ='DNSP Inputs O & M'!$E$93*(1+'DNSP Inputs O & M'!$E$11) -> 2.268 | Y147: ='DNSP Inputs O & M'!$E$99 -> 25.75004876 | AA147: =X147*Y147 -> 58.40111058 | AF147: ='DNSP Inputs O & M'!$F$93 -> 2.16 | AG147: ='DNSP Inputs O & M'!$F$98 -> 33.92197649 | AI147: =AF147*AG147 -> 73.27146921 | AM147: ='DNSP Inputs O & M'!$F$93*(1+'DNSP Inputs O & M'!$F$11) -> 2.268 | AN147: ='DNSP Inputs O & M'!$F$99 -> 25.59450533 | AP147: =AM147*AN147 -> 58.04833809 | AU147: ='DNSP Inputs O & M'!$G$93 -> 2.16 | AV147: ='DNSP Inputs O & M'!$G$98 -> 27.25463997 | AX147: =AU147*AV147 -> 58.87002235 | BB147: ='DNSP Inputs O & M'!$G$93*(1+'DNSP Inputs O & M'!$G$11) -> 2.268 | BC147: ='DNSP Inputs O & M'!$G$99 -> 25.15735201 | BE147: =BB147*BC147 -> 57.05687435 | BJ147: ='DNSP Inputs O & M'!$H$93 -> 2.16 | BK147: ='DNSP Inputs O & M'!$H$98 -> 25.87392839 | BM147: =BJ147*BK147 -> 55.88768532 | BQ147: ='DNSP Inputs O & M'!$H$93*(1+'DNSP Inputs O & M'!$H$11) -> 2.268 | BR147: ='DNSP Inputs O & M'!$H$99 -> 24.99331559 | BT147: =BQ147*BR147 -> 56.68483977
A148: Labour - Patrol
A149: Crew costs | B149: ='DNSP Inputs O & M'!$D$13 -> 119.78 | C149: ='DNSP Inputs O & M'!$D$65 -> 2 | D149: ='DNSP Inputs O & M'!$D$17 -> 8 | E149: =B149*C149*D149 -> 1916.48 | F149: =(E149+E150)/'DNSP Inputs O & M'!$D$96 -> 0.4947186648 | G149: =F149*'DNSP Inputs O & M'!$D$59 -> 1.484155994 | I149: ='DNSP Inputs O & M'!$D$13 -> 119.78 | J149: ='DNSP Inputs O & M'!$D$65 -> 2 | K149: ='DNSP Inputs O & M'!$D$17 -> 8 | L149: =I149*J149*K149 -> 1916.48 | M149: =(L149+L150)/'DNSP Inputs O & M'!$D$97 -> 0.9025719031 | N149: =M149*'DNSP Inputs O & M'!$D$59 -> 2.707715709 | Q149: ='DNSP Inputs O & M'!$E$13 -> 119.78 | R149: ='DNSP Inputs O & M'!$E$65 -> 2 | S149: ='DNSP Inputs O & M'!$E$17 -> 8 | T149: =Q149*R149*S149 -> 1916.48 | U149: =(T149+T150)/'DNSP Inputs O & M'!$E$96 -> 0.4901972292 | V149: =U149*'DNSP Inputs O & M'!$E$59 -> 1.470591688 | X149: ='DNSP Inputs O & M'!$E$13 -> 119.78 | Y149: ='DNSP Inputs O & M'!$E$65 -> 2 | Z149: ='DNSP Inputs O & M'!$E$17 -> 8 | AA149: =X149*Y149*Z149 -> 1916.48 | AB149: =(AA149+AA150)/'DNSP Inputs O & M'!$E$97 -> 0.9021729822 | AC149: =AB149*'DNSP Inputs O & M'!$E$59 -> 2.706518947 | AF149: ='DNSP Inputs O & M'!$F$13 -> 119.78 | AG149: ='DNSP Inputs O & M'!$F$65 -> 2 | AH149: ='DNSP Inputs O & M'!$F$17 -> 8 | AI149: =AF149*AG149*AH149 -> 1916.48 | AJ149: =(AI149+AI150)/'DNSP Inputs O & M'!$F$96 -> 0.4700105116 | AK149: =AJ149*'DNSP Inputs O & M'!$F$59 -> 1.410031535 | AM149: ='DNSP Inputs O & M'!$F$13 -> 119.78 | AN149: ='DNSP Inputs O & M'!$F$65 -> 2 | AO149: ='DNSP Inputs O & M'!$F$17 -> 8 | AP149: =AM149*AN149*AO149 -> 1916.48 | AQ149: =(AP149+AP150)/'DNSP Inputs O & M'!$F$97 -> 0.8964870626 | AR149: =AQ149*'DNSP Inputs O & M'!$F$59 -> 2.689461188 | AU149: ='DNSP Inputs O & M'!$G$13 -> 119.78 | AV149: ='DNSP Inputs O & M'!$G$65 -> 2 | AW149: ='DNSP Inputs O & M'!$G$17 -> 8 | AX149: =AU149*AV149*AW149 -> 1916.48 | AY149: =(AX149+AX150)/'DNSP Inputs O & M'!$G$96 -> 0.4580388567 | AZ149: =AY149*'DNSP Inputs O & M'!$G$59 -> 1.37411657 | BB149: ='DNSP Inputs O & M'!$G$13 -> 119.78 | BC149: ='DNSP Inputs O & M'!$G$65 -> 2 | BD149: ='DNSP Inputs O & M'!$G$17 -> 8 | BE149: =BB149*BC149*BD149 -> 1916.48 | BF149: =(BE149+BE150)/'DNSP Inputs O & M'!$G$97 -> 0.8845402562 | BG149: =BF149*'DNSP Inputs O & M'!$G$59 -> 2.653620769 | BJ149: ='DNSP Inputs O & M'!$H$13 -> 119.78 | BK149: ='DNSP Inputs O & M'!$H$65 -> 2 | BL149: ='DNSP Inputs O & M'!$H$17 -> 8 | BM149: =BJ149*BK149*BL149 -> 1916.48 | BN149: =(BM149+BM150)/'DNSP Inputs O & M'!$H$96 -> 0.4458632604 | BO149: =BN149*'DNSP Inputs O & M'!$H$59 -> 1.337589781 | BQ149: ='DNSP Inputs O & M'!$H$13 -> 119.78 | BR149: ='DNSP Inputs O & M'!$H$65 -> 2 | BS149: ='DNSP Inputs O & M'!$H$17 -> 8 | BT149: =BQ149*BR149*BS149 -> 1916.48 | BU149: =(BT149+BT150)/'DNSP Inputs O & M'!$H$97 -> 0.8717024031 | BV149: =BU149*'DNSP Inputs O & M'!$H$59 -> 2.615107209
A150: Vehicle costs | B150: ='DNSP Inputs O & M'!$D$16 -> 10 | C150: 1 | D150: ='DNSP Inputs O & M'!$D$17 -> 8 | E150: =B150*C150*D150 -> 80 | I150: ='DNSP Inputs O & M'!$D$16 -> 10 | J150: 1 | K150: ='DNSP Inputs O & M'!$D$17 -> 8 | L150: =I150*J150*K150 -> 80 | Q150: ='DNSP Inputs O & M'!$E$16 -> 10 | R150: 1 | S150: ='DNSP Inputs O & M'!$E$17 -> 8 | T150: =Q150*R150*S150 -> 80 | X150: ='DNSP Inputs O & M'!$E$16 -> 10 | Y150: 1 | Z150: ='DNSP Inputs O & M'!$E$17 -> 8 | AA150: =X150*Y150*Z150 -> 80 | AF150: ='DNSP Inputs O & M'!$F$16 -> 10 | AG150: 1 | AH150: ='DNSP Inputs O & M'!$F$17 -> 8 | AI150: =AF150*AG150*AH150 -> 80 | AM150: ='DNSP Inputs O & M'!$F$16 -> 10 | AN150: 1 | AO150: ='DNSP Inputs O & M'!$F$17 -> 8 | AP150: =AM150*AN150*AO150 -> 80 | AU150: ='DNSP Inputs O & M'!$G$16 -> 10 | AV150: 1 | AW150: ='DNSP Inputs O & M'!$G$17 -> 8 | AX150: =AU150*AV150*AW150 -> 80 | BB150: ='DNSP Inputs O & M'!$G$16 -> 10 | BC150: 1 | BD150: ='DNSP Inputs O & M'!$G$17 -> 8 | BE150: =BB150*BC150*BD150 -> 80 | BJ150: ='DNSP Inputs O & M'!$H$16 -> 10 | BK150: 1 | BL150: ='DNSP Inputs O & M'!$H$17 -> 8 | BM150: =BJ150*BK150*BL150 -> 80 | BQ150: ='DNSP Inputs O & M'!$H$16 -> 10 | BR150: 1 | BS150: ='DNSP Inputs O & M'!$H$17 -> 8 | BT150: =BQ150*BR150*BS150 -> 80
A151: Labour - Repair of faults
A152: Crew costs | B152: ='DNSP Inputs O & M'!$D$12 -> 90.24 | C152: ='DNSP Inputs O & M'!$D$66 -> 2 | D152: ='DNSP Inputs O & M'!$D$17 -> 8 | E152: =B152*C152*D152 -> 1443.84 | F152: =(E152+E153)/'DNSP Inputs O & M'!$D$98*(C145+C146)/C145 -> 72.71641312 | G152: =F152/'DNSP Inputs O & M'!$D$60 -> 14.54328262 | I152: ='DNSP Inputs O & M'!$D$12 -> 90.24 | J152: ='DNSP Inputs O & M'!$D$66 -> 2 | K152: ='DNSP Inputs O & M'!$D$17 -> 8 | L152: =I152*J152*K152 -> 1443.84 | M152: =(L152+L153)/'DNSP Inputs O & M'!$D$99*(J145+J146)/J145 -> 99.7793947 | N152: =M152/'DNSP Inputs O & M'!$D$60 -> 19.95587894 | Q152: ='DNSP Inputs O & M'!$E$12 -> 90.24 | R152: ='DNSP Inputs O & M'!$E$66 -> 2 | S152: ='DNSP Inputs O & M'!$E$17 -> 8 | T152: =Q152*R152*S152 -> 1443.84 | U152: =(T152+T153)/'DNSP Inputs O & M'!$E$98*(R145+R146)/R145 -> 84.67538457 | V152: =U152/'DNSP Inputs O & M'!$E$60 -> 16.93507691 | X152: ='DNSP Inputs O & M'!$E$12 -> 90.24 | Y152: ='DNSP Inputs O & M'!$E$66 -> 2 | Z152: ='DNSP Inputs O & M'!$E$17 -> 8 | AA152: =X152*Y152*Z152 -> 1443.84 | AB152: =(AA152+AA153)/'DNSP Inputs O & M'!$E$99*(Y145+Y146)/Y145 -> 102.9434944 | AC152: =AB152/'DNSP Inputs O & M'!$E$60 -> 20.58869888 | AF152: ='DNSP Inputs O & M'!$F$12 -> 90.24 | AG152: ='DNSP Inputs O & M'!$F$66 -> 2 | AH152: ='DNSP Inputs O & M'!$F$17 -> 8 | AI152: =AF152*AG152*AH152 -> 1443.84 | AJ152: =(AI152+AI153)/'DNSP Inputs O & M'!$F$98*(AG145+AG146)/AG145 -> 78.14403152 | AK152: =AJ152/'DNSP Inputs O & M'!$F$60 -> 15.6288063 | AM152: ='DNSP Inputs O & M'!$F$12 -> 90.24 | AN152: ='DNSP Inputs O & M'!$F$66 -> 2 | AO152: ='DNSP Inputs O & M'!$F$17 -> 8 | AP152: =AM152*AN152*AO152 -> 1443.84 | AQ152: =(AP152+AP153)/'DNSP Inputs O & M'!$F$99*(AN145+AN146)/AN145 -> 103.5691046 | AR152: =AQ152/'DNSP Inputs O & M'!$F$60 -> 20.71382092 | AU152: ='DNSP Inputs O & M'!$G$12 -> 90.24 | AV152: ='DNSP Inputs O & M'!$G$66 -> 2 | AW152: ='DNSP Inputs O & M'!$G$17 -> 8 | AX152: =AU152*AV152*AW152 -> 1443.84 | AY152: =(AX152+AX153)/'DNSP Inputs O & M'!$G$98*(AV145+AV146)/AV145 -> 97.26050326 | AZ152: =AY152/'DNSP Inputs O & M'!$G$60 -> 19.45210065 | BB152: ='DNSP Inputs O & M'!$G$12 -> 90.24 | BC152: ='DNSP Inputs O & M'!$G$66 -> 2 | BD152: ='DNSP Inputs O & M'!$G$17 -> 8 | BE152: =BB152*BC152*BD152 -> 1443.84 | BF152: =(BE152+BE153)/'DNSP Inputs O & M'!$G$99*(BC145+BC146)/BC145 -> 105.3688003 | BG152: =BF152/'DNSP Inputs O & M'!$G$60 -> 21.07376006 | BJ152: ='DNSP Inputs O & M'!$H$12 -> 90.24 | BK152: ='DNSP Inputs O & M'!$H$66 -> 2 | BL152: ='DNSP Inputs O & M'!$H$17 -> 8 | BM152: =BJ152*BK152*BL152 -> 1443.84 | BN152: =(BM152+BM153)/'DNSP Inputs O & M'!$H$98*(BK145+BK146)/BK145 -> 102.4506198 | BO152: =BN152/'DNSP Inputs O & M'!$H$60 -> 20.49012396 | BQ152: ='DNSP Inputs O & M'!$H$12 -> 90.24 | BR152: ='DNSP Inputs O & M'!$H$66 -> 2 | BS152: ='DNSP Inputs O & M'!$H$17 -> 8 | BT152: =BQ152*BR152*BS152 -> 1443.84 | BU152: =(BT152+BT153)/'DNSP Inputs O & M'!$H$99*(BR145+BR146)/BR145 -> 106.060358 | BV152: =BU152/'DNSP Inputs O & M'!$H$60 -> 21.2120716
A153: Elevated platform vehicle costs | B153: ='DNSP Inputs O & M'!$D$15 -> 40.42 | C153: 1 | D153: ='DNSP Inputs O & M'!$D$17 -> 8 | E153: =B153*C153*D153 -> 323.36 | I153: ='DNSP Inputs O & M'!$D$15 -> 40.42 | J153: 1 | K153: ='DNSP Inputs O & M'!$D$17 -> 8 | L153: =I153*J153*K153 -> 323.36 | Q153: ='DNSP Inputs O & M'!$E$15 -> 40.42 | R153: 1 | S153: ='DNSP Inputs O & M'!$E$17 -> 8 | T153: =Q153*R153*S153 -> 323.36 | X153: ='DNSP Inputs O & M'!$E$15 -> 40.42 | Y153: 1 | Z153: ='DNSP Inputs O & M'!$E$17 -> 8 | AA153: =X153*Y153*Z153 -> 323.36 | AF153: ='DNSP Inputs O & M'!$F$15 -> 40.42 | AG153: 1 | AH153: ='DNSP Inputs O & M'!$F$17 -> 8 | AI153: =AF153*AG153*AH153 -> 323.36 | AM153: ='DNSP Inputs O & M'!$F$15 -> 40.42 | AN153: 1 | AO153: ='DNSP Inputs O & M'!$F$17 -> 8 | AP153: =AM153*AN153*AO153 -> 323.36 | AU153: ='DNSP Inputs O & M'!$G$15 -> 40.42 | AV153: 1 | AW153: ='DNSP Inputs O & M'!$G$17 -> 8 | AX153: =AU153*AV153*AW153 -> 323.36 | BB153: ='DNSP Inputs O & M'!$G$15 -> 40.42 | BC153: 1 | BD153: ='DNSP Inputs O & M'!$G$17 -> 8 | BE153: =BB153*BC153*BD153 -> 323.36 | BJ153: ='DNSP Inputs O & M'!$H$15 -> 40.42 | BK153: 1 | BL153: ='DNSP Inputs O & M'!$H$17 -> 8 | BM153: =BJ153*BK153*BL153 -> 323.36 | BQ153: ='DNSP Inputs O & M'!$H$15 -> 40.42 | BR153: 1 | BS153: ='DNSP Inputs O & M'!$H$17 -> 8 | BT153: =BQ153*BR153*BS153 -> 323.36
A155: Other Maintenance and Repair costs | G155: ='DNSP Inputs O & M'!$D$106 -> 3.006344731 | N155: ='DNSP Inputs O & M'!$D$106 -> 3.006344731 | V155: ='DNSP Inputs O & M'!$E$106 -> 2.994674333 | AC155: ='DNSP Inputs O & M'!$E$106 -> 2.994674333 | AK155: ='DNSP Inputs O & M'!$F$106 -> 2.983121568 | AR155: ='DNSP Inputs O & M'!$F$106 -> 2.983121568 | AZ155: ='DNSP Inputs O & M'!$G$106 -> 2.971562517 | BG155: ='DNSP Inputs O & M'!$G$106 -> 2.971562517 | BO155: ='DNSP Inputs O & M'!$H$106 -> 2.960119655 | BV155: ='DNSP Inputs O & M'!$H$106 -> 2.960119655
A157: Overheads | B157: ='DNSP Inputs O & M'!$D$18 -> 0.25 | G157: =B157*(G145+G149+G152+G155) -> 7.143195838 | I157: ='DNSP Inputs O & M'!$D$18 -> 0.25 | N157: =I157*(N145+N149+N152+N155) -> 8.921472345 | Q157: ='DNSP Inputs O & M'!$E$18 -> 0.25 | V157: =Q157*(V145+V149+V152+V155) -> 7.734835734 | X157: ='DNSP Inputs O & M'!$E$18 -> 0.25 | AC157: =X157*(AC145+AC149+AC152+AC155) -> 9.07646054 | AF157: ='DNSP Inputs O & M'!$F$18 -> 0.25 | AK157: =AF157*(AK145+AK149+AK152+AK155) -> 7.390239852 | AM157: ='DNSP Inputs O & M'!$F$18 -> 0.25 | AR157: =AM157*(AR145+AR149+AR152+AR155) -> 9.10058842 | AU157: ='DNSP Inputs O & M'!$G$18 -> 0.25 | AZ157: =AU157*(AZ145+AZ149+AZ152+AZ155) -> 8.334194935 | BB157: ='DNSP Inputs O & M'!$G$18 -> 0.25 | BG157: =BB157*(BG145+BG149+BG152+BG155) -> 9.178723337 | BJ157: ='DNSP Inputs O & M'!$H$18 -> 0.25 | BO157: =BJ157*(BO145+BO149+BO152+BO155) -> 8.581708349 | BQ157: ='DNSP Inputs O & M'!$H$18 -> 0.25 | BV157: =BQ157*(BV145+BV149+BV152+BV155) -> 9.200812117
G159: =SUM(G145,G149,G152,G155,G157) -> 35.71597919 | N159: =SUM(N145,N149,N152,N155,N157) -> 44.60736173 | V159: =SUM(V145,V149,V152,V155,V157) -> 38.67417867 | AC159: =SUM(AC145,AC149,AC152,AC155,AC157) -> 45.3823027 | AK159: =SUM(AK145,AK149,AK152,AK155,AK157) -> 36.95119926 | AR159: =SUM(AR145,AR149,AR152,AR155,AR157) -> 45.5029421 | AZ159: =SUM(AZ145,AZ149,AZ152,AZ155,AZ157) -> 41.67097467 | BG159: =SUM(BG145,BG149,BG152,BG155,BG157) -> 45.89361669 | BO159: =SUM(BO145,BO149,BO152,BO155,BO157) -> 42.90854174 | BV159: =SUM(BV145,BV149,BV152,BV155,BV157) -> 46.00406059
A164: T5 (2 X 14W) - Cost build-up
A166: Additional assumptions
A167: Proportion of luminaire that will fail before bulk change | D167: ='DNSP Inputs O & M'!$D$142 -> 0.114 | S167: ='DNSP Inputs O & M'!$E$142 -> 0.114 | AH167: ='DNSP Inputs O & M'!$F$142 -> 0.114 | AW167: ='DNSP Inputs O & M'!$G$142 -> 0.114 | BL167: ='DNSP Inputs O & M'!$H$142 -> 0.114
A168: Proportion of lamps that will fail before bulk change (per year) | D168: =D167/'DNSP Inputs O & M'!$D$139 -> 0.0285 | S168: =S167/'DNSP Inputs O & M'!$E$139 -> 0.0285 | AH168: =AH167/'DNSP Inputs O & M'!$F$139 -> 0.0285 | AW168: =AW167/'DNSP Inputs O & M'!$G$139 -> 0.0285 | BL168: =BL167/'DNSP Inputs O & M'!$H$139 -> 0.0285
A169: Overheads are applied to material and labour components
A170: All costs and charges are exclusive of GST
B172: Urban | I172: Rural | Q172: Urban | X172: Rural | AF172: Urban | AM172: Rural | AU172: Urban | BB172: Rural | BJ172: Urban | BQ172: Rural
B174: Unit rate | C174: Number | D174: Hours | E174: Cost | F174: Annualised | G174: Annualised | I174: Unit rate | J174: Number | K174: Hours | L174: Cost | M174: Annualised | N174: Annualised | Q174: Unit rate | R174: Number | S174: Hours | T174: Cost | U174: Annualised | V174: Annualised | X174: Unit rate | Y174: Number | Z174: Hours | AA174: Cost | AB174: Annualised | AC174: Annualised | AF174: Unit rate | AG174: Number | AH174: Hours | AI174: Cost | AJ174: Annualised | AK174: Annualised | AM174: Unit rate | AN174: Number | AO174: Hours | AP174: Cost | AQ174: Annualised | AR174: Annualised | AU174: Unit rate | AV174: Number | AW174: Hours | AX174: Cost | AY174: Annualised | AZ174: Annualised | BB174: Unit rate | BC174: Number | BD174: Hours | BE174: Cost | BF174: Annualised | BG174: Annualised | BJ174: Unit rate | BK174: Number | BL174: Hours | BM174: Cost | BN174: Annualised | BO174: Annualised | BQ174: Unit rate | BR174: Number | BS174: Hours | BT174: Cost | BU174: Annualised | BV174: Annualised
F175: cost | G175: unit cost | M175: cost | N175: unit cost | U175: cost | V175: unit cost | AB175: cost | AC175: unit cost | AJ175: cost | AK175: unit cost | AQ175: cost | AR175: unit cost | AY175: cost | AZ175: unit cost | BF175: cost | BG175: unit cost | BN175: cost | BO175: unit cost | BU175: cost | BV175: unit cost
A176: T5 (2 X 14W)
A177: Bulk change & repairs
A178: Materials - bulk lamp change
A179: Lamp | B179: ='DNSP Inputs O & M'!$D$143 -> 8.63505691 | C179: ='DNSP Inputs O & M'!$D$149 -> 34.22341736 | E179: =B179*C179 -> 295.5211565 | F179: =E179/'DNSP Inputs O & M'!$D$139*0.8 -> 59.10423131 | G179: =(F179+F180+F181)/C179 -> 3.764345122 | I179: ='DNSP Inputs O & M'!$D$143*(1+'DNSP Inputs O & M'!$D$11) -> 9.066809756 | J179: ='DNSP Inputs O & M'!$D$150 -> 34.22341736 | L179: =I179*J179 -> 310.2972144 | M179: =L179/'DNSP Inputs O & M'!$D$139*0.8 -> 62.05944287 | N179: =(M179+M180+M181)/J179 -> 3.952562378 | Q179: ='DNSP Inputs O & M'!$E$143 -> 8.63505691 | R179: ='DNSP Inputs O & M'!$E$149 -> 40.33029941 | T179: =Q179*R179 -> 348.2544306 | U179: =T179/'DNSP Inputs O & M'!$E$139*0.8 -> 69.65088612 | V179: =(U179+U180+U181)/R179 -> 3.764345122 | X179: ='DNSP Inputs O & M'!$E$143*(1+'DNSP Inputs O & M'!$E$11) -> 9.066809756 | Y179: ='DNSP Inputs O & M'!$E$150 -> 40.33029941 | AA179: =X179*Y179 -> 365.6671521 | AB179: =AA179/'DNSP Inputs O & M'!$E$139*0.8 -> 73.13343043 | AC179: =(AB179+AB180+AB181)/Y179 -> 3.952562378 | AF179: ='DNSP Inputs O & M'!$F$143 -> 8.63505691 | AG179: ='DNSP Inputs O & M'!$F$149 -> 47.14967084 | AI179: =AF179*AG179 -> 407.140091 | AJ179: =AI179/'DNSP Inputs O & M'!$F$139*0.8 -> 81.4280182 | AK179: =(AJ179+AJ180+AJ181)/AG179 -> 3.764345122 | AM179: ='DNSP Inputs O & M'!$F$143*(1+'DNSP Inputs O & M'!$F$11) -> 9.066809756 | AN179: ='DNSP Inputs O & M'!$F$150 -> 47.14967084 | AP179: =AM179*AN179 -> 427.4970956 | AQ179: =AP179/'DNSP Inputs O & M'!$F$139*0.8 -> 85.49941911 | AR179: =(AQ179+AQ180+AQ181)/AN179 -> 3.952562378 | AU179: ='DNSP Inputs O & M'!$G$143 -> 8.63505691 | AV179: ='DNSP Inputs O & M'!$G$149 -> 54.8027823 | AX179: =AU179*AV179 -> 473.225144 | AY179: =AX179/'DNSP Inputs O & M'!$G$139*0.8 -> 94.6450288 | AZ179: =(AY179+AY180+AY181)/AV179 -> 3.764345122 | BB179: ='DNSP Inputs O & M'!$G$143*(1+'DNSP Inputs O & M'!$G$11) -> 9.066809756 | BC179: ='DNSP Inputs O & M'!$G$150 -> 54.8027823 | BE179: =BB179*BC179 -> 496.8864012 | BF179: =BE179/'DNSP Inputs O & M'!$G$139*0.8 -> 99.37728024 | BG179: =(BF179+BF180+BF181)/BC179 -> 3.952562378 | BJ179: ='DNSP Inputs O & M'!$H$143 -> 8.63505691 | BK179: ='DNSP Inputs O & M'!$H$149 -> 63.44014496 | BM179: =BJ179*BK179 -> 547.8092621 | BN179: =BM179/'DNSP Inputs O & M'!$H$139*0.8 -> 109.5618524 | BO179: =(BN179+BN180+BN181)/BK179 -> 3.764345122 | BQ179: ='DNSP Inputs O & M'!$H$143*(1+'DNSP Inputs O & M'!$H$11) -> 9.066809756 | BR179: ='DNSP Inputs O & M'!$H$150 -> 63.44014496 | BT179: =BQ179*BR179 -> 575.1997252 | BU179: =BT179/'DNSP Inputs O & M'!$H$139*0.8 -> 115.039945 | BV179: =(BU179+BU180+BU181)/BR179 -> 3.952562378
A180: PE cell | B180: ='DNSP Inputs O & M'!$D$144 -> 14.57165854 | C180: =C179*'DNSP Inputs O & M'!$D$139/'DNSP Inputs O & M'!$D$140 -> 17.11170868 | E180: =B180*C180 -> 249.3459758 | F180: =E180/'DNSP Inputs O & M'!$D$139 -> 62.33649396 | I180: ='DNSP Inputs O & M'!$D$144*(1+'DNSP Inputs O & M'!$D$11) -> 15.30024146 | J180: =J179*'DNSP Inputs O & M'!$D$139/'DNSP Inputs O & M'!$D$140 -> 17.11170868 | L180: =I180*J180 -> 261.8132746 | M180: =L180/'DNSP Inputs O & M'!$D$139 -> 65.45331865 | Q180: ='DNSP Inputs O & M'!$E$144 -> 14.57165854 | R180: =R179*'DNSP Inputs O & M'!$E$139/'DNSP Inputs O & M'!$E$140 -> 20.1651497 | T180: =Q180*R180 -> 293.8396758 | U180: =T180/'DNSP Inputs O & M'!$E$139 -> 73.45991896 | X180: ='DNSP Inputs O & M'!$E$144*(1+'DNSP Inputs O & M'!$E$11) -> 15.30024146 | Y180: =Y179*'DNSP Inputs O & M'!$E$139/'DNSP Inputs O & M'!$E$140 -> 20.1651497 | AA180: =X180*Y180 -> 308.5316596 | AB180: =AA180/'DNSP Inputs O & M'!$E$139 -> 77.1329149 | AF180: ='DNSP Inputs O & M'!$F$144 -> 14.57165854 | AG180: =AG179*'DNSP Inputs O & M'!$F$139/'DNSP Inputs O & M'!$F$140 -> 23.57483542 | AI180: =AF180*AG180 -> 343.5244518 | AJ180: =AI180/'DNSP Inputs O & M'!$F$139 -> 85.88111295 | AM180: ='DNSP Inputs O & M'!$F$144*(1+'DNSP Inputs O & M'!$F$11) -> 15.30024146 | AN180: =AN179*'DNSP Inputs O & M'!$F$139/'DNSP Inputs O & M'!$F$140 -> 23.57483542 | AP180: =AM180*AN180 -> 360.7006744 | AQ180: =AP180/'DNSP Inputs O & M'!$F$139 -> 90.1751686 | AU180: ='DNSP Inputs O & M'!$G$144 -> 14.57165854 | AV180: =AV179*'DNSP Inputs O & M'!$G$139/'DNSP Inputs O & M'!$G$140 -> 27.40139115 | AX180: =AU180*AV180 -> 399.2837152 | AY180: =AX180/'DNSP Inputs O & M'!$G$139 -> 99.82092881 | BB180: ='DNSP Inputs O & M'!$G$144*(1+'DNSP Inputs O & M'!$G$11) -> 15.30024146 | BC180: =BC179*'DNSP Inputs O & M'!$G$139/'DNSP Inputs O & M'!$G$140 -> 27.40139115 | BE180: =BB180*BC180 -> 419.247901 | BF180: =BE180/'DNSP Inputs O & M'!$G$139 -> 104.8119752 | BJ180: ='DNSP Inputs O & M'!$H$144 -> 14.57165854 | BK180: =BK179*'DNSP Inputs O & M'!$H$139/'DNSP Inputs O & M'!$H$140 -> 31.72007248 | BM180: =BJ180*BK180 -> 462.2140649 | BN180: =BM180/'DNSP Inputs O & M'!$H$139 -> 115.5535162 | BQ180: ='DNSP Inputs O & M'!$H$144*(1+'DNSP Inputs O & M'!$H$11) -> 15.30024146 | BR180: =BR179*'DNSP Inputs O & M'!$H$139/'DNSP Inputs O & M'!$H$140 -> 31.72007248 | BT180: =BQ180*BR180 -> 485.3247682 | BU180: =BT180/'DNSP Inputs O & M'!$H$139 -> 121.331192
A181: Miscellaneous | B181: ='DNSP Inputs O & M'!$D$146 -> 1.079382114 | C181: ='DNSP Inputs O & M'!$D$149 -> 34.22341736 | E181: =B181*C181 -> 36.94014457 | F181: =E181/'DNSP Inputs O & M'!$D$139*0.8 -> 7.388028913 | I181: ='DNSP Inputs O & M'!$D$146*(1+'DNSP Inputs O & M'!$D$11) -> 1.133351219 | J181: ='DNSP Inputs O & M'!$D$150 -> 34.22341736 | L181: =I181*J181 -> 38.7871518 | M181: =L181/'DNSP Inputs O & M'!$D$139*0.8 -> 7.757430359 | Q181: ='DNSP Inputs O & M'!$E$146 -> 1.079382114 | R181: ='DNSP Inputs O & M'!$E$149 -> 40.33029941 | T181: =Q181*R181 -> 43.53180383 | U181: =T181/'DNSP Inputs O & M'!$E$139*0.8 -> 8.706360765 | X181: ='DNSP Inputs O & M'!$E$146*(1+'DNSP Inputs O & M'!$E$11) -> 1.133351219 | Y181: ='DNSP Inputs O & M'!$E$150 -> 40.33029941 | AA181: =X181*Y181 -> 45.70839402 | AB181: =AA181/'DNSP Inputs O & M'!$E$139*0.8 -> 9.141678803 | AF181: ='DNSP Inputs O & M'!$F$146 -> 1.079382114 | AG181: ='DNSP Inputs O & M'!$F$149 -> 47.14967084 | AI181: =AF181*AG181 -> 50.89251138 | AJ181: =AI181/'DNSP Inputs O & M'!$F$139*0.8 -> 10.17850228 | AM181: ='DNSP Inputs O & M'!$F$146*(1+'DNSP Inputs O & M'!$F$11) -> 1.133351219 | AN181: ='DNSP Inputs O & M'!$F$150 -> 47.14967084 | AP181: =AM181*AN181 -> 53.43713695 | AQ181: =AP181/'DNSP Inputs O & M'!$F$139*0.8 -> 10.68742739 | AU181: ='DNSP Inputs O & M'!$G$146 -> 1.079382114 | AV181: ='DNSP Inputs O & M'!$G$149 -> 54.8027823 | AX181: =AU181*AV181 -> 59.153143 | AY181: =AX181/'DNSP Inputs O & M'!$G$139*0.8 -> 11.8306286 | BB181: ='DNSP Inputs O & M'!$G$146*(1+'DNSP Inputs O & M'!$G$11) -> 1.133351219 | BC181: ='DNSP Inputs O & M'!$G$150 -> 54.8027823 | BE181: =BB181*BC181 -> 62.11080015 | BF181: =BE181/'DNSP Inputs O & M'!$G$139*0.8 -> 12.42216003 | BJ181: ='DNSP Inputs O & M'!$H$146 -> 1.079382114 | BK181: ='DNSP Inputs O & M'!$H$149 -> 63.44014496 | BM181: =BJ181*BK181 -> 68.47615777 | BN181: =BM181/'DNSP Inputs O & M'!$H$139*0.8 -> 13.69523155 | BQ181: ='DNSP Inputs O & M'!$H$146*(1+'DNSP Inputs O & M'!$H$11) -> 1.133351219 | BR181: ='DNSP Inputs O & M'!$H$150 -> 63.44014496 | BT181: =BQ181*BR181 -> 71.89996565 | BU181: =BT181/'DNSP Inputs O & M'!$H$139*0.8 -> 14.37999313
A182: Materials - repair of faults
A183: Lamp | B183: ='DNSP Inputs O & M'!$D$143 -> 8.63505691 | C183: ='DNSP Inputs O & M'!$D$151*'DNSP Inputs O & M'!$D$153 -> 30 | E183: =B183*C183 -> 259.0517073 | F183: =(E183+E184+E185+E186)/'DNSP Inputs O & M'!$D$151 -> 44.79435772 | G183: =F183*D168 -> 1.276639195 | I183: ='DNSP Inputs O & M'!$D$143*(1+'DNSP Inputs O & M'!$D$11) -> 9.066809756 | J183: ='DNSP Inputs O & M'!$D$152*'DNSP Inputs O & M'!$D$153 -> 18.30492056 | L183: =I183*J183 -> 165.9672323 | M183: =(L183+L184+L185+L186)/'DNSP Inputs O & M'!$D$152 -> 47.03407561 | N183: =M183*D168 -> 1.340471155 | Q183: ='DNSP Inputs O & M'!$E$143 -> 8.63505691 | R183: ='DNSP Inputs O & M'!$E$151*'DNSP Inputs O & M'!$E$153 -> 29.78834092 | T183: =Q183*R183 -> 257.2240191 | U183: =(T183+T184+T185+T186)/'DNSP Inputs O & M'!$E$151 -> 44.79435772 | V183: =U183*S168 -> 1.276639195 | X183: ='DNSP Inputs O & M'!$E$143*(1+'DNSP Inputs O & M'!$E$11) -> 9.066809756 | Y183: ='DNSP Inputs O & M'!$E$152*'DNSP Inputs O & M'!$E$153 -> 18.27042503 | AA183: =X183*Y183 -> 165.6544679 | AB183: =(AA183+AA184+AA185+AA186)/'DNSP Inputs O & M'!$E$152 -> 47.03407561 | AC183: =AB183*S168 -> 1.340471155 | AF183: ='DNSP Inputs O & M'!$F$143 -> 8.63505691 | AG183: ='DNSP Inputs O & M'!$F$151*'DNSP Inputs O & M'!$F$153 -> 29.46161256 | AI183: =AF183*AG183 -> 254.4027011 | AJ183: =(AI183+AI184+AI185+AI186)/'DNSP Inputs O & M'!$F$151 -> 44.79435772 | AK183: =AJ183*AH168 -> 1.276639195 | AM183: ='DNSP Inputs O & M'!$F$143*(1+'DNSP Inputs O & M'!$F$11) -> 9.066809756 | AN183: ='DNSP Inputs O & M'!$F$152*'DNSP Inputs O & M'!$F$153 -> 17.08341682 | AP183: =AM183*AN183 -> 154.8920903 | AQ183: =(AP183+AP184+AP185+AP186)/'DNSP Inputs O & M'!$F$152 -> 47.03407561 | AR183: =AQ183*AH168 -> 1.340471155 | AU183: ='DNSP Inputs O & M'!$G$143 -> 8.63505691 | AV183: ='DNSP Inputs O & M'!$G$151*'DNSP Inputs O & M'!$G$153 -> 29.62689499 | AX183: =AU183*AV183 -> 255.8299243 | AY183: =(AX183+AX184+AX185+AX186)/'DNSP Inputs O & M'!$G$151 -> 44.79435772 | AZ183: =AY183*AW168 -> 1.276639195 | BB183: ='DNSP Inputs O & M'!$G$143*(1+'DNSP Inputs O & M'!$G$11) -> 9.066809756 | BC183: ='DNSP Inputs O & M'!$G$152*'DNSP Inputs O & M'!$G$153 -> 18.23293893 | BE183: =BB183*BC183 -> 165.3145886 | BF183: =(BE183+BE184+BE185+BE186)/'DNSP Inputs O & M'!$G$152 -> 47.03407561 | BG183: =BF183*AW168 -> 1.340471155 | BJ183: ='DNSP Inputs O & M'!$H$143 -> 8.63505691 | BK183: ='DNSP Inputs O & M'!$H$151*'DNSP Inputs O & M'!$H$153 -> 29.56332058 | BM183: =BJ183*BK183 -> 255.2809557 | BN183: =(BM183+BM184+BM185+BM186)/'DNSP Inputs O & M'!$H$151 -> 44.79435772 | BO183: =BN183*BL168 -> 1.276639195 | BQ183: ='DNSP Inputs O & M'!$H$143*(1+'DNSP Inputs O & M'!$H$11) -> 9.066809756 | BR183: ='DNSP Inputs O & M'!$H$152*'DNSP Inputs O & M'!$H$153 -> 18.21826425 | BT183: =BQ183*BR183 -> 165.181536 | BU183: =(BT183+BT184+BT185+BT186)/'DNSP Inputs O & M'!$H$152 -> 47.03407561 | BV183: =BU183*BL168 -> 1.340471155
A184: PE cell | B184: ='DNSP Inputs O & M'!$D$144 -> 14.57165854 | C184: ='DNSP Inputs O & M'!$D$151*'DNSP Inputs O & M'!$D$154 -> 25 | E184: =B184*C184 -> 364.2914634 | I184: ='DNSP Inputs O & M'!$D$144*(1+'DNSP Inputs O & M'!$D$11) -> 15.30024146 | J184: ='DNSP Inputs O & M'!$D$152*'DNSP Inputs O & M'!$D$154 -> 15.25410046 | L184: =I184*J184 -> 233.3914204 | Q184: ='DNSP Inputs O & M'!$E$144 -> 14.57165854 | R184: ='DNSP Inputs O & M'!$E$151*'DNSP Inputs O & M'!$E$154 -> 24.82361743 | T184: =Q184*R184 -> 361.7212769 | X184: ='DNSP Inputs O & M'!$E$144*(1+'DNSP Inputs O & M'!$E$11) -> 15.30024146 | Y184: ='DNSP Inputs O & M'!$E$152*'DNSP Inputs O & M'!$E$154 -> 15.22535419 | AA184: =X184*Y184 -> 232.9515955 | AF184: ='DNSP Inputs O & M'!$F$144 -> 14.57165854 | AG184: ='DNSP Inputs O & M'!$F$151*'DNSP Inputs O & M'!$F$154 -> 24.5513438 | AI184: =AF184*AG184 -> 357.7537984 | AM184: ='DNSP Inputs O & M'!$F$144*(1+'DNSP Inputs O & M'!$F$11) -> 15.30024146 | AN184: ='DNSP Inputs O & M'!$F$152*'DNSP Inputs O & M'!$F$154 -> 14.23618068 | AP184: =AM184*AN184 -> 217.8170019 | AU184: ='DNSP Inputs O & M'!$G$144 -> 14.57165854 | AV184: ='DNSP Inputs O & M'!$G$151*'DNSP Inputs O & M'!$G$154 -> 24.68907916 | AX184: =AU184*AV184 -> 359.760831 | BB184: ='DNSP Inputs O & M'!$G$144*(1+'DNSP Inputs O & M'!$G$11) -> 15.30024146 | BC184: ='DNSP Inputs O & M'!$G$152*'DNSP Inputs O & M'!$G$154 -> 15.19411577 | BE184: =BB184*BC184 -> 232.4736402 | BJ184: ='DNSP Inputs O & M'!$H$144 -> 14.57165854 | BK184: ='DNSP Inputs O & M'!$H$151*'DNSP Inputs O & M'!$H$154 -> 24.63610048 | BM184: =BJ184*BK184 -> 358.9888439 | BQ184: ='DNSP Inputs O & M'!$H$144*(1+'DNSP Inputs O & M'!$H$11) -> 15.30024146 | BR184: ='DNSP Inputs O & M'!$H$152*'DNSP Inputs O & M'!$H$154 -> 15.18188688 | BT184: =BQ184*BR184 -> 232.2865351
A185: Luminaire | B185: ='DNSP Inputs O & M'!$D$145 -> 208.320748 | C185: ='DNSP Inputs O & M'!$D$151*'DNSP Inputs O & M'!$D$155 -> 7.5 | E185: =B185*C185 -> 1562.40561 | I185: ='DNSP Inputs O & M'!$D$145*(1+'DNSP Inputs O & M'!$D$11) -> 218.7367854 | J185: ='DNSP Inputs O & M'!$D$152*'DNSP Inputs O & M'!$D$155 -> 4.576230139 | L185: =I185*J185 -> 1000.98987 | Q185: ='DNSP Inputs O & M'!$E$145 -> 208.320748 | R185: ='DNSP Inputs O & M'!$E$151*'DNSP Inputs O & M'!$E$155 -> 7.44708523 | T185: =Q185*R185 -> 1551.382365 | X185: ='DNSP Inputs O & M'!$E$145*(1+'DNSP Inputs O & M'!$E$11) -> 218.7367854 | Y185: ='DNSP Inputs O & M'!$E$152*'DNSP Inputs O & M'!$E$155 -> 4.567606258 | AA185: =X185*Y185 -> 999.1035096 | AF185: ='DNSP Inputs O & M'!$F$145 -> 208.320748 | AG185: ='DNSP Inputs O & M'!$F$151*'DNSP Inputs O & M'!$F$155 -> 7.365403139 | AI185: =AF185*AG185 -> 1534.366291 | AM185: ='DNSP Inputs O & M'!$F$145*(1+'DNSP Inputs O & M'!$F$11) -> 218.7367854 | AN185: ='DNSP Inputs O & M'!$F$152*'DNSP Inputs O & M'!$F$155 -> 4.270854204 | AP185: =AM185*AN185 -> 934.1929194 | AU185: ='DNSP Inputs O & M'!$G$145 -> 208.320748 | AV185: ='DNSP Inputs O & M'!$G$151*'DNSP Inputs O & M'!$G$155 -> 7.406723747 | AX185: =AU185*AV185 -> 1542.974231 | BB185: ='DNSP Inputs O & M'!$G$145*(1+'DNSP Inputs O & M'!$G$11) -> 218.7367854 | BC185: ='DNSP Inputs O & M'!$G$152*'DNSP Inputs O & M'!$G$155 -> 4.558234732 | BE185: =BB185*BC185 -> 997.0536122 | BJ185: ='DNSP Inputs O & M'!$H$145 -> 208.320748 | BK185: ='DNSP Inputs O & M'!$H$151*'DNSP Inputs O & M'!$H$155 -> 7.390830145 | BM185: =BJ185*BK185 -> 1539.663264 | BQ185: ='DNSP Inputs O & M'!$H$145*(1+'DNSP Inputs O & M'!$H$11) -> 218.7367854 | BR185: ='DNSP Inputs O & M'!$H$152*'DNSP Inputs O & M'!$H$155 -> 4.554566063 | BT185: =BQ185*BR185 -> 996.2511392
A186: Miscellaneous | B186: ='DNSP Inputs O & M'!$D$147 -> 10.79382114 | C186: ='DNSP Inputs O & M'!$D$151*'DNSP Inputs O & M'!$D$156 -> 5 | E186: =B186*C186 -> 53.96910569 | I186: ='DNSP Inputs O & M'!$D$147*(1+'DNSP Inputs O & M'!$D$11) -> 11.33351219 | J186: ='DNSP Inputs O & M'!$D$152*'DNSP Inputs O & M'!$D$156 -> 3.050820093 | L186: =I186*J186 -> 34.57650673 | Q186: ='DNSP Inputs O & M'!$E$147 -> 10.79382114 | R186: ='DNSP Inputs O & M'!$E$151*'DNSP Inputs O & M'!$E$156 -> 4.964723487 | T186: =Q186*R186 -> 53.58833732 | X186: ='DNSP Inputs O & M'!$E$147*(1+'DNSP Inputs O & M'!$E$11) -> 11.33351219 | Y186: ='DNSP Inputs O & M'!$E$152*'DNSP Inputs O & M'!$E$156 -> 3.045070839 | AA186: =X186*Y186 -> 34.51134748 | AF186: ='DNSP Inputs O & M'!$F$147 -> 10.79382114 | AG186: ='DNSP Inputs O & M'!$F$151*'DNSP Inputs O & M'!$F$156 -> 4.91026876 | AI186: =AF186*AG186 -> 53.00056273 | AM186: ='DNSP Inputs O & M'!$F$147*(1+'DNSP Inputs O & M'!$F$11) -> 11.33351219 | AN186: ='DNSP Inputs O & M'!$F$152*'DNSP Inputs O & M'!$F$156 -> 2.847236136 | AP186: =AM186*AN186 -> 32.26918547 | AU186: ='DNSP Inputs O & M'!$G$147 -> 10.79382114 | AV186: ='DNSP Inputs O & M'!$G$151*'DNSP Inputs O & M'!$G$156 -> 4.937815831 | AX186: =AU186*AV186 -> 53.29790089 | BB186: ='DNSP Inputs O & M'!$G$147*(1+'DNSP Inputs O & M'!$G$11) -> 11.33351219 | BC186: ='DNSP Inputs O & M'!$G$152*'DNSP Inputs O & M'!$G$156 -> 3.038823155 | BE186: =BB186*BC186 -> 34.44053928 | BJ186: ='DNSP Inputs O & M'!$H$147 -> 10.79382114 | BK186: ='DNSP Inputs O & M'!$H$151*'DNSP Inputs O & M'!$H$156 -> 4.927220097 | BM186: =BJ186*BK186 -> 53.18353243 | BQ186: ='DNSP Inputs O & M'!$H$147*(1+'DNSP Inputs O & M'!$H$11) -> 11.33351219 | BR186: ='DNSP Inputs O & M'!$H$152*'DNSP Inputs O & M'!$H$156 -> 3.036377375 | BT186: =BQ186*BR186 -> 34.41282001
A187: Labour - bulk lamp change
